Workbook

Sheet ПРК (hidden)
B1: Матч №
B2: встреча | C2: Команда A,B | D2: встреча | E2: Команда X,Y | F2: Счет в партиях | K2: счет | M2: Очки
F3: 1 | G3: 2 | H3: 3 | I3: 4 | J3: 5 | K3: А | L3: Х | M3: A,B | N3: X,Y
B4: A | D4: X | P4: =SIGN(F4) -> 0 | Q4: 0 | R4: 0 | S4: 0 | T4: 0 | U4: =P4+Q4+R4+S4+T4 -> 0
B5: B | D5: Y | P5: 0 | Q5: 0 | R5: 0 | S5: 0 | T5: 0 | U5: =P5+Q5+R5+S5+T5 -> 0
A6: =A4 -> 0 | B6: C | D6: Z | P6: 0 | Q6: 0 | R6: 0 | S6: 0 | T6: 0 | U6: =P6+Q6+R6+S6+T6 -> 0
A7: =A4 -> 0 | B7: A | D7: =D5 -> Y | P7: 0 | Q7: 0 | R7: 0 | S7: 0 | T7: 0 | U7: =P7+Q7+R7+S7+T7 -> 0
A8: =A5 -> 0 | B8: B | D8: =D4 -> X | P8: 0 | Q8: 0 | R8: 0 | S8: 0 | T8: 0 | U8: =P8+Q8+R8+S8+T8 -> 0
I9: Общий счет
C10: Победила команда
B12: Матч №
B13: встреча | C13: Команда A,B | D13: встреча | E13: Команда X,Y | F13: Счет в партиях | K13: счет | M13: Очки
F14: 1 | G14: 2 | H14: 3 | I14: 4 | J14: 5 | K14: А | L14: Х | M14: A,B | N14: X,Y
B15: A | D15: X | P15: =SIGN(F15) -> 0 | Q15: 0 | R15: 0 | S15: 0 | T15: 0 | U15: =P15+Q15+R15+S15+T15 -> 0
B16: B | D16: Y | P16: 0 | Q16: 0 | R16: 0 | S16: 0 | T16: 0 | U16: =P16+Q16+R16+S16+T16 -> 0
A17: =A15 -> 0 | B17: C | D17: Z | P17: 0 | Q17: 0 | R17: 0 | S17: 0 | T17: 0 | U17: =P17+Q17+R17+S17+T17 -> 0
A18: =A15 -> 0 | B18: A | D18: =D16 -> Y | P18: 0 | Q18: 0 | R18: 0 | S18: 0 | T18: 0 | U18: =P18+Q18+R18+S18+T18 -> 0
A19: =A16 -> 0 | B19: B | D19: =D15 -> X | P19: 0 | Q19: 0 | R19: 0 | S19: 0 | T19: 0 | U19: =P19+Q19+R19+S19+T19 -> 0
I20: Общий счет
C21: Победила команда
B23: Матч №
B24: встреча | C24: Команда A,B | D24: встреча | E24: Команда X,Y | F24: Счет в партиях | K24: счет | M24: Очки
F25: 1 | G25: 2 | H25: 3 | I25: 4 | J25: 5 | K25: А | L25: Х | M25: A,B | N25: X,Y
B26: A | D26: X | P26: =SIGN(F26) -> 0 | Q26: 0 | R26: 0 | S26: 0 | T26: 0 | U26: =P26+Q26+R26+S26+T26 -> 0
B27: B | D27: Y | P27: 0 | Q27: 0 | R27: 0 | S27: 0 | T27: 0 | U27: =P27+Q27+R27+S27+T27 -> 0
A28: =A26 -> 0 | B28: C | D28: Z | P28: 0 | Q28: 0 | R28: 0 | S28: 0 | T28: 0 | U28: =P28+Q28+R28+S28+T28 -> 0
A29: =A26 -> 0 | B29: A | D29: =D27 -> Y | P29: 0 | Q29: 0 | R29: 0 | S29: 0 | T29: 0 | U29: =P29+Q29+R29+S29+T29 -> 0
A30: =A27 -> 0 | B30: B | D30: =D26 -> X | P30: 0 | Q30: 0 | R30: 0 | S30: 0 | T30: 0 | U30: =P30+Q30+R30+S30+T30 -> 0
I31: Общий счет
C32: Победила команда

Sheet Титульный лист (hidden)
A1: МИНИСТЕРСТВО ТУРИЗМА И СПОРТА РЕСПУБЛИКИ КАЗАХСТАН
A2: ФЕДЕРАЦИЯ НАСТОЛЬНОГО ТЕННИСА РЕСПУБЛИКИ КАЗАХСТАН
A8: КУБОК РЕСПУБЛИКИ КАЗАХСТАН ПО НАСТОЛЬНОМУ ТЕННИСУ
A22: 15-18 августа 2024г.
A23: г. Алматы

Sheet Состав ГСК (hidden)
A1: =Список!A1 -> КУБОК РЕСПУБЛИКИ КАЗАХСТАН
A2: =Список!A2 -> ПО НАСТОЛЬНОМУ ТЕННИСУ
A3: =Список!A3 -> г. Алматы 15-18 августа 2024г.
A5: СОСТАВ
A6: главной судейской коллегии
A8: № п/п | B8: ФАМИЛИЯ Имя Отчество | C8: Должность | D8: Судейская категория | E8: Территория
A9: 1 | C9: Главный судья
A10: 2 | C10: Главный секретарь
A11: 3 | C11: Зам. главного судьи
A12: 9 | C12: Зам. главного секретаря
A17: =Список!C299 -> Главный судья. судья МК | E17: =Список!G299 -> Мирасланов М.К.
A22: Представитель оргкомитета | E22: И.О. Фамилия (город)

Sheet Список регионов (hidden)
B1: =Список!A1 -> КУБОК РЕСПУБЛИКИ КАЗАХСТАН
B2: =Список!A2 -> ПО НАСТОЛЬНОМУ ТЕННИСУ
B3: =Список!A3 -> г. Алматы 15-18 августа 2024г.
B5: СПРАВКА
B6: О КОЛИЧЕСТВЕ РЕГИОНОВ
B7: принявших участие в соревнованиях
B9: № | C9: Регион
B10: 1 | C10: г. Астана
B11: 2
B12: 3
B13: 4
B14: 5
B15: 6
B16: 7
B17: 8
B18: 9
B19: 10
B20: 11
B21: 12
A27: =Список!C299 -> Главный судья. судья МК | D27: =Список!G299 -> Мирасланов М.К.
A30: =Список!C300 -> Главный секретарь. судья 1к. | D30: =Список!G300 -> Першина М.

Sheet Список (hidden)
A1: КУБОК РЕСПУБЛИКИ КАЗАХСТАН
A2: ПО НАСТОЛЬНОМУ ТЕННИСУ
A3: г. Алматы 15-18 августа 2024г.
A4: Nr. | B4: № | C4: ФАМИЛИЯ Имя | D4: Дата рожд. | E4: Разр. | F4: Рейт | G4: Город | H4: Личный тренер | I4: Команда (сокращенно) | K4: Тренер команды | U4: Команда (полностью) | W4: ЯНВ | Y4: РЕЙТ | AB4: Отчество
A5: 1 | B5: 1 | C5: ГЕРАСИМЕНКО Тимофей | D5: =IF(C5="","",VLOOKUP(C5,'R-муж'!C:E,2,FALSE)) -> 04.05.2004 | E5: МС | F5: =IF(X5=0,V5,X5) -> 50 | G5: =IF(C5="","",VLOOKUP(C5,'R-муж'!C:E,3,FALSE)) -> г. Астана | H5: Герасименко Г.А.,Герасименко Т.В. | I5: г. Астана | J5: =I5 -> г. Астана | K5: Герасименко Г.А., Герасименко Т.А | M5: =MID(C5,1,SEARCH(" ",C5)-1) -> ГЕРАСИМЕНКО | N5: =MID(C5,SEARCH(" ",C5)+1,1) -> Т | O5: =CONCATENATE(M5," ",N5,".") -> ГЕРАСИМЕНКО Т. | P5: 1 | Q5: =P5 -> 1 | R5: =Q5*5-4 -> 1 | S5: =Q5*5 -> 5 | T5: =CONCATENATE(R5,"-",S5) -> 1-5 | U5: город Астана | V5: =IF(C5="","",SUMIF('R-муж0'!C:C,C5,'R-муж0'!B:B)) -> 0 | W5: =IF(C5="","",SUMIF('R-муж0'!C:C,C5,'R-муж0'!I:I)) -> 0 | X5: =IF(C5="","",SUMIF('R-муж'!C:C,C5,'R-муж'!B:B)) -> 50 | Y5: =IF(C5="","",SUMIF('R-муж'!C:C,C5,'R-муж'!I:I)) -> 1 | Z5: =L5 -> 0 | AA5: =SUMIF(Список!$C:$C,C5,Список!$U:$U) -> 0 | AD5: =PROPER(M5) -> Герасименко | AE5: =MID(C5,SEARCH(" ",C5)+1,15) -> Тимофей | AF5: =CONCATENATE(AD5," ",AE5," ",AB5) -> Герасименко Тимофей
A6: 2 | B6: 2 | C6: АБИЛ Тамерлан | D6: =IF(C6="","",VLOOKUP(C6,'R-муж'!C:E,2,FALSE)) -> 12.03.2006 | E6: КМС | F6: 32 | G6: =IF(C6="","",VLOOKUP(C6,'R-муж'!C:E,3,FALSE)) -> г. Астана | H6: Герасименко Г.А.,Герасименко Т.В. | J6: =J5 -> г. Астана | M6: =MID(C6,1,SEARCH(" ",C6)-1) -> АБИЛ | N6: =MID(C6,SEARCH(" ",C6)+1,1) -> Т | O6: =CONCATENATE(M6," ",N6,".") -> АБИЛ Т. | Q6: =Q5 -> 1 | R6: =Q6*5-4 -> 1 | S6: =Q6*5 -> 5 | T6: =CONCATENATE(R6,"-",S6) -> 1-5 | V6: =IF(C6="","",SUMIF('R-муж0'!C:C,C6,'R-муж0'!B:B)) -> 0 | W6: =IF(C6="","",SUMIF('R-муж0'!C:C,C6,'R-муж0'!I:I)) -> 0 | X6: =IF(C6="","",SUMIF('R-муж'!C:C,C6,'R-муж'!B:B)) -> 32 | Y6: =IF(C6="","",SUMIF('R-муж'!C:C,C6,'R-муж'!I:I)) -> 1 | Z6: =Z5 -> 0 | AA6: =SUMIF(Список!$C:$C,C6,Список!$U:$U) -> 0 | AD6: =PROPER(M6) -> Абил | AE6: =MID(C6,SEARCH(" ",C6)+1,15) -> Тамерлан | AF6: =CONCATENATE(AD6," ",AE6," ",AB6) -> Абил Тамерлан
A7: 3 | B7: 3 | C7: ГЕРАСИМЕНКО Александр | D7: =IF(C7="","",VLOOKUP(C7,'R-муж'!C:E,2,FALSE)) -> 13.02.1992 | E7: МС | F7: 49 | G7: =IF(C7="","",VLOOKUP(C7,'R-муж'!C:E,3,FALSE)) -> г. Астана | H7: Герасименко Г.А.,Герасименко Т.В. | J7: =J6 -> г. Астана | M7: ГЕРАСИМЕНКО | N7: А | O7: ГЕРАСИМЕНКО А. | Q7: =Q6 -> 1 | R7: 1 | S7: 5 | T7: 1-5 | V7: =IF(C7="","",SUMIF('R-муж0'!C:C,C7,'R-муж0'!B:B)) -> 0 | W7: =IF(C7="","",SUMIF('R-муж0'!C:C,C7,'R-муж0'!I:I)) -> 0 | X7: =IF(C7="","",SUMIF('R-муж'!C:C,C7,'R-муж'!B:B)) -> 49 | Y7: =IF(C7="","",SUMIF('R-муж'!C:C,C7,'R-муж'!I:I)) -> 1 | Z7: =Z6 -> 0 | AA7: =SUMIF(Список!$C:$C,C7,Список!$U:$U) -> 0 | AD7: Герасименко | AE7: Александр | AF7: Герасименко Александр
A8: 4 | B8: 4 | C8: ДУЙСЕНБАЙ Есенали | D8: =IF(C8="","",VLOOKUP(C8,'R-муж'!C:E,2,FALSE)) -> 15.10.1997 | E8: КМС | F8: 41 | G8: =IF(C8="","",VLOOKUP(C8,'R-муж'!C:E,3,FALSE)) -> г. Астана | H8: Герасименко Г.А.,Герасименко Т.В. | J8: =J7 -> г. Астана | M8: ДУЙСЕНБАЙ | N8: Е | O8: ДУЙСЕНБАЙ Е. | Q8: 1 | R8: 1 | S8: 5 | T8: 1-5 | V8: =IF(C8="","",SUMIF('R-муж0'!C:C,C8,'R-муж0'!B:B)) -> 0 | W8: =IF(C8="","",SUMIF('R-муж0'!C:C,C8,'R-муж0'!I:I)) -> 0 | X8: =IF(C8="","",SUMIF('R-муж'!C:C,C8,'R-муж'!B:B)) -> 41 | Y8: =IF(C8="","",SUMIF('R-муж'!C:C,C8,'R-муж'!I:I)) -> 1 | Z8: 0 | AA8: =SUMIF(Список!$C:$C,C8,Список!$U:$U) -> 0 | AD8: Дуйсенбай | AE8: Есенали | AF8: Дуйсенбай Есенали
A9: 5 | B9: 5 | D9: =IF(C9="","",VLOOKUP(C9,'R-муж'!C:E,2,FALSE)) ->  | G9: =IF(C9="","",VLOOKUP(C9,'R-муж'!C:E,3,FALSE)) ->  | J9: =J8 -> г. Астана | Q9: 1 | R9: 1 | S9: 5 | T9: 1-5 | V9: =IF(C9="","",SUMIF('R-муж0'!C:C,C9,'R-муж0'!B:B)) ->  | W9: =IF(C9="","",SUMIF('R-муж0'!C:C,C9,'R-муж0'!I:I)) ->  | X9: =IF(C9="","",SUMIF('R-муж'!C:C,C9,'R-муж'!B:B)) ->  | Y9: =IF(C9="","",SUMIF('R-муж'!C:C,C9,'R-муж'!I:I)) ->  | Z9: 0 | AA9: =SUMIF(Список!$C:$C,C9,Список!$U:$U) -> 0
A10: 6 | B10: 6 | C10: КЕНЖИГУЛОВ Айдос | D10: =IF(C10="","",VLOOKUP(C10,'R-муж'!C:E,2,FALSE)) -> 07.06.2000 | E10: МСМК | F10: 65 | G10: =IF(C10="","",VLOOKUP(C10,'R-муж'!C:E,3,FALSE)) -> г. Алматы | H10: Тимченко Е.А. | I10: г.Алматы | J10: =I10 -> г.Алматы | K10: Бейсенов С.А., Тимченко А.А. | M10: КЕНЖИГУЛОВ | N10: А | O10: КЕНЖИГУЛОВ А. | P10: 2 | Q10: =P10 -> 2 | R10: 6 | S10: 10 | T10: 6-10 | U10: город Алматы | V10: =IF(C10="","",SUMIF('R-муж0'!C:C,C10,'R-муж0'!B:B)) -> 0 | W10: =IF(C10="","",SUMIF('R-муж0'!C:C,C10,'R-муж0'!I:I)) -> 0 | X10: =IF(C10="","",SUMIF('R-муж'!C:C,C10,'R-муж'!B:B)) -> 65 | Y10: =IF(C10="","",SUMIF('R-муж'!C:C,C10,'R-муж'!I:I)) -> 1 | Z10: =L10 -> 0 | AA10: =SUMIF(Список!$C:$C,C10,Список!$U:$U) -> 0 | AD10: Кенжигулов | AE10: Айдос | AF10: Кенжигулов Айдос
A11: 7 | B11: 7 | C11: КЕНЖИГУЛОВ Дастан | D11: =IF(C11="","",VLOOKUP(C11,'R-муж'!C:E,2,FALSE)) -> 14.01.1998 | E11: МС | F11: 57 | G11: =IF(C11="","",VLOOKUP(C11,'R-муж'!C:E,3,FALSE)) -> г. Алматы | H11: Тимченко Е.А. | J11: =J10 -> г.Алматы | M11: КЕНЖИГУЛОВ | N11: Д | O11: КЕНЖИГУЛОВ Д. | Q11: =Q10 -> 2 | R11: 6 | S11: 10 | T11: 6-10 | V11: =IF(C11="","",SUMIF('R-муж0'!C:C,C11,'R-муж0'!B:B)) -> 0 | W11: =IF(C11="","",SUMIF('R-муж0'!C:C,C11,'R-муж0'!I:I)) -> 0 | X11: =IF(C11="","",SUMIF('R-муж'!C:C,C11,'R-муж'!B:B)) -> 57 | Y11: =IF(C11="","",SUMIF('R-муж'!C:C,C11,'R-муж'!I:I)) -> 1 | Z11: =Z10 -> 0 | AA11: =SUMIF(Список!$C:$C,C11,Список!$U:$U) -> 0 | AD11: Кенжигулов | AE11: Дастан | AF11: Кенжигулов Дастан
A12: 8 | B12: 8 | C12: ЖУБАНОВ Санжар | D12: =IF(C12="","",VLOOKUP(C12,'R-муж'!C:E,2,FALSE)) -> 16.04.2003 | E12: МС | F12: 60 | G12: =IF(C12="","",VLOOKUP(C12,'R-муж'!C:E,3,FALSE)) -> г. Алматы | H12: Бейсенов С.А. | J12: =J11 -> г.Алматы | M12: ЖУБАНОВ | N12: С | O12: ЖУБАНОВ С. | Q12: =Q11 -> 2 | R12: 6 | S12: 10 | T12: 6-10 | V12: =IF(C12="","",SUMIF('R-муж0'!C:C,C12,'R-муж0'!B:B)) -> 0 | W12: =IF(C12="","",SUMIF('R-муж0'!C:C,C12,'R-муж0'!I:I)) -> 0 | X12: =IF(C12="","",SUMIF('R-муж'!C:C,C12,'R-муж'!B:B)) -> 60 | Y12: =IF(C12="","",SUMIF('R-муж'!C:C,C12,'R-муж'!I:I)) -> 1 | Z12: 0 | AA12: =SUMIF(Список!$C:$C,C12,Список!$U:$U) -> 0 | AD12: Жубанов | AE12: Санжар | AF12: Жубанов Санжар
A13: 9 | B13: 9 | C13: МАМАЙ Абдулла | D13: =IF(C13="","",VLOOKUP(C13,'R-муж'!C:E,2,FALSE)) -> 19.01.2006 | E13: КМС | F13: 51 | G13: =IF(C13="","",VLOOKUP(C13,'R-муж'!C:E,3,FALSE)) -> г. Алматы | H13: Тимченко Е.А. | J13: г.Алматы | M13: МАМАЙ | N13: А | O13: МАМАЙ А. | Q13: 2 | R13: 6 | S13: 10 | T13: 6-10 | V13: =IF(C13="","",SUMIF('R-муж0'!C:C,C13,'R-муж0'!B:B)) -> 0 | W13: =IF(C13="","",SUMIF('R-муж0'!C:C,C13,'R-муж0'!I:I)) -> 0 | X13: =IF(C13="","",SUMIF('R-муж'!C:C,C13,'R-муж'!B:B)) -> 51 | Y13: =IF(C13="","",SUMIF('R-муж'!C:C,C13,'R-муж'!I:I)) -> 1 | Z13: 0 | AA13: =SUMIF(Список!$C:$C,C13,Список!$U:$U) -> 0 | AD13: Мамай | AE13: Абдулла | AF13: Мамай Абдулла
A14: 10 | B14: 10 | C14: ШИ Данян | D14: =IF(C14="","",VLOOKUP(C14,'R-муж'!C:E,2,FALSE)) -> 28.10.2006 | E14: КМС | F14: 52 | G14: =IF(C14="","",VLOOKUP(C14,'R-муж'!C:E,3,FALSE)) -> г. Алматы | H14: Бейсенов С.А. | J14: =J13 -> г.Алматы | M14: ШИ | N14: Д | O14: ШИ Д. | Q14: 2 | R14: 6 | S14: 10 | T14: 6-10 | V14: =IF(C14="","",SUMIF('R-муж0'!C:C,C14,'R-муж0'!B:B)) -> 0 | W14: =IF(C14="","",SUMIF('R-муж0'!C:C,C14,'R-муж0'!I:I)) -> 0 | X14: =IF(C14="","",SUMIF('R-муж'!C:C,C14,'R-муж'!B:B)) -> 52 | Y14: =IF(C14="","",SUMIF('R-муж'!C:C,C14,'R-муж'!I:I)) -> 1 | Z14: 0 | AA14: =SUMIF(Список!$C:$C,C14,Список!$U:$U) -> 0 | AD14: Ши | AE14: Данян | AF14: Ши Данян
A15: 11 | B15: 11 | D15: =IF(C15="","",VLOOKUP(C15,'R-муж'!C:E,2,FALSE)) ->  | G15: =IF(C15="","",VLOOKUP(C15,'R-муж'!C:E,3,FALSE)) ->  | I15: Акмолинская обл. | J15: =I15 -> Акмолинская обл. | K15: Саламатов К.Т. | P15: 3 | Q15: =P15 -> 3 | R15: 11 | S15: 15 | T15: 11-15 | U15: Акмолинская область | V15: =IF(C15="","",SUMIF('R-муж0'!C:C,C15,'R-муж0'!B:B)) ->  | W15: =IF(C15="","",SUMIF('R-муж0'!C:C,C15,'R-муж0'!I:I)) ->  | X15: =IF(C15="","",SUMIF('R-муж'!C:C,C15,'R-муж'!B:B)) ->  | Y15: =IF(C15="","",SUMIF('R-муж'!C:C,C15,'R-муж'!I:I)) ->  | Z15: =L15 -> 0 | AA15: =SUMIF(Список!$C:$C,C15,Список!$U:$U) -> 0
A16: 12 | B16: 12 | D16: =IF(C16="","",VLOOKUP(C16,'R-муж'!C:E,2,FALSE)) ->  | G16: =IF(C16="","",VLOOKUP(C16,'R-муж'!C:E,3,FALSE)) ->  | J16: =J15 -> Акмолинская обл. | Q16: =Q15 -> 3 | R16: 11 | S16: 15 | T16: 11-15 | V16: =IF(C16="","",SUMIF('R-муж0'!C:C,C16,'R-муж0'!B:B)) ->  | W16: =IF(C16="","",SUMIF('R-муж0'!C:C,C16,'R-муж0'!I:I)) ->  | X16: =IF(C16="","",SUMIF('R-муж'!C:C,C16,'R-муж'!B:B)) ->  | Y16: =IF(C16="","",SUMIF('R-муж'!C:C,C16,'R-муж'!I:I)) ->  | Z16: =Z15 -> 0 | AA16: =SUMIF(Список!$C:$C,C16,Список!$U:$U) -> 0
A17: 13 | B17: 13 | D17: =IF(C17="","",VLOOKUP(C17,'R-муж'!C:E,2,FALSE)) ->  | G17: =IF(C17="","",VLOOKUP(C17,'R-муж'!C:E,3,FALSE)) ->  | J17: =J16 -> Акмолинская обл. | Q17: 3 | R17: 11 | S17: 15 | T17: 11-15 | V17: =IF(C17="","",SUMIF('R-муж0'!C:C,C17,'R-муж0'!B:B)) ->  | W17: =IF(C17="","",SUMIF('R-муж0'!C:C,C17,'R-муж0'!I:I)) ->  | X17: =IF(C17="","",SUMIF('R-муж'!C:C,C17,'R-муж'!B:B)) ->  | Y17: =IF(C17="","",SUMIF('R-муж'!C:C,C17,'R-муж'!I:I)) ->  | Z17: 0 | AA17: =SUMIF(Список!$C:$C,C17,Список!$U:$U) -> 0
A18: 14 | B18: 14 | D18: =IF(C18="","",VLOOKUP(C18,'R-муж'!C:E,2,FALSE)) ->  | G18: =IF(C18="","",VLOOKUP(C18,'R-муж'!C:E,3,FALSE)) ->  | J18: =J17 -> Акмолинская обл. | Q18: 3 | R18: 11 | S18: 15 | T18: 11-15 | V18: =IF(C18="","",SUMIF('R-муж0'!C:C,C18,'R-муж0'!B:B)) ->  | W18: =IF(C18="","",SUMIF('R-муж0'!C:C,C18,'R-муж0'!I:I)) ->  | X18: =IF(C18="","",SUMIF('R-муж'!C:C,C18,'R-муж'!B:B)) ->  | Y18: =IF(C18="","",SUMIF('R-муж'!C:C,C18,'R-муж'!I:I)) ->  | Z18: 0 | AA18: =SUMIF(Список!$C:$C,C18,Список!$U:$U) -> 0
A19: 15 | B19: 15 | D19: =IF(C19="","",VLOOKUP(C19,'R-муж'!C:E,2,FALSE)) ->  | G19: =IF(C19="","",VLOOKUP(C19,'R-муж'!C:E,3,FALSE)) ->  | J19: =J18 -> Акмолинская обл. | Q19: 3 | R19: 11 | S19: 15 | T19: 11-15 | V19: =IF(C19="","",SUMIF('R-муж0'!C:C,C19,'R-муж0'!B:B)) ->  | W19: =IF(C19="","",SUMIF('R-муж0'!C:C,C19,'R-муж0'!I:I)) ->  | X19: =IF(C19="","",SUMIF('R-муж'!C:C,C19,'R-муж'!B:B)) ->  | Y19: =IF(C19="","",SUMIF('R-муж'!C:C,C19,'R-муж'!I:I)) ->  | Z19: 0 | AA19: =SUMIF(Список!$C:$C,C19,Список!$U:$U) -> 0
A20: 16 | B20: 16 | C20: ГАЙНЕДЕНОВ Ерасыл | D20: =IF(C20="","",VLOOKUP(C20,'R-муж'!C:E,2,FALSE)) -> 01.08.2004 | E20: КМС | F20: =IF(X20=0,V20,X20) -> 28 | G20: =IF(C20="","",VLOOKUP(C20,'R-муж'!C:E,3,FALSE)) -> Актюбинская обл. | H20: Дерушко Е.А. | I20: Актюбинская обл. | J20: =I20 -> Актюбинская обл. | K20: Жанай Е. | M20: ГАЙНЕДЕНОВ | N20: Е | O20: ГАЙНЕДЕНОВ Е. | P20: 4 | Q20: =P20 -> 4 | R20: 16 | S20: 20 | T20: 16-20 | U20: Актюбинская область | V20: =IF(C20="","",SUMIF('R-муж0'!C:C,C20,'R-муж0'!B:B)) -> 0 | W20: =IF(C20="","",SUMIF('R-муж0'!C:C,C20,'R-муж0'!I:I)) -> 0 | X20: =IF(C20="","",SUMIF('R-муж'!C:C,C20,'R-муж'!B:B)) -> 28 | Y20: =IF(C20="","",SUMIF('R-муж'!C:C,C20,'R-муж'!I:I)) -> 1 | Z20: =L20 -> 0 | AA20: =SUMIF(Список!$C:$C,C20,Список!$U:$U) -> 0 | AD20: Гайнеденов | AE20: Ерасыл | AF20: Гайнеденов Ерасыл
A21: 17 | B21: 17 | C21: ЖАНАЙ Есенгелды | D21: =IF(C21="","",VLOOKUP(C21,'R-муж'!C:E,2,FALSE)) -> 23.06.1999 | F21: 46 | G21: =IF(C21="","",VLOOKUP(C21,'R-муж'!C:E,3,FALSE)) -> Актюбинская обл. | H21: Дерушко Е.А. | J21: =J20 -> Актюбинская обл. | M21: ЖАНАЙ | N21: Е | O21: ЖАНАЙ Е. | Q21: =Q20 -> 4 | R21: 16 | S21: 20 | T21: 16-20 | V21: =IF(C21="","",SUMIF('R-муж0'!C:C,C21,'R-муж0'!B:B)) -> 0 | W21: =IF(C21="","",SUMIF('R-муж0'!C:C,C21,'R-муж0'!I:I)) -> 0 | X21: =IF(C21="","",SUMIF('R-муж'!C:C,C21,'R-муж'!B:B)) -> 46 | Y21: =IF(C21="","",SUMIF('R-муж'!C:C,C21,'R-муж'!I:I)) -> 1 | Z21: =Z20 -> 0 | AA21: =SUMIF(Список!$C:$C,C21,Список!$U:$U) -> 0 | AD21: Жанай | AE21: Есенгелды | AF21: Жанай Есенгелды
A22: 18 | B22: 18 | C22: АМАНКУС Куаныш | D22: =IF(C22="","",VLOOKUP(C22,'R-муж'!C:E,2,FALSE)) -> 07.04.2011 | F22: 13 | G22: =IF(C22="","",VLOOKUP(C22,'R-муж'!C:E,3,FALSE)) -> Актюбинская обл. | H22: Дерушко Е.А. | J22: =J21 -> Актюбинская обл. | M22: АМАНКУС | N22: К | O22: АМАНКУС К. | Q22: 4 | R22: 16 | S22: 20 | T22: 16-20 | V22: =IF(C22="","",SUMIF('R-муж0'!C:C,C22,'R-муж0'!B:B)) -> 0 | W22: =IF(C22="","",SUMIF('R-муж0'!C:C,C22,'R-муж0'!I:I)) -> 0 | X22: =IF(C22="","",SUMIF('R-муж'!C:C,C22,'R-муж'!B:B)) -> 13 | Y22: =IF(C22="","",SUMIF('R-муж'!C:C,C22,'R-муж'!I:I)) -> 1 | Z22: 0 | AA22: =SUMIF(Список!$C:$C,C22,Список!$U:$U) -> 0 | AD22: Аманкус | AE22: Куаныш | AF22: Аманкус Куаныш
A23: 19 | B23: 19 | C23: ЖАНСЕРІК Әлішер | D23: =IF(C23="","",VLOOKUP(C23,'R-муж'!C:E,2,FALSE)) -> 00:00:00 | F23: 0 | G23: =IF(C23="","",VLOOKUP(C23,'R-муж'!C:E,3,FALSE)) -> Актюбинская обл. | H23: Дерушко Е.А. | J23: Актюбинская обл. | M23: ЖАНСЕРІК | N23: Ә | O23: ЖАНСЕРІК Ә. | Q23: 4 | R23: 16 | S23: 20 | T23: 16-20 | V23: =IF(C23="","",SUMIF('R-муж0'!C:C,C23,'R-муж0'!B:B)) -> 0 | W23: =IF(C23="","",SUMIF('R-муж0'!C:C,C23,'R-муж0'!I:I)) -> 0 | X23: =IF(C23="","",SUMIF('R-муж'!C:C,C23,'R-муж'!B:B)) -> 0 | Y23: =IF(C23="","",SUMIF('R-муж'!C:C,C23,'R-муж'!I:I)) -> 1 | Z23: 0 | AA23: =SUMIF(Список!$C:$C,C23,Список!$U:$U) -> 0 | AD23: Жансерік | AE23: Әлішер | AF23: Жансерік Әлішер
A24: 20 | B24: 20 | D24: =IF(C24="","",VLOOKUP(C24,'R-муж'!C:E,2,FALSE)) ->  | G24: =IF(C24="","",VLOOKUP(C24,'R-муж'!C:E,3,FALSE)) ->  | J24: =J23 -> Актюбинская обл. | Q24: 4 | R24: 16 | S24: 20 | T24: 16-20 | V24: =IF(C24="","",SUMIF('R-муж0'!C:C,C24,'R-муж0'!B:B)) ->  | W24: =IF(C24="","",SUMIF('R-муж0'!C:C,C24,'R-муж0'!I:I)) ->  | X24: =IF(C24="","",SUMIF('R-муж'!C:C,C24,'R-муж'!B:B)) ->  | Y24: =IF(C24="","",SUMIF('R-муж'!C:C,C24,'R-муж'!I:I)) ->  | Z24: 0 | AA24: =SUMIF(Список!$C:$C,C24,Список!$U:$U) -> 0
A25: 21 | B25: 21 | D25: =IF(C25="","",VLOOKUP(C25,'R-муж'!C:E,2,FALSE)) ->  | F25: =IF(X25=0,V25,X25) ->  | G25: =IF(C25="","",VLOOKUP(C25,'R-муж'!C:E,3,FALSE)) ->  | I25: Алматинская обл. | J25: =I25 -> Алматинская обл. | K25: Кузьмина И.А. | P25: 5 | Q25: =P25 -> 5 | R25: 21 | S25: 25 | T25: 21-25 | U25: Алматинская область | V25: =IF(C25="","",SUMIF('R-муж0'!C:C,C25,'R-муж0'!B:B)) ->  | W25: =IF(C25="","",SUMIF('R-муж0'!C:C,C25,'R-муж0'!I:I)) ->  | X25: =IF(C25="","",SUMIF('R-муж'!C:C,C25,'R-муж'!B:B)) ->  | Y25: =IF(C25="","",SUMIF('R-муж'!C:C,C25,'R-муж'!I:I)) ->  | Z25: =L25 -> 0 | AA25: =SUMIF(Список!$C:$C,C25,Список!$U:$U) -> 0
A26: 22 | B26: 22 | D26: =IF(C26="","",VLOOKUP(C26,'R-муж'!C:E,2,FALSE)) ->  | G26: =IF(C26="","",VLOOKUP(C26,'R-муж'!C:E,3,FALSE)) ->  | J26: =J25 -> Алматинская обл. | Q26: =Q25 -> 5 | R26: 21 | S26: 25 | T26: 21-25 | V26: =IF(C26="","",SUMIF('R-муж0'!C:C,C26,'R-муж0'!B:B)) ->  | W26: =IF(C26="","",SUMIF('R-муж0'!C:C,C26,'R-муж0'!I:I)) ->  | X26: =IF(C26="","",SUMIF('R-муж'!C:C,C26,'R-муж'!B:B)) ->  | Y26: =IF(C26="","",SUMIF('R-муж'!C:C,C26,'R-муж'!I:I)) ->  | Z26: 0 | AA26: =SUMIF(Список!$C:$C,C26,Список!$U:$U) -> 0
A27: 23 | B27: 23 | D27: =IF(C27="","",VLOOKUP(C27,'R-муж'!C:E,2,FALSE)) ->  | G27: =IF(C27="","",VLOOKUP(C27,'R-муж'!C:E,3,FALSE)) ->  | J27: =J26 -> Алматинская обл. | Q27: 5 | R27: 21 | S27: 25 | T27: 21-25 | V27: =IF(C27="","",SUMIF('R-муж0'!C:C,C27,'R-муж0'!B:B)) ->  | W27: =IF(C27="","",SUMIF('R-муж0'!C:C,C27,'R-муж0'!I:I)) ->  | X27: =IF(C27="","",SUMIF('R-муж'!C:C,C27,'R-муж'!B:B)) ->  | Y27: =IF(C27="","",SUMIF('R-муж'!C:C,C27,'R-муж'!I:I)) ->  | Z27: 0 | AA27: =SUMIF(Список!$C:$C,C27,Список!$U:$U) -> 0
A28: 24 | B28: 24 | D28: =IF(C28="","",VLOOKUP(C28,'R-муж'!C:E,2,FALSE)) ->  | G28: =IF(C28="","",VLOOKUP(C28,'R-муж'!C:E,3,FALSE)) ->  | J28: =J27 -> Алматинская обл. | Q28: 5 | R28: 21 | S28: 25 | T28: 21-25 | V28: =IF(C28="","",SUMIF('R-муж0'!C:C,C28,'R-муж0'!B:B)) ->  | W28: =IF(C28="","",SUMIF('R-муж0'!C:C,C28,'R-муж0'!I:I)) ->  | X28: =IF(C28="","",SUMIF('R-муж'!C:C,C28,'R-муж'!B:B)) ->  | Y28: =IF(C28="","",SUMIF('R-муж'!C:C,C28,'R-муж'!I:I)) ->  | Z28: 0 | AA28: =SUMIF(Список!$C:$C,C28,Список!$U:$U) -> 0
A29: 25 | B29: 25 | D29: =IF(C29="","",VLOOKUP(C29,'R-муж'!C:E,2,FALSE)) ->  | G29: =IF(C29="","",VLOOKUP(C29,'R-муж'!C:E,3,FALSE)) ->  | J29: =J28 -> Алматинская обл. | Q29: 5 | R29: 21 | S29: 25 | T29: 21-25 | V29: =IF(C29="","",SUMIF('R-муж0'!C:C,C29,'R-муж0'!B:B)) ->  | W29: =IF(C29="","",SUMIF('R-муж0'!C:C,C29,'R-муж0'!I:I)) ->  | X29: =IF(C29="","",SUMIF('R-муж'!C:C,C29,'R-муж'!B:B)) ->  | Y29: =IF(C29="","",SUMIF('R-муж'!C:C,C29,'R-муж'!I:I)) ->  | Z29: 0 | AA29: =SUMIF(Список!$C:$C,C29,Список!$U:$U) -> 0
A30: 26 | B30: 26 | C30: ОРЫНБАСАР Ернар | D30: =IF(C30="","",VLOOKUP(C30,'R-муж'!C:E,2,FALSE)) -> 26.03.2006 | E30: б.р. | F30: 10 | G30: =IF(C30="","",VLOOKUP(C30,'R-муж'!C:E,3,FALSE)) -> Атырауская обл. | H30: Мирзахметов А. | I30: Атырауская обл. | J30: =I30 -> Атырауская обл. | K30: Мирзахметов А. | M30: ОРЫНБАСАР | N30: Е | O30: ОРЫНБАСАР Е. | P30: 6 | Q30: =P30 -> 6 | R30: 26 | S30: 30 | T30: 26-30 | U30: Атырауская область | V30: =IF(C30="","",SUMIF('R-муж0'!C:C,C30,'R-муж0'!B:B)) -> 0 | W30: =IF(C30="","",SUMIF('R-муж0'!C:C,C30,'R-муж0'!I:I)) -> 0 | X30: =IF(C30="","",SUMIF('R-муж'!C:C,C30,'R-муж'!B:B)) -> 10 | Y30: =IF(C30="","",SUMIF('R-муж'!C:C,C30,'R-муж'!I:I)) -> 1 | Z30: =L30 -> 0 | AA30: =SUMIF(Список!$C:$C,C30,Список!$U:$U) -> 0 | AD30: Орынбасар | AE30: Ернар | AF30: Орынбасар Ернар
A31: 27 | B31: 27 | C31: АБЕЛЬДИНОВ Дамир | D31: =IF(C31="","",VLOOKUP(C31,'R-муж'!C:E,2,FALSE)) -> 20.12.1986 | F31: 21 | G31: =IF(C31="","",VLOOKUP(C31,'R-муж'!C:E,3,FALSE)) -> Атырауская обл. | H31: Мамутов Р.И. | J31: =J30 -> Атырауская обл. | M31: АБЕЛЬДИНОВ | N31: Д | O31: АБЕЛЬДИНОВ Д. | Q31: =Q30 -> 6 | R31: 26 | S31: 30 | T31: 26-30 | V31: =IF(C31="","",SUMIF('R-муж0'!C:C,C31,'R-муж0'!B:B)) -> 0 | W31: =IF(C31="","",SUMIF('R-муж0'!C:C,C31,'R-муж0'!I:I)) -> 0 | X31: =IF(C31="","",SUMIF('R-муж'!C:C,C31,'R-муж'!B:B)) -> 21 | Y31: =IF(C31="","",SUMIF('R-муж'!C:C,C31,'R-муж'!I:I)) -> 1 | Z31: =Z30 -> 0 | AA31: =SUMIF(Список!$C:$C,C31,Список!$U:$U) -> 0 | AD31: Абельдинов | AE31: Дамир | AF31: Абельдинов Дамир
A32: 28 | B32: 28 | C32: НҰРБЕКҰЛЫ Ақылбек | D32: =IF(C32="","",VLOOKUP(C32,'R-муж'!C:E,2,FALSE)) -> 01.09.2005 | F32: 4 | G32: =IF(C32="","",VLOOKUP(C32,'R-муж'!C:E,3,FALSE)) -> Атырауская обл. | H32: Мирзахметов А. | J32: =J31 -> Атырауская обл. | M32: НҰРБЕКҰЛЫ | N32: А | O32: НҰРБЕКҰЛЫ А. | Q32: 6 | R32: 26 | S32: 30 | T32: 26-30 | V32: =IF(C32="","",SUMIF('R-муж0'!C:C,C32,'R-муж0'!B:B)) -> 0 | W32: =IF(C32="","",SUMIF('R-муж0'!C:C,C32,'R-муж0'!I:I)) -> 0 | X32: =IF(C32="","",SUMIF('R-муж'!C:C,C32,'R-муж'!B:B)) -> 4 | Y32: =IF(C32="","",SUMIF('R-муж'!C:C,C32,'R-муж'!I:I)) -> 1 | Z32: 0 | AA32: =SUMIF(Список!$C:$C,C32,Список!$U:$U) -> 0 | AD32: Нұрбекұлы | AE32: Ақылбек | AF32: Нұрбекұлы Ақылбек
A33: 29 | B33: 29 | C33: ТЕН Владислав | D33: =IF(C33="","",VLOOKUP(C33,'R-муж'!C:E,2,FALSE)) -> 1987-08-30 | F33: 0 | G33: =IF(C33="","",VLOOKUP(C33,'R-муж'!C:E,3,FALSE)) -> Атырауск. обл. | H33: Мамутов Р.И. | J33: Атырауская обл. | M33: ТЕН | N33: В | O33: ТЕН В. | Q33: 6 | R33: 26 | S33: 30 | T33: 26-30 | V33: =IF(C33="","",SUMIF('R-муж0'!C:C,C33,'R-муж0'!B:B)) -> 0 | W33: =IF(C33="","",SUMIF('R-муж0'!C:C,C33,'R-муж0'!I:I)) -> 0 | X33: =IF(C33="","",SUMIF('R-муж'!C:C,C33,'R-муж'!B:B)) -> 0 | Y33: =IF(C33="","",SUMIF('R-муж'!C:C,C33,'R-муж'!I:I)) -> 1 | Z33: 0 | AA33: =SUMIF(Список!$C:$C,C33,Список!$U:$U) -> 0 | AD33: Тен | AE33: Владислав | AF33: Тен Владислав
A34: 30 | B34: 30 | C34: КАЛМУРЗИЕВ Илияс | D34: =IF(C34="","",VLOOKUP(C34,'R-муж'!C:E,2,FALSE)) -> 1956-07-31 | F34: 0 | G34: =IF(C34="","",VLOOKUP(C34,'R-муж'!C:E,3,FALSE)) -> Атырауск. обл. | H34: Мамутов Р.И. | J34: =J33 -> Атырауская обл. | M34: КАЛМУРЗИЕВ | N34: И | O34: КАЛМУРЗИЕВ И. | Q34: 6 | R34: 26 | S34: 30 | T34: 26-30 | V34: =IF(C34="","",SUMIF('R-муж0'!C:C,C34,'R-муж0'!B:B)) -> 0 | W34: =IF(C34="","",SUMIF('R-муж0'!C:C,C34,'R-муж0'!I:I)) -> 0 | X34: =IF(C34="","",SUMIF('R-муж'!C:C,C34,'R-муж'!B:B)) -> 0 | Y34: =IF(C34="","",SUMIF('R-муж'!C:C,C34,'R-муж'!I:I)) -> 1 | Z34: 0 | AA34: =SUMIF(Список!$C:$C,C34,Список!$U:$U) -> 0 | AD34: Калмурзиев | AE34: Илияс | AF34: Калмурзиев Илияс
A35: 31 | B35: 31 | C35: НИЕТКАЛИЕВ Болат | D35: =IF(C35="","",VLOOKUP(C35,'R-муж'!C:E,2,FALSE)) -> 26.05.2005 | F35: 42 | G35: =IF(C35="","",VLOOKUP(C35,'R-муж'!C:E,3,FALSE)) -> ЗКО | H35: Кузьмин В.Г. | I35: Западно-Казахстанская обл. | J35: =I35 -> Западно-Казахстанская обл. | K35: Назарова С.Р., Ибат А.К. | M35: НИЕТКАЛИЕВ | N35: Б | O35: НИЕТКАЛИЕВ Б. | P35: 7 | Q35: =P35 -> 7 | R35: 31 | S35: 35 | T35: 31-35 | U35: Западно-Казахстанская область | V35: =IF(C35="","",SUMIF('R-муж0'!C:C,C35,'R-муж0'!B:B)) -> 0 | W35: =IF(C35="","",SUMIF('R-муж0'!C:C,C35,'R-муж0'!I:I)) -> 0 | X35: =IF(C35="","",SUMIF('R-муж'!C:C,C35,'R-муж'!B:B)) -> 42 | Y35: =IF(C35="","",SUMIF('R-муж'!C:C,C35,'R-муж'!I:I)) -> 1 | Z35: =L35 -> 0 | AA35: =SUMIF(Список!$C:$C,C35,Список!$U:$U) -> 0 | AD35: Ниеткалиев | AE35: Болат | AF35: Ниеткалиев Болат
A36: 32 | B36: 32 | C36: ИБАТ Әбілсеіт | D36: =IF(C36="","",VLOOKUP(C36,'R-муж'!C:E,2,FALSE)) -> 12.11.2000 | F36: 41 | G36: =IF(C36="","",VLOOKUP(C36,'R-муж'!C:E,3,FALSE)) -> ЗКО | H36: Кузьмин В.Г. | J36: =J35 -> Западно-Казахстанская обл. | M36: ИБАТ | N36: Ә | O36: ИБАТ Ә. | Q36: =Q35 -> 7 | R36: 31 | S36: 35 | T36: 31-35 | V36: =IF(C36="","",SUMIF('R-муж0'!C:C,C36,'R-муж0'!B:B)) -> 0 | W36: =IF(C36="","",SUMIF('R-муж0'!C:C,C36,'R-муж0'!I:I)) -> 0 | X36: =IF(C36="","",SUMIF('R-муж'!C:C,C36,'R-муж'!B:B)) -> 41 | Y36: =IF(C36="","",SUMIF('R-муж'!C:C,C36,'R-муж'!I:I)) -> 1 | Z36: =Z35 -> 0 | AA36: =SUMIF(Список!$C:$C,C36,Список!$U:$U) -> 0 | AD36: Ибат | AE36: Әбілсеіт | AF36: Ибат Әбілсеіт
A37: 33 | B37: 33 | C37: МЭЛСОВ Дамир | D37: =IF(C37="","",VLOOKUP(C37,'R-муж'!C:E,2,FALSE)) -> 25.05.2006 | F37: 34 | G37: =IF(C37="","",VLOOKUP(C37,'R-муж'!C:E,3,FALSE)) -> ЗКО | H37: Назарова С.Р. | J37: =J36 -> Западно-Казахстанская обл. | M37: МЭЛСОВ | N37: Д | O37: МЭЛСОВ Д. | Q37: 7 | R37: 31 | S37: 35 | T37: 31-35 | V37: =IF(C37="","",SUMIF('R-муж0'!C:C,C37,'R-муж0'!B:B)) -> 0 | W37: =IF(C37="","",SUMIF('R-муж0'!C:C,C37,'R-муж0'!I:I)) -> 0 | X37: =IF(C37="","",SUMIF('R-муж'!C:C,C37,'R-муж'!B:B)) -> 34 | Y37: =IF(C37="","",SUMIF('R-муж'!C:C,C37,'R-муж'!I:I)) -> 1 | Z37: 0 | AA37: =SUMIF(Список!$C:$C,C37,Список!$U:$U) -> 0 | AD37: Мэлсов | AE37: Дамир | AF37: Мэлсов Дамир
A38: 34 | B38: 34 | C38: АСКАР Арсен | D38: =IF(C38="","",VLOOKUP(C38,'R-муж'!C:E,2,FALSE)) -> 16.08.2012 | F38: 3 | G38: =IF(C38="","",VLOOKUP(C38,'R-муж'!C:E,3,FALSE)) -> ЗКО | H38: Назарова С.Р. | J38: =J37 -> Западно-Казахстанская обл. | M38: АСКАР | N38: А | O38: АСКАР А. | Q38: 7 | R38: 31 | S38: 35 | T38: 31-35 | V38: =IF(C38="","",SUMIF('R-муж0'!C:C,C38,'R-муж0'!B:B)) -> 0 | W38: =IF(C38="","",SUMIF('R-муж0'!C:C,C38,'R-муж0'!I:I)) -> 0 | X38: =IF(C38="","",SUMIF('R-муж'!C:C,C38,'R-муж'!B:B)) -> 3 | Y38: =IF(C38="","",SUMIF('R-муж'!C:C,C38,'R-муж'!I:I)) -> 1 | Z38: 0 | AA38: =SUMIF(Список!$C:$C,C38,Список!$U:$U) -> 0 | AD38: Аскар | AE38: Арсен | AF38: Аскар Арсен
A39: 35 | B39: 35 | D39: =IF(C39="","",VLOOKUP(C39,'R-муж'!C:E,2,FALSE)) ->  | G39: =IF(C39="","",VLOOKUP(C39,'R-муж'!C:E,3,FALSE)) ->  | J39: =J38 -> Западно-Казахстанская обл. | Q39: 7 | R39: 31 | S39: 35 | T39: 31-35 | V39: =IF(C39="","",SUMIF('R-муж0'!C:C,C39,'R-муж0'!B:B)) ->  | W39: =IF(C39="","",SUMIF('R-муж0'!C:C,C39,'R-муж0'!I:I)) ->  | X39: =IF(C39="","",SUMIF('R-муж'!C:C,C39,'R-муж'!B:B)) ->  | Y39: =IF(C39="","",SUMIF('R-муж'!C:C,C39,'R-муж'!I:I)) ->  | Z39: 0 | AA39: =SUMIF(Список!$C:$C,C39,Список!$U:$U) -> 0
A40: 36 | B40: 36 | C40: ХАРКИ Искандер | D40: =IF(C40="","",VLOOKUP(C40,'R-муж'!C:E,2,FALSE)) -> 17.05.2003 | E40: МС | F40: 61 | G40: =IF(C40="","",VLOOKUP(C40,'R-муж'!C:E,3,FALSE)) -> Жамбылская обл. | H40: Харки А. | I40: Жамбылская обл. | J40: =I40 -> Жамбылская обл. | K40: Харки А., Груздов Е.О. | M40: ХАРКИ | N40: И | O40: ХАРКИ И. | P40: 8 | Q40: =P40 -> 8 | R40: 36 | S40: 40 | T40: 36-40 | U40: Жамбылская область | V40: =IF(C40="","",SUMIF('R-муж0'!C:C,C40,'R-муж0'!B:B)) -> 0 | W40: =IF(C40="","",SUMIF('R-муж0'!C:C,C40,'R-муж0'!I:I)) -> 0 | X40: =IF(C40="","",SUMIF('R-муж'!C:C,C40,'R-муж'!B:B)) -> 61 | Y40: =IF(C40="","",SUMIF('R-муж'!C:C,C40,'R-муж'!I:I)) -> 1 | Z40: =L40 -> 0 | AA40: =SUMIF(Список!$C:$C,C40,Список!$U:$U) -> 0 | AD40: Харки | AE40: Искандер | AF40: Харки Искандер
A41: 37 | B41: 37 | C41: ХАРКИ Абдул-Маджид | D41: =IF(C41="","",VLOOKUP(C41,'R-муж'!C:E,2,FALSE)) -> 07.01.2004 | E41: КМС | F41: 40 | G41: =IF(C41="","",VLOOKUP(C41,'R-муж'!C:E,3,FALSE)) -> Жамбылская обл. | H41: Харки А. | J41: =J40 -> Жамбылская обл. | M41: ХАРКИ | N41: А | O41: ХАРКИ А. | Q41: =Q40 -> 8 | R41: 36 | S41: 40 | T41: 36-40 | V41: =IF(C41="","",SUMIF('R-муж0'!C:C,C41,'R-муж0'!B:B)) -> 0 | W41: =IF(C41="","",SUMIF('R-муж0'!C:C,C41,'R-муж0'!I:I)) -> 0 | X41: =IF(C41="","",SUMIF('R-муж'!C:C,C41,'R-муж'!B:B)) -> 40 | Y41: =IF(C41="","",SUMIF('R-муж'!C:C,C41,'R-муж'!I:I)) -> 1 | Z41: =Z40 -> 0 | AA41: =SUMIF(Список!$C:$C,C41,Список!$U:$U) -> 0 | AD41: Харки | AE41: Абдул-Маджид | AF41: Харки Абдул-Маджид
A42: 38 | B42: 38 | C42: ХАРКИ Муслим | D42: =IF(C42="","",VLOOKUP(C42,'R-муж'!C:E,2,FALSE)) -> 15.10.2001 | E42: КМС | F42: 32 | G42: =IF(C42="","",VLOOKUP(C42,'R-муж'!C:E,3,FALSE)) -> Жамбылская обл. | H42: Харки А. | J42: =J41 -> Жамбылская обл. | M42: ХАРКИ | N42: М | O42: ХАРКИ М. | Q42: 8 | R42: 36 | S42: 40 | T42: 36-40 | V42: =IF(C42="","",SUMIF('R-муж0'!C:C,C42,'R-муж0'!B:B)) -> 0 | W42: =IF(C42="","",SUMIF('R-муж0'!C:C,C42,'R-муж0'!I:I)) -> 0 | X42: =IF(C42="","",SUMIF('R-муж'!C:C,C42,'R-муж'!B:B)) -> 32 | Y42: =IF(C42="","",SUMIF('R-муж'!C:C,C42,'R-муж'!I:I)) -> 1 | Z42: 0 | AA42: =SUMIF(Список!$C:$C,C42,Список!$U:$U) -> 0 | AD42: Харки | AE42: Муслим | AF42: Харки Муслим
A43: 39 | B43: 39 | C43: ХАРКИ Хамза | D43: =IF(C43="","",VLOOKUP(C43,'R-муж'!C:E,2,FALSE)) -> 00:00:00 | E43: КМС | F43: 0 | G43: =IF(C43="","",VLOOKUP(C43,'R-муж'!C:E,3,FALSE)) -> Жамбылск. обл. | H43: Харки А. | J43: Жамбылская обл. | M43: ХАРКИ | N43: Х | O43: ХАРКИ Х. | Q43: 8 | R43: 36 | S43: 40 | T43: 36-40 | V43: =IF(C43="","",SUMIF('R-муж0'!C:C,C43,'R-муж0'!B:B)) -> 0 | W43: =IF(C43="","",SUMIF('R-муж0'!C:C,C43,'R-муж0'!I:I)) -> 0 | X43: =IF(C43="","",SUMIF('R-муж'!C:C,C43,'R-муж'!B:B)) -> 0 | Y43: =IF(C43="","",SUMIF('R-муж'!C:C,C43,'R-муж'!I:I)) -> 1 | Z43: 0 | AA43: =SUMIF(Список!$C:$C,C43,Список!$U:$U) -> 0 | AD43: Харки | AE43: Хамза | AF43: Харки Хамза
A44: 40 | B44: 40 | C44: ЕСИРКЕПБАЙ Бекнур | D44: =IF(C44="","",VLOOKUP(C44,'R-муж'!C:E,2,FALSE)) -> 21.01.2005 | E44: КМС | F44: =IF(X44=0,V44,X44) -> 1 | G44: =IF(C44="","",VLOOKUP(C44,'R-муж'!C:E,3,FALSE)) -> Жамбылская обл. | H44: Харки А. | J44: =J43 -> Жамбылская обл. | M44: ЕСИРКЕПБАЙ | N44: Б | O44: ЕСИРКЕПБАЙ Б. | Q44: 8 | R44: 36 | S44: 40 | T44: 36-40 | V44: =IF(C44="","",SUMIF('R-муж0'!C:C,C44,'R-муж0'!B:B)) -> 0 | W44: =IF(C44="","",SUMIF('R-муж0'!C:C,C44,'R-муж0'!I:I)) -> 0 | X44: =IF(C44="","",SUMIF('R-муж'!C:C,C44,'R-муж'!B:B)) -> 1 | Y44: =IF(C44="","",SUMIF('R-муж'!C:C,C44,'R-муж'!I:I)) -> 1 | Z44: 0 | AA44: =SUMIF(Список!$C:$C,C44,Список!$U:$U) -> 0 | AD44: Есиркепбай | AE44: Бекнур | AF44: Есиркепбай Бекнур
A45: 41 | B45: 41 | C45: ЗАХАРОВ Владислав | D45: =IF(C45="","",VLOOKUP(C45,'R-муж'!C:E,2,FALSE)) -> 31.10.1997 | E45: МС | F45: =IF(X45=0,V45,X45) -> 62 | G45: =IF(C45="","",VLOOKUP(C45,'R-муж'!C:E,3,FALSE)) -> Карагандинская обл. | H45: Алиева Э.К. | I45: Карагандинская обл. | J45: =I45 -> Карагандинская обл. | K45: Алиева Э.К., Рубцов И.А. | M45: ЗАХАРОВ | N45: В | O45: ЗАХАРОВ В. | P45: 9 | Q45: =P45 -> 9 | R45: 41 | S45: 45 | T45: 41-45 | U45: Карагандинская область | V45: =IF(C45="","",SUMIF('R-муж0'!C:C,C45,'R-муж0'!B:B)) -> 0 | W45: =IF(C45="","",SUMIF('R-муж0'!C:C,C45,'R-муж0'!I:I)) -> 0 | X45: =IF(C45="","",SUMIF('R-муж'!C:C,C45,'R-муж'!B:B)) -> 62 | Y45: =IF(C45="","",SUMIF('R-муж'!C:C,C45,'R-муж'!I:I)) -> 1 | Z45: =L45 -> 0 | AA45: =SUMIF(Список!$C:$C,C45,Список!$U:$U) -> 0 | AD45: Захаров | AE45: Владислав | AF45: Захаров Владислав
A46: 42 | B46: 42 | C46: ТОРГАЙБЕКОВ Амир | D46: =IF(C46="","",VLOOKUP(C46,'R-муж'!C:E,2,FALSE)) -> 14.02.2006 | E46: МС | F46: 48 | G46: =IF(C46="","",VLOOKUP(C46,'R-муж'!C:E,3,FALSE)) -> Карагандинская обл. | H46: Алиева Э.К. | J46: =J45 -> Карагандинская обл. | M46: ТОРГАЙБЕКОВ | N46: А | O46: ТОРГАЙБЕКОВ А. | Q46: =Q45 -> 9 | R46: 41 | S46: 45 | T46: 41-45 | V46: =IF(C46="","",SUMIF('R-муж0'!C:C,C46,'R-муж0'!B:B)) -> 0 | W46: =IF(C46="","",SUMIF('R-муж0'!C:C,C46,'R-муж0'!I:I)) -> 0 | X46: =IF(C46="","",SUMIF('R-муж'!C:C,C46,'R-муж'!B:B)) -> 48 | Y46: =IF(C46="","",SUMIF('R-муж'!C:C,C46,'R-муж'!I:I)) -> 1 | Z46: =Z45 -> 0 | AA46: =SUMIF(Список!$C:$C,C46,Список!$U:$U) -> 0 | AD46: Торгайбеков | AE46: Амир | AF46: Торгайбеков Амир
A47: 43 | B47: 43 | C47: НУРМАТОВ Зиёджан | D47: =IF(C47="","",VLOOKUP(C47,'R-муж'!C:E,2,FALSE)) -> 14.06.2004 | E47: КМС | F47: 40 | G47: =IF(C47="","",VLOOKUP(C47,'R-муж'!C:E,3,FALSE)) -> Карагандинская обл. | H47: Алиева Э.К. | J47: =J46 -> Карагандинская обл. | M47: НУРМАТОВ | N47: З | O47: НУРМАТОВ З. | Q47: 9 | R47: 41 | S47: 45 | T47: 41-45 | V47: =IF(C47="","",SUMIF('R-муж0'!C:C,C47,'R-муж0'!B:B)) -> 0 | W47: =IF(C47="","",SUMIF('R-муж0'!C:C,C47,'R-муж0'!I:I)) -> 0 | X47: =IF(C47="","",SUMIF('R-муж'!C:C,C47,'R-муж'!B:B)) -> 40 | Y47: =IF(C47="","",SUMIF('R-муж'!C:C,C47,'R-муж'!I:I)) -> 1 | Z47: 0 | AA47: =SUMIF(Список!$C:$C,C47,Список!$U:$U) -> 0 | AD47: Нурматов | AE47: Зиёджан | AF47: Нурматов Зиёджан
A48: 44 | B48: 44 | C48: МАГЗУМБЕКОВ Асылхан | D48: =IF(C48="","",VLOOKUP(C48,'R-муж'!C:E,2,FALSE)) -> 21.07.2010 | E48: КМС | F48: 29 | G48: =IF(C48="","",VLOOKUP(C48,'R-муж'!C:E,3,FALSE)) -> Карагандинская обл. | H48: Алиева Э.К. | J48: =J47 -> Карагандинская обл. | M48: МАГЗУМБЕКОВ | N48: А | O48: МАГЗУМБЕКОВ А. | Q48: 9 | R48: 41 | S48: 45 | T48: 41-45 | V48: =IF(C48="","",SUMIF('R-муж0'!C:C,C48,'R-муж0'!B:B)) -> 0 | W48: =IF(C48="","",SUMIF('R-муж0'!C:C,C48,'R-муж0'!I:I)) -> 0 | X48: =IF(C48="","",SUMIF('R-муж'!C:C,C48,'R-муж'!B:B)) -> 29 | Y48: =IF(C48="","",SUMIF('R-муж'!C:C,C48,'R-муж'!I:I)) -> 1 | Z48: 0 | AA48: =SUMIF(Список!$C:$C,C48,Список!$U:$U) -> 0 | AD48: Магзумбеков | AE48: Асылхан | AF48: Магзумбеков Асылхан
A49: 45 | B49: 45 | C49: КЕЛЬБУГАНОВ Раймбек | D49: =IF(C49="","",VLOOKUP(C49,'R-муж'!C:E,2,FALSE)) -> 28.12.2008 | E49: КМС | F49: 19 | G49: =IF(C49="","",VLOOKUP(C49,'R-муж'!C:E,3,FALSE)) -> Карагандинская обл. | H49: Алиева Э.К. | J49: =J48 -> Карагандинская обл. | M49: КЕЛЬБУГАНОВ | N49: Р | O49: КЕЛЬБУГАНОВ Р. | Q49: 9 | R49: 41 | S49: 45 | T49: 41-45 | V49: =IF(C49="","",SUMIF('R-муж0'!C:C,C49,'R-муж0'!B:B)) -> 0 | W49: =IF(C49="","",SUMIF('R-муж0'!C:C,C49,'R-муж0'!I:I)) -> 0 | X49: =IF(C49="","",SUMIF('R-муж'!C:C,C49,'R-муж'!B:B)) -> 19 | Y49: =IF(C49="","",SUMIF('R-муж'!C:C,C49,'R-муж'!I:I)) -> 1 | Z49: 0 | AA49: =SUMIF(Список!$C:$C,C49,Список!$U:$U) -> 0 | AD49: Кельбуганов | AE49: Раймбек | AF49: Кельбуганов Раймбек
A50: 46 | B50: 46 | D50: =IF(C50="","",VLOOKUP(C50,'R-муж'!C:E,2,FALSE)) ->  | G50: =IF(C50="","",VLOOKUP(C50,'R-муж'!C:E,3,FALSE)) ->  | I50: Костанайская обл. | J50: =I50 -> Костанайская обл. | K50: Данияров Г.С., Дубровская А.А. | P50: 10 | Q50: =P50 -> 10 | R50: 46 | S50: 50 | T50: 46-50 | U50: Костанайская область | V50: =IF(C50="","",SUMIF('R-муж0'!C:C,C50,'R-муж0'!B:B)) ->  | W50: =IF(C50="","",SUMIF('R-муж0'!C:C,C50,'R-муж0'!I:I)) ->  | X50: =IF(C50="","",SUMIF('R-муж'!C:C,C50,'R-муж'!B:B)) ->  | Y50: =IF(C50="","",SUMIF('R-муж'!C:C,C50,'R-муж'!I:I)) ->  | Z50: =L50 -> 0 | AA50: =SUMIF(Список!$C:$C,C50,Список!$U:$U) -> 0
A51: 47 | B51: 47 | D51: =IF(C51="","",VLOOKUP(C51,'R-муж'!C:E,2,FALSE)) ->  | G51: =IF(C51="","",VLOOKUP(C51,'R-муж'!C:E,3,FALSE)) ->  | J51: =J50 -> Костанайская обл. | Q51: =Q50 -> 10 | R51: 46 | S51: 50 | T51: 46-50 | V51: =IF(C51="","",SUMIF('R-муж0'!C:C,C51,'R-муж0'!B:B)) ->  | W51: =IF(C51="","",SUMIF('R-муж0'!C:C,C51,'R-муж0'!I:I)) ->  | X51: =IF(C51="","",SUMIF('R-муж'!C:C,C51,'R-муж'!B:B)) ->  | Y51: =IF(C51="","",SUMIF('R-муж'!C:C,C51,'R-муж'!I:I)) ->  | Z51: =Z50 -> 0 | AA51: =SUMIF(Список!$C:$C,C51,Список!$U:$U) -> 0
A52: 48 | B52: 48 | D52: =IF(C52="","",VLOOKUP(C52,'R-муж'!C:E,2,FALSE)) ->  | G52: =IF(C52="","",VLOOKUP(C52,'R-муж'!C:E,3,FALSE)) ->  | J52: =J51 -> Костанайская обл. | Q52: 10 | R52: 46 | S52: 50 | T52: 46-50 | V52: =IF(C52="","",SUMIF('R-муж0'!C:C,C52,'R-муж0'!B:B)) ->  | W52: =IF(C52="","",SUMIF('R-муж0'!C:C,C52,'R-муж0'!I:I)) ->  | X52: =IF(C52="","",SUMIF('R-муж'!C:C,C52,'R-муж'!B:B)) ->  | Y52: =IF(C52="","",SUMIF('R-муж'!C:C,C52,'R-муж'!I:I)) ->  | Z52: 0 | AA52: =SUMIF(Список!$C:$C,C52,Список!$U:$U) -> 0
A53: 49 | B53: 49 | D53: =IF(C53="","",VLOOKUP(C53,'R-муж'!C:E,2,FALSE)) ->  | G53: =IF(C53="","",VLOOKUP(C53,'R-муж'!C:E,3,FALSE)) ->  | J53: Костанайская обл. | Q53: 10 | R53: 46 | S53: 50 | T53: 46-50 | V53: =IF(C53="","",SUMIF('R-муж0'!C:C,C53,'R-муж0'!B:B)) ->  | W53: =IF(C53="","",SUMIF('R-муж0'!C:C,C53,'R-муж0'!I:I)) ->  | X53: =IF(C53="","",SUMIF('R-муж'!C:C,C53,'R-муж'!B:B)) ->  | Y53: =IF(C53="","",SUMIF('R-муж'!C:C,C53,'R-муж'!I:I)) ->  | Z53: 0 | AA53: =SUMIF(Список!$C:$C,C53,Список!$U:$U) -> 0
A54: 50 | B54: 50 | D54: =IF(C54="","",VLOOKUP(C54,'R-муж'!C:E,2,FALSE)) ->  | G54: =IF(C54="","",VLOOKUP(C54,'R-муж'!C:E,3,FALSE)) ->  | J54: =J53 -> Костанайская обл. | Q54: 10 | R54: 46 | S54: 50 | T54: 46-50 | V54: =IF(C54="","",SUMIF('R-муж0'!C:C,C54,'R-муж0'!B:B)) ->  | W54: =IF(C54="","",SUMIF('R-муж0'!C:C,C54,'R-муж0'!I:I)) ->  | X54: =IF(C54="","",SUMIF('R-муж'!C:C,C54,'R-муж'!B:B)) ->  | Y54: =IF(C54="","",SUMIF('R-муж'!C:C,C54,'R-муж'!I:I)) ->  | Z54: 0 | AA54: =SUMIF(Список!$C:$C,C54,Список!$U:$U) -> 0
A55: 51 | B55: 51 | D55: =IF(C55="","",VLOOKUP(C55,'R-муж'!C:E,2,FALSE)) ->  | F55: =IF(X55=0,V55,X55) ->  | G55: =IF(C55="","",VLOOKUP(C55,'R-муж'!C:E,3,FALSE)) ->  | I55: Кызылординская обл. | J55: =I55 -> Кызылординская обл. | K55: Ибрай Е.Қ., Искакова Г.Г.,Орынбасарова Д. | P55: 11 | Q55: =P55 -> 11 | R55: 51 | S55: 55 | T55: 51-55 | U55: Кызылординская область | V55: =IF(C55="","",SUMIF('R-муж0'!C:C,C55,'R-муж0'!B:B)) ->  | W55: =IF(C55="","",SUMIF('R-муж0'!C:C,C55,'R-муж0'!I:I)) ->  | X55: =IF(C55="","",SUMIF('R-муж'!C:C,C55,'R-муж'!B:B)) ->  | Y55: =IF(C55="","",SUMIF('R-муж'!C:C,C55,'R-муж'!I:I)) ->  | Z55: =L55 -> 0 | AA55: =SUMIF(Список!$C:$C,C55,Список!$U:$U) -> 0
A56: 52 | B56: 52 | D56: =IF(C56="","",VLOOKUP(C56,'R-муж'!C:E,2,FALSE)) ->  | F56: =IF(X56=0,V56,X56) ->  | G56: =IF(C56="","",VLOOKUP(C56,'R-муж'!C:E,3,FALSE)) ->  | J56: =J55 -> Кызылординская обл. | Q56: =Q55 -> 11 | R56: 51 | S56: 55 | T56: 51-55 | V56: =IF(C56="","",SUMIF('R-муж0'!C:C,C56,'R-муж0'!B:B)) ->  | W56: =IF(C56="","",SUMIF('R-муж0'!C:C,C56,'R-муж0'!I:I)) ->  | X56: =IF(C56="","",SUMIF('R-муж'!C:C,C56,'R-муж'!B:B)) ->  | Y56: =IF(C56="","",SUMIF('R-муж'!C:C,C56,'R-муж'!I:I)) ->  | Z56: =Z55 -> 0 | AA56: =SUMIF(Список!$C:$C,C56,Список!$U:$U) -> 0
A57: 53 | B57: 53 | D57: =IF(C57="","",VLOOKUP(C57,'R-муж'!C:E,2,FALSE)) ->  | F57: =IF(X57=0,V57,X57) ->  | G57: =IF(C57="","",VLOOKUP(C57,'R-муж'!C:E,3,FALSE)) ->  | J57: =J56 -> Кызылординская обл. | Q57: 11 | R57: 51 | S57: 55 | T57: 51-55 | V57: =IF(C57="","",SUMIF('R-муж0'!C:C,C57,'R-муж0'!B:B)) ->  | W57: =IF(C57="","",SUMIF('R-муж0'!C:C,C57,'R-муж0'!I:I)) ->  | X57: =IF(C57="","",SUMIF('R-муж'!C:C,C57,'R-муж'!B:B)) ->  | Y57: =IF(C57="","",SUMIF('R-муж'!C:C,C57,'R-муж'!I:I)) ->  | Z57: 0 | AA57: =SUMIF(Список!$C:$C,C57,Список!$U:$U) -> 0
A58: 54 | B58: 54 | D58: =IF(C58="","",VLOOKUP(C58,'R-муж'!C:E,2,FALSE)) ->  | F58: =IF(X58=0,V58,X58) ->  | G58: =IF(C58="","",VLOOKUP(C58,'R-муж'!C:E,3,FALSE)) ->  | J58: =J57 -> Кызылординская обл. | Q58: 11 | R58: 51 | S58: 55 | T58: 51-55 | V58: =IF(C58="","",SUMIF('R-муж0'!C:C,C58,'R-муж0'!B:B)) ->  | W58: =IF(C58="","",SUMIF('R-муж0'!C:C,C58,'R-муж0'!I:I)) ->  | X58: =IF(C58="","",SUMIF('R-муж'!C:C,C58,'R-муж'!B:B)) ->  | Y58: =IF(C58="","",SUMIF('R-муж'!C:C,C58,'R-муж'!I:I)) ->  | Z58: 0 | AA58: =SUMIF(Список!$C:$C,C58,Список!$U:$U) -> 0
A59: 55 | B59: 55 | D59: =IF(C59="","",VLOOKUP(C59,'R-муж'!C:E,2,FALSE)) ->  | G59: =IF(C59="","",VLOOKUP(C59,'R-муж'!C:E,3,FALSE)) ->  | J59: =J58 -> Кызылординская обл. | Q59: 11 | R59: 51 | S59: 55 | T59: 51-55 | V59: =IF(C59="","",SUMIF('R-муж0'!C:C,C59,'R-муж0'!B:B)) ->  | W59: =IF(C59="","",SUMIF('R-муж0'!C:C,C59,'R-муж0'!I:I)) ->  | X59: =IF(C59="","",SUMIF('R-муж'!C:C,C59,'R-муж'!B:B)) ->  | Y59: =IF(C59="","",SUMIF('R-муж'!C:C,C59,'R-муж'!I:I)) ->  | Z59: 0 | AA59: =SUMIF(Список!$C:$C,C59,Список!$U:$U) -> 0
A60: 56 | B60: 56 | D60: =IF(C60="","",VLOOKUP(C60,'R-муж'!C:E,2,FALSE)) ->  | G60: =IF(C60="","",VLOOKUP(C60,'R-муж'!C:E,3,FALSE)) ->  | I60: Мангистауская обл. | J60: =I60 -> Мангистауская обл. | K60: Ильяс Н. | P60: 12 | Q60: =P60 -> 12 | R60: =Q60*5-4 -> 56 | S60: =Q60*5 -> 60 | T60: =CONCATENATE(R60,"-",S60) -> 56-60 | U60: Мангистауская область | V60: =IF(C60="","",SUMIF('R-муж0'!C:C,C60,'R-муж0'!B:B)) ->  | W60: =IF(C60="","",SUMIF('R-муж0'!C:C,C60,'R-муж0'!I:I)) ->  | X60: =IF(C60="","",SUMIF('R-муж'!C:C,C60,'R-муж'!B:B)) ->  | Y60: =IF(C60="","",SUMIF('R-муж'!C:C,C60,'R-муж'!I:I)) ->  | Z60: =L60 -> 0 | AA60: =SUMIF(Список!$C:$C,C60,Список!$U:$U) -> 0
A61: 57 | B61: 57 | D61: =IF(C61="","",VLOOKUP(C61,'R-муж'!C:E,2,FALSE)) ->  | G61: =IF(C61="","",VLOOKUP(C61,'R-муж'!C:E,3,FALSE)) ->  | J61: =J60 -> Мангистауская обл. | Q61: =Q60 -> 12 | R61: 56 | S61: 60 | T61: 56-60 | V61: =IF(C61="","",SUMIF('R-муж0'!C:C,C61,'R-муж0'!B:B)) ->  | W61: =IF(C61="","",SUMIF('R-муж0'!C:C,C61,'R-муж0'!I:I)) ->  | X61: =IF(C61="","",SUMIF('R-муж'!C:C,C61,'R-муж'!B:B)) ->  | Y61: =IF(C61="","",SUMIF('R-муж'!C:C,C61,'R-муж'!I:I)) ->  | Z61: =Z60 -> 0 | AA61: =SUMIF(Список!$C:$C,C61,Список!$U:$U) -> 0
A62: 58 | B62: 58 | D62: =IF(C62="","",VLOOKUP(C62,'R-муж'!C:E,2,FALSE)) ->  | G62: =IF(C62="","",VLOOKUP(C62,'R-муж'!C:E,3,FALSE)) ->  | J62: =J61 -> Мангистауская обл. | Q62: 12 | R62: 56 | S62: 60 | T62: 56-60 | V62: =IF(C62="","",SUMIF('R-муж0'!C:C,C62,'R-муж0'!B:B)) ->  | W62: =IF(C62="","",SUMIF('R-муж0'!C:C,C62,'R-муж0'!I:I)) ->  | X62: =IF(C62="","",SUMIF('R-муж'!C:C,C62,'R-муж'!B:B)) ->  | Y62: =IF(C62="","",SUMIF('R-муж'!C:C,C62,'R-муж'!I:I)) ->  | Z62: 0 | AA62: =SUMIF(Список!$C:$C,C62,Список!$U:$U) -> 0
A63: 59 | B63: 59 | D63: =IF(C63="","",VLOOKUP(C63,'R-муж'!C:E,2,FALSE)) ->  | F63: =IF(X63=0,V63,X63) ->  | G63: =IF(C63="","",VLOOKUP(C63,'R-муж'!C:E,3,FALSE)) ->  | J63: Мангистауская обл. | Q63: 12 | R63: 56 | S63: 60 | T63: 56-60 | V63: =IF(C63="","",SUMIF('R-муж0'!C:C,C63,'R-муж0'!B:B)) ->  | W63: =IF(C63="","",SUMIF('R-муж0'!C:C,C63,'R-муж0'!I:I)) ->  | X63: =IF(C63="","",SUMIF('R-муж'!C:C,C63,'R-муж'!B:B)) ->  | Y63: =IF(C63="","",SUMIF('R-муж'!C:C,C63,'R-муж'!I:I)) ->  | Z63: 0 | AA63: =SUMIF(Список!$C:$C,C63,Список!$U:$U) -> 0
A64: 60 | B64: 60 | D64: =IF(C64="","",VLOOKUP(C64,'R-муж'!C:E,2,FALSE)) ->  | G64: =IF(C64="","",VLOOKUP(C64,'R-муж'!C:E,3,FALSE)) ->  | J64: =J63 -> Мангистауская обл. | Q64: 12 | R64: 56 | S64: 60 | T64: 56-60 | V64: =IF(C64="","",SUMIF('R-муж0'!C:C,C64,'R-муж0'!B:B)) ->  | W64: =IF(C64="","",SUMIF('R-муж0'!C:C,C64,'R-муж0'!I:I)) ->  | X64: =IF(C64="","",SUMIF('R-муж'!C:C,C64,'R-муж'!B:B)) ->  | Y64: =IF(C64="","",SUMIF('R-муж'!C:C,C64,'R-муж'!I:I)) ->  | Z64: 0 | AA64: =SUMIF(Список!$C:$C,C64,Список!$U:$U) -> 0
A65: 61 | B65: 61 | C65: НАЗИР Рамазан | D65: =IF(C65="","",VLOOKUP(C65,'R-муж'!C:E,2,FALSE)) -> 05.09.2008 | E65: КМС | F65: =IF(X65=0,V65,X65) -> 39 | G65: =IF(C65="","",VLOOKUP(C65,'R-муж'!C:E,3,FALSE)) -> Туркестанская обл. | H65: Есімханов Е. | I65: Туркестанская обл. | J65: =I65 -> Туркестанская обл. | K65: Абдазимов Ш.М., Қонысбай А. | M65: НАЗИР | N65: Р | O65: НАЗИР Р. | P65: 13 | Q65: =P65 -> 13 | R65: 61 | S65: 65 | T65: 61-65 | U65: Туркестанская область | V65: =IF(C65="","",SUMIF('R-муж0'!C:C,C65,'R-муж0'!B:B)) -> 0 | W65: =IF(C65="","",SUMIF('R-муж0'!C:C,C65,'R-муж0'!I:I)) -> 0 | X65: =IF(C65="","",SUMIF('R-муж'!C:C,C65,'R-муж'!B:B)) -> 39 | Y65: =IF(C65="","",SUMIF('R-муж'!C:C,C65,'R-муж'!I:I)) -> 1 | Z65: =L65 -> 0 | AA65: =SUMIF(Список!$C:$C,C65,Список!$U:$U) -> 0 | AD65: Назир | AE65: Рамазан | AF65: Назир Рамазан
A66: 62 | B66: 62 | C66: ЖОЛДЫБАЙ Нұржігіт | D66: =IF(C66="","",VLOOKUP(C66,'R-муж'!C:E,2,FALSE)) -> 26.06.2008 | E66: КМС | F66: =IF(X66=0,V66,X66) -> 31 | G66: =IF(C66="","",VLOOKUP(C66,'R-муж'!C:E,3,FALSE)) -> Туркестанская обл. | H66: Сыдыков Б. | J66: =J65 -> Туркестанская обл. | M66: ЖОЛДЫБАЙ | N66: Н | O66: ЖОЛДЫБАЙ Н. | Q66: =Q65 -> 13 | R66: 61 | S66: 65 | T66: 61-65 | V66: =IF(C66="","",SUMIF('R-муж0'!C:C,C66,'R-муж0'!B:B)) -> 0 | W66: =IF(C66="","",SUMIF('R-муж0'!C:C,C66,'R-муж0'!I:I)) -> 0 | X66: =IF(C66="","",SUMIF('R-муж'!C:C,C66,'R-муж'!B:B)) -> 31 | Y66: =IF(C66="","",SUMIF('R-муж'!C:C,C66,'R-муж'!I:I)) -> 1 | Z66: =Z65 -> 0 | AA66: =SUMIF(Список!$C:$C,C66,Список!$U:$U) -> 0 | AD66: Жолдыбай | AE66: Нұржігіт | AF66: Жолдыбай Нұржігіт
A67: 63 | B67: 63 | C67: ҚОНЫСБАЙ Айболат | D67: =IF(C67="","",VLOOKUP(C67,'R-муж'!C:E,2,FALSE)) -> 12.04.1999 | E67: КМС | F67: =IF(X67=0,V67,X67) -> 32 | G67: =IF(C67="","",VLOOKUP(C67,'R-муж'!C:E,3,FALSE)) -> Туркестанская обл. | H67: Есімханов Е. | J67: =J66 -> Туркестанская обл. | M67: ҚОНЫСБАЙ | N67: А | O67: ҚОНЫСБАЙ А. | Q67: 13 | R67: 61 | S67: 65 | T67: 61-65 | V67: =IF(C67="","",SUMIF('R-муж0'!C:C,C67,'R-муж0'!B:B)) -> 0 | W67: =IF(C67="","",SUMIF('R-муж0'!C:C,C67,'R-муж0'!I:I)) -> 0 | X67: =IF(C67="","",SUMIF('R-муж'!C:C,C67,'R-муж'!B:B)) -> 32 | Y67: =IF(C67="","",SUMIF('R-муж'!C:C,C67,'R-муж'!I:I)) -> 1 | Z67: 0 | AA67: =SUMIF(Список!$C:$C,C67,Список!$U:$U) -> 0 | AD67: Қонысбай | AE67: Айболат | AF67: Қонысбай Айболат
A68: 64 | B68: 64 | C68: ИБАХАН Санжар | D68: =IF(C68="","",VLOOKUP(C68,'R-муж'!C:E,2,FALSE)) -> 27.10.2009 | E68: КМС | F68: =IF(X68=0,V68,X68) -> 29 | G68: =IF(C68="","",VLOOKUP(C68,'R-муж'!C:E,3,FALSE)) -> Туркестанская обл. | H68: Полатханов Р. | J68: =J67 -> Туркестанская обл. | M68: ИБАХАН | N68: С | O68: ИБАХАН С. | Q68: 13 | R68: 61 | S68: 65 | T68: 61-65 | V68: =IF(C68="","",SUMIF('R-муж0'!C:C,C68,'R-муж0'!B:B)) -> 0 | W68: =IF(C68="","",SUMIF('R-муж0'!C:C,C68,'R-муж0'!I:I)) -> 0 | X68: =IF(C68="","",SUMIF('R-муж'!C:C,C68,'R-муж'!B:B)) -> 29 | Y68: =IF(C68="","",SUMIF('R-муж'!C:C,C68,'R-муж'!I:I)) -> 1 | Z68: 0 | AA68: =SUMIF(Список!$C:$C,C68,Список!$U:$U) -> 0 | AD68: Ибахан | AE68: Санжар | AF68: Ибахан Санжар
A69: 65 | B69: 65 | C69: ЕСІМХАН Орынбасар | D69: =IF(C69="","",VLOOKUP(C69,'R-муж'!C:E,2,FALSE)) -> 13.07.2011 | E69: КМС | F69: =IF(X69=0,V69,X69) -> 19 | G69: =IF(C69="","",VLOOKUP(C69,'R-муж'!C:E,3,FALSE)) -> Туркестанская обл. | H69: Есімханов Е. | J69: =J68 -> Туркестанская обл. | M69: ЕСІМХАН | N69: О | O69: ЕСІМХАН О. | Q69: 13 | R69: 61 | S69: 65 | T69: 61-65 | V69: =IF(C69="","",SUMIF('R-муж0'!C:C,C69,'R-муж0'!B:B)) -> 0 | W69: =IF(C69="","",SUMIF('R-муж0'!C:C,C69,'R-муж0'!I:I)) -> 0 | X69: =IF(C69="","",SUMIF('R-муж'!C:C,C69,'R-муж'!B:B)) -> 19 | Y69: =IF(C69="","",SUMIF('R-муж'!C:C,C69,'R-муж'!I:I)) -> 1 | Z69: 0 | AA69: =SUMIF(Список!$C:$C,C69,Список!$U:$U) -> 0 | AD69: Есімхан | AE69: Орынбасар | AF69: Есімхан Орынбасар
A70: 66 | B70: 66 | C70: ХАЗКЕН Адиль | D70: =IF(C70="","",VLOOKUP(C70,'R-муж'!C:E,2,FALSE)) -> 02.06.2004 | E70: КМС | F70: =IF(X70=0,V70,X70) -> 38 | G70: =IF(C70="","",VLOOKUP(C70,'R-муж'!C:E,3,FALSE)) -> Павлодарская обл. | H70: Хорьков А.Ю. | I70: Павлодарская обл. | J70: =I70 -> Павлодарская обл. | K70: Хазкен А.С. | M70: =MID(C70,1,SEARCH(" ",C70)-1) -> ХАЗКЕН | N70: =MID(C70,SEARCH(" ",C70)+1,1) -> А | O70: =CONCATENATE(M70," ",N70,".") -> ХАЗКЕН А. | P70: 14 | Q70: =P70 -> 14 | R70: =Q70*5-4 -> 66 | S70: =Q70*5 -> 70 | T70: =CONCATENATE(R70,"-",S70) -> 66-70 | U70: Павлодарская область | V70: =IF(C70="","",SUMIF('R-муж0'!C:C,C70,'R-муж0'!B:B)) -> 0 | W70: =IF(C70="","",SUMIF('R-муж0'!C:C,C70,'R-муж0'!I:I)) -> 0 | X70: =IF(C70="","",SUMIF('R-муж'!C:C,C70,'R-муж'!B:B)) -> 38 | Y70: =IF(C70="","",SUMIF('R-муж'!C:C,C70,'R-муж'!I:I)) -> 1 | Z70: =L70 -> 0 | AA70: =SUMIF(Список!$C:$C,C70,Список!$U:$U) -> 0 | AD70: =PROPER(M70) -> Хазкен | AE70: =MID(C70,SEARCH(" ",C70)+1,15) -> Адиль | AF70: =CONCATENATE(AD70," ",AE70," ",AB70) -> Хазкен Адиль
A71: 67 | B71: 67 | C71: ИНЫРБАЕВ Алишер | D71: =IF(C71="","",VLOOKUP(C71,'R-муж'!C:E,2,FALSE)) -> 27.07.2004 | E71: КМС | F71: 36 | G71: =IF(C71="","",VLOOKUP(C71,'R-муж'!C:E,3,FALSE)) -> Павлодарская обл. | H71: Хорьков А.Ю. | J71: =J70 -> Павлодарская обл. | M71: ИНЫРБАЕВ | N71: А | O71: ИНЫРБАЕВ А. | Q71: =Q70 -> 14 | R71: 66 | S71: 70 | T71: 66-70 | V71: =IF(C71="","",SUMIF('R-муж0'!C:C,C71,'R-муж0'!B:B)) -> 0 | W71: =IF(C71="","",SUMIF('R-муж0'!C:C,C71,'R-муж0'!I:I)) -> 0 | X71: =IF(C71="","",SUMIF('R-муж'!C:C,C71,'R-муж'!B:B)) -> 36 | Y71: =IF(C71="","",SUMIF('R-муж'!C:C,C71,'R-муж'!I:I)) -> 1 | Z71: =Z70 -> 0 | AA71: =SUMIF(Список!$C:$C,C71,Список!$U:$U) -> 0 | AD71: Инырбаев | AE71: Алишер | AF71: Инырбаев Алишер
A72: 68 | B72: 68 | C72: АБИШЕВ Алимжан | D72: =IF(C72="","",VLOOKUP(C72,'R-муж'!C:E,2,FALSE)) -> 16.04.2008 | E72: КМС | F72: 29 | G72: =IF(C72="","",VLOOKUP(C72,'R-муж'!C:E,3,FALSE)) -> Павлодарская обл. | H72: Хорьков А.Ю. | J72: =J71 -> Павлодарская обл. | M72: АБИШЕВ | N72: А | O72: АБИШЕВ А. | Q72: 14 | R72: 66 | S72: 70 | T72: 66-70 | V72: =IF(C72="","",SUMIF('R-муж0'!C:C,C72,'R-муж0'!B:B)) -> 0 | W72: =IF(C72="","",SUMIF('R-муж0'!C:C,C72,'R-муж0'!I:I)) -> 0 | X72: =IF(C72="","",SUMIF('R-муж'!C:C,C72,'R-муж'!B:B)) -> 29 | Y72: =IF(C72="","",SUMIF('R-муж'!C:C,C72,'R-муж'!I:I)) -> 1 | Z72: 0 | AA72: =SUMIF(Список!$C:$C,C72,Список!$U:$U) -> 0 | AD72: Абишев | AE72: Алимжан | AF72: Абишев Алимжан
A73: 69 | B73: 69 | C73: МУРАТОВ Алдияр | D73: =IF(C73="","",VLOOKUP(C73,'R-муж'!C:E,2,FALSE)) -> 18.03.2008 | E73: КМС | F73: 22 | G73: =IF(C73="","",VLOOKUP(C73,'R-муж'!C:E,3,FALSE)) -> Павлодарская обл. | H73: Ахтанов О.Р | J73: Павлодарская обл. | M73: МУРАТОВ | N73: А | O73: МУРАТОВ А. | Q73: 14 | R73: 66 | S73: 70 | T73: 66-70 | V73: =IF(C73="","",SUMIF('R-муж0'!C:C,C73,'R-муж0'!B:B)) -> 0 | W73: =IF(C73="","",SUMIF('R-муж0'!C:C,C73,'R-муж0'!I:I)) -> 0 | X73: =IF(C73="","",SUMIF('R-муж'!C:C,C73,'R-муж'!B:B)) -> 22 | Y73: =IF(C73="","",SUMIF('R-муж'!C:C,C73,'R-муж'!I:I)) -> 1 | Z73: 0 | AA73: =SUMIF(Список!$C:$C,C73,Список!$U:$U) -> 0 | AD73: Муратов | AE73: Алдияр | AF73: Муратов Алдияр
A74: 70 | B74: 70 | D74: =IF(C74="","",VLOOKUP(C74,'R-муж'!C:E,2,FALSE)) ->  | G74: =IF(C74="","",VLOOKUP(C74,'R-муж'!C:E,3,FALSE)) ->  | J74: =J73 -> Павлодарская обл. | Q74: 14 | R74: 66 | S74: 70 | T74: 66-70 | V74: =IF(C74="","",SUMIF('R-муж0'!C:C,C74,'R-муж0'!B:B)) ->  | W74: =IF(C74="","",SUMIF('R-муж0'!C:C,C74,'R-муж0'!I:I)) ->  | X74: =IF(C74="","",SUMIF('R-муж'!C:C,C74,'R-муж'!B:B)) ->  | Y74: =IF(C74="","",SUMIF('R-муж'!C:C,C74,'R-муж'!I:I)) ->  | Z74: 0 | AA74: =SUMIF(Список!$C:$C,C74,Список!$U:$U) -> 0
A75: 71 | B75: 71 | D75: =IF(C75="","",VLOOKUP(C75,'R-муж'!C:E,2,FALSE)) ->  | F75: =IF(X75=0,V75,X75) ->  | G75: =IF(C75="","",VLOOKUP(C75,'R-муж'!C:E,3,FALSE)) ->  | I75: Северо-Казахстанская обл. | J75: =I75 -> Северо-Казахстанская обл. | K75: Сайран Е.С., Подкорытов И.В. | P75: 15 | Q75: =P75 -> 15 | R75: 71 | S75: 75 | T75: 71-75 | U75: Северо-Казахстанская область | V75: =IF(C75="","",SUMIF('R-муж0'!C:C,C75,'R-муж0'!B:B)) ->  | W75: =IF(C75="","",SUMIF('R-муж0'!C:C,C75,'R-муж0'!I:I)) ->  | X75: =IF(C75="","",SUMIF('R-муж'!C:C,C75,'R-муж'!B:B)) ->  | Y75: =IF(C75="","",SUMIF('R-муж'!C:C,C75,'R-муж'!I:I)) ->  | Z75: =L75 -> 0 | AA75: =SUMIF(Список!$C:$C,C75,Список!$U:$U) -> 0
A76: 72 | B76: 72 | D76: =IF(C76="","",VLOOKUP(C76,'R-муж'!C:E,2,FALSE)) ->  | F76: =IF(X76=0,V76,X76) ->  | G76: =IF(C76="","",VLOOKUP(C76,'R-муж'!C:E,3,FALSE)) ->  | J76: =J75 -> Северо-Казахстанская обл. | Q76: =Q75 -> 15 | R76: 71 | S76: 75 | T76: 71-75 | V76: =IF(C76="","",SUMIF('R-муж0'!C:C,C76,'R-муж0'!B:B)) ->  | W76: =IF(C76="","",SUMIF('R-муж0'!C:C,C76,'R-муж0'!I:I)) ->  | X76: =IF(C76="","",SUMIF('R-муж'!C:C,C76,'R-муж'!B:B)) ->  | Y76: =IF(C76="","",SUMIF('R-муж'!C:C,C76,'R-муж'!I:I)) ->  | Z76: =Z75 -> 0 | AA76: =SUMIF(Список!$C:$C,C76,Список!$U:$U) -> 0
A77: 73 | B77: 73 | D77: =IF(C77="","",VLOOKUP(C77,'R-муж'!C:E,2,FALSE)) ->  | F77: =IF(X77=0,V77,X77) ->  | G77: =IF(C77="","",VLOOKUP(C77,'R-муж'!C:E,3,FALSE)) ->  | J77: =J76 -> Северо-Казахстанская обл. | Q77: 15 | R77: 71 | S77: 75 | T77: 71-75 | V77: =IF(C77="","",SUMIF('R-муж0'!C:C,C77,'R-муж0'!B:B)) ->  | W77: =IF(C77="","",SUMIF('R-муж0'!C:C,C77,'R-муж0'!I:I)) ->  | X77: =IF(C77="","",SUMIF('R-муж'!C:C,C77,'R-муж'!B:B)) ->  | Y77: =IF(C77="","",SUMIF('R-муж'!C:C,C77,'R-муж'!I:I)) ->  | Z77: 0 | AA77: =SUMIF(Список!$C:$C,C77,Список!$U:$U) -> 0
A78: 74 | B78: 74 | D78: =IF(C78="","",VLOOKUP(C78,'R-муж'!C:E,2,FALSE)) ->  | F78: =IF(X78=0,V78,X78) ->  | G78: =IF(C78="","",VLOOKUP(C78,'R-муж'!C:E,3,FALSE)) ->  | J78: =J77 -> Северо-Казахстанская обл. | Q78: 15 | R78: 71 | S78: 75 | T78: 71-75 | V78: =IF(C78="","",SUMIF('R-муж0'!C:C,C78,'R-муж0'!B:B)) ->  | W78: =IF(C78="","",SUMIF('R-муж0'!C:C,C78,'R-муж0'!I:I)) ->  | X78: =IF(C78="","",SUMIF('R-муж'!C:C,C78,'R-муж'!B:B)) ->  | Y78: =IF(C78="","",SUMIF('R-муж'!C:C,C78,'R-муж'!I:I)) ->  | Z78: 0 | AA78: =SUMIF(Список!$C:$C,C78,Список!$U:$U) -> 0
A79: 75 | B79: 75 | D79: =IF(C79="","",VLOOKUP(C79,'R-муж'!C:E,2,FALSE)) ->  | G79: =IF(C79="","",VLOOKUP(C79,'R-муж'!C:E,3,FALSE)) ->  | J79: =J78 -> Северо-Казахстанская обл. | Q79: 15 | R79: 71 | S79: 75 | T79: 71-75 | V79: =IF(C79="","",SUMIF('R-муж0'!C:C,C79,'R-муж0'!B:B)) ->  | W79: =IF(C79="","",SUMIF('R-муж0'!C:C,C79,'R-муж0'!I:I)) ->  | X79: =IF(C79="","",SUMIF('R-муж'!C:C,C79,'R-муж'!B:B)) ->  | Y79: =IF(C79="","",SUMIF('R-муж'!C:C,C79,'R-муж'!I:I)) ->  | Z79: 0 | AA79: =SUMIF(Список!$C:$C,C79,Список!$U:$U) -> 0
A80: 76 | B80: 76 | C80: КУРМАМБАЕВ Сагантай | D80: =IF(C80="","",VLOOKUP(C80,'R-муж'!C:E,2,FALSE)) -> 02.06.2003 | E80: МС | F80: =IF(X80=0,V80,X80) -> 62 | G80: =IF(C80="","",VLOOKUP(C80,'R-муж'!C:E,3,FALSE)) -> ВКО | H80: Жолудев Д.С. | I80: Восточно-Казахстанская обл. | J80: =I80 -> Восточно-Казахстанская обл. | K80: Жолудев Д. | M80: КУРМАМБАЕВ | N80: С | O80: КУРМАМБАЕВ С. | P80: 16 | Q80: =P80 -> 16 | R80: 76 | S80: 80 | T80: 76-80 | U80: Восточно-Казахстанская область | V80: =IF(C80="","",SUMIF('R-муж0'!C:C,C80,'R-муж0'!B:B)) -> 0 | W80: =IF(C80="","",SUMIF('R-муж0'!C:C,C80,'R-муж0'!I:I)) -> 0 | X80: =IF(C80="","",SUMIF('R-муж'!C:C,C80,'R-муж'!B:B)) -> 62 | Y80: =IF(C80="","",SUMIF('R-муж'!C:C,C80,'R-муж'!I:I)) -> 1 | Z80: =L80 -> 0 | AA80: =SUMIF(Список!$C:$C,C80,Список!$U:$U) -> 0 | AD80: Курмамбаев | AE80: Сагантай | AF80: Курмамбаев Сагантай
A81: 77 | B81: 77 | C81: ДЖИЕНБАЕВ Темирлан | D81: =IF(C81="","",VLOOKUP(C81,'R-муж'!C:E,2,FALSE)) -> 02.11.2006 | E81: КМС | F81: =IF(X81=0,V81,X81) -> 42 | G81: =IF(C81="","",VLOOKUP(C81,'R-муж'!C:E,3,FALSE)) -> ВКО | H81: Коновалов С.Г. | J81: =J80 -> Восточно-Казахстанская обл. | M81: ДЖИЕНБАЕВ | N81: Т | O81: ДЖИЕНБАЕВ Т. | Q81: =Q80 -> 16 | R81: 76 | S81: 80 | T81: 76-80 | V81: =IF(C81="","",SUMIF('R-муж0'!C:C,C81,'R-муж0'!B:B)) -> 0 | W81: =IF(C81="","",SUMIF('R-муж0'!C:C,C81,'R-муж0'!I:I)) -> 0 | X81: =IF(C81="","",SUMIF('R-муж'!C:C,C81,'R-муж'!B:B)) -> 42 | Y81: =IF(C81="","",SUMIF('R-муж'!C:C,C81,'R-муж'!I:I)) -> 1 | Z81: =Z80 -> 0 | AA81: =SUMIF(Список!$C:$C,C81,Список!$U:$U) -> 0 | AD81: Джиенбаев | AE81: Темирлан | AF81: Джиенбаев Темирлан
A82: 78 | B82: 78 | C82: ОРАЛХАНОВ Арнур | D82: =IF(C82="","",VLOOKUP(C82,'R-муж'!C:E,2,FALSE)) -> 28.09.2007 | E82: КМС | F82: =IF(X82=0,V82,X82) -> 44 | G82: =IF(C82="","",VLOOKUP(C82,'R-муж'!C:E,3,FALSE)) -> ВКО | H82: Сотник К.О. | J82: =J81 -> Восточно-Казахстанская обл. | M82: ОРАЛХАНОВ | N82: А | O82: ОРАЛХАНОВ А. | Q82: 16 | R82: 76 | S82: 80 | T82: 76-80 | V82: =IF(C82="","",SUMIF('R-муж0'!C:C,C82,'R-муж0'!B:B)) -> 0 | W82: =IF(C82="","",SUMIF('R-муж0'!C:C,C82,'R-муж0'!I:I)) -> 0 | X82: =IF(C82="","",SUMIF('R-муж'!C:C,C82,'R-муж'!B:B)) -> 44 | Y82: =IF(C82="","",SUMIF('R-муж'!C:C,C82,'R-муж'!I:I)) -> 1 | Z82: 0 | AA82: =SUMIF(Список!$C:$C,C82,Список!$U:$U) -> 0 | AD82: Оралханов | AE82: Арнур | AF82: Оралханов Арнур
A83: 79 | B83: 79 | C83: ЖОЛУДЕВ Денис | D83: =IF(C83="","",VLOOKUP(C83,'R-муж'!C:E,2,FALSE)) -> 28.07.1993 | E83: МС | F83: =IF(X83=0,V83,X83) -> 62 | G83: =IF(C83="","",VLOOKUP(C83,'R-муж'!C:E,3,FALSE)) -> ВКО | J83: Восточно-Казахстанская обл. | M83: ЖОЛУДЕВ | N83: Д | O83: ЖОЛУДЕВ Д. | Q83: 16 | R83: 76 | S83: 80 | T83: 76-80 | V83: =IF(C83="","",SUMIF('R-муж0'!C:C,C83,'R-муж0'!B:B)) -> 0 | W83: =IF(C83="","",SUMIF('R-муж0'!C:C,C83,'R-муж0'!I:I)) -> 0 | X83: =IF(C83="","",SUMIF('R-муж'!C:C,C83,'R-муж'!B:B)) -> 62 | Y83: =IF(C83="","",SUMIF('R-муж'!C:C,C83,'R-муж'!I:I)) -> 1 | Z83: 0 | AA83: =SUMIF(Список!$C:$C,C83,Список!$U:$U) -> 0 | AD83: Жолудев | AE83: Денис | AF83: Жолудев Денис
A84: 80 | B84: 80 | D84: =IF(C84="","",VLOOKUP(C84,'R-муж'!C:E,2,FALSE)) ->  | F84: =IF(X84=0,V84,X84) ->  | G84: =IF(C84="","",VLOOKUP(C84,'R-муж'!C:E,3,FALSE)) ->  | J84: =J83 -> Восточно-Казахстанская обл. | Q84: 16 | R84: 76 | S84: 80 | T84: 76-80 | V84: =IF(C84="","",SUMIF('R-муж0'!C:C,C84,'R-муж0'!B:B)) ->  | W84: =IF(C84="","",SUMIF('R-муж0'!C:C,C84,'R-муж0'!I:I)) ->  | X84: =IF(C84="","",SUMIF('R-муж'!C:C,C84,'R-муж'!B:B)) ->  | Y84: =IF(C84="","",SUMIF('R-муж'!C:C,C84,'R-муж'!I:I)) ->  | Z84: 0 | AA84: =SUMIF(Список!$C:$C,C84,Список!$U:$U) -> 0
A85: 81 | B85: 81 | C85: АРТУКМЕТОВ Ирисбек | D85: =IF(C85="","",VLOOKUP(C85,'R-муж'!C:E,2,FALSE)) -> 18.08.2002 | E85: МСМК | F85: =IF(X85=0,V85,X85) -> 62 | G85: =IF(C85="","",VLOOKUP(C85,'R-муж'!C:E,3,FALSE)) -> г. Шымкент | H85: Мирасланов Р.М. | I85: г. Шымкент | J85: =I85 -> г. Шымкент | K85: Жамал Б.Б. | M85: =MID(C85,1,SEARCH(" ",C85)-1) -> АРТУКМЕТОВ | N85: =MID(C85,SEARCH(" ",C85)+1,1) -> И | O85: =CONCATENATE(M85," ",N85,".") -> АРТУКМЕТОВ И. | P85: 17 | Q85: =P85 -> 17 | R85: =Q85*5-4 -> 81 | S85: =Q85*5 -> 85 | T85: =CONCATENATE(R85,"-",S85) -> 81-85 | U85: город Шымкент | V85: =IF(C85="","",SUMIF('R-муж0'!C:C,C85,'R-муж0'!B:B)) -> 0 | W85: =IF(C85="","",SUMIF('R-муж0'!C:C,C85,'R-муж0'!I:I)) -> 0 | X85: =IF(C85="","",SUMIF('R-муж'!C:C,C85,'R-муж'!B:B)) -> 62 | Y85: =IF(C85="","",SUMIF('R-муж'!C:C,C85,'R-муж'!I:I)) -> 1 | Z85: =L85 -> 0 | AA85: =SUMIF(Список!$C:$C,C85,Список!$U:$U) -> 0 | AD85: =PROPER(M85) -> Артукметов | AE85: =MID(C85,SEARCH(" ",C85)+1,15) -> Ирисбек | AF85: =CONCATENATE(AD85," ",AE85," ",AB85) -> Артукметов Ирисбек
A86: 82 | B86: 82 | C86: ЖАМАЛ Бекүлан | D86: =IF(C86="","",VLOOKUP(C86,'R-муж'!C:E,2,FALSE)) -> 12.01.1996 | E86: МС | F86: 57 | G86: =IF(C86="","",VLOOKUP(C86,'R-муж'!C:E,3,FALSE)) -> г. Шымкент | H86: Жамал Б.Б. | J86: =J85 -> г. Шымкент | M86: ЖАМАЛ | N86: Б | O86: ЖАМАЛ Б. | Q86: =Q85 -> 17 | R86: 81 | S86: 85 | T86: 81-85 | V86: =IF(C86="","",SUMIF('R-муж0'!C:C,C86,'R-муж0'!B:B)) -> 0 | W86: =IF(C86="","",SUMIF('R-муж0'!C:C,C86,'R-муж0'!I:I)) -> 0 | X86: =IF(C86="","",SUMIF('R-муж'!C:C,C86,'R-муж'!B:B)) -> 57 | Y86: =IF(C86="","",SUMIF('R-муж'!C:C,C86,'R-муж'!I:I)) -> 1 | Z86: =Z85 -> 0 | AA86: =SUMIF(Список!$C:$C,C86,Список!$U:$U) -> 0 | AD86: Жамал | AE86: Бекүлан | AF86: Жамал Бекүлан
A87: 83 | B87: 83 | C87: ӘКІМӘЛІ Бақдаулет | D87: =IF(C87="","",VLOOKUP(C87,'R-муж'!C:E,2,FALSE)) -> 20.04.2001 | E87: МС | F87: 52 | G87: =IF(C87="","",VLOOKUP(C87,'R-муж'!C:E,3,FALSE)) -> г. Шымкент | H87: Жамал Б.Б. | J87: г. Шымкент | M87: ӘКІМӘЛІ | N87: Б | O87: ӘКІМӘЛІ Б. | Q87: 17 | R87: 81 | S87: 85 | T87: 81-85 | V87: =IF(C87="","",SUMIF('R-муж0'!C:C,C87,'R-муж0'!B:B)) -> 0 | W87: =IF(C87="","",SUMIF('R-муж0'!C:C,C87,'R-муж0'!I:I)) -> 0 | X87: =IF(C87="","",SUMIF('R-муж'!C:C,C87,'R-муж'!B:B)) -> 52 | Y87: =IF(C87="","",SUMIF('R-муж'!C:C,C87,'R-муж'!I:I)) -> 1 | Z87: 0 | AA87: =SUMIF(Список!$C:$C,C87,Список!$U:$U) -> 0 | AD87: Әкімәлі | AE87: Бақдаулет | AF87: Әкімәлі Бақдаулет
A88: 84 | B88: 84 | C88: ЖҰМАҒҰЛ Марлен | D88: =IF(C88="","",VLOOKUP(C88,'R-муж'!C:E,2,FALSE)) -> 25.10.2011 | E88: КМС | F88: 25 | G88: =IF(C88="","",VLOOKUP(C88,'R-муж'!C:E,3,FALSE)) -> г. Шымкент | H88: Жамал Б.Б. | J88: г. Шымкент | M88: ЖҰМАҒҰЛ | N88: М | O88: ЖҰМАҒҰЛ М. | Q88: 17 | R88: 81 | S88: 85 | T88: 81-85 | V88: =IF(C88="","",SUMIF('R-муж0'!C:C,C88,'R-муж0'!B:B)) -> 0 | W88: =IF(C88="","",SUMIF('R-муж0'!C:C,C88,'R-муж0'!I:I)) -> 0 | X88: =IF(C88="","",SUMIF('R-муж'!C:C,C88,'R-муж'!B:B)) -> 25 | Y88: =IF(C88="","",SUMIF('R-муж'!C:C,C88,'R-муж'!I:I)) -> 1 | Z88: 0 | AA88: =SUMIF(Список!$C:$C,C88,Список!$U:$U) -> 0 | AD88: Жұмағұл | AE88: Марлен | AF88: Жұмағұл Марлен
A89: 85 | B89: 85 | C89: ЖҰМАҒҰЛ Абай | D89: =IF(C89="","",VLOOKUP(C89,'R-муж'!C:E,2,FALSE)) -> 05.05.2013 | E89: КМС | F89: 17 | G89: =IF(C89="","",VLOOKUP(C89,'R-муж'!C:E,3,FALSE)) -> г. Шымкент | H89: Жамал Б.Б. | J89: г. Шымкент | M89: ЖҰМАҒҰЛ | N89: А | O89: ЖҰМАҒҰЛ А. | Q89: 17 | R89: 81 | S89: 85 | T89: 81-85 | V89: =IF(C89="","",SUMIF('R-муж0'!C:C,C89,'R-муж0'!B:B)) -> 0 | W89: =IF(C89="","",SUMIF('R-муж0'!C:C,C89,'R-муж0'!I:I)) -> 0 | X89: =IF(C89="","",SUMIF('R-муж'!C:C,C89,'R-муж'!B:B)) -> 17 | Y89: =IF(C89="","",SUMIF('R-муж'!C:C,C89,'R-муж'!I:I)) -> 1 | Z89: 0 | AA89: =SUMIF(Список!$C:$C,C89,Список!$U:$U) -> 0 | AD89: Жұмағұл | AE89: Абай | AF89: Жұмағұл Абай
A90: 86 | B90: 86 | C90: МУРАТКАЛИЕВ Нурсултан | D90: =IF(C90="","",VLOOKUP(C90,'R-муж'!C:E,2,FALSE)) -> 12.03.1994 | E90: КМС | F90: 38 | G90: =IF(C90="","",VLOOKUP(C90,'R-муж'!C:E,3,FALSE)) -> Абайская обл. | I90: Абайская обл. | J90: =I90 -> Абайская обл. | K90: Мураткалиев Н. | M90: МУРАТКАЛИЕВ | N90: Н | O90: МУРАТКАЛИЕВ Н. | P90: 18 | Q90: =P90 -> 18 | R90: 86 | S90: 90 | T90: 86-90 | U90: Абайская область | V90: =IF(C90="","",SUMIF('R-муж0'!C:C,C90,'R-муж0'!B:B)) -> 0 | W90: =IF(C90="","",SUMIF('R-муж0'!C:C,C90,'R-муж0'!I:I)) -> 0 | X90: =IF(C90="","",SUMIF('R-муж'!C:C,C90,'R-муж'!B:B)) -> 38 | Y90: =IF(C90="","",SUMIF('R-муж'!C:C,C90,'R-муж'!I:I)) -> 1 | Z90: =L90 -> 0 | AA90: =SUMIF(Список!$C:$C,C90,Список!$U:$U) -> 0 | AD90: Мураткалиев | AE90: Нурсултан | AF90: Мураткалиев Нурсултан
A91: 87 | B91: 87 | C91: ТОҚТАРХАН Тілек | D91: =IF(C91="","",VLOOKUP(C91,'R-муж'!C:E,2,FALSE)) -> 06.12.2006 | E91: КМС | F91: 35 | G91: =IF(C91="","",VLOOKUP(C91,'R-муж'!C:E,3,FALSE)) -> Абайская обл. | H91: Шайхин Б.А. | J91: =J90 -> Абайская обл. | M91: ТОҚТАРХАН | N91: Т | O91: ТОҚТАРХАН Т. | Q91: 18 | R91: 86 | S91: 90 | T91: 86-90 | V91: =IF(C91="","",SUMIF('R-муж0'!C:C,C91,'R-муж0'!B:B)) -> 0 | W91: =IF(C91="","",SUMIF('R-муж0'!C:C,C91,'R-муж0'!I:I)) -> 0 | X91: =IF(C91="","",SUMIF('R-муж'!C:C,C91,'R-муж'!B:B)) -> 35 | Y91: =IF(C91="","",SUMIF('R-муж'!C:C,C91,'R-муж'!I:I)) -> 1 | Z91: 0 | AA91: =SUMIF(Список!$C:$C,C91,Список!$U:$U) -> 0 | AD91: Тоқтархан | AE91: Тілек | AF91: Тоқтархан Тілек
A92: 88 | B92: 88 | C92: МАМЫРБЕК Нұртай | D92: =IF(C92="","",VLOOKUP(C92,'R-муж'!C:E,2,FALSE)) -> 1994-08-17 | E92: КМС | F92: 0 | G92: =IF(C92="","",VLOOKUP(C92,'R-муж'!C:E,3,FALSE)) -> Абайская обл. | J92: Абайская обл. | M92: МАМЫРБЕК | N92: Н | O92: МАМЫРБЕК Н. | Q92: 18 | R92: 86 | S92: 90 | T92: 86-90 | V92: =IF(C92="","",SUMIF('R-муж0'!C:C,C92,'R-муж0'!B:B)) -> 0 | W92: =IF(C92="","",SUMIF('R-муж0'!C:C,C92,'R-муж0'!I:I)) -> 0 | X92: =IF(C92="","",SUMIF('R-муж'!C:C,C92,'R-муж'!B:B)) -> 0 | Y92: =IF(C92="","",SUMIF('R-муж'!C:C,C92,'R-муж'!I:I)) -> 1 | Z92: 0 | AA92: =SUMIF(Список!$C:$C,C92,Список!$U:$U) -> 0 | AD92: Мамырбек | AE92: Нұртай | AF92: Мамырбек Нұртай
A93: 89 | B93: 89 | D93: =IF(C93="","",VLOOKUP(C93,'R-муж'!C:E,2,FALSE)) ->  | G93: =IF(C93="","",VLOOKUP(C93,'R-муж'!C:E,3,FALSE)) ->  | J93: Абайская обл. | Q93: 18 | R93: 86 | S93: 90 | T93: 86-90 | V93: =IF(C93="","",SUMIF('R-муж0'!C:C,C93,'R-муж0'!B:B)) ->  | W93: =IF(C93="","",SUMIF('R-муж0'!C:C,C93,'R-муж0'!I:I)) ->  | X93: =IF(C93="","",SUMIF('R-муж'!C:C,C93,'R-муж'!B:B)) ->  | Y93: =IF(C93="","",SUMIF('R-муж'!C:C,C93,'R-муж'!I:I)) ->  | Z93: 0 | AA93: =SUMIF(Список!$C:$C,C93,Список!$U:$U) -> 0
A94: 90 | B94: 90 | D94: =IF(C94="","",VLOOKUP(C94,'R-муж'!C:E,2,FALSE)) ->  | G94: =IF(C94="","",VLOOKUP(C94,'R-муж'!C:E,3,FALSE)) ->  | J94: Абайская обл. | Q94: 18 | R94: 86 | S94: 90 | T94: 86-90 | V94: =IF(C94="","",SUMIF('R-муж0'!C:C,C94,'R-муж0'!B:B)) ->  | W94: =IF(C94="","",SUMIF('R-муж0'!C:C,C94,'R-муж0'!I:I)) ->  | X94: =IF(C94="","",SUMIF('R-муж'!C:C,C94,'R-муж'!B:B)) ->  | Y94: =IF(C94="","",SUMIF('R-муж'!C:C,C94,'R-муж'!I:I)) ->  | Z94: 0 | AA94: =SUMIF(Список!$C:$C,C94,Список!$U:$U) -> 0
A95: 91 | B95: 91 | D95: =IF(C95="","",VLOOKUP(C95,'R-муж'!C:E,2,FALSE)) ->  | G95: =IF(C95="","",VLOOKUP(C95,'R-муж'!C:E,3,FALSE)) ->  | I95: Жетысуская обл. | J95: =I95 -> Жетысуская обл. | K95: Дюсембинов Н. | P95: 19 | Q95: =P95 -> 19 | R95: 91 | S95: 95 | T95: 91-95 | U95: Жетысуская область | V95: =IF(C95="","",SUMIF('R-муж0'!C:C,C95,'R-муж0'!B:B)) ->  | W95: =IF(C95="","",SUMIF('R-муж0'!C:C,C95,'R-муж0'!I:I)) ->  | X95: =IF(C95="","",SUMIF('R-муж'!C:C,C95,'R-муж'!B:B)) ->  | Y95: =IF(C95="","",SUMIF('R-муж'!C:C,C95,'R-муж'!I:I)) ->  | Z95: =L95 -> 0 | AA95: =SUMIF(Список!$C:$C,C95,Список!$U:$U) -> 0
A96: 92 | B96: 92 | D96: =IF(C96="","",VLOOKUP(C96,'R-муж'!C:E,2,FALSE)) ->  | G96: =IF(C96="","",VLOOKUP(C96,'R-муж'!C:E,3,FALSE)) ->  | J96: =J95 -> Жетысуская обл. | Q96: 19 | R96: 91 | S96: 95 | T96: 91-95 | V96: =IF(C96="","",SUMIF('R-муж0'!C:C,C96,'R-муж0'!B:B)) ->  | W96: =IF(C96="","",SUMIF('R-муж0'!C:C,C96,'R-муж0'!I:I)) ->  | X96: =IF(C96="","",SUMIF('R-муж'!C:C,C96,'R-муж'!B:B)) ->  | Y96: =IF(C96="","",SUMIF('R-муж'!C:C,C96,'R-муж'!I:I)) ->  | Z96: 0 | AA96: =SUMIF(Список!$C:$C,C96,Список!$U:$U) -> 0
A97: 93 | B97: 93 | D97: =IF(C97="","",VLOOKUP(C97,'R-муж'!C:E,2,FALSE)) ->  | G97: =IF(C97="","",VLOOKUP(C97,'R-муж'!C:E,3,FALSE)) ->  | J97: Жетысуская обл. | Q97: 19 | R97: 91 | S97: 95 | T97: 91-95 | V97: =IF(C97="","",SUMIF('R-муж0'!C:C,C97,'R-муж0'!B:B)) ->  | W97: =IF(C97="","",SUMIF('R-муж0'!C:C,C97,'R-муж0'!I:I)) ->  | X97: =IF(C97="","",SUMIF('R-муж'!C:C,C97,'R-муж'!B:B)) ->  | Y97: =IF(C97="","",SUMIF('R-муж'!C:C,C97,'R-муж'!I:I)) ->  | Z97: 0 | AA97: =SUMIF(Список!$C:$C,C97,Список!$U:$U) -> 0
A98: 94 | B98: 94 | D98: =IF(C98="","",VLOOKUP(C98,'R-муж'!C:E,2,FALSE)) ->  | G98: =IF(C98="","",VLOOKUP(C98,'R-муж'!C:E,3,FALSE)) ->  | J98: Жетысуская обл. | Q98: 19 | R98: 91 | S98: 95 | T98: 91-95 | V98: =IF(C98="","",SUMIF('R-муж0'!C:C,C98,'R-муж0'!B:B)) ->  | W98: =IF(C98="","",SUMIF('R-муж0'!C:C,C98,'R-муж0'!I:I)) ->  | X98: =IF(C98="","",SUMIF('R-муж'!C:C,C98,'R-муж'!B:B)) ->  | Y98: =IF(C98="","",SUMIF('R-муж'!C:C,C98,'R-муж'!I:I)) ->  | Z98: 0 | AA98: =SUMIF(Список!$C:$C,C98,Список!$U:$U) -> 0
A99: 95 | B99: 95 | D99: =IF(C99="","",VLOOKUP(C99,'R-муж'!C:E,2,FALSE)) ->  | G99: =IF(C99="","",VLOOKUP(C99,'R-муж'!C:E,3,FALSE)) ->  | J99: Жетысуская обл. | Q99: 19 | R99: 91 | S99: 95 | T99: 91-95 | V99: =IF(C99="","",SUMIF('R-муж0'!C:C,C99,'R-муж0'!B:B)) ->  | W99: =IF(C99="","",SUMIF('R-муж0'!C:C,C99,'R-муж0'!I:I)) ->  | X99: =IF(C99="","",SUMIF('R-муж'!C:C,C99,'R-муж'!B:B)) ->  | Y99: =IF(C99="","",SUMIF('R-муж'!C:C,C99,'R-муж'!I:I)) ->  | Z99: 0 | AA99: =SUMIF(Список!$C:$C,C99,Список!$U:$U) -> 0
A100: 96 | B100: 96 | D100: =IF(C100="","",VLOOKUP(C100,'R-муж'!C:E,2,FALSE)) ->  | G100: =IF(C100="","",VLOOKUP(C100,'R-муж'!C:E,3,FALSE)) ->  | I100: Улытауская обл. | J100: =I100 -> Улытауская обл. | K100: Абдигаппарова Г.Б. | P100: 20 | Q100: =P100 -> 20 | R100: 96 | S100: 100 | T100: 96-100 | U100: Улытауская область | V100: =IF(C100="","",SUMIF('R-муж0'!C:C,C100,'R-муж0'!B:B)) ->  | W100: =IF(C100="","",SUMIF('R-муж0'!C:C,C100,'R-муж0'!I:I)) ->  | X100: =IF(C100="","",SUMIF('R-муж'!C:C,C100,'R-муж'!B:B)) ->  | Y100: =IF(C100="","",SUMIF('R-муж'!C:C,C100,'R-муж'!I:I)) ->  | Z100: =L100 -> 0 | AA100: =SUMIF(Список!$C:$C,C100,Список!$U:$U) -> 0
A101: 97 | B101: 97 | D101: =IF(C101="","",VLOOKUP(C101,'R-муж'!C:E,2,FALSE)) ->  | G101: =IF(C101="","",VLOOKUP(C101,'R-муж'!C:E,3,FALSE)) ->  | J101: =J100 -> Улытауская обл. | Q101: 20 | R101: 96 | S101: 100 | T101: 96-100 | V101: =IF(C101="","",SUMIF('R-муж0'!C:C,C101,'R-муж0'!B:B)) ->  | W101: =IF(C101="","",SUMIF('R-муж0'!C:C,C101,'R-муж0'!I:I)) ->  | X101: =IF(C101="","",SUMIF('R-муж'!C:C,C101,'R-муж'!B:B)) ->  | Y101: =IF(C101="","",SUMIF('R-муж'!C:C,C101,'R-муж'!I:I)) ->  | Z101: 0 | AA101: =SUMIF(Список!$C:$C,C101,Список!$U:$U) -> 0
A102: 98 | B102: 98 | D102: =IF(C102="","",VLOOKUP(C102,'R-муж'!C:E,2,FALSE)) ->  | G102: =IF(C102="","",VLOOKUP(C102,'R-муж'!C:E,3,FALSE)) ->  | J102: Улытауская обл. | Q102: 20 | R102: 96 | S102: 100 | T102: 96-100 | V102: =IF(C102="","",SUMIF('R-муж0'!C:C,C102,'R-муж0'!B:B)) ->  | W102: =IF(C102="","",SUMIF('R-муж0'!C:C,C102,'R-муж0'!I:I)) ->  | X102: =IF(C102="","",SUMIF('R-муж'!C:C,C102,'R-муж'!B:B)) ->  | Y102: =IF(C102="","",SUMIF('R-муж'!C:C,C102,'R-муж'!I:I)) ->  | Z102: 0 | AA102: =SUMIF(Список!$C:$C,C102,Список!$U:$U) -> 0
A103: 99 | B103: 99 | D103: =IF(C103="","",VLOOKUP(C103,'R-муж'!C:E,2,FALSE)) ->  | G103: =IF(C103="","",VLOOKUP(C103,'R-муж'!C:E,3,FALSE)) ->  | J103: Улытауская обл. | Q103: 20 | R103: 96 | S103: 100 | T103: 96-100 | V103: =IF(C103="","",SUMIF('R-муж0'!C:C,C103,'R-муж0'!B:B)) ->  | W103: =IF(C103="","",SUMIF('R-муж0'!C:C,C103,'R-муж0'!I:I)) ->  | X103: =IF(C103="","",SUMIF('R-муж'!C:C,C103,'R-муж'!B:B)) ->  | Y103: =IF(C103="","",SUMIF('R-муж'!C:C,C103,'R-муж'!I:I)) ->  | Z103: 0 | AA103: =SUMIF(Список!$C:$C,C103,Список!$U:$U) -> 0
A104: 100 | B104: 100 | D104: =IF(C104="","",VLOOKUP(C104,'R-муж'!C:E,2,FALSE)) ->  | G104: =IF(C104="","",VLOOKUP(C104,'R-муж'!C:E,3,FALSE)) ->  | J104: Улытауская обл. | Q104: 20 | R104: 96 | S104: 100 | T104: 96-100 | V104: =IF(C104="","",SUMIF('R-муж0'!C:C,C104,'R-муж0'!B:B)) ->  | W104: =IF(C104="","",SUMIF('R-муж0'!C:C,C104,'R-муж0'!I:I)) ->  | X104: =IF(C104="","",SUMIF('R-муж'!C:C,C104,'R-муж'!B:B)) ->  | Y104: =IF(C104="","",SUMIF('R-муж'!C:C,C104,'R-муж'!I:I)) ->  | Z104: 0 | AA104: =SUMIF(Список!$C:$C,C104,Список!$U:$U) -> 0
A105: 101 | B105: 101 | D105: =IF(C105="","",VLOOKUP(C105,'R-муж'!C:E,2,FALSE)) ->  | G105: =IF(C105="","",VLOOKUP(C105,'R-муж'!C:E,3,FALSE)) ->  | J105: =I105 -> 0 | P105: 21 | Q105: =P105 -> 21 | R105: 101 | S105: 105 | T105: 101-105 | U105: Карагандинская обл.-2 | V105: =IF(C105="","",SUMIF('R-муж0'!C:C,C105,'R-муж0'!B:B)) ->  | W105: =IF(C105="","",SUMIF('R-муж0'!C:C,C105,'R-муж0'!I:I)) ->  | X105: =IF(C105="","",SUMIF('R-муж'!C:C,C105,'R-муж'!B:B)) ->  | Y105: =IF(C105="","",SUMIF('R-муж'!C:C,C105,'R-муж'!I:I)) ->  | Z105: =L105 -> 0 | AA105: =SUMIF(Список!$C:$C,C105,Список!$U:$U) -> 0
A106: 102 | B106: 102 | D106: =IF(C106="","",VLOOKUP(C106,'R-муж'!C:E,2,FALSE)) ->  | G106: =IF(C106="","",VLOOKUP(C106,'R-муж'!C:E,3,FALSE)) ->  | J106: =J105 -> 0 | Q106: 21 | R106: 101 | S106: 105 | T106: 101-105 | V106: =IF(C106="","",SUMIF('R-муж0'!C:C,C106,'R-муж0'!B:B)) ->  | W106: =IF(C106="","",SUMIF('R-муж0'!C:C,C106,'R-муж0'!I:I)) ->  | X106: =IF(C106="","",SUMIF('R-муж'!C:C,C106,'R-муж'!B:B)) ->  | Y106: =IF(C106="","",SUMIF('R-муж'!C:C,C106,'R-муж'!I:I)) ->  | Z106: 0 | AA106: =SUMIF(Список!$C:$C,C106,Список!$U:$U) -> 0
A107: 103 | B107: 103 | D107: =IF(C107="","",VLOOKUP(C107,'R-муж'!C:E,2,FALSE)) ->  | G107: =IF(C107="","",VLOOKUP(C107,'R-муж'!C:E,3,FALSE)) ->  | J107: 0 | Q107: 21 | R107: 101 | S107: 105 | T107: 101-105 | V107: =IF(C107="","",SUMIF('R-муж0'!C:C,C107,'R-муж0'!B:B)) ->  | W107: =IF(C107="","",SUMIF('R-муж0'!C:C,C107,'R-муж0'!I:I)) ->  | X107: =IF(C107="","",SUMIF('R-муж'!C:C,C107,'R-муж'!B:B)) ->  | Y107: =IF(C107="","",SUMIF('R-муж'!C:C,C107,'R-муж'!I:I)) ->  | Z107: 0 | AA107: =SUMIF(Список!$C:$C,C107,Список!$U:$U) -> 0
A108: 104 | B108: 104 | D108: =IF(C108="","",VLOOKUP(C108,'R-муж'!C:E,2,FALSE)) ->  | G108: =IF(C108="","",VLOOKUP(C108,'R-муж'!C:E,3,FALSE)) ->  | J108: 0 | Q108: 21 | R108: 101 | S108: 105 | T108: 101-105 | V108: =IF(C108="","",SUMIF('R-муж0'!C:C,C108,'R-муж0'!B:B)) ->  | W108: =IF(C108="","",SUMIF('R-муж0'!C:C,C108,'R-муж0'!I:I)) ->  | X108: =IF(C108="","",SUMIF('R-муж'!C:C,C108,'R-муж'!B:B)) ->  | Y108: =IF(C108="","",SUMIF('R-муж'!C:C,C108,'R-муж'!I:I)) ->  | Z108: 0 | AA108: =SUMIF(Список!$C:$C,C108,Список!$U:$U) -> 0
A109: 105 | B109: 105 | D109: =IF(C109="","",VLOOKUP(C109,'R-муж'!C:E,2,FALSE)) ->  | G109: =IF(C109="","",VLOOKUP(C109,'R-муж'!C:E,3,FALSE)) ->  | J109: 0 | Q109: 21 | R109: 101 | S109: 105 | T109: 101-105 | V109: =IF(C109="","",SUMIF('R-муж0'!C:C,C109,'R-муж0'!B:B)) ->  | W109: =IF(C109="","",SUMIF('R-муж0'!C:C,C109,'R-муж0'!I:I)) ->  | X109: =IF(C109="","",SUMIF('R-муж'!C:C,C109,'R-муж'!B:B)) ->  | Y109: =IF(C109="","",SUMIF('R-муж'!C:C,C109,'R-муж'!I:I)) ->  | Z109: 0 | AA109: =SUMIF(Список!$C:$C,C109,Список!$U:$U) -> 0
A110: 106 | B110: 106 | D110: =IF(C110="","",VLOOKUP(C110,'R-муж'!C:E,2,FALSE)) ->  | F110: =IF(X110=0,V110,X110) ->  | G110: =IF(C110="","",VLOOKUP(C110,'R-муж'!C:E,3,FALSE)) ->  | J110: =I110 -> 0 | M110: =MID(C110,1,SEARCH(" ",C110)-1) ->  | N110: =MID(C110,SEARCH(" ",C110)+1,1) ->  | O110: =CONCATENATE(M110," ",N110,".") ->  | P110: 22 | Q110: =P110 -> 22 | R110: =Q110*5-4 -> 106 | S110: =Q110*5 -> 110 | T110: =CONCATENATE(R110,"-",S110) -> 106-110 | V110: =IF(C110="","",SUMIF('R-муж0'!C:C,C110,'R-муж0'!B:B)) ->  | W110: =IF(C110="","",SUMIF('R-муж0'!C:C,C110,'R-муж0'!I:I)) ->  | X110: =IF(C110="","",SUMIF('R-муж'!C:C,C110,'R-муж'!B:B)) ->  | Y110: =IF(C110="","",SUMIF('R-муж'!C:C,C110,'R-муж'!I:I)) ->  | Z110: =L110 -> 0 | AA110: =SUMIF(Список!$C:$C,C110,Список!$U:$U) -> 0 | AD110: =PROPER(M110) ->  | AE110: =MID(C110,SEARCH(" ",C110)+1,15) ->  | AF110: =CONCATENATE(AD110," ",AE110," ",AB110) -> 
A111: 107 | B111: 107 | D111: =IF(C111="","",VLOOKUP(C111,'R-муж'!C:E,2,FALSE)) ->  | G111: =IF(C111="","",VLOOKUP(C111,'R-муж'!C:E,3,FALSE)) ->  | J111: =J110 -> 0 | Q111: 22 | R111: 106 | S111: 110 | T111: 106-110 | V111: =IF(C111="","",SUMIF('R-муж0'!C:C,C111,'R-муж0'!B:B)) ->  | W111: =IF(C111="","",SUMIF('R-муж0'!C:C,C111,'R-муж0'!I:I)) ->  | X111: =IF(C111="","",SUMIF('R-муж'!C:C,C111,'R-муж'!B:B)) ->  | Y111: =IF(C111="","",SUMIF('R-муж'!C:C,C111,'R-муж'!I:I)) ->  | Z111: 0 | AA111: =SUMIF(Список!$C:$C,C111,Список!$U:$U) -> 0
A112: 108 | B112: 108 | D112: =IF(C112="","",VLOOKUP(C112,'R-муж'!C:E,2,FALSE)) ->  | G112: =IF(C112="","",VLOOKUP(C112,'R-муж'!C:E,3,FALSE)) ->  | J112: 0 | Q112: 22 | R112: 106 | S112: 110 | T112: 106-110 | V112: =IF(C112="","",SUMIF('R-муж0'!C:C,C112,'R-муж0'!B:B)) ->  | W112: =IF(C112="","",SUMIF('R-муж0'!C:C,C112,'R-муж0'!I:I)) ->  | X112: =IF(C112="","",SUMIF('R-муж'!C:C,C112,'R-муж'!B:B)) ->  | Y112: =IF(C112="","",SUMIF('R-муж'!C:C,C112,'R-муж'!I:I)) ->  | Z112: 0 | AA112: =SUMIF(Список!$C:$C,C112,Список!$U:$U) -> 0
A113: 109 | B113: 109 | D113: =IF(C113="","",VLOOKUP(C113,'R-муж'!C:E,2,FALSE)) ->  | G113: =IF(C113="","",VLOOKUP(C113,'R-муж'!C:E,3,FALSE)) ->  | J113: 0 | Q113: 22 | R113: 106 | S113: 110 | T113: 106-110 | V113: =IF(C113="","",SUMIF('R-муж0'!C:C,C113,'R-муж0'!B:B)) ->  | W113: =IF(C113="","",SUMIF('R-муж0'!C:C,C113,'R-муж0'!I:I)) ->  | X113: =IF(C113="","",SUMIF('R-муж'!C:C,C113,'R-муж'!B:B)) ->  | Y113: =IF(C113="","",SUMIF('R-муж'!C:C,C113,'R-муж'!I:I)) ->  | Z113: 0 | AA113: =SUMIF(Список!$C:$C,C113,Список!$U:$U) -> 0
A114: 110 | B114: 110 | D114: =IF(C114="","",VLOOKUP(C114,'R-муж'!C:E,2,FALSE)) ->  | G114: =IF(C114="","",VLOOKUP(C114,'R-муж'!C:E,3,FALSE)) ->  | J114: 0 | Q114: 22 | R114: 106 | S114: 110 | T114: 106-110 | V114: =IF(C114="","",SUMIF('R-муж0'!C:C,C114,'R-муж0'!B:B)) ->  | W114: =IF(C114="","",SUMIF('R-муж0'!C:C,C114,'R-муж0'!I:I)) ->  | X114: =IF(C114="","",SUMIF('R-муж'!C:C,C114,'R-муж'!B:B)) ->  | Y114: =IF(C114="","",SUMIF('R-муж'!C:C,C114,'R-муж'!I:I)) ->  | Z114: 0 | AA114: =SUMIF(Список!$C:$C,C114,Список!$U:$U) -> 0
A115: 111 | B115: 111 | D115: =IF(C115="","",VLOOKUP(C115,'R-муж'!C:E,2,FALSE)) ->  | G115: =IF(C115="","",VLOOKUP(C115,'R-муж'!C:E,3,FALSE)) ->  | I115: Личники | J115: =I115 -> Личники | P115: 23 | Q115: =P115 -> 23 | R115: 111 | S115: 115 | T115: 111-115 | V115: =IF(C115="","",SUMIF('R-муж0'!C:C,C115,'R-муж0'!B:B)) ->  | W115: =IF(C115="","",SUMIF('R-муж0'!C:C,C115,'R-муж0'!I:I)) ->  | X115: =IF(C115="","",SUMIF('R-муж'!C:C,C115,'R-муж'!B:B)) ->  | Y115: =IF(C115="","",SUMIF('R-муж'!C:C,C115,'R-муж'!I:I)) ->  | Z115: =L115 -> 0 | AA115: =SUMIF(Список!$C:$C,C115,Список!$U:$U) -> 0
A116: 112 | B116: 112 | D116: =IF(C116="","",VLOOKUP(C116,'R-муж'!C:E,2,FALSE)) ->  | G116: =IF(C116="","",VLOOKUP(C116,'R-муж'!C:E,3,FALSE)) ->  | J116: Личники | Q116: 23 | R116: 111 | S116: 115 | T116: 111-115 | V116: =IF(C116="","",SUMIF('R-муж0'!C:C,C116,'R-муж0'!B:B)) ->  | W116: =IF(C116="","",SUMIF('R-муж0'!C:C,C116,'R-муж0'!I:I)) ->  | X116: =IF(C116="","",SUMIF('R-муж'!C:C,C116,'R-муж'!B:B)) ->  | Y116: =IF(C116="","",SUMIF('R-муж'!C:C,C116,'R-муж'!I:I)) ->  | Z116: 0 | AA116: =SUMIF(Список!$C:$C,C116,Список!$U:$U) -> 0
A117: 113 | B117: 113 | D117: =IF(C117="","",VLOOKUP(C117,'R-муж'!C:E,2,FALSE)) ->  | G117: =IF(C117="","",VLOOKUP(C117,'R-муж'!C:E,3,FALSE)) ->  | J117: Личники | Q117: 23 | R117: 111 | S117: 115 | T117: 111-115 | V117: =IF(C117="","",SUMIF('R-муж0'!C:C,C117,'R-муж0'!B:B)) ->  | W117: =IF(C117="","",SUMIF('R-муж0'!C:C,C117,'R-муж0'!I:I)) ->  | X117: =IF(C117="","",SUMIF('R-муж'!C:C,C117,'R-муж'!B:B)) ->  | Y117: =IF(C117="","",SUMIF('R-муж'!C:C,C117,'R-муж'!I:I)) ->  | Z117: 0 | AA117: =SUMIF(Список!$C:$C,C117,Список!$U:$U) -> 0
A118: 114 | B118: 114 | D118: =IF(C118="","",VLOOKUP(C118,'R-муж'!C:E,2,FALSE)) ->  | G118: =IF(C118="","",VLOOKUP(C118,'R-муж'!C:E,3,FALSE)) ->  | J118: Личники | Q118: 23 | R118: 111 | S118: 115 | T118: 111-115 | V118: =IF(C118="","",SUMIF('R-муж0'!C:C,C118,'R-муж0'!B:B)) ->  | W118: =IF(C118="","",SUMIF('R-муж0'!C:C,C118,'R-муж0'!I:I)) ->  | X118: =IF(C118="","",SUMIF('R-муж'!C:C,C118,'R-муж'!B:B)) ->  | Y118: =IF(C118="","",SUMIF('R-муж'!C:C,C118,'R-муж'!I:I)) ->  | Z118: 0 | AA118: =SUMIF(Список!$C:$C,C118,Список!$U:$U) -> 0
A119: 115 | B119: 115 | D119: =IF(C119="","",VLOOKUP(C119,'R-муж'!C:E,2,FALSE)) ->  | G119: =IF(C119="","",VLOOKUP(C119,'R-муж'!C:E,3,FALSE)) ->  | J119: Личники | Q119: 23 | R119: 111 | S119: 115 | T119: 111-115 | V119: =IF(C119="","",SUMIF('R-муж0'!C:C,C119,'R-муж0'!B:B)) ->  | W119: =IF(C119="","",SUMIF('R-муж0'!C:C,C119,'R-муж0'!I:I)) ->  | X119: =IF(C119="","",SUMIF('R-муж'!C:C,C119,'R-муж'!B:B)) ->  | Y119: =IF(C119="","",SUMIF('R-муж'!C:C,C119,'R-муж'!I:I)) ->  | Z119: 0 | AA119: =SUMIF(Список!$C:$C,C119,Список!$U:$U) -> 0
A120: 116 | B120: 116 | D120: =IF(C120="","",VLOOKUP(C120,'R-муж'!C:E,2,FALSE)) ->  | G120: =IF(C120="","",VLOOKUP(C120,'R-муж'!C:E,3,FALSE)) ->  | J120: =I120 -> 0 | P120: 24 | Q120: =P120 -> 24 | R120: 116 | S120: 120 | T120: 116-120 | V120: =IF(C120="","",SUMIF('R-муж0'!C:C,C120,'R-муж0'!B:B)) ->  | W120: =IF(C120="","",SUMIF('R-муж0'!C:C,C120,'R-муж0'!I:I)) ->  | X120: =IF(C120="","",SUMIF('R-муж'!C:C,C120,'R-муж'!B:B)) ->  | Y120: =IF(C120="","",SUMIF('R-муж'!C:C,C120,'R-муж'!I:I)) ->  | Z120: =L120 -> 0 | AA120: =SUMIF(Список!$C:$C,C120,Список!$U:$U) -> 0
A121: 117 | B121: 117 | D121: =IF(C121="","",VLOOKUP(C121,'R-муж'!C:E,2,FALSE)) ->  | G121: =IF(C121="","",VLOOKUP(C121,'R-муж'!C:E,3,FALSE)) ->  | J121: 0 | Q121: 24 | R121: 116 | S121: 120 | T121: 116-120 | V121: =IF(C121="","",SUMIF('R-муж0'!C:C,C121,'R-муж0'!B:B)) ->  | W121: =IF(C121="","",SUMIF('R-муж0'!C:C,C121,'R-муж0'!I:I)) ->  | X121: =IF(C121="","",SUMIF('R-муж'!C:C,C121,'R-муж'!B:B)) ->  | Y121: =IF(C121="","",SUMIF('R-муж'!C:C,C121,'R-муж'!I:I)) ->  | Z121: 0 | AA121: =SUMIF(Список!$C:$C,C121,Список!$U:$U) -> 0
A122: 118 | B122: 118 | D122: =IF(C122="","",VLOOKUP(C122,'R-муж'!C:E,2,FALSE)) ->  | G122: =IF(C122="","",VLOOKUP(C122,'R-муж'!C:E,3,FALSE)) ->  | J122: 0 | Q122: 24 | R122: 116 | S122: 120 | T122: 116-120 | V122: =IF(C122="","",SUMIF('R-муж0'!C:C,C122,'R-муж0'!B:B)) ->  | W122: =IF(C122="","",SUMIF('R-муж0'!C:C,C122,'R-муж0'!I:I)) ->  | X122: =IF(C122="","",SUMIF('R-муж'!C:C,C122,'R-муж'!B:B)) ->  | Y122: =IF(C122="","",SUMIF('R-муж'!C:C,C122,'R-муж'!I:I)) ->  | Z122: 0 | AA122: =SUMIF(Список!$C:$C,C122,Список!$U:$U) -> 0
A123: 119 | B123: 119 | D123: =IF(C123="","",VLOOKUP(C123,'R-муж'!C:E,2,FALSE)) ->  | G123: =IF(C123="","",VLOOKUP(C123,'R-муж'!C:E,3,FALSE)) ->  | J123: 0 | Q123: 24 | R123: 116 | S123: 120 | T123: 116-120 | V123: =IF(C123="","",SUMIF('R-муж0'!C:C,C123,'R-муж0'!B:B)) ->  | W123: =IF(C123="","",SUMIF('R-муж0'!C:C,C123,'R-муж0'!I:I)) ->  | X123: =IF(C123="","",SUMIF('R-муж'!C:C,C123,'R-муж'!B:B)) ->  | Y123: =IF(C123="","",SUMIF('R-муж'!C:C,C123,'R-муж'!I:I)) ->  | Z123: 0 | AA123: =SUMIF(Список!$C:$C,C123,Список!$U:$U) -> 0
A124: 120 | B124: 120 | D124: =IF(C124="","",VLOOKUP(C124,'R-муж'!C:E,2,FALSE)) ->  | G124: =IF(C124="","",VLOOKUP(C124,'R-муж'!C:E,3,FALSE)) ->  | J124: 0 | Q124: 24 | R124: 116 | S124: 120 | T124: 116-120 | V124: =IF(C124="","",SUMIF('R-муж0'!C:C,C124,'R-муж0'!B:B)) ->  | W124: =IF(C124="","",SUMIF('R-муж0'!C:C,C124,'R-муж0'!I:I)) ->  | X124: =IF(C124="","",SUMIF('R-муж'!C:C,C124,'R-муж'!B:B)) ->  | Y124: =IF(C124="","",SUMIF('R-муж'!C:C,C124,'R-муж'!I:I)) ->  | Z124: 0 | AA124: =SUMIF(Список!$C:$C,C124,Список!$U:$U) -> 0
A125: 121 | B125: 121 | D125: =IF(C125="","",VLOOKUP(C125,'R-муж'!C:E,2,FALSE)) ->  | G125: =IF(C125="","",VLOOKUP(C125,'R-муж'!C:E,3,FALSE)) ->  | J125: =I125 -> 0 | P125: 25 | Q125: =P125 -> 25 | R125: 121 | S125: 125 | T125: 121-125 | V125: =IF(C125="","",SUMIF('R-муж0'!C:C,C125,'R-муж0'!B:B)) ->  | W125: =IF(C125="","",SUMIF('R-муж0'!C:C,C125,'R-муж0'!I:I)) ->  | X125: =IF(C125="","",SUMIF('R-муж'!C:C,C125,'R-муж'!B:B)) ->  | Y125: =IF(C125="","",SUMIF('R-муж'!C:C,C125,'R-муж'!I:I)) ->  | Z125: =L125 -> 0 | AA125: =SUMIF(Список!$C:$C,C125,Список!$U:$U) -> 0
A126: 122 | B126: 122 | D126: =IF(C126="","",VLOOKUP(C126,'R-муж'!C:E,2,FALSE)) ->  | G126: =IF(C126="","",VLOOKUP(C126,'R-муж'!C:E,3,FALSE)) ->  | J126: 0 | Q126: 25 | R126: 121 | S126: 125 | T126: 121-125 | V126: =IF(C126="","",SUMIF('R-муж0'!C:C,C126,'R-муж0'!B:B)) ->  | W126: =IF(C126="","",SUMIF('R-муж0'!C:C,C126,'R-муж0'!I:I)) ->  | X126: =IF(C126="","",SUMIF('R-муж'!C:C,C126,'R-муж'!B:B)) ->  | Y126: =IF(C126="","",SUMIF('R-муж'!C:C,C126,'R-муж'!I:I)) ->  | Z126: 0 | AA126: =SUMIF(Список!$C:$C,C126,Список!$U:$U) -> 0
A127: 123 | B127: 123 | D127: =IF(C127="","",VLOOKUP(C127,'R-муж'!C:E,2,FALSE)) ->  | G127: =IF(C127="","",VLOOKUP(C127,'R-муж'!C:E,3,FALSE)) ->  | J127: 0 | Q127: 25 | R127: 121 | S127: 125 | T127: 121-125 | V127: =IF(C127="","",SUMIF('R-муж0'!C:C,C127,'R-муж0'!B:B)) ->  | W127: =IF(C127="","",SUMIF('R-муж0'!C:C,C127,'R-муж0'!I:I)) ->  | X127: =IF(C127="","",SUMIF('R-муж'!C:C,C127,'R-муж'!B:B)) ->  | Y127: =IF(C127="","",SUMIF('R-муж'!C:C,C127,'R-муж'!I:I)) ->  | Z127: 0 | AA127: =SUMIF(Список!$C:$C,C127,Список!$U:$U) -> 0
A128: 124 | B128: 124 | D128: =IF(C128="","",VLOOKUP(C128,'R-муж'!C:E,2,FALSE)) ->  | G128: =IF(C128="","",VLOOKUP(C128,'R-муж'!C:E,3,FALSE)) ->  | J128: 0 | Q128: 25 | R128: 121 | S128: 125 | T128: 121-125 | V128: =IF(C128="","",SUMIF('R-муж0'!C:C,C128,'R-муж0'!B:B)) ->  | W128: =IF(C128="","",SUMIF('R-муж0'!C:C,C128,'R-муж0'!I:I)) ->  | X128: =IF(C128="","",SUMIF('R-муж'!C:C,C128,'R-муж'!B:B)) ->  | Y128: =IF(C128="","",SUMIF('R-муж'!C:C,C128,'R-муж'!I:I)) ->  | Z128: 0 | AA128: =SUMIF(Список!$C:$C,C128,Список!$U:$U) -> 0
A129: 125 | B129: 125 | D129: =IF(C129="","",VLOOKUP(C129,'R-муж'!C:E,2,FALSE)) ->  | G129: =IF(C129="","",VLOOKUP(C129,'R-муж'!C:E,3,FALSE)) ->  | J129: 0 | Q129: 25 | R129: 121 | S129: 125 | T129: 121-125 | V129: =IF(C129="","",SUMIF('R-муж0'!C:C,C129,'R-муж0'!B:B)) ->  | W129: =IF(C129="","",SUMIF('R-муж0'!C:C,C129,'R-муж0'!I:I)) ->  | X129: =IF(C129="","",SUMIF('R-муж'!C:C,C129,'R-муж'!B:B)) ->  | Y129: =IF(C129="","",SUMIF('R-муж'!C:C,C129,'R-муж'!I:I)) ->  | Z129: 0 | AA129: =SUMIF(Список!$C:$C,C129,Список!$U:$U) -> 0
A130: 126 | B130: 126 | D130: =IF(C130="","",VLOOKUP(C130,'R-муж'!C:E,2,FALSE)) ->  | G130: =IF(C130="","",VLOOKUP(C130,'R-муж'!C:E,3,FALSE)) ->  | J130: =I130 -> 0 | P130: 26 | Q130: =P130 -> 26 | R130: 126 | S130: 130 | T130: 126-130 | V130: =IF(C130="","",SUMIF('R-муж0'!C:C,C130,'R-муж0'!B:B)) ->  | W130: =IF(C130="","",SUMIF('R-муж0'!C:C,C130,'R-муж0'!I:I)) ->  | X130: =IF(C130="","",SUMIF('R-муж'!C:C,C130,'R-муж'!B:B)) ->  | Y130: =IF(C130="","",SUMIF('R-муж'!C:C,C130,'R-муж'!I:I)) ->  | Z130: =L130 -> 0 | AA130: =SUMIF(Список!$C:$C,C130,Список!$U:$U) -> 0
A131: 127 | B131: 127 | D131: =IF(C131="","",VLOOKUP(C131,'R-муж'!C:E,2,FALSE)) ->  | G131: =IF(C131="","",VLOOKUP(C131,'R-муж'!C:E,3,FALSE)) ->  | J131: 0 | Q131: 26 | R131: 126 | S131: 130 | T131: 126-130 | V131: =IF(C131="","",SUMIF('R-муж0'!C:C,C131,'R-муж0'!B:B)) ->  | W131: =IF(C131="","",SUMIF('R-муж0'!C:C,C131,'R-муж0'!I:I)) ->  | X131: =IF(C131="","",SUMIF('R-муж'!C:C,C131,'R-муж'!B:B)) ->  | Y131: =IF(C131="","",SUMIF('R-муж'!C:C,C131,'R-муж'!I:I)) ->  | Z131: 0 | AA131: =SUMIF(Список!$C:$C,C131,Список!$U:$U) -> 0
A132: 128 | B132: 128 | D132: =IF(C132="","",VLOOKUP(C132,'R-муж'!C:E,2,FALSE)) ->  | G132: =IF(C132="","",VLOOKUP(C132,'R-муж'!C:E,3,FALSE)) ->  | J132: 0 | Q132: 26 | R132: 126 | S132: 130 | T132: 126-130 | V132: =IF(C132="","",SUMIF('R-муж0'!C:C,C132,'R-муж0'!B:B)) ->  | W132: =IF(C132="","",SUMIF('R-муж0'!C:C,C132,'R-муж0'!I:I)) ->  | X132: =IF(C132="","",SUMIF('R-муж'!C:C,C132,'R-муж'!B:B)) ->  | Y132: =IF(C132="","",SUMIF('R-муж'!C:C,C132,'R-муж'!I:I)) ->  | Z132: 0 | AA132: =SUMIF(Список!$C:$C,C132,Список!$U:$U) -> 0
A133: 129 | B133: 129 | D133: =IF(C133="","",VLOOKUP(C133,'R-муж'!C:E,2,FALSE)) ->  | G133: =IF(C133="","",VLOOKUP(C133,'R-муж'!C:E,3,FALSE)) ->  | J133: 0 | Q133: 26 | R133: 126 | S133: 130 | T133: 126-130 | V133: =IF(C133="","",SUMIF('R-муж0'!C:C,C133,'R-муж0'!B:B)) ->  | W133: =IF(C133="","",SUMIF('R-муж0'!C:C,C133,'R-муж0'!I:I)) ->  | X133: =IF(C133="","",SUMIF('R-муж'!C:C,C133,'R-муж'!B:B)) ->  | Y133: =IF(C133="","",SUMIF('R-муж'!C:C,C133,'R-муж'!I:I)) ->  | Z133: 0 | AA133: =SUMIF(Список!$C:$C,C133,Список!$U:$U) -> 0
A134: 130 | B134: 130 | D134: =IF(C134="","",VLOOKUP(C134,'R-муж'!C:E,2,FALSE)) ->  | G134: =IF(C134="","",VLOOKUP(C134,'R-муж'!C:E,3,FALSE)) ->  | J134: 0 | Q134: 26 | R134: 126 | S134: 130 | T134: 126-130 | V134: =IF(C134="","",SUMIF('R-муж0'!C:C,C134,'R-муж0'!B:B)) ->  | W134: =IF(C134="","",SUMIF('R-муж0'!C:C,C134,'R-муж0'!I:I)) ->  | X134: =IF(C134="","",SUMIF('R-муж'!C:C,C134,'R-муж'!B:B)) ->  | Y134: =IF(C134="","",SUMIF('R-муж'!C:C,C134,'R-муж'!I:I)) ->  | Z134: 0 | AA134: =SUMIF(Список!$C:$C,C134,Список!$U:$U) -> 0
A135: 131 | B135: 131 | D135: =IF(C135="","",VLOOKUP(C135,'R-муж'!C:E,2,FALSE)) ->  | G135: =IF(C135="","",VLOOKUP(C135,'R-муж'!C:E,3,FALSE)) ->  | J135: =I135 -> 0 | P135: 27 | Q135: =P135 -> 27 | R135: 131 | S135: 135 | T135: 131-135 | V135: =IF(C135="","",SUMIF('R-муж0'!C:C,C135,'R-муж0'!B:B)) ->  | W135: =IF(C135="","",SUMIF('R-муж0'!C:C,C135,'R-муж0'!I:I)) ->  | X135: =IF(C135="","",SUMIF('R-муж'!C:C,C135,'R-муж'!B:B)) ->  | Y135: =IF(C135="","",SUMIF('R-муж'!C:C,C135,'R-муж'!I:I)) ->  | Z135: =L135 -> 0 | AA135: =SUMIF(Список!$C:$C,C135,Список!$U:$U) -> 0
A136: 132 | B136: 132 | D136: =IF(C136="","",VLOOKUP(C136,'R-муж'!C:E,2,FALSE)) ->  | G136: =IF(C136="","",VLOOKUP(C136,'R-муж'!C:E,3,FALSE)) ->  | J136: 0 | Q136: 27 | R136: 131 | S136: 135 | T136: 131-135 | V136: =IF(C136="","",SUMIF('R-муж0'!C:C,C136,'R-муж0'!B:B)) ->  | W136: =IF(C136="","",SUMIF('R-муж0'!C:C,C136,'R-муж0'!I:I)) ->  | X136: =IF(C136="","",SUMIF('R-муж'!C:C,C136,'R-муж'!B:B)) ->  | Y136: =IF(C136="","",SUMIF('R-муж'!C:C,C136,'R-муж'!I:I)) ->  | Z136: 0 | AA136: =SUMIF(Список!$C:$C,C136,Список!$U:$U) -> 0
A137: 133 | B137: 133 | D137: =IF(C137="","",VLOOKUP(C137,'R-муж'!C:E,2,FALSE)) ->  | G137: =IF(C137="","",VLOOKUP(C137,'R-муж'!C:E,3,FALSE)) ->  | J137: 0 | Q137: 27 | R137: 131 | S137: 135 | T137: 131-135 | V137: =IF(C137="","",SUMIF('R-муж0'!C:C,C137,'R-муж0'!B:B)) ->  | W137: =IF(C137="","",SUMIF('R-муж0'!C:C,C137,'R-муж0'!I:I)) ->  | X137: =IF(C137="","",SUMIF('R-муж'!C:C,C137,'R-муж'!B:B)) ->  | Y137: =IF(C137="","",SUMIF('R-муж'!C:C,C137,'R-муж'!I:I)) ->  | Z137: 0 | AA137: =SUMIF(Список!$C:$C,C137,Список!$U:$U) -> 0
A138: 134 | B138: 134 | D138: =IF(C138="","",VLOOKUP(C138,'R-муж'!C:E,2,FALSE)) ->  | G138: =IF(C138="","",VLOOKUP(C138,'R-муж'!C:E,3,FALSE)) ->  | J138: 0 | Q138: 27 | R138: 131 | S138: 135 | T138: 131-135 | V138: =IF(C138="","",SUMIF('R-муж0'!C:C,C138,'R-муж0'!B:B)) ->  | W138: =IF(C138="","",SUMIF('R-муж0'!C:C,C138,'R-муж0'!I:I)) ->  | X138: =IF(C138="","",SUMIF('R-муж'!C:C,C138,'R-муж'!B:B)) ->  | Y138: =IF(C138="","",SUMIF('R-муж'!C:C,C138,'R-муж'!I:I)) ->  | Z138: 0 | AA138: =SUMIF(Список!$C:$C,C138,Список!$U:$U) -> 0
A139: 135 | B139: 135 | D139: =IF(C139="","",VLOOKUP(C139,'R-муж'!C:E,2,FALSE)) ->  | G139: =IF(C139="","",VLOOKUP(C139,'R-муж'!C:E,3,FALSE)) ->  | J139: 0 | Q139: 27 | R139: 131 | S139: 135 | T139: 131-135 | V139: =IF(C139="","",SUMIF('R-муж0'!C:C,C139,'R-муж0'!B:B)) ->  | W139: =IF(C139="","",SUMIF('R-муж0'!C:C,C139,'R-муж0'!I:I)) ->  | X139: =IF(C139="","",SUMIF('R-муж'!C:C,C139,'R-муж'!B:B)) ->  | Y139: =IF(C139="","",SUMIF('R-муж'!C:C,C139,'R-муж'!I:I)) ->  | Z139: 0 | AA139: =SUMIF(Список!$C:$C,C139,Список!$U:$U) -> 0
A140: 136 | B140: 136 | D140: =IF(C140="","",VLOOKUP(C140,'R-муж'!C:E,2,FALSE)) ->  | F140: =IF(X140=0,V140,X140) ->  | G140: =IF(C140="","",VLOOKUP(C140,'R-муж'!C:E,3,FALSE)) ->  | J140: =I140 -> 0 | M140: =MID(C140,1,SEARCH(" ",C140)-1) ->  | N140: =MID(C140,SEARCH(" ",C140)+1,1) ->  | O140: =CONCATENATE(M140," ",N140,".") ->  | P140: 28 | Q140: =P140 -> 28 | R140: =Q140*5-4 -> 136 | S140: =Q140*5 -> 140 | T140: =CONCATENATE(R140,"-",S140) -> 136-140 | V140: =IF(C140="","",SUMIF('R-муж0'!C:C,C140,'R-муж0'!B:B)) ->  | W140: =IF(C140="","",SUMIF('R-муж0'!C:C,C140,'R-муж0'!I:I)) ->  | X140: =IF(C140="","",SUMIF('R-муж'!C:C,C140,'R-муж'!B:B)) ->  | Y140: =IF(C140="","",SUMIF('R-муж'!C:C,C140,'R-муж'!I:I)) ->  | Z140: =L140 -> 0 | AA140: =SUMIF(Список!$C:$C,C140,Список!$U:$U) -> 0 | AD140: =PROPER(M140) ->  | AE140: =MID(C140,SEARCH(" ",C140)+1,15) ->  | AF140: =CONCATENATE(AD140," ",AE140," ",AB140) -> 
A141: 137 | B141: 137 | D141: =IF(C141="","",VLOOKUP(C141,'R-муж'!C:E,2,FALSE)) ->  | G141: =IF(C141="","",VLOOKUP(C141,'R-муж'!C:E,3,FALSE)) ->  | J141: 0 | Q141: 28 | R141: 136 | S141: 140 | T141: 136-140 | V141: =IF(C141="","",SUMIF('R-муж0'!C:C,C141,'R-муж0'!B:B)) ->  | W141: =IF(C141="","",SUMIF('R-муж0'!C:C,C141,'R-муж0'!I:I)) ->  | X141: =IF(C141="","",SUMIF('R-муж'!C:C,C141,'R-муж'!B:B)) ->  | Y141: =IF(C141="","",SUMIF('R-муж'!C:C,C141,'R-муж'!I:I)) ->  | Z141: 0 | AA141: =SUMIF(Список!$C:$C,C141,Список!$U:$U) -> 0
A142: 138 | B142: 138 | D142: =IF(C142="","",VLOOKUP(C142,'R-муж'!C:E,2,FALSE)) ->  | G142: =IF(C142="","",VLOOKUP(C142,'R-муж'!C:E,3,FALSE)) ->  | J142: 0 | Q142: 28 | R142: 136 | S142: 140 | T142: 136-140 | V142: =IF(C142="","",SUMIF('R-муж0'!C:C,C142,'R-муж0'!B:B)) ->  | W142: =IF(C142="","",SUMIF('R-муж0'!C:C,C142,'R-муж0'!I:I)) ->  | X142: =IF(C142="","",SUMIF('R-муж'!C:C,C142,'R-муж'!B:B)) ->  | Y142: =IF(C142="","",SUMIF('R-муж'!C:C,C142,'R-муж'!I:I)) ->  | Z142: 0 | AA142: =SUMIF(Список!$C:$C,C142,Список!$U:$U) -> 0
A143: 139 | B143: 139 | D143: =IF(C143="","",VLOOKUP(C143,'R-муж'!C:E,2,FALSE)) ->  | G143: =IF(C143="","",VLOOKUP(C143,'R-муж'!C:E,3,FALSE)) ->  | J143: 0 | Q143: 28 | R143: 136 | S143: 140 | T143: 136-140 | V143: =IF(C143="","",SUMIF('R-муж0'!C:C,C143,'R-муж0'!B:B)) ->  | W143: =IF(C143="","",SUMIF('R-муж0'!C:C,C143,'R-муж0'!I:I)) ->  | X143: =IF(C143="","",SUMIF('R-муж'!C:C,C143,'R-муж'!B:B)) ->  | Y143: =IF(C143="","",SUMIF('R-муж'!C:C,C143,'R-муж'!I:I)) ->  | Z143: 0 | AA143: =SUMIF(Список!$C:$C,C143,Список!$U:$U) -> 0
A144: 140 | B144: 140 | D144: =IF(C144="","",VLOOKUP(C144,'R-муж'!C:E,2,FALSE)) ->  | G144: =IF(C144="","",VLOOKUP(C144,'R-муж'!C:E,3,FALSE)) ->  | J144: 0 | Q144: 28 | R144: 136 | S144: 140 | T144: 136-140 | V144: =IF(C144="","",SUMIF('R-муж0'!C:C,C144,'R-муж0'!B:B)) ->  | W144: =IF(C144="","",SUMIF('R-муж0'!C:C,C144,'R-муж0'!I:I)) ->  | X144: =IF(C144="","",SUMIF('R-муж'!C:C,C144,'R-муж'!B:B)) ->  | Y144: =IF(C144="","",SUMIF('R-муж'!C:C,C144,'R-муж'!I:I)) ->  | Z144: 0 | AA144: =SUMIF(Список!$C:$C,C144,Список!$U:$U) -> 0
A146: 0 | B146: - | D146: - | E146: - | F146: - | G146: - | H146: - | I146: - | J146: - | K146: - | L146: - | P146: - | Q146: - | R146: - | S146: - | T146: - | U146: - | W146: =SUM(W1:W84) -> 0 | Y146: =SUM(Y1:Y84) -> 45 | AA146: =SUM(AA1:AA84) -> 0
A147: - | B147: 0 | Q147: . | R147: . | S147: . | T147: .
A148: Х | B148: Х | C148: Х | D148: Х | E148: Х | F148: Х | G148: Х | H148: Х | I148: Х | K148: Х | L148: Х | M148: Х | N148: Х | O148: Х | P148: Х | Q148: Х | R148: Х | S148: Х | T148: Х | U148: Х | AD148: Х
A149: Nr. | B149: № | C149: ФАМИЛИЯ Имя | D149: Дата рожд. | E149: Разр. | F149: Рейт | G149: Город | H149: Личный тренер | I149: Команда | K149: Тренер команды | U149: Команда | W149: ЯНВ | Y149: РЕЙТ | AA149: =SUMIF(Список!$C:$C,C149,Список!$U:$U) -> 0 | AB149: Отчество | AE149: Имя | AF149: Имя Отчество
A150: 201 | B150: 1 | C150: САНДЫБАЕВА Малика | D150: =IF(C150="","",VLOOKUP(C150,'R-жен'!C:E,2,FALSE)) -> 15.11.2005 | E150: МС | F150: =IF(X150=0,V150,X150) -> 49 | G150: =IF(C150="","",VLOOKUP(C150,'R-жен'!C:E,3,FALSE)) -> г. Астана | H150: Герасименко Г.А.,Герасименко Т.В. | I150: г. Астана | J150: =I150 -> г. Астана | K150: Герасименко Г.А., Герасименко Т.А | M150: =MID(C150,1,SEARCH(" ",C150)-1) -> САНДЫБАЕВА | N150: =MID(C150,SEARCH(" ",C150)+1,1) -> М | O150: =CONCATENATE(M150," ",N150,".") -> САНДЫБАЕВА М. | P150: 31 | Q150: =P150 -> 31 | R150: =Q150*5-4 -> 151 | S150: =Q150*5 -> 155 | T150: =CONCATENATE(R150,"-",S150) -> 151-155 | U150: город Астана | V150: =IF(C150="","",SUMIF('R-жен0'!C:C,C150,'R-жен0'!B:B)) -> 0 | W150: =IF(C150="","",SUMIF('R-жен0'!C:C,C150,'R-жен0'!I:I)) -> 0 | X150: =IF(C150="","",SUMIF('R-жен'!C:C,C150,'R-жен'!B:B)) -> 49 | Y150: =IF(C150="","",SUMIF('R-жен'!C:C,C150,'R-жен'!I:I)) -> 1 | Z150: =L150 -> 0 | AA150: =SUMIF(Список!$C:$C,C150,Список!$U:$U) -> 0 | AD150: Сандыбаева | AE150: Малика | AF150: Сандыбаева Малика
A151: 202 | B151: 2 | C151: ЦВИГУН Алиса | D151: =IF(C151="","",VLOOKUP(C151,'R-жен'!C:E,2,FALSE)) -> 24.10.2007 | E151: КМС | F151: 46 | G151: =IF(C151="","",VLOOKUP(C151,'R-жен'!C:E,3,FALSE)) -> г. Астана | H151: Мурзаспаев С.М., Тимченко Е.А. | J151: =J150 -> г. Астана | M151: ЦВИГУН | N151: А | O151: ЦВИГУН А. | Q151: =Q150 -> 31 | R151: =Q151*5-4 -> 151 | S151: =Q151*5 -> 155 | T151: =CONCATENATE(R151,"-",S151) -> 151-155 | V151: =IF(C151="","",SUMIF('R-жен0'!C:C,C151,'R-жен0'!B:B)) -> 0 | W151: =IF(C151="","",SUMIF('R-жен0'!C:C,C151,'R-жен0'!I:I)) -> 0 | X151: =IF(C151="","",SUMIF('R-жен'!C:C,C151,'R-жен'!B:B)) -> 46 | Y151: =IF(C151="","",SUMIF('R-жен'!C:C,C151,'R-жен'!I:I)) -> 1 | Z151: =Z150 -> 0 | AA151: =SUMIF(Список!$C:$C,C151,Список!$U:$U) -> 0 | AD151: Цвигун | AE151: Алиса | AF151: Цвигун Алиса
A152: 203 | B152: 3 | C152: ЛАВРОВА Елизавета | D152: =IF(C152="","",VLOOKUP(C152,'R-жен'!C:E,2,FALSE)) -> 02.04.2007 | E152: КМС | F152: 43 | G152: =IF(C152="","",VLOOKUP(C152,'R-жен'!C:E,3,FALSE)) -> г. Астана | H152: Герасименко Г.А.,Герасименко Т.В. | J152: =J151 -> г. Астана | M152: ЛАВРОВА | N152: Е | O152: ЛАВРОВА Е. | Q152: 31 | R152: 151 | S152: 155 | T152: 151-155 | V152: =IF(C152="","",SUMIF('R-жен0'!C:C,C152,'R-жен0'!B:B)) -> 0 | W152: =IF(C152="","",SUMIF('R-жен0'!C:C,C152,'R-жен0'!I:I)) -> 0 | X152: =IF(C152="","",SUMIF('R-жен'!C:C,C152,'R-жен'!B:B)) -> 43 | Y152: =IF(C152="","",SUMIF('R-жен'!C:C,C152,'R-жен'!I:I)) -> 1 | Z152: 0 | AA152: =SUMIF(Список!$C:$C,C152,Список!$U:$U) -> 0 | AD152: Лаврова | AE152: Елизавета | AF152: Лаврова Елизавета
A153: 204 | B153: 4 | C153: ЕРЖАНКЫЗЫ Алтынай | D153: =IF(C153="","",VLOOKUP(C153,'R-жен'!C:E,2,FALSE)) -> 06.10.2004 | E153: КМС | F153: 35 | G153: =IF(C153="","",VLOOKUP(C153,'R-жен'!C:E,3,FALSE)) -> г. Астана | H153: Герасименко Г.А.,Герасименко Т.В. | J153: =J152 -> г. Астана | M153: ЕРЖАНКЫЗЫ | N153: А | O153: ЕРЖАНКЫЗЫ А. | Q153: 31 | R153: 151 | S153: 155 | T153: 151-155 | V153: =IF(C153="","",SUMIF('R-жен0'!C:C,C153,'R-жен0'!B:B)) -> 0 | W153: =IF(C153="","",SUMIF('R-жен0'!C:C,C153,'R-жен0'!I:I)) -> 0 | X153: =IF(C153="","",SUMIF('R-жен'!C:C,C153,'R-жен'!B:B)) -> 35 | Y153: =IF(C153="","",SUMIF('R-жен'!C:C,C153,'R-жен'!I:I)) -> 1 | Z153: 0 | AA153: =SUMIF(Список!$C:$C,C153,Список!$U:$U) -> 0 | AD153: Ержанкызы | AE153: Алтынай | AF153: Ержанкызы Алтынай
A154: 205 | B154: 5 | D154: =IF(C154="","",VLOOKUP(C154,'R-жен'!C:E,2,FALSE)) ->  | G154: =IF(C154="","",VLOOKUP(C154,'R-жен'!C:E,3,FALSE)) ->  | J154: =J153 -> г. Астана | Q154: 31 | R154: 151 | S154: 155 | T154: 151-155 | V154: =IF(C154="","",SUMIF('R-жен0'!C:C,C154,'R-жен0'!B:B)) ->  | W154: =IF(C154="","",SUMIF('R-жен0'!C:C,C154,'R-жен0'!I:I)) ->  | X154: =IF(C154="","",SUMIF('R-жен'!C:C,C154,'R-жен'!B:B)) ->  | Y154: =IF(C154="","",SUMIF('R-жен'!C:C,C154,'R-жен'!I:I)) ->  | Z154: 0 | AA154: =SUMIF(Список!$C:$C,C154,Список!$U:$U) -> 0
A155: 206 | B155: 6 | C155: МИРКАДИРОВА Сарвиноз | D155: =IF(C155="","",VLOOKUP(C155,'R-жен'!C:E,2,FALSE)) -> 03.02.2005 | E155: МСМК | F155: 73 | G155: =IF(C155="","",VLOOKUP(C155,'R-жен'!C:E,3,FALSE)) -> г. Алматы | H155: Тимченко Е.А. | I155: г.Алматы | J155: =I155 -> г.Алматы | K155: Бейсенов С.А., Тимченко А.А. | M155: МИРКАДИРОВА | N155: С | O155: МИРКАДИРОВА С. | P155: 32 | Q155: =P155 -> 32 | R155: 156 | S155: 160 | T155: 156-160 | U155: город Алматы | V155: =IF(C155="","",SUMIF('R-жен0'!C:C,C155,'R-жен0'!B:B)) -> 0 | W155: =IF(C155="","",SUMIF('R-жен0'!C:C,C155,'R-жен0'!I:I)) -> 0 | X155: =IF(C155="","",SUMIF('R-жен'!C:C,C155,'R-жен'!B:B)) -> 73 | Y155: =IF(C155="","",SUMIF('R-жен'!C:C,C155,'R-жен'!I:I)) -> 1 | Z155: =L155 -> 0 | AA155: =SUMIF(Список!$C:$C,C155,Список!$U:$U) -> 0 | AD155: Миркадирова | AE155: Сарвиноз | AF155: Миркадирова Сарвиноз
A156: 207 | B156: 7 | C156: БАХЫТ Анель | D156: =IF(C156="","",VLOOKUP(C156,'R-жен'!C:E,2,FALSE)) -> 12.02.2003 | E156: МСМК | F156: 65 | G156: =IF(C156="","",VLOOKUP(C156,'R-жен'!C:E,3,FALSE)) -> г. Алматы | H156: Тимченко Е.А. | J156: =J155 -> г.Алматы | M156: БАХЫТ | N156: А | O156: БАХЫТ А. | Q156: =Q155 -> 32 | R156: 156 | S156: 160 | T156: 156-160 | V156: =IF(C156="","",SUMIF('R-жен0'!C:C,C156,'R-жен0'!B:B)) -> 0 | W156: =IF(C156="","",SUMIF('R-жен0'!C:C,C156,'R-жен0'!I:I)) -> 0 | X156: =IF(C156="","",SUMIF('R-жен'!C:C,C156,'R-жен'!B:B)) -> 65 | Y156: =IF(C156="","",SUMIF('R-жен'!C:C,C156,'R-жен'!I:I)) -> 1 | Z156: =Z155 -> 0 | AA156: =SUMIF(Список!$C:$C,C156,Список!$U:$U) -> 0 | AD156: Бахыт | AE156: Анель | AF156: Бахыт Анель
A157: 208 | B157: 8 | C157: АЛИМБАЕВА Айя | D157: =IF(C157="","",VLOOKUP(C157,'R-жен'!C:E,2,FALSE)) -> 17.10.1996 | E157: МС | F157: 59 | G157: =IF(C157="","",VLOOKUP(C157,'R-жен'!C:E,3,FALSE)) -> г. Алматы | H157: Успанова А.С. | J157: =J156 -> г.Алматы | M157: АЛИМБАЕВА | N157: А | O157: АЛИМБАЕВА А. | Q157: 32 | R157: 156 | S157: 160 | T157: 156-160 | V157: =IF(C157="","",SUMIF('R-жен0'!C:C,C157,'R-жен0'!B:B)) -> 0 | W157: =IF(C157="","",SUMIF('R-жен0'!C:C,C157,'R-жен0'!I:I)) -> 0 | X157: =IF(C157="","",SUMIF('R-жен'!C:C,C157,'R-жен'!B:B)) -> 59 | Y157: =IF(C157="","",SUMIF('R-жен'!C:C,C157,'R-жен'!I:I)) -> 1 | Z157: 0 | AA157: =SUMIF(Список!$C:$C,C157,Список!$U:$U) -> 0 | AD157: Алимбаева | AE157: Айя | AF157: Алимбаева Айя
A158: 209 | B158: 9 | C158: ТОРШАЕВА Гузель | D158: =IF(C158="","",VLOOKUP(C158,'R-жен'!C:E,2,FALSE)) -> 03.12.2004 | E158: МС | F158: =IF(X158=0,V158,X158) -> 55 | G158: =IF(C158="","",VLOOKUP(C158,'R-жен'!C:E,3,FALSE)) -> г. Алматы | H158: Тимченко Е.А. | J158: г.Алматы | M158: ТОРШАЕВА | N158: Г | O158: ТОРШАЕВА Г. | Q158: 32 | R158: 156 | S158: 160 | T158: 156-160 | V158: =IF(C158="","",SUMIF('R-жен0'!C:C,C158,'R-жен0'!B:B)) -> 0 | W158: =IF(C158="","",SUMIF('R-жен0'!C:C,C158,'R-жен0'!I:I)) -> 0 | X158: =IF(C158="","",SUMIF('R-жен'!C:C,C158,'R-жен'!B:B)) -> 55 | Y158: =IF(C158="","",SUMIF('R-жен'!C:C,C158,'R-жен'!I:I)) -> 1 | Z158: 0 | AA158: =SUMIF(Список!$C:$C,C158,Список!$U:$U) -> 0 | AD158: Торшаева | AE158: Гузель | AF158: Торшаева Гузель
A159: 210 | B159: 10 | C159: МЕНДИГАЛИЕВА Айша | D159: =IF(C159="","",VLOOKUP(C159,'R-жен'!C:E,2,FALSE)) -> 30.06.2009 | E159: КМС | F159: 24 | G159: =IF(C159="","",VLOOKUP(C159,'R-жен'!C:E,3,FALSE)) -> г. Алматы | H159: Успанова А.С. | J159: =J158 -> г.Алматы | M159: МЕНДИГАЛИЕВА | N159: А | O159: МЕНДИГАЛИЕВА А. | Q159: 32 | R159: 156 | S159: 160 | T159: 156-160 | V159: =IF(C159="","",SUMIF('R-жен0'!C:C,C159,'R-жен0'!B:B)) -> 0 | W159: =IF(C159="","",SUMIF('R-жен0'!C:C,C159,'R-жен0'!I:I)) -> 0 | X159: =IF(C159="","",SUMIF('R-жен'!C:C,C159,'R-жен'!B:B)) -> 24 | Y159: =IF(C159="","",SUMIF('R-жен'!C:C,C159,'R-жен'!I:I)) -> 1 | Z159: 0 | AA159: =SUMIF(Список!$C:$C,C159,Список!$U:$U) -> 0 | AD159: Мендигалиева | AE159: Айша | AF159: Мендигалиева Айша
A160: 211 | B160: 11 | D160: =IF(C160="","",VLOOKUP(C160,'R-жен'!C:E,2,FALSE)) ->  | F160: =IF(X160=0,V160,X160) ->  | G160: =IF(C160="","",VLOOKUP(C160,'R-жен'!C:E,3,FALSE)) ->  | I160: Акмолинская обл. | J160: =I160 -> Акмолинская обл. | K160: Саламатов К.Т. | P160: 33 | Q160: =P160 -> 33 | R160: 161 | S160: 165 | T160: 161-165 | U160: Акмолинская область | V160: =IF(C160="","",SUMIF('R-жен0'!C:C,C160,'R-жен0'!B:B)) ->  | W160: =IF(C160="","",SUMIF('R-жен0'!C:C,C160,'R-жен0'!I:I)) ->  | X160: =IF(C160="","",SUMIF('R-жен'!C:C,C160,'R-жен'!B:B)) ->  | Y160: =IF(C160="","",SUMIF('R-жен'!C:C,C160,'R-жен'!I:I)) ->  | Z160: =L160 -> 0 | AA160: =SUMIF(Список!$C:$C,C160,Список!$U:$U) -> 0
A161: 212 | B161: 12 | D161: =IF(C161="","",VLOOKUP(C161,'R-жен'!C:E,2,FALSE)) ->  | G161: =IF(C161="","",VLOOKUP(C161,'R-жен'!C:E,3,FALSE)) ->  | J161: =J160 -> Акмолинская обл. | Q161: =Q160 -> 33 | R161: 161 | S161: 165 | T161: 161-165 | V161: =IF(C161="","",SUMIF('R-жен0'!C:C,C161,'R-жен0'!B:B)) ->  | W161: =IF(C161="","",SUMIF('R-жен0'!C:C,C161,'R-жен0'!I:I)) ->  | X161: =IF(C161="","",SUMIF('R-жен'!C:C,C161,'R-жен'!B:B)) ->  | Y161: =IF(C161="","",SUMIF('R-жен'!C:C,C161,'R-жен'!I:I)) ->  | Z161: =Z160 -> 0 | AA161: =SUMIF(Список!$C:$C,C161,Список!$U:$U) -> 0
A162: 213 | B162: 13 | D162: =IF(C162="","",VLOOKUP(C162,'R-жен'!C:E,2,FALSE)) ->  | G162: =IF(C162="","",VLOOKUP(C162,'R-жен'!C:E,3,FALSE)) ->  | J162: =J161 -> Акмолинская обл. | Q162: 33 | R162: 161 | S162: 165 | T162: 161-165 | V162: =IF(C162="","",SUMIF('R-жен0'!C:C,C162,'R-жен0'!B:B)) ->  | W162: =IF(C162="","",SUMIF('R-жен0'!C:C,C162,'R-жен0'!I:I)) ->  | X162: =IF(C162="","",SUMIF('R-жен'!C:C,C162,'R-жен'!B:B)) ->  | Y162: =IF(C162="","",SUMIF('R-жен'!C:C,C162,'R-жен'!I:I)) ->  | Z162: 0 | AA162: =SUMIF(Список!$C:$C,C162,Список!$U:$U) -> 0
A163: 214 | B163: 14 | D163: =IF(C163="","",VLOOKUP(C163,'R-жен'!C:E,2,FALSE)) ->  | G163: =IF(C163="","",VLOOKUP(C163,'R-жен'!C:E,3,FALSE)) ->  | J163: =J162 -> Акмолинская обл. | Q163: 33 | R163: 161 | S163: 165 | T163: 161-165 | V163: =IF(C163="","",SUMIF('R-жен0'!C:C,C163,'R-жен0'!B:B)) ->  | W163: =IF(C163="","",SUMIF('R-жен0'!C:C,C163,'R-жен0'!I:I)) ->  | X163: =IF(C163="","",SUMIF('R-жен'!C:C,C163,'R-жен'!B:B)) ->  | Y163: =IF(C163="","",SUMIF('R-жен'!C:C,C163,'R-жен'!I:I)) ->  | Z163: 0 | AA163: =SUMIF(Список!$C:$C,C163,Список!$U:$U) -> 0
A164: 215 | B164: 15 | D164: =IF(C164="","",VLOOKUP(C164,'R-жен'!C:E,2,FALSE)) ->  | G164: =IF(C164="","",VLOOKUP(C164,'R-жен'!C:E,3,FALSE)) ->  | J164: =J163 -> Акмолинская обл. | Q164: 33 | S164: 165 | T164: -165 | V164: =IF(C164="","",SUMIF('R-жен0'!C:C,C164,'R-жен0'!B:B)) ->  | W164: =IF(C164="","",SUMIF('R-жен0'!C:C,C164,'R-жен0'!I:I)) ->  | X164: =IF(C164="","",SUMIF('R-жен'!C:C,C164,'R-жен'!B:B)) ->  | Y164: =IF(C164="","",SUMIF('R-жен'!C:C,C164,'R-жен'!I:I)) ->  | Z164: 0 | AA164: =SUMIF(Список!$C:$C,C164,Список!$U:$U) -> 0
A165: 216 | B165: 16 | D165: =IF(C165="","",VLOOKUP(C165,'R-жен'!C:E,2,FALSE)) ->  | G165: =IF(C165="","",VLOOKUP(C165,'R-жен'!C:E,3,FALSE)) ->  | I165: Актюбинская обл. | J165: =I165 -> Актюбинская обл. | K165: Дерушко Е.А. | P165: 34 | Q165: =P165 -> 34 | R165: 166 | S165: 170 | T165: 166-170 | U165: Актюбинская область | V165: =IF(C165="","",SUMIF('R-жен0'!C:C,C165,'R-жен0'!B:B)) ->  | W165: =IF(C165="","",SUMIF('R-жен0'!C:C,C165,'R-жен0'!I:I)) ->  | X165: =IF(C165="","",SUMIF('R-жен'!C:C,C165,'R-жен'!B:B)) ->  | Y165: =IF(C165="","",SUMIF('R-жен'!C:C,C165,'R-жен'!I:I)) ->  | Z165: =L165 -> 0 | AA165: =SUMIF(Список!$C:$C,C165,Список!$U:$U) -> 0
A166: 217 | B166: 17 | D166: =IF(C166="","",VLOOKUP(C166,'R-жен'!C:E,2,FALSE)) ->  | G166: =IF(C166="","",VLOOKUP(C166,'R-жен'!C:E,3,FALSE)) ->  | J166: =J165 -> Актюбинская обл. | Q166: =Q165 -> 34 | R166: 166 | S166: 170 | T166: 166-170 | V166: =IF(C166="","",SUMIF('R-жен0'!C:C,C166,'R-жен0'!B:B)) ->  | W166: =IF(C166="","",SUMIF('R-жен0'!C:C,C166,'R-жен0'!I:I)) ->  | X166: =IF(C166="","",SUMIF('R-жен'!C:C,C166,'R-жен'!B:B)) ->  | Y166: =IF(C166="","",SUMIF('R-жен'!C:C,C166,'R-жен'!I:I)) ->  | Z166: =Z165 -> 0 | AA166: =SUMIF(Список!$C:$C,C166,Список!$U:$U) -> 0
A167: 218 | B167: 18 | D167: =IF(C167="","",VLOOKUP(C167,'R-жен'!C:E,2,FALSE)) ->  | G167: =IF(C167="","",VLOOKUP(C167,'R-жен'!C:E,3,FALSE)) ->  | J167: =J166 -> Актюбинская обл. | Q167: 34 | R167: 166 | S167: 170 | T167: 166-170 | V167: =IF(C167="","",SUMIF('R-жен0'!C:C,C167,'R-жен0'!B:B)) ->  | W167: =IF(C167="","",SUMIF('R-жен0'!C:C,C167,'R-жен0'!I:I)) ->  | X167: =IF(C167="","",SUMIF('R-жен'!C:C,C167,'R-жен'!B:B)) ->  | Y167: =IF(C167="","",SUMIF('R-жен'!C:C,C167,'R-жен'!I:I)) ->  | Z167: 0 | AA167: =SUMIF(Список!$C:$C,C167,Список!$U:$U) -> 0
A168: 219 | B168: 19 | D168: =IF(C168="","",VLOOKUP(C168,'R-жен'!C:E,2,FALSE)) ->  | G168: =IF(C168="","",VLOOKUP(C168,'R-жен'!C:E,3,FALSE)) ->  | J168: Актюбинская обл. | Q168: 34 | R168: 166 | S168: 170 | T168: 166-170 | V168: =IF(C168="","",SUMIF('R-жен0'!C:C,C168,'R-жен0'!B:B)) ->  | W168: =IF(C168="","",SUMIF('R-жен0'!C:C,C168,'R-жен0'!I:I)) ->  | X168: =IF(C168="","",SUMIF('R-жен'!C:C,C168,'R-жен'!B:B)) ->  | Y168: =IF(C168="","",SUMIF('R-жен'!C:C,C168,'R-жен'!I:I)) ->  | Z168: 0 | AA168: =SUMIF(Список!$C:$C,C168,Список!$U:$U) -> 0
A169: 220 | B169: 20 | D169: =IF(C169="","",VLOOKUP(C169,'R-жен'!C:E,2,FALSE)) ->  | G169: =IF(C169="","",VLOOKUP(C169,'R-жен'!C:E,3,FALSE)) ->  | J169: =J168 -> Актюбинская обл. | Q169: 34 | R169: 166 | S169: 170 | T169: 166-170 | V169: =IF(C169="","",SUMIF('R-жен0'!C:C,C169,'R-жен0'!B:B)) ->  | W169: =IF(C169="","",SUMIF('R-жен0'!C:C,C169,'R-жен0'!I:I)) ->  | X169: =IF(C169="","",SUMIF('R-жен'!C:C,C169,'R-жен'!B:B)) ->  | Y169: =IF(C169="","",SUMIF('R-жен'!C:C,C169,'R-жен'!I:I)) ->  | Z169: 0 | AA169: =SUMIF(Список!$C:$C,C169,Список!$U:$U) -> 0
A170: 221 | B170: 21 | D170: =IF(C170="","",VLOOKUP(C170,'R-жен'!C:E,2,FALSE)) ->  | G170: =IF(C170="","",VLOOKUP(C170,'R-жен'!C:E,3,FALSE)) ->  | I170: Алматинская обл. | J170: =I170 -> Алматинская обл. | K170: Кузьмина И.А. | P170: 35 | Q170: =P170 -> 35 | R170: 171 | S170: 175 | T170: 171-175 | U170: Алматинская область | V170: =IF(C170="","",SUMIF('R-жен0'!C:C,C170,'R-жен0'!B:B)) ->  | W170: =IF(C170="","",SUMIF('R-жен0'!C:C,C170,'R-жен0'!I:I)) ->  | X170: =IF(C170="","",SUMIF('R-жен'!C:C,C170,'R-жен'!B:B)) ->  | Y170: =IF(C170="","",SUMIF('R-жен'!C:C,C170,'R-жен'!I:I)) ->  | Z170: =L170 -> 0 | AA170: =SUMIF(Список!$C:$C,C170,Список!$U:$U) -> 0
A171: 222 | B171: 22 | D171: =IF(C171="","",VLOOKUP(C171,'R-жен'!C:E,2,FALSE)) ->  | G171: =IF(C171="","",VLOOKUP(C171,'R-жен'!C:E,3,FALSE)) ->  | J171: =J170 -> Алматинская обл. | Q171: =Q170 -> 35 | R171: 171 | S171: 175 | T171: 171-175 | V171: =IF(C171="","",SUMIF('R-жен0'!C:C,C171,'R-жен0'!B:B)) ->  | W171: =IF(C171="","",SUMIF('R-жен0'!C:C,C171,'R-жен0'!I:I)) ->  | X171: =IF(C171="","",SUMIF('R-жен'!C:C,C171,'R-жен'!B:B)) ->  | Y171: =IF(C171="","",SUMIF('R-жен'!C:C,C171,'R-жен'!I:I)) ->  | Z171: =Z170 -> 0 | AA171: =SUMIF(Список!$C:$C,C171,Список!$U:$U) -> 0
A172: 223 | B172: 23 | D172: =IF(C172="","",VLOOKUP(C172,'R-жен'!C:E,2,FALSE)) ->  | G172: =IF(C172="","",VLOOKUP(C172,'R-жен'!C:E,3,FALSE)) ->  | J172: =J171 -> Алматинская обл. | Q172: 35 | R172: 171 | S172: 175 | T172: 171-175 | V172: =IF(C172="","",SUMIF('R-жен0'!C:C,C172,'R-жен0'!B:B)) ->  | W172: =IF(C172="","",SUMIF('R-жен0'!C:C,C172,'R-жен0'!I:I)) ->  | X172: =IF(C172="","",SUMIF('R-жен'!C:C,C172,'R-жен'!B:B)) ->  | Y172: =IF(C172="","",SUMIF('R-жен'!C:C,C172,'R-жен'!I:I)) ->  | Z172: 0 | AA172: =SUMIF(Список!$C:$C,C172,Список!$U:$U) -> 0
A173: 224 | B173: 24 | D173: =IF(C173="","",VLOOKUP(C173,'R-жен'!C:E,2,FALSE)) ->  | G173: =IF(C173="","",VLOOKUP(C173,'R-жен'!C:E,3,FALSE)) ->  | J173: =J172 -> Алматинская обл. | Q173: 35 | R173: 171 | S173: 175 | T173: 171-175 | V173: =IF(C173="","",SUMIF('R-жен0'!C:C,C173,'R-жен0'!B:B)) ->  | W173: =IF(C173="","",SUMIF('R-жен0'!C:C,C173,'R-жен0'!I:I)) ->  | X173: =IF(C173="","",SUMIF('R-жен'!C:C,C173,'R-жен'!B:B)) ->  | Y173: =IF(C173="","",SUMIF('R-жен'!C:C,C173,'R-жен'!I:I)) ->  | Z173: 0 | AA173: =SUMIF(Список!$C:$C,C173,Список!$U:$U) -> 0
A174: 225 | B174: 25 | D174: =IF(C174="","",VLOOKUP(C174,'R-жен'!C:E,2,FALSE)) ->  | G174: =IF(C174="","",VLOOKUP(C174,'R-жен'!C:E,3,FALSE)) ->  | J174: =J173 -> Алматинская обл. | Q174: 35 | R174: 171 | S174: 175 | T174: 171-175 | V174: =IF(C174="","",SUMIF('R-жен0'!C:C,C174,'R-жен0'!B:B)) ->  | W174: =IF(C174="","",SUMIF('R-жен0'!C:C,C174,'R-жен0'!I:I)) ->  | X174: =IF(C174="","",SUMIF('R-жен'!C:C,C174,'R-жен'!B:B)) ->  | Y174: =IF(C174="","",SUMIF('R-жен'!C:C,C174,'R-жен'!I:I)) ->  | Z174: 0 | AA174: =SUMIF(Список!$C:$C,C174,Список!$U:$U) -> 0
A175: 226 | B175: 26 | D175: =IF(C175="","",VLOOKUP(C175,'R-жен'!C:E,2,FALSE)) ->  | G175: =IF(C175="","",VLOOKUP(C175,'R-жен'!C:E,3,FALSE)) ->  | I175: Атырауская обл. | J175: =I175 -> Атырауская обл. | K175: Мирзахметов А. | P175: 36 | Q175: =P175 -> 36 | R175: 176 | S175: 180 | T175: 176-180 | U175: Атырауская область | V175: =IF(C175="","",SUMIF('R-жен0'!C:C,C175,'R-жен0'!B:B)) ->  | W175: =IF(C175="","",SUMIF('R-жен0'!C:C,C175,'R-жен0'!I:I)) ->  | X175: =IF(C175="","",SUMIF('R-жен'!C:C,C175,'R-жен'!B:B)) ->  | Y175: =IF(C175="","",SUMIF('R-жен'!C:C,C175,'R-жен'!I:I)) ->  | Z175: =L175 -> 0 | AA175: =SUMIF(Список!$C:$C,C175,Список!$U:$U) -> 0
A176: 227 | B176: 27 | D176: =IF(C176="","",VLOOKUP(C176,'R-жен'!C:E,2,FALSE)) ->  | G176: =IF(C176="","",VLOOKUP(C176,'R-жен'!C:E,3,FALSE)) ->  | J176: =J175 -> Атырауская обл. | Q176: =Q175 -> 36 | R176: 176 | S176: 180 | T176: 176-180 | V176: =IF(C176="","",SUMIF('R-жен0'!C:C,C176,'R-жен0'!B:B)) ->  | W176: =IF(C176="","",SUMIF('R-жен0'!C:C,C176,'R-жен0'!I:I)) ->  | X176: =IF(C176="","",SUMIF('R-жен'!C:C,C176,'R-жен'!B:B)) ->  | Y176: =IF(C176="","",SUMIF('R-жен'!C:C,C176,'R-жен'!I:I)) ->  | Z176: =Z175 -> 0 | AA176: =SUMIF(Список!$C:$C,C176,Список!$U:$U) -> 0
A177: 228 | B177: 28 | D177: =IF(C177="","",VLOOKUP(C177,'R-жен'!C:E,2,FALSE)) ->  | G177: =IF(C177="","",VLOOKUP(C177,'R-жен'!C:E,3,FALSE)) ->  | J177: =J176 -> Атырауская обл. | Q177: 36 | R177: 176 | S177: 180 | T177: 176-180 | V177: =IF(C177="","",SUMIF('R-жен0'!C:C,C177,'R-жен0'!B:B)) ->  | W177: =IF(C177="","",SUMIF('R-жен0'!C:C,C177,'R-жен0'!I:I)) ->  | X177: =IF(C177="","",SUMIF('R-жен'!C:C,C177,'R-жен'!B:B)) ->  | Y177: =IF(C177="","",SUMIF('R-жен'!C:C,C177,'R-жен'!I:I)) ->  | Z177: 0 | AA177: =SUMIF(Список!$C:$C,C177,Список!$U:$U) -> 0
A178: 229 | B178: 29 | D178: =IF(C178="","",VLOOKUP(C178,'R-жен'!C:E,2,FALSE)) ->  | G178: =IF(C178="","",VLOOKUP(C178,'R-жен'!C:E,3,FALSE)) ->  | J178: Атырауская обл. | Q178: 36 | R178: 176 | S178: 180 | T178: 176-180 | V178: =IF(C178="","",SUMIF('R-жен0'!C:C,C178,'R-жен0'!B:B)) ->  | W178: =IF(C178="","",SUMIF('R-жен0'!C:C,C178,'R-жен0'!I:I)) ->  | X178: =IF(C178="","",SUMIF('R-жен'!C:C,C178,'R-жен'!B:B)) ->  | Y178: =IF(C178="","",SUMIF('R-жен'!C:C,C178,'R-жен'!I:I)) ->  | Z178: 0 | AA178: =SUMIF(Список!$C:$C,C178,Список!$U:$U) -> 0
A179: 230 | B179: 30 | D179: =IF(C179="","",VLOOKUP(C179,'R-жен'!C:E,2,FALSE)) ->  | G179: =IF(C179="","",VLOOKUP(C179,'R-жен'!C:E,3,FALSE)) ->  | J179: =J178 -> Атырауская обл. | Q179: 36 | R179: 176 | S179: 180 | T179: 176-180 | V179: =IF(C179="","",SUMIF('R-жен0'!C:C,C179,'R-жен0'!B:B)) ->  | W179: =IF(C179="","",SUMIF('R-жен0'!C:C,C179,'R-жен0'!I:I)) ->  | X179: =IF(C179="","",SUMIF('R-жен'!C:C,C179,'R-жен'!B:B)) ->  | Y179: =IF(C179="","",SUMIF('R-жен'!C:C,C179,'R-жен'!I:I)) ->  | Z179: 0 | AA179: =SUMIF(Список!$C:$C,C179,Список!$U:$U) -> 0
A180: 231 | B180: 31 | C180: БЕКИШ Аружан | D180: =IF(C180="","",VLOOKUP(C180,'R-жен'!C:E,2,FALSE)) -> 13.02.2006 | F180: 32 | G180: =IF(C180="","",VLOOKUP(C180,'R-жен'!C:E,3,FALSE)) -> ЗКО | H180: Назарова С.Р. | I180: Западно-Казахстанская обл. | J180: =I180 -> Западно-Казахстанская обл. | K180: Назарова С.Р., Ибат А.К. | M180: =MID(C180,1,SEARCH(" ",C180)-1) -> БЕКИШ | N180: =MID(C180,SEARCH(" ",C180)+1,1) -> А | O180: =CONCATENATE(M180," ",N180,".") -> БЕКИШ А. | P180: 37 | Q180: =P180 -> 37 | R180: 181 | S180: 185 | T180: 181-185 | U180: Западно-Казахстанская область | V180: =IF(C180="","",SUMIF('R-жен0'!C:C,C180,'R-жен0'!B:B)) -> 0 | W180: =IF(C180="","",SUMIF('R-жен0'!C:C,C180,'R-жен0'!I:I)) -> 0 | X180: =IF(C180="","",SUMIF('R-жен'!C:C,C180,'R-жен'!B:B)) -> 32 | Y180: =IF(C180="","",SUMIF('R-жен'!C:C,C180,'R-жен'!I:I)) -> 1 | Z180: =L180 -> 0 | AA180: =SUMIF(Список!$C:$C,C180,Список!$U:$U) -> 0 | AD180: Бекиш | AE180: Аружан | AF180: Бекиш Аружан
A181: 232 | B181: 32 | C181: ИЛЬЯС Аружан | D181: =IF(C181="","",VLOOKUP(C181,'R-жен'!C:E,2,FALSE)) -> 17.07.2006 | F181: 36 | G181: =IF(C181="","",VLOOKUP(C181,'R-жен'!C:E,3,FALSE)) -> ЗКО | H181: Назарова С.Р. | J181: =J180 -> Западно-Казахстанская обл. | M181: =MID(C181,1,SEARCH(" ",C181)-1) -> ИЛЬЯС | N181: =MID(C181,SEARCH(" ",C181)+1,1) -> А | O181: =CONCATENATE(M181," ",N181,".") -> ИЛЬЯС А. | Q181: =Q180 -> 37 | R181: 181 | S181: 185 | T181: 181-185 | V181: =IF(C181="","",SUMIF('R-жен0'!C:C,C181,'R-жен0'!B:B)) -> 0 | W181: =IF(C181="","",SUMIF('R-жен0'!C:C,C181,'R-жен0'!I:I)) -> 0 | X181: =IF(C181="","",SUMIF('R-жен'!C:C,C181,'R-жен'!B:B)) -> 36 | Y181: =IF(C181="","",SUMIF('R-жен'!C:C,C181,'R-жен'!I:I)) -> 1 | Z181: =Z180 -> 0 | AA181: =SUMIF(Список!$C:$C,C181,Список!$U:$U) -> 0 | AD181: Ильяс | AE181: Аружан | AF181: Ильяс Аружан
A182: 233 | B182: 33 | C182: МУХИТДЕНОВА Айнар | D182: =IF(C182="","",VLOOKUP(C182,'R-жен'!C:E,2,FALSE)) -> 2011-07-16 | F182: 0 | G182: =IF(C182="","",VLOOKUP(C182,'R-жен'!C:E,3,FALSE)) -> ЗКО | H182: Ибат А.К. | J182: =J181 -> Западно-Казахстанская обл. | M182: МУХИТДЕНОВА | N182: А | O182: =CONCATENATE(M182," ",N182,".") -> МУХИТДЕНОВА А. | Q182: 37 | R182: 181 | S182: 185 | T182: 181-185 | V182: =IF(C182="","",SUMIF('R-жен0'!C:C,C182,'R-жен0'!B:B)) -> 0 | W182: =IF(C182="","",SUMIF('R-жен0'!C:C,C182,'R-жен0'!I:I)) -> 0 | X182: =IF(C182="","",SUMIF('R-жен'!C:C,C182,'R-жен'!B:B)) -> 0 | Y182: =IF(C182="","",SUMIF('R-жен'!C:C,C182,'R-жен'!I:I)) -> 1 | Z182: 0 | AA182: =SUMIF(Список!$C:$C,C182,Список!$U:$U) -> 0 | AD182: Мухитденова | AE182: Айнар | AF182: Мухитденова Айнар
A183: 234 | B183: 34 | C183: ЛУКПАНОВА Найля | D183: =IF(C183="","",VLOOKUP(C183,'R-жен'!C:E,2,FALSE)) -> 2011-07-06 | F183: 0 | G183: =IF(C183="","",VLOOKUP(C183,'R-жен'!C:E,3,FALSE)) -> ЗКО | H183: Ибат А.К. | J183: =J182 -> Западно-Казахстанская обл. | M183: ЛУКПАНОВА | N183: Н | O183: =CONCATENATE(M183," ",N183,".") -> ЛУКПАНОВА Н. | Q183: 37 | R183: 181 | S183: 185 | T183: 181-185 | V183: =IF(C183="","",SUMIF('R-жен0'!C:C,C183,'R-жен0'!B:B)) -> 0 | W183: =IF(C183="","",SUMIF('R-жен0'!C:C,C183,'R-жен0'!I:I)) -> 0 | X183: =IF(C183="","",SUMIF('R-жен'!C:C,C183,'R-жен'!B:B)) -> 0 | Y183: =IF(C183="","",SUMIF('R-жен'!C:C,C183,'R-жен'!I:I)) -> 1 | Z183: 0 | AA183: =SUMIF(Список!$C:$C,C183,Список!$U:$U) -> 0 | AD183: Лукпанова | AE183: Найля | AF183: Лукпанова Найля
A184: 235 | B184: 35 | D184: =IF(C184="","",VLOOKUP(C184,'R-жен'!C:E,2,FALSE)) ->  | G184: =IF(C184="","",VLOOKUP(C184,'R-жен'!C:E,3,FALSE)) ->  | J184: =J183 -> Западно-Казахстанская обл. | O184: =CONCATENATE(M184," ",N184,".") ->  | Q184: 37 | R184: 181 | S184: 185 | T184: 181-185 | V184: =IF(C184="","",SUMIF('R-жен0'!C:C,C184,'R-жен0'!B:B)) ->  | W184: =IF(C184="","",SUMIF('R-жен0'!C:C,C184,'R-жен0'!I:I)) ->  | X184: =IF(C184="","",SUMIF('R-жен'!C:C,C184,'R-жен'!B:B)) ->  | Y184: =IF(C184="","",SUMIF('R-жен'!C:C,C184,'R-жен'!I:I)) ->  | Z184: 0 | AA184: =SUMIF(Список!$C:$C,C184,Список!$U:$U) -> 0
A185: 236 | B185: 36 | D185: =IF(C185="","",VLOOKUP(C185,'R-жен'!C:E,2,FALSE)) ->  | G185: =IF(C185="","",VLOOKUP(C185,'R-жен'!C:E,3,FALSE)) ->  | I185: Жамбылская обл. | J185: =I185 -> Жамбылская обл. | K185: Ережепбаев А.Б., Момынов И.М., Груздов Е.О. | M185: =MID(C185,1,SEARCH(" ",C185)-1) ->  | N185: =MID(C185,SEARCH(" ",C185)+1,1) ->  | O185: =CONCATENATE(M185," ",N185,".") ->  | P185: 38 | Q185: =P185 -> 38 | R185: 186 | S185: 190 | T185: 186-190 | U185: Жамбылская область | V185: =IF(C185="","",SUMIF('R-жен0'!C:C,C185,'R-жен0'!B:B)) ->  | W185: =IF(C185="","",SUMIF('R-жен0'!C:C,C185,'R-жен0'!I:I)) ->  | X185: =IF(C185="","",SUMIF('R-жен'!C:C,C185,'R-жен'!B:B)) ->  | Y185: =IF(C185="","",SUMIF('R-жен'!C:C,C185,'R-жен'!I:I)) ->  | Z185: =L185 -> 0 | AA185: =SUMIF(Список!$C:$C,C185,Список!$U:$U) -> 0
A186: 237 | B186: 37 | D186: =IF(C186="","",VLOOKUP(C186,'R-жен'!C:E,2,FALSE)) ->  | G186: =IF(C186="","",VLOOKUP(C186,'R-жен'!C:E,3,FALSE)) ->  | J186: =J185 -> Жамбылская обл. | Q186: =Q185 -> 38 | R186: 186 | S186: 190 | T186: 186-190 | V186: =IF(C186="","",SUMIF('R-жен0'!C:C,C186,'R-жен0'!B:B)) ->  | W186: =IF(C186="","",SUMIF('R-жен0'!C:C,C186,'R-жен0'!I:I)) ->  | X186: =IF(C186="","",SUMIF('R-жен'!C:C,C186,'R-жен'!B:B)) ->  | Y186: =IF(C186="","",SUMIF('R-жен'!C:C,C186,'R-жен'!I:I)) ->  | Z186: =Z185 -> 0 | AA186: =SUMIF(Список!$C:$C,C186,Список!$U:$U) -> 0
A187: 238 | B187: 38 | D187: =IF(C187="","",VLOOKUP(C187,'R-жен'!C:E,2,FALSE)) ->  | G187: =IF(C187="","",VLOOKUP(C187,'R-жен'!C:E,3,FALSE)) ->  | J187: =J186 -> Жамбылская обл. | Q187: 38 | R187: 186 | S187: 190 | T187: 186-190 | V187: =IF(C187="","",SUMIF('R-жен0'!C:C,C187,'R-жен0'!B:B)) ->  | W187: =IF(C187="","",SUMIF('R-жен0'!C:C,C187,'R-жен0'!I:I)) ->  | X187: =IF(C187="","",SUMIF('R-жен'!C:C,C187,'R-жен'!B:B)) ->  | Y187: =IF(C187="","",SUMIF('R-жен'!C:C,C187,'R-жен'!I:I)) ->  | Z187: 0 | AA187: =SUMIF(Список!$C:$C,C187,Список!$U:$U) -> 0
A188: 239 | B188: 39 | D188: =IF(C188="","",VLOOKUP(C188,'R-жен'!C:E,2,FALSE)) ->  | F188: =IF(X188=0,V188,X188) ->  | G188: =IF(C188="","",VLOOKUP(C188,'R-жен'!C:E,3,FALSE)) ->  | J188: Жамбылская обл. | Q188: 38 | R188: 186 | S188: 190 | T188: 186-190 | V188: =IF(C188="","",SUMIF('R-жен0'!C:C,C188,'R-жен0'!B:B)) ->  | W188: =IF(C188="","",SUMIF('R-жен0'!C:C,C188,'R-жен0'!I:I)) ->  | X188: =IF(C188="","",SUMIF('R-жен'!C:C,C188,'R-жен'!B:B)) ->  | Y188: =IF(C188="","",SUMIF('R-жен'!C:C,C188,'R-жен'!I:I)) ->  | Z188: 0 | AA188: =SUMIF(Список!$C:$C,C188,Список!$U:$U) -> 0
A189: 240 | B189: 40 | D189: =IF(C189="","",VLOOKUP(C189,'R-жен'!C:E,2,FALSE)) ->  | G189: =IF(C189="","",VLOOKUP(C189,'R-жен'!C:E,3,FALSE)) ->  | J189: =J188 -> Жамбылская обл. | Q189: 38 | R189: 186 | S189: 190 | T189: 186-190 | V189: =IF(C189="","",SUMIF('R-жен0'!C:C,C189,'R-жен0'!B:B)) ->  | W189: =IF(C189="","",SUMIF('R-жен0'!C:C,C189,'R-жен0'!I:I)) ->  | X189: =IF(C189="","",SUMIF('R-жен'!C:C,C189,'R-жен'!B:B)) ->  | Y189: =IF(C189="","",SUMIF('R-жен'!C:C,C189,'R-жен'!I:I)) ->  | Z189: 0 | AA189: =SUMIF(Список!$C:$C,C189,Список!$U:$U) -> 0
A190: 241 | B190: 41 | C190: АШКЕЕВА Арай | D190: =IF(C190="","",VLOOKUP(C190,'R-жен'!C:E,2,FALSE)) -> 08.07.2003 | E190: МС | F190: =IF(X190=0,V190,X190) -> 60 | G190: =IF(C190="","",VLOOKUP(C190,'R-жен'!C:E,3,FALSE)) -> Карагандинская обл. | H190: Брижевский А.Ф. | I190: Карагандинская обл. | J190: =I190 -> Карагандинская обл. | K190: Алиева Э.К., Рубцов И.А. | M190: АШКЕЕВА | N190: А | O190: АШКЕЕВА А. | P190: 39 | Q190: =P190 -> 39 | R190: 191 | S190: 195 | T190: 191-195 | U190: Карагандинская область | V190: =IF(C190="","",SUMIF('R-жен0'!C:C,C190,'R-жен0'!B:B)) -> 0 | W190: =IF(C190="","",SUMIF('R-жен0'!C:C,C190,'R-жен0'!I:I)) -> 0 | X190: =IF(C190="","",SUMIF('R-жен'!C:C,C190,'R-жен'!B:B)) -> 60 | Y190: =IF(C190="","",SUMIF('R-жен'!C:C,C190,'R-жен'!I:I)) -> 1 | Z190: =L190 -> 0 | AA190: =SUMIF(Список!$C:$C,C190,Список!$U:$U) -> 0 | AD190: Ашкеева | AE190: Арай | AF190: Ашкеева Арай
A191: 242 | B191: 42 | C191: КОШКУМБАЕВА Жанерке | D191: =IF(C191="","",VLOOKUP(C191,'R-жен'!C:E,2,FALSE)) -> 16.09.2005 | E191: МС | F191: =IF(X191=0,V191,X191) -> 59 | G191: =IF(C191="","",VLOOKUP(C191,'R-жен'!C:E,3,FALSE)) -> Карагандинская обл. | H191: Ким Т.А. | J191: =J190 -> Карагандинская обл. | M191: КОШКУМБАЕВА | N191: Ж | O191: КОШКУМБАЕВА Ж. | Q191: =Q190 -> 39 | R191: 191 | S191: 195 | T191: 191-195 | V191: =IF(C191="","",SUMIF('R-жен0'!C:C,C191,'R-жен0'!B:B)) -> 0 | W191: =IF(C191="","",SUMIF('R-жен0'!C:C,C191,'R-жен0'!I:I)) -> 0 | X191: =IF(C191="","",SUMIF('R-жен'!C:C,C191,'R-жен'!B:B)) -> 59 | Y191: =IF(C191="","",SUMIF('R-жен'!C:C,C191,'R-жен'!I:I)) -> 1 | Z191: =Z190 -> 0 | AA191: =SUMIF(Список!$C:$C,C191,Список!$U:$U) -> 0 | AD191: Кошкумбаева | AE191: Жанерке | AF191: Кошкумбаева Жанерке
A192: 243 | B192: 43 | C192: ЖАКСЫЛЫКОВА Альбина | D192: =IF(C192="","",VLOOKUP(C192,'R-жен'!C:E,2,FALSE)) -> 11.05.2007 | E192: КМС | F192: =IF(X192=0,V192,X192) -> 49 | G192: =IF(C192="","",VLOOKUP(C192,'R-жен'!C:E,3,FALSE)) -> Карагандинская обл. | H192: Алиева Э.К. | J192: =J191 -> Карагандинская обл. | M192: ЖАКСЫЛЫКОВА | N192: А | O192: ЖАКСЫЛЫКОВА А. | Q192: 39 | R192: 191 | S192: 195 | T192: 191-195 | V192: =IF(C192="","",SUMIF('R-жен0'!C:C,C192,'R-жен0'!B:B)) -> 0 | W192: =IF(C192="","",SUMIF('R-жен0'!C:C,C192,'R-жен0'!I:I)) -> 0 | X192: =IF(C192="","",SUMIF('R-жен'!C:C,C192,'R-жен'!B:B)) -> 49 | Y192: =IF(C192="","",SUMIF('R-жен'!C:C,C192,'R-жен'!I:I)) -> 1 | Z192: 0 | AA192: =SUMIF(Список!$C:$C,C192,Список!$U:$U) -> 0 | AD192: Жаксылыкова | AE192: Альбина | AF192: Жаксылыкова Альбина
A193: 244 | B193: 44 | C193: АКАШЕВА Зауреш | D193: =IF(C193="","",VLOOKUP(C193,'R-жен'!C:E,2,FALSE)) -> 02.12.2000 | E193: МСМК | F193: =IF(X193=0,V193,X193) -> 75 | G193: =IF(C193="","",VLOOKUP(C193,'R-жен'!C:E,3,FALSE)) -> Карагандинская обл. | H193: Алиева Э.К. | J193: =J192 -> Карагандинская обл. | M193: АКАШЕВА | N193: З | O193: АКАШЕВА З. | Q193: 39 | R193: 191 | S193: 195 | T193: 191-195 | V193: =IF(C193="","",SUMIF('R-жен0'!C:C,C193,'R-жен0'!B:B)) -> 0 | W193: =IF(C193="","",SUMIF('R-жен0'!C:C,C193,'R-жен0'!I:I)) -> 0 | X193: =IF(C193="","",SUMIF('R-жен'!C:C,C193,'R-жен'!B:B)) -> 75 | Y193: =IF(C193="","",SUMIF('R-жен'!C:C,C193,'R-жен'!I:I)) -> 1 | Z193: 0 | AA193: =SUMIF(Список!$C:$C,C193,Список!$U:$U) -> 0 | AD193: Акашева | AE193: Зауреш | AF193: Акашева Зауреш
A194: 245 | B194: 45 | C194: МОЧАЛКИНА Виктория | D194: =IF(C194="","",VLOOKUP(C194,'R-жен'!C:E,2,FALSE)) -> 06.12.2008 | E194: КМС | F194: =IF(X194=0,V194,X194) -> 44 | G194: =IF(C194="","",VLOOKUP(C194,'R-жен'!C:E,3,FALSE)) -> Карагандинская обл. | H194: Алиева Э.К. | J194: =J193 -> Карагандинская обл. | M194: МОЧАЛКИНА | N194: В | O194: МОЧАЛКИНА В. | Q194: 39 | R194: 191 | S194: 195 | T194: 191-195 | V194: =IF(C194="","",SUMIF('R-жен0'!C:C,C194,'R-жен0'!B:B)) -> 0 | W194: =IF(C194="","",SUMIF('R-жен0'!C:C,C194,'R-жен0'!I:I)) -> 0 | X194: =IF(C194="","",SUMIF('R-жен'!C:C,C194,'R-жен'!B:B)) -> 44 | Y194: =IF(C194="","",SUMIF('R-жен'!C:C,C194,'R-жен'!I:I)) -> 1 | Z194: 0 | AA194: =SUMIF(Список!$C:$C,C194,Список!$U:$U) -> 0 | AD194: Мочалкина | AE194: Виктория | AF194: Мочалкина Виктория
A195: 246 | B195: 46 | D195: =IF(C195="","",VLOOKUP(C195,'R-жен'!C:E,2,FALSE)) ->  | F195: =IF(X195=0,V195,X195) ->  | G195: =IF(C195="","",VLOOKUP(C195,'R-жен'!C:E,3,FALSE)) ->  | I195: Костанайская обл. | J195: =I195 -> Костанайская обл. | K195: Данияров Г.С., Дубровская А.А. | P195: 40 | Q195: =P195 -> 40 | R195: 196 | S195: 200 | T195: 196-200 | U195: Костанайская область | V195: =IF(C195="","",SUMIF('R-жен0'!C:C,C195,'R-жен0'!B:B)) ->  | W195: =IF(C195="","",SUMIF('R-жен0'!C:C,C195,'R-жен0'!I:I)) ->  | X195: =IF(C195="","",SUMIF('R-жен'!C:C,C195,'R-жен'!B:B)) ->  | Y195: =IF(C195="","",SUMIF('R-жен'!C:C,C195,'R-жен'!I:I)) ->  | Z195: =L195 -> 0 | AA195: =SUMIF(Список!$C:$C,C195,Список!$U:$U) -> 0 | AD195: =PROPER(M195) ->  | AE195: =MID(C195,SEARCH(" ",C195)+1,15) ->  | AF195: =CONCATENATE(AD195," ",AE195," ",AB195) -> 
A196: 247 | B196: 47 | D196: =IF(C196="","",VLOOKUP(C196,'R-жен'!C:E,2,FALSE)) ->  | F196: =IF(X196=0,V196,X196) ->  | G196: =IF(C196="","",VLOOKUP(C196,'R-жен'!C:E,3,FALSE)) ->  | J196: =J195 -> Костанайская обл. | Q196: =Q195 -> 40 | R196: 196 | S196: 200 | T196: 196-200 | V196: =IF(C196="","",SUMIF('R-жен0'!C:C,C196,'R-жен0'!B:B)) ->  | W196: =IF(C196="","",SUMIF('R-жен0'!C:C,C196,'R-жен0'!I:I)) ->  | X196: =IF(C196="","",SUMIF('R-жен'!C:C,C196,'R-жен'!B:B)) ->  | Y196: =IF(C196="","",SUMIF('R-жен'!C:C,C196,'R-жен'!I:I)) ->  | Z196: =Z195 -> 0 | AA196: =SUMIF(Список!$C:$C,C196,Список!$U:$U) -> 0
A197: 248 | B197: 48 | D197: =IF(C197="","",VLOOKUP(C197,'R-жен'!C:E,2,FALSE)) ->  | F197: =IF(X197=0,V197,X197) ->  | G197: =IF(C197="","",VLOOKUP(C197,'R-жен'!C:E,3,FALSE)) ->  | J197: =J196 -> Костанайская обл. | Q197: 40 | R197: 196 | S197: 200 | T197: 196-200 | V197: =IF(C197="","",SUMIF('R-жен0'!C:C,C197,'R-жен0'!B:B)) ->  | W197: =IF(C197="","",SUMIF('R-жен0'!C:C,C197,'R-жен0'!I:I)) ->  | X197: =IF(C197="","",SUMIF('R-жен'!C:C,C197,'R-жен'!B:B)) ->  | Y197: =IF(C197="","",SUMIF('R-жен'!C:C,C197,'R-жен'!I:I)) ->  | Z197: 0 | AA197: =SUMIF(Список!$C:$C,C197,Список!$U:$U) -> 0
A198: 249 | B198: 49 | D198: =IF(C198="","",VLOOKUP(C198,'R-жен'!C:E,2,FALSE)) ->  | F198: =IF(X198=0,V198,X198) ->  | G198: =IF(C198="","",VLOOKUP(C198,'R-жен'!C:E,3,FALSE)) ->  | J198: Костанайская обл. | Q198: 40 | R198: 196 | S198: 200 | T198: 196-200 | V198: =IF(C198="","",SUMIF('R-жен0'!C:C,C198,'R-жен0'!B:B)) ->  | W198: =IF(C198="","",SUMIF('R-жен0'!C:C,C198,'R-жен0'!I:I)) ->  | X198: =IF(C198="","",SUMIF('R-жен'!C:C,C198,'R-жен'!B:B)) ->  | Y198: =IF(C198="","",SUMIF('R-жен'!C:C,C198,'R-жен'!I:I)) ->  | Z198: 0 | AA198: =SUMIF(Список!$C:$C,C198,Список!$U:$U) -> 0
A199: 250 | B199: 50 | D199: =IF(C199="","",VLOOKUP(C199,'R-жен'!C:E,2,FALSE)) ->  | G199: =IF(C199="","",VLOOKUP(C199,'R-жен'!C:E,3,FALSE)) ->  | J199: =J198 -> Костанайская обл. | M199: =MID(C199,1,SEARCH(" ",C199)-1) ->  | N199: =MID(C199,SEARCH(" ",C199)+1,1) ->  | O199: =CONCATENATE(M199," ",N199,".") ->  | Q199: 40 | R199: 196 | S199: 200 | T199: 196-200 | V199: =IF(C199="","",SUMIF('R-жен0'!C:C,C199,'R-жен0'!B:B)) ->  | W199: =IF(C199="","",SUMIF('R-жен0'!C:C,C199,'R-жен0'!I:I)) ->  | X199: =IF(C199="","",SUMIF('R-жен'!C:C,C199,'R-жен'!B:B)) ->  | Y199: =IF(C199="","",SUMIF('R-жен'!C:C,C199,'R-жен'!I:I)) ->  | Z199: 0 | AA199: =SUMIF(Список!$C:$C,C199,Список!$U:$U) -> 0
A200: 251 | B200: 51 | D200: =IF(C200="","",VLOOKUP(C200,'R-жен'!C:E,2,FALSE)) ->  | F200: =IF(X200=0,V200,X200) ->  | G200: =IF(C200="","",VLOOKUP(C200,'R-жен'!C:E,3,FALSE)) ->  | I200: Кызылординская обл. | J200: =I200 -> Кызылординская обл. | K200: Ибрай Е.Қ., Искакова Г.Г.,Орынбасарова Д. | P200: 41 | Q200: =P200 -> 41 | R200: 201 | S200: 205 | T200: 201-205 | U200: Кызылординская область | V200: =IF(C200="","",SUMIF('R-жен0'!C:C,C200,'R-жен0'!B:B)) ->  | W200: =IF(C200="","",SUMIF('R-жен0'!C:C,C200,'R-жен0'!I:I)) ->  | X200: =IF(C200="","",SUMIF('R-жен'!C:C,C200,'R-жен'!B:B)) ->  | Y200: =IF(C200="","",SUMIF('R-жен'!C:C,C200,'R-жен'!I:I)) ->  | Z200: =L200 -> 0 | AA200: =SUMIF(Список!$C:$C,C200,Список!$U:$U) -> 0
A201: 252 | B201: 52 | D201: =IF(C201="","",VLOOKUP(C201,'R-жен'!C:E,2,FALSE)) ->  | F201: =IF(X201=0,V201,X201) ->  | G201: =IF(C201="","",VLOOKUP(C201,'R-жен'!C:E,3,FALSE)) ->  | J201: =J200 -> Кызылординская обл. | Q201: =Q200 -> 41 | R201: 201 | S201: 205 | T201: 201-205 | V201: =IF(C201="","",SUMIF('R-жен0'!C:C,C201,'R-жен0'!B:B)) ->  | W201: =IF(C201="","",SUMIF('R-жен0'!C:C,C201,'R-жен0'!I:I)) ->  | X201: =IF(C201="","",SUMIF('R-жен'!C:C,C201,'R-жен'!B:B)) ->  | Y201: =IF(C201="","",SUMIF('R-жен'!C:C,C201,'R-жен'!I:I)) ->  | Z201: =Z200 -> 0 | AA201: =SUMIF(Список!$C:$C,C201,Список!$U:$U) -> 0
... 120 more rows

Sheet R-муж (hidden)
A1: Место | B1: Рейтинг | C1: Фамилия Имя | D1: Дата рождения | E1: Населенный пункт | F1: Регион | H1: 2024-04-02 | J1: Rи | K1: N | O1: Nж | P1: Rж | Q1: Ф.И.О. | R1: Гр | S1: Город | U1: Rи | V1: N
A2: 75 | B2: 38 | C2: МУРАТКАЛИЕВ Нурсултан | D2: 12.03.1994 | E2: Абайская обл. | F2: Абайская обл. | I2: 1 | J2: 38 | K2: 16 | O2: 1 | P2: 77 | Q2: ГЕРАСИМЕНКО Кирилл | R2: 18.12.1996 | S2: г. Астана | U2: 80 | V2: 10
A3: 86 | B3: 35 | C3: ТОҚТАРХАН Тілек | D3: 06.12.2006 | E3: Абайская обл. | F3: Абайская обл. | I3: 1 | J3: 35 | K3: 25 | O3: 2 | P3: 74 | Q3: КУРМАНГАЛИЕВ Алан | R3: 12.01.2007 | S3: Карагандинская обл. | U3: 74 | V3: 20
A4: 110 | B4: 31 | C4: ТУРСЫНТАЕВ Арман | D4: 23.11.2004 | E4: Абайская обл. | F4: Абайская обл. | I4: 1 | J4: 31 | K4: 8 | O4: 3 | P4: 65 | Q4: КЕНЖИГУЛОВ Айдос | R4: 07.06.2000 | S4: г. Алматы | U4: 65 | V4: 28
A5: 111 | B5: 31 | C5: НУРАНОВ Арман | D5: 02.09.1995 | E5: Абайская обл. | F5: Абайская обл. | I5: 1 | J5: 31 | K5: 8 | O5: 4 | P5: 62 | Q5: АРТУКМЕТОВ Ирисбек | R5: 18.08.2002 | S5: г. Шымкент | U5: 62 | V5: 29
A6: 237 | B6: 18 | C6: ОБЕРМИЛЛЕР Алексей | D6: 26.08.2006 | E6: Абайская обл. | F6: Абайская обл. | I6: 1 | J6: 18 | K6: 11 | O6: 5 | P6: 62 | Q6: КУРМАМБАЕВ Сагантай | R6: 02.06.2003 | S6: ВКО | U6: 62 | V6: 28
A7: 319 | B7: 9 | C7: ЕРЛАНУЛЫ Акежан | D7: 13.01.2012 | E7: Абайская обл. | F7: Абайская обл. | I7: 1 | J7: 9 | K7: 20 | O7: 6 | P7: 62 | Q7: ЗАХАРОВ Владислав | R7: 31.10.1997 | S7: Карагандинская обл. | U7: 62 | V7: 26
A8: 332 | B8: 7 | C8: ДУБГОРН Александр | D8: 02.08.2006 | E8: Абайская обл. | F8: Абайская обл. | I8: 1 | J8: 10 | K8: 1 | O8: 7 | P8: 62 | Q8: ЖОЛУДЕВ Денис | R8: 28.07.1993 | S8: ВКО | U8: 62 | V8: 21
A9: 346 | B9: 5 | C9: ИСКАКОВ Ильяс | D9: 12.12.2010 | E9: Абайская обл. | F9: Абайская обл. | I9: 1 | J9: 5 | K9: 2 | O9: 8 | P9: 61 | Q9: ХАРКИ Искандер | R9: 17.05.2003 | S9: Жамбылская обл. | U9: 61 | V9: 32
A10: 352 | B10: 3 | C10: ОБЕРМИЛЛЕР Алексей | D10: 07.03.2011 | E10: Абайская обл. | F10: Абайская обл. | I10: 1 | J10: 3 | K10: 4 | O10: 9 | P10: 60 | Q10: РАЙТЕР Эрик | R10: 25.07.1996 | S10: Карагандинская обл. | U10: 62 | V10: 9
A11: 353 | B11: 3 | C11: ЖУМАНОВ Адлет | D11: 29.01.2008 | E11: Абайская обл. | F11: Абайская обл. | I11: 1 | J11: 3 | K11: 3 | O11: 10 | P11: 60 | Q11: ЖУБАНОВ Санжар | R11: 16.04.2003 | S11: г. Алматы | U11: 60 | V11: 30
B12: 0 | C12: ГАЛЫМБЕКОВ Елхан | D12: 2011-02-11 | E12: Абайская обл. | F12: Абайская обл. | I12: 1 | J12: 0 | K12: 0 | O12: 11 | P12: 57 | Q12: КЕЛЬБУГАНОВ Тимур | R12: 02.04.1991 | S12: г. Алматы | U12: 61 | V12: 5
B13: 0 | C13: ИСКАКОВ Ильяс | D13: 2010-12-12 | E13: Абайская обл. | F13: Абайская обл. | I13: 1 | J13: 0 | K13: 0 | O13: 12 | P13: 57 | Q13: КЕНЖИГУЛОВ Дастан | R13: 14.01.1998 | S13: г. Алматы | U13: 57 | V13: 26
B14: 0 | C14: КЕНЖЕГАРИНОВ Әмір | D14: 2011-06-25 | E14: Абайская обл. | F14: Абайская обл. | I14: 1 | J14: 0 | K14: 0 | O14: 13 | P14: 57 | Q14: ЖАМАЛ Бекулан | R14: 12.01.1996 | S14: г. Шымкент | U14: 57 | V14: 16
B15: 0 | C15: ОБЕРМИЛЛЕР Алексей | D15: 2011-03-07 | E15: Абайская обл. | F15: Абайская обл. | I15: 1 | J15: 0 | K15: 0 | O15: 14 | P15: 56 | Q15: БЕЙСЕНОВ Самат | R15: 30.03.1987 | S15: г. Алматы | U15: 58 | V15: 8
B16: 0 | C16: РЫМТАЕВ Алинур | D16: 2011-09-23 | E16: Абайская обл. | F16: Абайская обл. | I16: 1 | J16: 0 | K16: 0 | O16: 15 | P16: 54 | Q16: КОНОВАЛОВ Сергей | R16: 14.04.2000 | S16: ВКО | U16: 54 | V16: 27
B17: 0 | C17: САУЛЕТБЕКОВ Ерасыл | D17: 2009-08-03 | E17: Абайская обл. | F17: Абайская обл. | I17: 1 | J17: 0 | K17: 0 | O17: 16 | P17: 54 | Q17: БЕЙСАЛИЕВ Тимур | R17: 13.04.1980 | S17: г. Алматы | U17: 54 | V17: 23
B18: 0 | C18: ТАЙТӨЛЕУОВ Зангар | D18: 2009-01-10 | E18: Абайская обл. | F18: Абайская обл. | I18: 1 | J18: 0 | K18: 0 | O18: 17 | P18: 52 | Q18: ПЕРЕВЕРЗЕВ Андрей | R18: 17.11.1977 | S18: г. Алматы | U18: 54 | V18: 9
B19: 0 | C19: ТУРСЫНТАЕВ Арман | D19: 2004-11-23 | E19: Абайская обл. | F19: Абайская обл. | I19: 1 | J19: 0 | K19: 0 | O19: 18 | P19: 52 | Q19: САГИМБАЕВ Асет | R19: 07.06.1993 | S19: Актюбинская обл. | U19: 54 | V19: 8
B20: 0 | C20: ДӘУІТ Қожа-Ахмет | D20: 2009-02-10 | E20: Акмолинск. обл. | F20: Акмолинск. обл. | I20: 1 | J20: 0 | K20: 0 | O20: 19 | P20: 52 | Q20: ШИ Данян | R20: 28.10.2006 | S20: г. Алматы | U20: 52 | V20: 26
B21: 0 | C21: ЗАБАНОВ Филипп | D21: 2009-02-05 | E21: Акмолинск. обл. | F21: Акмолинск. обл. | I21: 1 | J21: 0 | K21: 0 | O21: 20 | P21: 52 | Q21: АКИМАЛИ Бакдаулет | R21: 20.04.2001 | S21: г. Шымкент | U21: 52 | V21: 25
B22: 0 | C22: НҰРБЕК Мансұр | D22: 11,03.2011 | E22: Акмолинск. обл. | F22: Акмолинск. обл. | I22: 1 | J22: 0 | K22: 0 | O22: 21 | P22: 51 | Q22: МАМАЙ Абдулла | R22: 19.01.2006 | S22: г. Алматы | U22: 51 | V22: 29
B23: 0 | C23: ТАНҚЫБАЙ Абдуррахман | D23: 2012-02-21 | E23: Акмолинск. обл. | F23: Акмолинск. обл. | I23: 1 | J23: 0 | K23: 0 | O23: 22 | P23: 51 | Q23: ИРИСАЛИЕВ Сарвар | R23: 24.09.1999 | S23: г. Шымкент | U23: 51 | V23: 19
A24: 44 | B24: 45 | C24: СУРТУБАЕВ Марат | D24: 15.03.1972 | E24: Акмолинская обл. | F24: Акмолинская обл. | I24: 1 | J24: 45 | K24: 19 | O24: 23 | P24: 50 | Q24: ГЕРАСИМЕНКО Тимофей | R24: 04.05.2004 | S24: г. Астана | U24: 50 | V24: 32
A25: 204 | B25: 20 | C25: САЛАМАТОВ Кобеген | D25: 19.12.1967 | E25: Акмолинская обл. | F25: Акмолинская обл. | I25: 1 | J25: 20 | K25: 30 | O25: 24 | P25: 50 | Q25: КИМ Темирлан | R25: 02.06.2004 | S25: Карагандинская обл. | U25: 50 | V25: 16
A26: 228 | B26: 18 | C26: КАПЫШЕВ Нуржан | D26: 06.03.1963 | E26: Акмолинская обл. | F26: Акмолинская обл. | I26: 1 | J26: 18 | K26: 27 | O26: 25 | P26: 50 | Q26: МИЩУК Алексей | R26: 16.07.1975 | S26: Павлодарская обл. | U26: 50 | V26: 13
A27: 264 | B27: 15 | C27: КУЖУНТАЕВ Кайрат | D27: 27.10.1982 | E27: Акмолинская обл. | F27: Акмолинская обл. | I27: 1 | J27: 15 | K27: 27 | O27: 26 | P27: 49 | Q27: ДАНИЯРОВ Гаип | R27: 09.09.1986 | S27: Костанайская обл | U27: 55 | V27: 3
A28: 266 | B28: 15 | C28: ЗАБАНОВ Филипп | D28: 05.02.2009 | E28: Акмолинская обл. | F28: Акмолинская обл. | I28: 1 | J28: 15 | K28: 25 | O28: 27 | P28: 49 | Q28: ГЕРАСИМЕНКО Александр | R28: 13.02.1992 | S28: г. Астана | U28: 49 | V28: 30
A29: 270 | B29: 15 | C29: ЕРАЛЫ Айдар | D29: 06.08.2009 | E29: Акмолинская обл. | F29: Акмолинская обл. | I29: 1 | J29: 15 | K29: 21 | O29: 28 | P29: 49 | Q29: ПОПОВ Дмитрий | R29: 27.08.1983 | S29: Карагандинская обл. | U29: 49 | V29: 17
A30: 288 | B30: 13 | C30: КУАТБЕКОВ Серик | D30: 12.01.2004 | E30: Акмолинская обл. | F30: Акмолинская обл. | I30: 1 | J30: 13 | K30: 18 | O30: 29 | P30: 49 | Q30: МАРХАБАЕВ Деас | R30: 25.04.1996 | S30: Актюбинская обл. | U30: 49 | V30: 12
A31: 294 | B31: 12 | C31: АЙСА Бауржан | D31: 20.03.1969 | E31: Акмолинская обл. | F31: Акмолинская обл. | I31: 1 | J31: 12 | K31: 25 | O31: 30 | P31: 48 | Q31: НАРУБАЕВ Алибек | R31: 26.12.1971 | S31: ВКО | U31: 50 | V31: 7
A32: 326 | B32: 8 | C32: АХМЕТОВ Саят | D32: 14.10.1977 | E32: Акмолинская обл. | F32: Акмолинская обл. | I32: 1 | J32: 8 | K32: 15 | O32: 31 | P32: 48 | Q32: КАБДЫЛУАХИТОВ Кадырали | R32: 10.08.2007 | S32: Павлодарская обл. | U32: 48 | V32: 31
B33: 0 | C33: БИСЕКЕНОВ Назар | D33: 2009-03-22 | E33: Актюбинск. обл. | F33: Актюбинск. обл. | I33: 1 | J33: 0 | K33: 0 | O33: 32 | P33: 48 | Q33: ГИЛЯЗОВ Роман | R33: 12.12.1982 | S33: г. Астана | U33: 48 | V33: 30
B34: 0 | C34: ЕСЕНГЕЛДІ Қуантқан | D34: 2010-01-03 | E34: Актюбинск. обл. | F34: Актюбинск. обл. | I34: 1 | J34: 0 | K34: 0 | O34: 33 | P34: 48 | Q34: ТОРГАЙБЕКОВ Амир | R34: 14.02.2006 | S34: Карагандинская обл. | U34: 48 | V34: 27
B35: 0 | C35: СМАҒУЛ Мансур | D35: 2009-02-19 | E35: Актюбинск. обл. | F35: Актюбинск. обл. | I35: 1 | J35: 0 | K35: 0 | O35: 34 | P35: 47 | Q35: ГОРБЕНКО Глеб | R35: 08.11.2002 | S35: г. Алматы | U35: 50 | V35: 6
B36: 0 | C36: НУРЫМБЕТОВ Нуржан | D36: 2008-05-29 | E36: Актюбинск. обл. | F36: Актюбинск. обл. | I36: 1 | J36: 0 | K36: 0 | O36: 35 | P36: 47 | Q36: ДИЛЬМАН Константин | R36: 11.08.1978 | S36: Карагандинская обл. | U36: 47 | V36: 13
B37: 0 | C37: БОХАНОВ Алишер | D37: 2004-04-13 | E37: Актюбинск. обл. | F37: Актюбинск. обл. | I37: 1 | J37: 0 | K37: 0 | O37: 36 | P37: 46 | Q37: ЖАНАЙ Есенгелды | R37: 23.06.1999 | S37: Актюбинская обл. | U37: 48 | V37: 10
A38: 18 | B38: 52 | C38: САГИМБАЕВ Асет | D38: 07.06.1993 | E38: Актюбинская обл. | F38: Актюбинская обл. | I38: 1 | J38: 54 | K38: 8 | O38: 37 | P38: 46 | Q38: ХАЛИЛОВ Роман | R38: 31.10.1994 | S38: г. Астана | U38: 46 | V38: 25
A39: 29 | B39: 49 | C39: МАРХАБАЕВ Деас | D39: 25.04.1996 | E39: Актюбинская обл. | F39: Актюбинская обл. | I39: 1 | J39: 49 | K39: 12 | O39: 38 | P39: 46 | Q39: САРСЕНБАЙ Дамир | R39: 13.07.2005 | S39: г. Алматы | U39: 46 | V39: 21
A40: 36 | B40: 46 | C40: ЖАНАЙ Есенгелды | D40: 23.06.1999 | E40: Актюбинская обл. | F40: Актюбинская обл. | I40: 1 | J40: 48 | K40: 10 | O40: 39 | P40: 45 | Q40: СОТНИК Кирилл | R40: 19.05.1988 | S40: ВКО | U40: 47 | V40: 10
A41: 45 | B41: 44 | C41: САГЫН Бейбол | D41: 13.03.2000 | E41: Актюбинская обл. | F41: Актюбинская обл. | I41: 1 | J41: 46 | K41: 10 | O41: 40 | P41: 45 | Q41: ТЛЕУБАЕВ Аслан | R41: 07.04.1997 | S41: Костанайская обл | U41: 47 | V41: 7
A42: 97 | B42: 33 | C42: БИРИМГАЛИЕВ Адлет | D42: 03.08.2006 | E42: Актюбинская обл. | F42: Актюбинская обл. | I42: 1 | J42: 33 | K42: 19 | O42: 41 | P42: 45 | Q42: МЕДВЕДЕВ Игорь | R42: 02.04.1968 | S42: г. Алматы | U42: 45 | V42: 32
A43: 119 | B43: 30 | C43: ЖАМАШЕВ Ислам | D43: 26.11.2003 | E43: Актюбинская обл. | F43: Актюбинская обл. | I43: 1 | J43: 30 | K43: 7 | O43: 42 | P43: 45 | Q43: ПАК Данил | R43: 19.10.1989 | S43: г. Астана | U43: 45 | V43: 19
A44: 130 | B44: 29 | C44: КИСАН Наби | D44: 17.01.2010 | E44: Актюбинская обл. | F44: Актюбинская обл. | I44: 1 | J44: 29 | K44: 11 | O44: 43 | P44: 45 | Q44: ПАХНО Максим | R44: 19.01.1988 | S44: СКО | U44: 45 | V44: 19
A45: 135 | B45: 28 | C45: ГАЙНЕДЕНОВ Ерасыл | D45: 01.08.2004 | E45: Актюбинская обл. | F45: Актюбинская обл. | I45: 1 | J45: 28 | K45: 34 | O45: 44 | P45: 45 | Q45: СУРТУБАЕВ Марат | R45: 15.03.1972 | S45: Акмолинская обл. | U45: 45 | V45: 19
A46: 171 | B46: 24 | C46: КИСАН Расул | D46: 15.05.2011 | E46: Актюбинская обл. | F46: Актюбинская обл. | I46: 1 | J46: 24 | K46: 10 | O46: 45 | P46: 44 | Q46: САГЫН Бейбол | R46: 13.03.2000 | S46: Актюбинская обл. | U46: 46 | V46: 10
A47: 213 | B47: 19 | C47: ИБРАЕВ Ерлан | D47: 09.10.1995 | E47: Актюбинская обл. | F47: Актюбинская обл. | I47: 1 | J47: 23 | K47: 2 | O47: 46 | P47: 44 | Q47: ОРАЛХАНОВ Арнур | R47: 28.09.2007 | S47: ВКО | U47: 44 | V47: 32
A48: 289 | B48: 13 | C48: АМАНКУС Куаныш | D48: 07.04.2011 | E48: Актюбинская обл. | F48: Актюбинская обл. | I48: 1 | J48: 13 | K48: 14 | O48: 47 | P48: 44 | Q48: БОНДАРЕВ Павел | R48: 25.10.1963 | S48: г. Алматы | U48: 44 | V48: 21
A49: 299 | B49: 12 | C49: БОХАНОВ Алишер | D49: 13.04.2004 | E49: Актюбинская обл. | F49: Актюбинская обл. | I49: 1 | J49: 12 | K49: 3 | O49: 48 | P49: 43 | Q49: КАСЫМ Нурислам | R49: 26.12.2008 | S49: г. Шымкент | U49: 43 | V49: 30
A50: 306 | B50: 11 | C50: НУРЫМБЕТОВ Нуржан | D50: 29.05.2008 | E50: Актюбинская обл. | F50: Актюбинская обл. | I50: 1 | J50: 11 | K50: 8 | O50: 49 | P50: 43 | Q50: НУГАЙ Нурдаулет | R50: 18.07.2004 | S50: г. Шымкент | U50: 43 | V50: 24
A51: 315 | B51: 10 | C51: ТУРАЛ Ануар | D51: 11.12.2006 | E51: Актюбинская обл. | F51: Актюбинская обл. | I51: 1 | J51: 10 | K51: 2 | O51: 50 | P51: 42 | Q51: ДЖИЕНБАЕВ Темирлан | R51: 02.11.2006 | S51: ВКО | U51: 42 | V51: 25
A52: 358 | B52: 2 | C52: СМАГУЛ Мансур | D52: 19.02.2009 | E52: Актюбинская обл. | F52: Актюбинская обл. | I52: 1 | J52: 2 | K52: 2 | O52: 51 | P52: 42 | Q52: НИЕТКАЛИЕВ Болат | R52: 26.05.2005 | S52: ЗКО | U52: 42 | V52: 23
B53: 0 | C53: БЕКБОСЫНОВ Бексултан | D53: 2010-01-23 | E53: Алматинск. обл. | F53: Алматинск. обл. | I53: 1 | J53: 0 | K53: 0 | O53: 52 | P53: 41 | Q53: ИБАТ Абилсеит | R53: 12.11.2000 | S53: ЗКО | U53: 41 | V53: 29
B54: 0 | C54: ЕСІРКЕП Нұрислам | D54: 2010-01-26 | E54: Алматинск. обл. | F54: Алматинск. обл. | I54: 1 | J54: 0 | K54: 0 | O54: 53 | P54: 41 | Q54: ТОЛСУБАЕВ Меиржан | R54: 23.01.2005 | S54: ВКО | U54: 41 | V54: 24
B55: 0 | C55: КУЗЬМИН Данил | D55: 2011-03-14 | E55: Алматинск. обл. | F55: Алматинск. обл. | I55: 1 | J55: 0 | K55: 0 | O55: 54 | P55: 41 | Q55: ДУЙСЕНБАЙ Есенали | R55: 15.10.1997 | S55: г. Астана | U55: 41 | V55: 21
B56: 0 | C56: РАУХАН Роллан | D56: 2010-02-26 | E56: Алматинск. обл. | F56: Алматинск. обл. | I56: 1 | J56: 0 | K56: 0 | O56: 55 | P56: 41 | Q56: ХЕН Алексей | R56: 01.02.1974 | S56: г. Алматы | U56: 41 | V56: 21
B57: 0 | C57: ХАЙТБАЕВ Нурбол | D57: 2010-05-12 | E57: Алматинск. обл. | F57: Алматинск. обл. | I57: 1 | J57: 0 | K57: 0 | O57: 56 | P57: 40 | Q57: ХАРКИ Абдул-Маджид | R57: 07.01.2004 | S57: Жамбылская обл. | U57: 40 | V57: 35
A58: 137 | B58: 28 | C58: КАМАЛ Кенжебек | D58: 22.05.1995 | E58: Алматинская обл. | F58: Алматинская обл. | I58: 1 | J58: 28 | K58: 27 | O58: 57 | P58: 40 | Q58: НУРМАТОВ Зиятжан | R58: 14.06.2004 | S58: Карагандинская обл. | U58: 40 | V58: 31
B59: 0 | C59: АЙСАНҒАЛЫ Әбілмансур | D59: 2009-11-15 | E59: Атырауск. обл. | F59: Атырауск. обл. | I59: 1 | J59: 0 | K59: 0 | O59: 58 | P59: 40 | Q59: МАКСИМОВ Александр | R59: 03.08.1981 | S59: г. Алматы | U59: 40 | V59: 31
B60: 0 | C60: ДЖУМАЖАНОВ Али | D60: 2011-02-22 | E60: Атырауск. обл. | F60: Атырауск. обл. | I60: 1 | J60: 0 | K60: 0 | O60: 59 | P60: 40 | Q60: САДЫКОВ Алмаз | R60: 26.07.1984 | S60: г. Астана | U60: 40 | V60: 29
B61: 0 | C61: ИБРАГИМ Бекарыс | D61: 2010-07-06 | E61: Атырауск. обл. | F61: Атырауск. обл. | I61: 1 | J61: 0 | K61: 0 | O61: 60 | P61: 40 | Q61: ШИ Ченян | R61: 27.04.2005 | S61: г. Алматы | U61: 40 | V61: 27
B62: 0 | C62: МАҚСОТ Батырхан | D62: 2009-05-25 | F62: Атырауск. обл. | I62: 1 | J62: 0 | K62: 0 | O62: 61 | P62: 40 | Q62: КИМ Никонор | R62: 27.09.1959 | S62: г. Алматы | U62: 40 | V62: 25
B63: 0 | C63: ТОЛЕШ Расул | D63: 2010-12-22 | E63: Атырауск. обл. | F63: Атырауск. обл. | I63: 1 | J63: 0 | K63: 0 | O63: 62 | P63: 40 | Q63: ГЕРАСИМЕНКО Геннадий | R63: 10.09.1968 | S63: г. Астана | U63: 40 | V63: 19
A64: 141 | B64: 28 | C64: МАКУЛБЕКОВ Али | D64: 10.06.2002 | E64: Атырауская обл. | F64: Атырауская обл. | I64: 1 | J64: 28 | K64: 15 | O64: 63 | P64: 39 | Q64: ИСКАКОВ Асхат | R64: 12.12.1979 | S64: Павлодарская обл. | U64: 43 | V64: 4
A65: 189 | B65: 21 | C65: АБЕЛЬДИНОВ Дамир | D65: 20.12.1986 | E65: Атырауская обл. | F65: Атырауская обл. | I65: 1 | J65: 21 | K65: 36 | O65: 64 | P65: 39 | Q65: НАЗИР Рамазан | R65: 05.09.2008 | S65: Туркестанская обл. | U65: 39 | V65: 30
A66: 308 | B66: 10 | C66: ОРЫНБАСАР Ернар | D66: 26.03.2006 | E66: Атырауская обл. | F66: Атырауская обл. | I66: 1 | J66: 10 | K66: 18 | O66: 65 | P66: 39 | Q66: БЕСБАЙ Жасулан | R66: 03.11.1999 | S66: г. Шымкент | U66: 39 | V66: 25
A67: 322 | B67: 8 | C67: НАСИХАН Муханбет | D67: 26.06.2001 | E67: Атырауская обл. | F67: Атырауская обл. | I67: 1 | J67: 12 | K67: 1 | O67: 66 | P67: 39 | Q67: ЯКОВЛЕВ Антон | R67: 20.02.1989 | S67: г. Алматы | U67: 39 | V67: 20
A68: 345 | B68: 5 | C68: ГАЙДАР Медеу | D68: 28.07.2008 | E68: Атырауская обл. | F68: Атырауская обл. | I68: 1 | J68: 5 | K68: 4 | O68: 67 | P68: 38 | Q68: ДАРХАНБАЙ Нурпеис | R68: 05.02.2001 | S68: г. Шымкент | U68: 41 | V68: 4
A69: 350 | B69: 4 | C69: НҰРБЕКҰЛЫ Ақылбек | D69: 01.09.2005 | E69: Атырауская обл. | F69: Атырауская обл. | I69: 1 | J69: 4 | K69: 5 | O69: 68 | P69: 38 | Q69: САЙЛАУХАНОВ Динасыл | R69: 28.12.2008 | S69: ВКО | U69: 40 | V69: 6
A70: 362 | B70: 1 | C70: ТОЛЕШ Расул | D70: 22.12.2010 | E70: Атырауская обл. | F70: Атырауская обл. | I70: 1 | J70: 1 | K70: 2 | O70: 69 | P70: 38 | Q70: АМАНГЕЛДЫ Амир | R70: 20.04.2005 | S70: Павлодарская обл. | U70: 38 | V70: 32
A71: 5 | B71: 62 | C71: КУРМАМБАЕВ Сагантай | D71: 02.06.2003 | E71: ВКО | F71: ВКО | I71: 1 | J71: 62 | K71: 28 | O71: 70 | P71: 38 | Q71: ХАЙДАРОВ Рустем | R71: 07.03.1993 | S71: Павлодарская обл. | U71: 38 | V71: 30
A72: 7 | B72: 62 | C72: ЖОЛУДЕВ Денис | D72: 28.07.1993 | E72: ВКО | F72: ВКО | I72: 1 | J72: 62 | K72: 21 | O72: 71 | P72: 38 | Q72: КАСЫМБАЕВ Жандос | R72: 31.01.1991 | S72: г. Алматы | U72: 38 | V72: 29
A73: 15 | B73: 54 | C73: КОНОВАЛОВ Сергей | D73: 14.04.2000 | E73: ВКО | F73: ВКО | I73: 1 | J73: 54 | K73: 27 | O73: 72 | P73: 38 | Q73: ХАЗКЕН Адиль | R73: 02.06.2004 | S73: Павлодарская обл. | U73: 38 | V73: 27
A74: 30 | B74: 48 | C74: НАРУБАЕВ Алибек | D74: 26.12.1971 | E74: ВКО | F74: ВКО | I74: 1 | J74: 50 | K74: 7 | O74: 73 | P74: 38 | Q74: КУЛЬБАЕВ Болат | R74: 02.05.1997 | S74: Павлодарская обл. | U74: 38 | V74: 26
A75: 39 | B75: 45 | C75: СОТНИК Кирилл | D75: 19.05.1988 | E75: ВКО | F75: ВКО | I75: 1 | J75: 47 | K75: 10 | O75: 74 | P75: 38 | Q75: ГОРБЕНКО Дмитрий | R75: 23.09.1969 | S75: г. Алматы | U75: 38 | V75: 23
A76: 46 | B76: 44 | C76: ОРАЛХАНОВ Арнур | D76: 28.09.2007 | E76: ВКО | F76: ВКО | I76: 1 | J76: 44 | K76: 32 | O76: 75 | P76: 38 | Q76: МУРАТКАЛИЕВ Нурсултан | R76: 12.03.1994 | S76: Абайская обл. | U76: 38 | V76: 16
A77: 50 | B77: 42 | C77: ДЖИЕНБАЕВ Темирлан | D77: 02.11.2006 | E77: ВКО | F77: ВКО | I77: 1 | J77: 42 | K77: 25 | O77: 76 | P77: 37 | Q77: КЫСТАУБАЕВ Дамир | R77: 27.11.2005 | S77: г. Алматы | U77: 39 | V77: 6
A78: 53 | B78: 41 | C78: ТОЛСУБАЕВ Меиржан | D78: 23.01.2005 | E78: ВКО | F78: ВКО | I78: 1 | J78: 41 | K78: 24 | O78: 77 | P78: 37 | Q78: ИСКЕНДИРОВ Данияр | R78: 22.09.1991 | S78: Костанайская обл | U78: 37 | V78: 26
A79: 68 | B79: 38 | C79: САЙЛАУХАНОВ Динасыл | D79: 28.12.2008 | E79: ВКО | F79: ВКО | I79: 1 | J79: 40 | K79: 6 | O79: 78 | P79: 37 | Q79: ХУДАЙНАЗАРОВ Бахтиер | R79: 10.02.1974 | S79: г. Алматы | U79: 37 | V79: 25
A80: 92 | B80: 34 | C80: НУРТАЗИН Акнур | D80: 28.08.2005 | E80: ВКО | F80: ВКО | I80: 1 | J80: 34 | K80: 22 | O80: 79 | P80: 36 | Q80: МАРКИН Алексей | R80: 10.10.2010 | S80: г. Алматы | U80: 36 | V80: 37
A81: 133 | B81: 29 | C81: КЕНЕСКАНОВ Дарын | D81: 24.06.2004 | E81: ВКО | F81: ВКО | I81: 1 | J81: 29 | K81: 7 | O81: 80 | P81: 36 | Q81: КУРБАНТАЕВ Мухаммадали | R81: 26.05.2008 | S81: г. Шымкент | U81: 36 | V81: 31
A82: 167 | B82: 24 | C82: КАСЕНОВ Динмухаммед | D82: 11.03.2008 | E82: ВКО | F82: ВКО | I82: 1 | J82: 24 | K82: 21 | O82: 81 | P82: 36 | Q82: ИНЫРБАЕВ Алишер | R82: 27.07.2004 | S82: Павлодарская обл. | U82: 36 | V82: 27
A83: 175 | B83: 23 | C83: ШОМАНОВ Алиби | D83: 20.04.2009 | E83: ВКО | F83: ВКО | I83: 1 | J83: 23 | K83: 27 | O83: 82 | P83: 36 | Q83: АМАНГЕЛДЫУЛЫ Канат | R83: 12.05.1982 | S83: Жетисуская обл. | U83: 36 | V83: 24
A84: 208 | B84: 20 | C84: ТОКТАМЫС Нурбол | D84: 29.10.2009 | E84: ВКО | F84: ВКО | I84: 1 | J84: 20 | K84: 24 | O84: 83 | P84: 35 | Q84: РАМАЗАНОВ Есенгелды | R84: 04.02.2002 | S84: Мангистауская обл. | U84: 39 | V84: 3
A85: 212 | B85: 19 | C85: СОВЕТБЕК Ернат | D85: 30.03.1994 | E85: ВКО | F85: ВКО | I85: 1 | J85: 28 | K85: 1 | O85: 84 | P85: 35 | Q85: ХЕГАЙ Даниил | R85: 20.09.2003 | S85: г. Алматы | U85: 38 | V85: 5
A86: 225 | B86: 18 | C86: КОНОВАЛОВ Валерий | D86: 11.06.2005 | E86: ВКО | F86: ВКО | I86: 1 | J86: 22 | K86: 2 | O86: 85 | P86: 35 | Q86: МОМИНЖАНОВ Адхам | R86: 30.05.2007 | S86: г. Шымкент | U86: 35 | V86: 34
A87: 260 | B87: 16 | C87: САЙЛАУБЕК Бейбарыс | D87: 22.09.2010 | E87: ВКО | F87: ВКО | I87: 1 | J87: 16 | K87: 15 | O87: 86 | P87: 35 | Q87: ТОКТАРХАН Тилек | R87: 06.12.2006 | S87: Абайская обл. | U87: 35 | V87: 25
A88: 275 | B88: 15 | C88: МУХИН Максим | D88: 05.07.1980 | E88: ВКО | F88: ВКО | I88: 1 | J88: 15 | K88: 8 | O88: 87 | P88: 35 | Q88: ДЖУМАДИЕВ Даниял | R88: 21.01.1996 | S88: г. Алматы | U88: 35 | V88: 8
A89: 293 | B89: 12 | C89: МУХАМЕДИЕВ Канат | D89: 10.08.1978 | E89: ВКО | F89: ВКО | I89: 1 | J89: 14 | K89: 2 | O89: 88 | P89: 34 | Q89: МЭЛСОВ Дамир | R89: 25.05.2006 | S89: ЗКО | U89: 34 | V89: 32
A90: 316 | B90: 9 | C90: АКЫЛБЕКОВ Куаныш | D90: 13.06.2010 | E90: ВКО | F90: ВКО | I90: 1 | J90: 14 | K90: 1 | O90: 89 | P90: 34 | Q90: КОТКИН Александр | R90: 22.09.1971 | S90: г. Астана | U90: 34 | V90: 27
B91: 0 | C91: АЗАМАТҰЛЫ Нұрдаулет | D91: 2012-07-22 | E91: ВКО | F91: ВКО | I91: 1 | J91: 0 | K91: 0 | O91: 90 | P91: 34 | Q91: МАРКИН Владимир | R91: 31.05.1963 | S91: г. Алматы | U91: 34 | V91: 25
B92: 0 | C92: АҚЫЛБЕКОВ Қуаныш | D92: 2010-06-13 | E92: ВКО | F92: ВКО | I92: 1 | J92: 0 | K92: 0 | O92: 91 | P92: 34 | Q92: СИПАЧЕВ Артем | R92: 20.02.2004 | S92: Костанайская обл | U92: 34 | V92: 24
B93: 0 | C93: ҚАЛИАСҚАРОВ Ерқанат | D93: 2011-05-08 | E93: ВКО | F93: ВКО | I93: 1 | J93: 0 | K93: 0 | O93: 92 | P93: 34 | Q93: НУРТАЗИН Акнур | R93: 28.08.2005 | S93: ВКО | U93: 34 | V93: 22
B94: 0 | C94: САЙЛАУБЕК Бейбарс | D94: 2010-09-20 | E94: ВКО | F94: ВКО | I94: 1 | J94: 0 | K94: 0 | O94: 93 | P94: 34 | Q94: ХАРКИ Арсмане | R94: 29.06.1971 | S94: Жамбылская обл. | U94: 34 | V94: 17
B95: 0 | C95: СІЛӘМХАНОВ Нұртөре | D95: 2010-04-12 | E95: ВКО | F95: ВКО | I95: 1 | J95: 0 | K95: 0 | O95: 94 | P95: 34 | Q95: АХТАНОВ Олжас | R95: 29.05.1989 | S95: Павлодарская обл. | U95: 34 | V95: 13
A96: 3 | B96: 65 | C96: КЕНЖИГУЛОВ Айдос | D96: 07.06.2000 | E96: г. Алматы | F96: г. Алматы | I96: 1 | J96: 65 | K96: 28 | O96: 95 | P96: 33 | Q96: БАЛТАШ Тамерлан | R96: 17.04.2007 | S96: Костанайская обл | U96: 33 | V96: 26
A97: 10 | B97: 60 | C97: ЖУБАНОВ Санжар | D97: 16.04.2003 | E97: г. Алматы | F97: г. Алматы | I97: 1 | J97: 60 | K97: 30 | O97: 96 | P97: 33 | Q97: АЛЬМАГАМБЕТОВ Айдын | R97: 19.11.2007 | S97: Костанайская обл | U97: 33 | V97: 24
A98: 11 | B98: 57 | C98: КЕЛЬБУГАНОВ Тимур | D98: 02.04.1991 | E98: г. Алматы | F98: г. Алматы | I98: 1 | J98: 61 | K98: 5 | O98: 97 | P98: 33 | Q98: БИРИМГАЛИЕВ Адлет | R98: 03.08.2006 | S98: Актюбинская обл. | U98: 33 | V98: 19
A99: 12 | B99: 57 | C99: КЕНЖИГУЛОВ Дастан | D99: 14.01.1998 | E99: г. Алматы | F99: г. Алматы | I99: 1 | J99: 57 | K99: 26 | O99: 98 | P99: 33 | Q99: МУСАБЕКОВ Тлек | R99: 25.12.1974 | S99: Карагандинская обл. | U99: 33 | V99: 17
A100: 14 | B100: 56 | C100: БЕЙСЕНОВ Самат | D100: 30.03.1987 | E100: г. Алматы | F100: г. Алматы | I100: 1 | J100: 58 | K100: 8 | O100: 99 | P100: 32 | Q100: КУАНЫШЕВ Шынгысхан | R100: 09.02.1999 | S100: г. Астана | U100: 32 | V100: 35
A101: 16 | B101: 54 | C101: БЕЙСАЛИЕВ Тимур | D101: 13.04.1980 | E101: г. Алматы | F101: г. Алматы | I101: 1 | J101: 54 | K101: 23 | O101: 100 | P101: 32 | Q101: КАУЫМБАЕВ Адилет | R101: 19.10.1986 | S101: г. Шымкент | U101: 32 | V101: 27
A102: 17 | B102: 52 | C102: ПЕРЕВЕРЗЕВ Андрей | D102: 17.11.1977 | E102: г. Алматы | F102: г. Алматы | I102: 1 | J102: 54 | K102: 9 | O102: 101 | P102: 32 | Q102: АБИЛ Тамерлан | R102: 12.03.2006 | S102: г. Астана | U102: 32 | V102: 25
A103: 19 | B103: 52 | C103: ШИ Данян | D103: 28.10.2006 | E103: г. Алматы | F103: г. Алматы | I103: 1 | J103: 52 | K103: 26 | O103: 102 | P103: 32 | Q103: ХАРКИ Муслим | R103: 15.10.2001 | S103: Жамбылская обл. | U103: 32 | V103: 25
A104: 21 | B104: 51 | C104: МАМАЙ Абдулла | D104: 19.01.2006 | E104: г. Алматы | F104: г. Алматы | I104: 1 | J104: 51 | K104: 29 | O104: 103 | P104: 32 | Q104: АБАТОВ Нурлан | R104: 18.04.1985 | S104: г. Шымкент | U104: 32 | V104: 21
A105: 34 | B105: 47 | C105: ГОРБЕНКО Глеб | D105: 08.11.2002 | E105: г. Алматы | F105: г. Алматы | I105: 1 | J105: 50 | K105: 6 | O105: 104 | P105: 32 | Q105: МУХАНБЕТ АЛИ Даулетбек | R105: 06.06.2002 | S105: Туркестанская обл. | U105: 32 | V105: 19
A106: 38 | B106: 46 | C106: САРСЕНБАЙ Дамир | D106: 13.07.2005 | E106: г. Алматы | F106: г. Алматы | I106: 1 | J106: 46 | K106: 21 | O106: 105 | P106: 32 | Q106: КОНЫСБАЙ Айболат | R106: 12.04.1999 | S106: Туркестанская обл. | U106: 32 | V106: 19
A107: 41 | B107: 45 | C107: МЕДВЕДЕВ Игорь | D107: 02.04.1968 | E107: г. Алматы | F107: г. Алматы | I107: 1 | J107: 45 | K107: 32 | O107: 106 | P107: 32 | Q107: КАРАБАЕВ Ермек | R107: 09.07.1962 | S107: г. Алматы | U107: 32 | V107: 8
A108: 47 | B108: 44 | C108: БОНДАРЕВ Павел | D108: 25.10.1963 | E108: г. Алматы | F108: г. Алматы | I108: 1 | J108: 44 | K108: 21 | O108: 107 | P108: 31 | Q108: АЛМАБЕКОВ Диас | R108: 28.12.1993 | S108: г. Алматы | U108: 31 | V108: 25
A109: 55 | B109: 41 | C109: ХЕН Алексей | D109: 01.02.1974 | E109: г. Алматы | F109: г. Алматы | I109: 1 | J109: 41 | K109: 21 | O109: 108 | P109: 31 | Q109: ЖОЛДЫБАЙ Нуржигит | R109: 26.06.2008 | S109: Туркестанская обл. | U109: 31 | V109: 24
A110: 58 | B110: 40 | C110: МАКСИМОВ Александр | D110: 03.08.1981 | E110: г. Алматы | F110: г. Алматы | I110: 1 | J110: 40 | K110: 31 | O110: 109 | P110: 31 | Q110: КОЙШЫБАЕВ Олжас | R110: 19.12.1986 | S110: г. Алматы | U110: 31 | V110: 22
A111: 60 | B111: 40 | C111: ШИ Ченян | D111: 27.04.2005 | E111: г. Алматы | F111: г. Алматы | I111: 1 | J111: 40 | K111: 27 | O111: 110 | P111: 31 | Q111: ТУРСЫНТАЕВ Арман | R111: 23.11.2004 | S111: Абайская обл. | U111: 31 | V111: 8
A112: 61 | B112: 40 | C112: КИМ Никонор | D112: 27.09.1959 | E112: г. Алматы | F112: г. Алматы | I112: 1 | J112: 40 | K112: 25 | O112: 111 | P112: 31 | Q112: НУРАНОВ Арман | R112: 02.09.1995 | S112: Абайская обл. | U112: 31 | V112: 8
A113: 66 | B113: 39 | C113: ЯКОВЛЕВ Антон | D113: 20.02.1989 | E113: г. Алматы | F113: г. Алматы | I113: 1 | J113: 39 | K113: 20 | O113: 112 | P113: 30 | Q113: САУРБАЙ Бакдаулет | R113: 28.01.2009 | S113: г. Шымкент | U113: 30 | V113: 32
A114: 71 | B114: 38 | C114: КАСЫМБАЕВ Жандос | D114: 31.01.1991 | E114: г. Алматы | F114: г. Алматы | I114: 1 | J114: 38 | K114: 29 | O114: 113 | P114: 30 | Q114: ЛАГУТЦЕВ Владимир | R114: 04.09.1988 | S114: СКО | U114: 30 | V114: 26
A115: 74 | B115: 38 | C115: ГОРБЕНКО Дмитрий | D115: 23.09.1969 | E115: г. Алматы | F115: г. Алматы | I115: 1 | J115: 38 | K115: 23 | O115: 114 | P115: 30 | Q115: АМАН Сабыржан | R115: 29.04.1998 | S115: г. Шымкент | U115: 30 | V115: 25
A116: 76 | B116: 37 | C116: КЫСТАУБАЕВ Дамир | D116: 27.11.2005 | E116: г. Алматы | F116: г. Алматы | I116: 1 | J116: 39 | K116: 6 | O116: 115 | P116: 30 | Q116: КРАШТАЛЕВ Александр | R116: 11.01.1978 | S116: г. Алматы | U116: 30 | V116: 24
A117: 78 | B117: 37 | C117: ХУДАЙНАЗАРОВ Бахтиер | D117: 10.02.1974 | E117: г. Алматы | F117: г. Алматы | I117: 1 | J117: 37 | K117: 25 | O117: 116 | P117: 30 | Q117: РАИМБЕКОВ Талгат | R117: 05.04.1986 | S117: Жамбылская обл. | U117: 30 | V117: 21
A118: 79 | B118: 36 | C118: МАРКИН Алексей | D118: 10.10.2010 | E118: г. Алматы | F118: г. Алматы | I118: 1 | J118: 36 | K118: 37 | O118: 117 | P118: 30 | Q118: ОРЕЛ Артем | R118: 05.08.2002 | S118: Карагандинская обл. | U118: 30 | V118: 19
A119: 84 | B119: 35 | C119: ХЕГАЙ Даниил | D119: 20.09.2003 | E119: г. Алматы | F119: г. Алматы | I119: 1 | J119: 38 | K119: 5 | O119: 118 | P119: 30 | Q119: КАБДЫЛУАХИТОВ Амирали | R119: 20.06.2005 | S119: Павлодарская обл. | U119: 30 | V119: 16
A120: 87 | B120: 35 | C120: ДЖУМАДИЕВ Даниял | D120: 21.01.1996 | E120: г. Алматы | F120: г. Алматы | I120: 1 | J120: 35 | K120: 8 | O120: 119 | P120: 30 | Q120: ЖАМАШЕВ Ислам | R120: 26.11.2003 | S120: Актюбинская обл. | U120: 30 | V120: 7
A121: 90 | B121: 34 | C121: МАРКИН Владимир | D121: 31.05.1963 | E121: г. Алматы | F121: г. Алматы | I121: 1 | J121: 34 | K121: 25 | O121: 120 | P121: 30 | Q121: ОСМАНОВ Жаксылык | R121: 16.06.1994 | S121: Мангистауская обл. | U121: 30 | V121: 7
A122: 106 | B122: 32 | C122: КАРАБАЕВ Ермек | D122: 09.07.1962 | E122: г. Алматы | F122: г. Алматы | I122: 1 | J122: 32 | K122: 8 | O122: 121 | P122: 29 | Q122: БАЯНДИН Эльдар | R122: 02.04.1999 | S122: ЗКО | U122: 44 | V122: 1
A123: 107 | B123: 31 | C123: АЛМАБЕКОВ Диас | D123: 28.12.1993 | E123: г. Алматы | F123: г. Алматы | I123: 1 | J123: 31 | K123: 25 | O123: 122 | P123: 29 | Q123: МАГЗУМБЕКОВ Асылхан | R123: 21.07.2010 | S123: Карагандинская обл. | U123: 29 | V123: 35
A124: 109 | B124: 31 | C124: КОЙШЫБАЕВ Олжас | D124: 19.12.1986 | E124: г. Алматы | F124: г. Алматы | I124: 1 | J124: 31 | K124: 22 | O124: 123 | P124: 29 | Q124: БЕРНИКОВ Кирилл | R124: 15.02.2011 | S124: г. Алматы | U124: 29 | V124: 32
A125: 115 | B125: 30 | C125: КРАШТАЛЕВ Александр | D125: 11.01.1978 | E125: г. Алматы | F125: г. Алматы | I125: 1 | J125: 30 | K125: 24 | O125: 124 | P125: 29 | Q125: БИЯТОВ Ахметбек | R125: 19.05.1991 | S125: г. Алматы | U125: 29 | V125: 30
A126: 123 | B126: 29 | C126: БЕРНИКОВ Кирилл | D126: 15.02.2011 | E126: г. Алматы | F126: г. Алматы | I126: 1 | J126: 29 | K126: 32 | O126: 125 | P126: 29 | Q126: АБДЫХАЛЫК Нурхат | R126: 12.06.2007 | S126: г. Алматы | U126: 29 | V126: 29
A127: 124 | B127: 29 | C127: БИЯТОВ Ахметбек | D127: 19.05.1991 | E127: г. Алматы | F127: г. Алматы | I127: 1 | J127: 29 | K127: 30 | O127: 126 | P127: 29 | Q127: АБИШЕВ Алимжан | R127: 16.04.2008 | S127: Павлодарская обл. | U127: 29 | V127: 28
A128: 125 | B128: 29 | C128: АБДЫХАЛЫК Нурхат | D128: 12.06.2007 | E128: г. Алматы | F128: г. Алматы | I128: 1 | J128: 29 | K128: 29 | O128: 127 | P128: 29 | Q128: ИБАХАН Санжар | R128: 27.10.2009 | S128: Туркестанская обл. | U128: 29 | V128: 22
A129: 131 | B129: 29 | C129: БАЙСАНОВ Канат | D129: 23.05.1982 | E129: г. Алматы | F129: г. Алматы | I129: 1 | J129: 29 | K129: 10 | O129: 128 | P129: 29 | Q129: БОГОЯВЛИНСКИЙ Евгений | R129: 14.02.1988 | S129: Карагандинская обл. | U129: 29 | V129: 19
A130: 132 | B130: 29 | C130: ИДРИСОВ Равиль | D130: 26.08.1984 | E130: г. Алматы | F130: г. Алматы | I130: 1 | J130: 29 | K130: 9 | O130: 129 | P130: 29 | Q130: ТАГАБЕК Зангар | R130: 08.05.2006 | S130: г. Шымкент | U130: 29 | V130: 18
A131: 139 | B131: 28 | C131: СУРАНШИЕВ Нуркен | D131: 03.05.1989 | E131: г. Алматы | F131: г. Алматы | I131: 1 | J131: 28 | K131: 26 | O131: 130 | P131: 29 | Q131: КИСАН Наби | R131: 17.01.2010 | S131: Актюбинская обл. | U131: 29 | V131: 11
A132: 142 | B132: 28 | C132: СОВЕТХАНОВ Еламан | D132: 10.03.1997 | E132: г. Алматы | F132: г. Алматы | I132: 1 | J132: 28 | K132: 12 | O132: 131 | P132: 29 | Q132: БАЙСАНОВ Канат | R132: 23.05.1982 | S132: г. Алматы | U132: 29 | V132: 10
A133: 144 | B133: 27 | C133: ЗАНИН Дмитрий | D133: 14.12.1983 | E133: г. Алматы | F133: г. Алматы | I133: 1 | J133: 27 | K133: 26 | O133: 132 | P133: 29 | Q133: ИДРИСОВ Равиль | R133: 26.08.1984 | S133: г. Алматы | U133: 29 | V133: 9
A134: 147 | B134: 27 | C134: КОСЕТ Талгат | D134: 20.12.1988 | E134: г. Алматы | F134: г. Алматы | I134: 1 | J134: 27 | K134: 8 | O134: 133 | P134: 29 | Q134: КЕНЕСКАНОВ Дарын | R134: 24.06.2004 | S134: ВКО | U134: 29 | V134: 7
A135: 151 | B135: 26 | C135: КАДЫРИ Алихан | D135: 19.03.2010 | E135: г. Алматы | F135: г. Алматы | I135: 1 | J135: 26 | K135: 35 | O135: 134 | P135: 28 | Q135: БУРКИТБАЙ Рамазан | R135: 16.10.2006 | S135: Костанайская обл | U135: 30 | V135: 4
A136: 152 | B136: 26 | C136: КИМ Владислав | D136: 24.05.2004 | E136: г. Алматы | F136: г. Алматы | I136: 1 | J136: 26 | K136: 31 | O136: 135 | P136: 28 | Q136: ГАЙНЕДЕНОВ Ерасыл | R136: 01.08.2004 | S136: Актюбинская обл. | U136: 28 | V136: 34
A137: 153 | B137: 26 | C137: ЛУБАНЦЕВ Сергей | D137: 20.05.1987 | E137: г. Алматы | F137: г. Алматы | I137: 1 | J137: 26 | K137: 29 | O137: 136 | P137: 28 | Q137: АБИЛОВ Асан | R137: 28.09.1987 | S137: г. Астана | U137: 28 | V137: 31
A138: 154 | B138: 26 | C138: САРДАР Сакен | D138: 03.02.1996 | E138: г. Алматы | F138: г. Алматы | I138: 1 | J138: 26 | K138: 12 | O138: 137 | P138: 28 | Q138: КАМАЛ Кенжебек | R138: 22.05.1995 | S138: Алматинская обл. | U138: 28 | V138: 27
A139: 161 | B139: 25 | C139: ЖАКУПЖАНОВ Ернар | D139: 05.01.1991 | E139: г. Алматы | F139: г. Алматы | I139: 1 | J139: 25 | K139: 7 | O139: 138 | P139: 28 | Q139: КОНКУБАЕВ Канат | R139: 22.12.1988 | S139: Костанайская обл | U139: 28 | V139: 27
A140: 164 | B140: 24 | C140: САДЫКОВ Нурбол | D140: 29.01.1992 | E140: г. Алматы | F140: г. Алматы | I140: 1 | J140: 24 | K140: 27 | O140: 139 | P140: 28 | Q140: СУРАНШИЕВ Нуркен | R140: 03.05.1989 | S140: г. Алматы | U140: 28 | V140: 26
A141: 172 | B141: 24 | C141: ХУАТ Ербол | D141: 20.09.1981 | E141: г. Алматы | F141: г. Алматы | I141: 1 | J141: 24 | K141: 9 | O141: 140 | P141: 28 | Q141: ГОЛОДОВ Валентин | R141: 12.08.1987 | S141: СКО | U141: 28 | V141: 25
A142: 179 | B142: 23 | C142: ПАЗИЛБЕКОВ Газиз | D142: 01.09.1990 | E142: г. Алматы | F142: г. Алматы | I142: 1 | J142: 23 | K142: 19 | O142: 141 | P142: 28 | Q142: МАКУЛБЕКОВ Али | R142: 10.06.2002 | S142: Атырауская обл. | U142: 28 | V142: 15
A143: 180 | B143: 22 | C143: НЫГМАНОВ Ернар | D143: 29.06.1965 | E143: г. Алматы | F143: г. Алматы | I143: 1 | J143: 25 | K143: 3 | O143: 142 | P143: 28 | Q143: СОВЕТХАНОВ Еламан | R143: 10.03.1997 | S143: г. Алматы | U143: 28 | V143: 12
A144: 183 | B144: 22 | C144: МЕДЕУОВ Ербол | D144: 31.05.1988 | E144: г. Алматы | F144: г. Алматы | I144: 1 | J144: 22 | K144: 30 | O144: 143 | P144: 27 | Q144: ПОЛАТХАНОВ Рахат | R144: 20.08.2000 | S144: Туркестанская обл. | U144: 33 | V144: 2
A145: 184 | B145: 22 | C145: АХМЕТОВ Саян | D145: 20.10.1987 | E145: г. Алматы | F145: г. Алматы | I145: 1 | J145: 22 | K145: 25 | O145: 144 | P145: 27 | Q145: ЗАНИН Дмитрий | R145: 14.12.1983 | S145: г. Алматы | U145: 27 | V145: 26
A146: 186 | B146: 22 | C146: ТРАВКИН Денис | D146: 07.07.1988 | E146: г. Алматы | F146: г. Алматы | I146: 1 | J146: 22 | K146: 16 | O146: 145 | P146: 27 | Q146: ХАЛИЛОВ Родион | R146: 27.08.2002 | S146: г. Астана | U146: 27 | V146: 23
A147: 190 | B147: 21 | C147: САГАТБЕК Керей | D147: 20.12.2007 | E147: г. Алматы | F147: г. Алматы | I147: 1 | J147: 21 | K147: 32 | O147: 146 | P147: 27 | Q147: ТОРАВЕКОВ Давлатбек | R147: 27.05.2003 | S147: г. Шымкент | U147: 27 | V147: 8
A148: 193 | B148: 21 | C148: КАЛИЕВ Арслан | D148: 17.01.1987 | E148: г. Алматы | F148: г. Алматы | I148: 1 | J148: 21 | K148: 26 | O148: 147 | P148: 27 | Q148: КОСЕТ Талгат | R148: 20.12.1988 | S148: г. Алматы | U148: 27 | V148: 8
A149: 194 | B149: 21 | C149: ИСАНОВ Серик | D149: 19.02.1990 | E149: г. Алматы | F149: г. Алматы | I149: 1 | J149: 21 | K149: 24 | O149: 148 | P149: 27 | Q149: КУРСАБАЕВ Жандос | R149: 20.12.1978 | S149: Жетисуская обл. | U149: 27 | V149: 8
A150: 195 | B150: 21 | C150: САТТАР Самат | D150: 09.07.1996 | E150: г. Алматы | F150: г. Алматы | I150: 1 | J150: 21 | K150: 21 | O150: 149 | P150: 27 | Q150: БЕСКЕМПИРОВ Алибек | R150: 01.10.1994 | S150: г. Астана | U150: 27 | V150: 6
A151: 198 | B151: 21 | C151: ТАЛАПУЛЫ Аян | D151: 15.02.1996 | E151: г. Алматы | F151: г. Алматы | I151: 1 | J151: 21 | K151: 16 | O151: 150 | P151: 26 | Q151: МЫРЗАХУЛ Жаркынбек | R151: 07.05.2003 | S151: Туркестанская обл. | U151: 28 | V151: 6
A152: 199 | B152: 21 | C152: ИЛЬЯСОВ Ринат | D152: 02.12.1995 | E152: г. Алматы | F152: г. Алматы | I152: 1 | J152: 21 | K152: 14 | O152: 151 | P152: 26 | Q152: КАДЫРИ Алихан | R152: 19.03.2010 | S152: г. Алматы | U152: 26 | V152: 35
A153: 200 | B153: 21 | C153: ЗЕЛЕНЕВСКИЙ Вадим | D153: 25.07.2000 | E153: г. Алматы | F153: г. Алматы | I153: 1 | J153: 21 | K153: 12 | O153: 152 | P153: 26 | Q153: КИМ Владислав | R153: 24.05.2004 | S153: г. Алматы | U153: 26 | V153: 31
A154: 201 | B154: 21 | C154: МАТЛЯПОВ Маариф | D154: 25.06.1996 | E154: г. Алматы | F154: г. Алматы | I154: 1 | J154: 21 | K154: 6 | O154: 153 | P154: 26 | Q154: ЛУБАНЦЕВ Сергей | R154: 20.05.1987 | S154: г. Алматы | U154: 26 | V154: 29
A155: 202 | B155: 21 | C155: КЫСТАУБАЕВ Дэниэль | D155: 15.06.2004 | E155: г. Алматы | F155: г. Алматы | I155: 1 | J155: 21 | K155: 5 | O155: 154 | P155: 26 | Q155: САРДАР Сакен | R155: 03.02.1996 | S155: г. Алматы | U155: 26 | V155: 12
A156: 209 | B156: 20 | C156: КЫДЫРБЕК Ербол | D156: 30.11.1984 | E156: г. Алматы | F156: г. Алматы | I156: 1 | J156: 20 | K156: 24 | O156: 155 | P156: 25 | Q156: ЖУМАГУЛ Марлен | R156: 25.10.2011 | S156: г. Шымкент | U156: 25 | V156: 31
A157: 211 | B157: 20 | C157: МЕДЕЛЬХАН Айдын | D157: 16.08.1994 | E157: г. Алматы | F157: г. Алматы | I157: 1 | J157: 20 | K157: 21 | O157: 156 | P157: 25 | Q157: АНУАРБЕКОВ Ерлан | R157: 08.02.1962 | S157: г. Астана | U157: 25 | V157: 30
A158: 217 | B158: 19 | C158: АДЫЛУЛЫ Аршын | D158: 22.04.1990 | E158: г. Алматы | F158: г. Алматы | I158: 1 | J158: 19 | K158: 27 | O158: 157 | P158: 25 | Q158: ШАРИПХАН Табигат | R158: 15.01.2010 | S158: Жетисуская обл. | U158: 25 | V158: 29
A159: 220 | B159: 19 | C159: ТОКУШЕВ Манай | D159: 18.07.1977 | E159: г. Алматы | F159: г. Алматы | I159: 1 | J159: 19 | K159: 25 | O159: 158 | P159: 25 | Q159: НУРМУХАМЕТ Данияр | R159: 27.03.2000 | S159: г. Астана | U159: 25 | V159: 25
A160: 223 | B160: 19 | C160: МАТКАРИМОВ Алдияр | D160: 19.07.2008 | E160: г. Алматы | F160: г. Алматы | I160: 1 | J160: 19 | K160: 9 | O160: 159 | P160: 25 | Q160: АБИШЕВ Арнур | R160: 01.03.1984 | S160: Жетисуская обл. | U160: 25 | V160: 24
A161: 224 | B161: 18 | C161: КАТПУШЕВ Мадияр | D161: 23.12.1988 | E161: г. Алматы | F161: г. Алматы | I161: 1 | J161: 27 | K161: 1 | O161: 160 | P161: 25 | Q161: ШЕКТИБАЙ Бауыржан | R161: 11.01.2008 | S161: Туркестанская обл. | U161: 25 | V161: 20
A162: 226 | B162: 18 | C162: ХАН Сергей | D162: 21.01.1973 | E162: г. Алматы | F162: г. Алматы | I162: 1 | J162: 20 | K162: 4 | O162: 161 | P162: 25 | Q162: ЖАКУПЖАНОВ Ернар | R162: 05.01.1991 | S162: г. Алматы | U162: 25 | V162: 7
A163: 227 | B163: 18 | C163: ЕРИМБЕТОВ Толеген | D163: 29.06.1974 | E163: г. Алматы | F163: г. Алматы | I163: 1 | J163: 20 | K163: 3 | O163: 162 | P163: 25 | Q163: БАЙГАЗИНОВ Руслан | R163: 19.02.1986 | S163: Костанайская обл | U163: 25 | V163: 7
A164: 229 | B164: 18 | C164: НИ Андрей | D164: 02.02.1994 | E164: г. Алматы | F164: г. Алматы | I164: 1 | J164: 18 | K164: 25 | O164: 163 | P164: 24 | Q164: БЕКБУЛАТОВ Ернур | R164: 02.12.1991 | S164: Павлодарская обл. | U164: 24 | V164: 32
A165: 230 | B165: 18 | C165: ЖАКУПЖАНОВ Арман | D165: 22.08.1983 | E165: г. Алматы | F165: г. Алматы | I165: 1 | J165: 18 | K165: 24 | O165: 164 | P165: 24 | Q165: САДЫКОВ Нурбол | R165: 29.01.1992 | S165: г. Алматы | U165: 24 | V165: 27
A166: 232 | B166: 18 | C166: САГАТБЕКОВ Азамат | D166: 01.01.1986 | E166: г. Алматы | F166: г. Алматы | I166: 1 | J166: 18 | K166: 22 | O166: 165 | P166: 24 | Q166: ОВЧИННИКОВ Евгений | R166: 19.05.1980 | S166: г. Астана | U166: 24 | V166: 27
A167: 234 | B167: 18 | C167: КОТЛОВ Даниил | D167: 01.06.1995 | E167: г. Алматы | F167: г. Алматы | I167: 1 | J167: 18 | K167: 17 | O167: 166 | P167: 24 | Q167: СЕРДЮК Владислав | R167: 14.08.2004 | S167: г. Астана | U167: 24 | V167: 26
A168: 235 | B168: 18 | C168: ЛУКЬЯНЧЕНКО Алексей | D168: 30.01.1981 | E168: г. Алматы | F168: г. Алматы | I168: 1 | J168: 18 | K168: 14 | O168: 167 | P168: 24 | Q168: КАСЕНОВ Динмухаммед | R168: 11.03.2008 | S168: ВКО | U168: 24 | V168: 21
A169: 239 | B169: 17 | C169: ТАШТАНБЕКОВ Билал | D169: 22.10.2009 | E169: г. Алматы | F169: г. Алматы | I169: 1 | J169: 17 | K169: 29 | O169: 168 | P169: 24 | Q169: ТОЛЕБАЕВ Самат | R169: 28.01.2008 | S169: Туркестанская обл. | U169: 24 | V169: 21
A170: 241 | B170: 17 | C170: ШАБАШОВ Сергей | D170: 15.09.1981 | E170: г. Алматы | F170: г. Алматы | I170: 1 | J170: 17 | K170: 25 | O170: 169 | P170: 24 | Q170: ТУРТБАЕВ Азамат | R170: 23.07.1991 | S170: Кызылординская обл. | U170: 24 | V170: 14
A171: 244 | B171: 17 | C171: ТУЛЕНГУТОВ Бекжан | D171: 05.11.1993 | E171: г. Алматы | F171: г. Алматы | I171: 1 | J171: 17 | K171: 23 | O171: 170 | P171: 24 | Q171: КРАУЗЕ Павел | R171: 25.08.2009 | S171: Павлодарская обл. | U171: 24 | V171: 13
A172: 245 | B172: 17 | C172: КИМ Алексей | D172: 10.09.1996 | E172: г. Алматы | F172: г. Алматы | I172: 1 | J172: 17 | K172: 21 | O172: 171 | P172: 24 | Q172: КИСАН Расул | R172: 15.05.2011 | S172: Актюбинская обл. | U172: 24 | V172: 10
A173: 246 | B173: 17 | C173: ОРАЗБЕК Азамат | D173: 05.09.1995 | E173: г. Алматы | F173: г. Алматы | I173: 1 | J173: 17 | K173: 16 | O173: 172 | P173: 24 | Q173: ХУАТ Ербол | R173: 20.09.1981 | S173: г. Алматы | U173: 24 | V173: 9
A174: 248 | B174: 17 | C174: ГИРЕНКО Олег | D174: 05.04.1973 | E174: г. Алматы | F174: г. Алматы | I174: 1 | J174: 17 | K174: 11 | O174: 173 | P174: 23 | Q174: СЕРЕКЕ Султан | R174: 29.09.2010 | S174: г. Астана | U174: 23 | V174: 30
A175: 252 | B175: 16 | C175: ДИОМИДОВ Игорь | D175: 30.07.1976 | E175: г. Алматы | F175: г. Алматы | I175: 1 | J175: 16 | K175: 26 | O175: 174 | P175: 23 | Q175: НУРУМОВ Медет | R175: 28.05.2009 | S175: Карагандинская обл. | U175: 23 | V175: 29
A176: 255 | B176: 16 | C176: УСКЕНБАЕВ Алтынбек | D176: 12.01.1972 | E176: г. Алматы | F176: г. Алматы | I176: 1 | J176: 16 | K176: 22 | O176: 175 | P176: 23 | Q176: ШОМАНОВ Алиби | R176: 20.04.2009 | S176: ВКО | U176: 23 | V176: 27
A177: 256 | B177: 16 | C177: БАРАТОВ Шерзот | D177: 12.05.1990 | E177: г. Алматы | F177: г. Алматы | I177: 1 | J177: 16 | K177: 19 | O177: 176 | P177: 23 | Q177: РАКОВ Денис | R177: 29.11.1987 | S177: г. Астана | U177: 23 | V177: 25
A178: 258 | B178: 16 | C178: ЕСКУАТ Нурболат | D178: 24.09.2008 | E178: г. Алматы | F178: г. Алматы | I178: 1 | J178: 16 | K178: 16 | O178: 177 | P178: 23 | Q178: ЖОЛЖАКСЫ Рамазан | R178: 06.08.2006 | S178: Жетисуская обл. | U178: 23 | V178: 23
A179: 262 | B179: 16 | C179: КАЛИГОЖИН Жаннур | D179: 27.09.1988 | E179: г. Алматы | F179: г. Алматы | I179: 1 | J179: 16 | K179: 8 | O179: 178 | P179: 23 | Q179: БОЛДЫРЕВ Андрей | R179: 27.03.1986 | S179: г. Астана | U179: 23 | V179: 21
A180: 265 | B180: 15 | C180: БАРИЕВ Диаз | D180: 18.02.1988 | E180: г. Алматы | F180: г. Алматы | I180: 1 | J180: 15 | K180: 26 | O180: 179 | P180: 23 | Q180: ПАЗИЛБЕКОВ Газиз | R180: 01.09.1990 | S180: г. Алматы | U180: 23 | V180: 19
A181: 268 | B181: 15 | C181: ЕРМУРЗАЕВ Айгали | D181: 08.09.1986 | E181: г. Алматы | F181: г. Алматы | I181: 1 | J181: 15 | K181: 24 | O181: 180 | P181: 22 | Q181: НЫГМАНОВ Ернар | R181: 29.06.1965 | S181: г. Алматы | U181: 25 | V181: 3
A182: 273 | B182: 15 | C182: САПАРБАЕВ Арман | D182: 29.04.1985 | E182: г. Алматы | F182: г. Алматы | I182: 1 | J182: 15 | K182: 15 | O182: 181 | P182: 22 | Q182: ДАУЛЕТУЛЫ Саин | R182: 29.08.2006 | S182: Жетисуская обл. | U182: 24 | V182: 5
A183: 276 | B183: 15 | C183: ГУЗЕВ Евгений | D183: 27.11.1973 | E183: г. Алматы | F183: г. Алматы | I183: 1 | J183: 15 | K183: 8 | O183: 182 | P183: 22 | Q183: МУРАТОВ Алдияр | R183: 18.03.2008 | S183: Павлодарская обл. | U183: 22 | V183: 31
A184: 277 | B184: 15 | C184: ТЕМИРБОЛАТ Адилет | D184: 18.02.2012 | E184: г. Алматы | F184: г. Алматы | I184: 1 | J184: 15 | K184: 3 | O184: 183 | P184: 22 | Q184: МЕДЕУОВ Ербол | R184: 31.05.1988 | S184: г. Алматы | U184: 22 | V184: 30
A185: 278 | B185: 15 | C185: ВЛАСОВ Вячеслав | D185: 16.08.1994 | E185: г. Алматы | F185: г. Алматы | I185: 1 | J185: 15 | K185: 3 | O185: 184 | P185: 22 | Q185: АХМЕТОВ Саян | R185: 20.10.1987 | S185: г. Алматы | U185: 22 | V185: 25
A186: 279 | B186: 14 | C186: АМАНТАЙ Мирас | D186: 09.09.2010 | E186: г. Алматы | F186: г. Алматы | I186: 1 | J186: 14 | K186: 31 | O186: 185 | P186: 22 | Q186: УТЕЛЬБЕКОВ Ермек | R186: 16.05.1988 | S186: г. Астана | U186: 22 | V186: 24
A187: 280 | B187: 14 | C187: БЕДЕЛЬХАНОВ Саян | D187: 01.01.1995 | E187: г. Алматы | F187: г. Алматы | I187: 1 | J187: 14 | K187: 24 | O187: 186 | P187: 22 | Q187: ТРАВКИН Денис | R187: 07.07.1988 | S187: г. Алматы | U187: 22 | V187: 16
A188: 283 | B188: 14 | C188: КАБЫМБАЕВ Камбар | D188: 16.05.1980 | E188: г. Алматы | F188: г. Алматы | I188: 1 | J188: 14 | K188: 11 | O188: 187 | P188: 22 | Q188: ЮЛДАШЕВ Асадбек | R188: 26.01.2011 | S188: Туркестанская обл. | U188: 22 | V188: 14
A189: 286 | B189: 13 | C189: ФЕНДРИКОВ Алексей | D189: 10.09.2007 | E189: г. Алматы | F189: г. Алматы | I189: 1 | J189: 13 | K189: 24 | O189: 188 | P189: 22 | Q189: БУРБАСОВ Еркин | R189: 19.08.1992 | S189: Мангистауская обл. | U189: 22 | V189: 10
A190: 287 | B190: 13 | C190: ТОЙШУБЕКОВ Даурен | D190: 19.01.1978 | E190: г. Алматы | F190: г. Алматы | I190: 1 | J190: 13 | K190: 21 | O190: 189 | P190: 21 | Q190: АБЕЛЬДИНОВ Дамир | R190: 20.12.1986 | S190: Атырауская обл. | U190: 21 | V190: 36
A191: 292 | B191: 13 | C191: АБИЛОВ Тимур | D191: 30.05.2007 | E191: г. Алматы | F191: г. Алматы | I191: 1 | J191: 13 | K191: 5 | O191: 190 | P191: 21 | Q191: САГАТБЕК Керей | R191: 20.12.2007 | S191: г. Алматы | U191: 21 | V191: 32
A192: 297 | B192: 12 | C192: КИМ Максим | D192: 02.03.2002 | E192: г. Алматы | F192: г. Алматы | I192: 1 | J192: 12 | K192: 8 | O192: 191 | P192: 21 | Q192: АНУАРБЕК Талгат | R192: 01.04.1970 | S192: г. Астана | U192: 21 | V192: 32
A193: 301 | B193: 11 | C193: ТУГАНБАЙ Саян | D193: 19.05.2009 | E193: г. Алматы | F193: г. Алматы | I193: 1 | J193: 11 | K193: 24 | O193: 192 | P193: 21 | Q193: КАБДУЛОВ Арсен | R193: 12.09.2007 | S193: Карагандинская обл. | U193: 21 | V193: 31
A194: 302 | B194: 11 | C194: КАЛМАН Санжар | D194: 06.01.1994 | E194: г. Алматы | F194: г. Алматы | I194: 1 | J194: 11 | K194: 19 | O194: 193 | P194: 21 | Q194: КАЛИЕВ Арслан | R194: 17.01.1987 | S194: г. Алматы | U194: 21 | V194: 26
A195: 303 | B195: 11 | C195: ПОЛВАНОВ Данат | D195: 05.08.1988 | E195: г. Алматы | F195: г. Алматы | I195: 1 | J195: 11 | K195: 18 | O195: 194 | P195: 21 | Q195: ИСАНОВ Серик | R195: 19.02.1990 | S195: г. Алматы | U195: 21 | V195: 24
A196: 304 | B196: 11 | C196: КИСМЕТ Диас | D196: 13.11.1991 | E196: г. Алматы | F196: г. Алматы | I196: 1 | J196: 11 | K196: 16 | O196: 195 | P196: 21 | Q196: САТТАР Самат | R196: 09.07.1996 | S196: г. Алматы | U196: 21 | V196: 21
A197: 305 | B197: 11 | C197: ВИЛЬДЯЕВ Данил | D197: 17.11.2005 | E197: г. Алматы | F197: г. Алматы | I197: 1 | J197: 11 | K197: 9 | O197: 196 | P197: 21 | Q197: ТОРАВЕКОВ Достонбек | R197: 30.05.2007 | S197: г. Шымкент | U197: 21 | V197: 20
A198: 309 | B198: 10 | C198: КАЛМАНОВ Азамат | D198: 11.05.1995 | E198: г. Алматы | F198: г. Алматы | I198: 1 | J198: 10 | K198: 16 | O198: 197 | P198: 21 | Q198: БАКЫТ Алимжан | R198: 21.12.2006 | S198: Мангистауская обл. | U198: 21 | V198: 20
A199: 312 | B199: 10 | C199: ШАЙМАХАНОВ Ербол | D199: 01.10.1990 | E199: г. Алматы | F199: г. Алматы | I199: 1 | J199: 10 | K199: 14 | O199: 198 | P199: 21 | Q199: ТАЛАПУЛЫ Аян | R199: 15.02.1996 | S199: г. Алматы | U199: 21 | V199: 16
A200: 318 | B200: 9 | C200: ЗАЙНУЛЛИН Турган | D200: 01.05.1964 | E200: г. Алматы | F200: г. Алматы | I200: 1 | J200: 9 | K200: 23 | O200: 199 | P200: 21 | Q200: ИЛЬЯСОВ Ринат | R200: 02.12.1995 | S200: г. Алматы | U200: 21 | V200: 14
... 4620 more rows

Sheet R-жен (hidden)
A1: Место | B1: Рейтинг | C1: Фамилия Имя | D1: Дата рождения | E1: Населенный пункт | F1: Регион | H1: 2024-08-02 | J1: Rи | K1: N
A2: 119 | B2: 0 | C2: БАУРЖАНҚЫЗЫ Адина | D2: 2012-10-15 | E2: Абайская обл. | F2: Абайская обл. | I2: 1 | J2: 0 | K2: 0
A3: 58 | B3: 32 | C3: ДАРХАНКЫЗЫ Алуа | D3: 20.10.2005 | E3: Абайская обл. | F3: Абайская обл. | I3: 1 | J3: 32 | K3: 20 | O3: Квалификационные списки рейтинга спортсменов по настольному теннису
A4: 97 | B4: 17 | C4: ДАРХАНКЫЗЫ Балауса | D4: 28.02.2008 | E4: Абайская обл. | F4: Абайская обл. | I4: 1 | J4: 17 | K4: 15 | O4: РЕСПУБЛИКА КАЗАХСТАН
A5: 84 | B5: 22 | C5: ЖАРМУХАМБЕТОВА Алуа | D5: 26.09.2008 | E5: Абайская обл. | F5: Абайская обл. | I5: 1 | J5: 22 | K5: 17 | O5: женщины
A6: 122 | B6: 0 | C6: ЖҰМАҒҰЛ Айдана | D6: 2009-07-17 | E6: Абайская обл. | F6: Абайская обл. | I6: 1 | J6: 0 | K6: 0 | O6: составлено на 02.08.2024
A7: 33 | B7: 40 | C7: КАПАНОВА Гульсара | D7: 11.08.1998 | E7: Абайская обл. | F7: Абайская обл. | I7: 1 | J7: 42 | K7: 7 | O7: Nж | P7: Rж | Q7: Ф.И.О. | R7: Гр | S7: Город | U7: Rи | V7: N
A8: 120 | B8: 0 | C8: МЕЙРХАН Інжу | D8: 2012-08-24 | E8: Абайская обл. | F8: Абайская обл. | I8: 1 | J8: 0 | K8: 0 | O8: 1 | P8: 75 | Q8: АКАШЕВА Зауреш | R8: 02.12.2000 | S8: Карагандинская обл. | U8: 77 | V8: 12
A9: 121 | B9: 0 | C9: МЕЙРХАН Қарақат | D9: 2014-08-06 | E9: Абайская обл. | F9: Абайская обл. | I9: 1 | J9: 0 | K9: 0 | O9: 2 | P9: 73 | Q9: МИРКАДИРОВА Сарвиноз | R9: 03.02.2005 | S9: г. Алматы | U9: 75 | V9: 14
A10: 50 | B10: 35 | C10: ТЕЛЕГЕНОВА Камилла | D10: 31.10.2007 | E10: Абайская обл. | F10: Абайская обл. | I10: 1 | J10: 35 | K10: 21 | O10: 3 | P10: 67 | Q10: ЛАВРОВА Анастасия | R10: 26.07.1995 | S10: г. Астана | U10: 69 | V10: 15
A11: 126 | B11: 0 | C11: БЕЛЬГИБАЕВА Мелиса | D11: 2011-06-13 | E11: Акмолинск. обл. | F11: Акмолинск. обл. | I11: 1 | J11: 0 | K11: 0 | O11: 4 | P11: 65 | Q11: ХУСЕЙНОВА Гулчехра | R11: 17.11.1992 | S11: ЗКО | U11: 68 | V11: 9
A12: 123 | B12: 0 | C12: НАРЫЖНАЯ Злата | D12: 2013-07-11 | E12: Акмолинск. обл. | F12: Акмолинск. обл. | I12: 1 | J12: 0 | K12: 0 | O12: 5 | P12: 65 | Q12: БАХЫТ Анель | R12: 12.02.2003 | S12: г. Алматы | U12: 65 | V12: 21
A13: 125 | B13: 0 | C13: НАРЫЖНАЯ Элина | D13: 2012-02-01 | E13: Акмолинск. обл. | F13: Акмолинск. обл. | I13: 1 | J13: 0 | K13: 0 | O13: 6 | P13: 64 | Q13: РОМАНОВСКАЯ Ангелина | R13: 18.03.2003 | S13: Павлодарская обл. | U13: 64 | V13: 21
A14: 124 | B14: 0 | C14: ТАНҚЫБАЙ Әмина | D14: 2013-05-28 | E14: Акмолинск. обл. | F14: Акмолинск. обл. | I14: 1 | J14: 0 | K14: 0 | O14: 7 | P14: 60 | Q14: АШКЕЕВА Арай | R14: 08.07.2003 | S14: Карагандинская обл. | U14: 60 | V14: 24
A15: 85 | B15: 22 | C15: ТАЖИМОВА Арайжан | D15: 19.01.2007 | E15: Акмолинская обл. | F15: Акмолинская обл. | I15: 1 | J15: 22 | K15: 16 | O15: 8 | P15: 59 | Q15: КОШКУМБАЕВА Жанерке | R15: 16.09.2005 | S15: Карагандинская обл. | U15: 59 | V15: 25
A16: 130 | B16: 0 | C16: АСЫЛХАН Сана | D16: 2014-11-17 | E16: Актюбинск. обл. | F16: Актюбинск. обл. | I16: 1 | J16: 0 | K16: 0 | O16: 9 | P16: 59 | Q16: АЛИМБАЕВА Айя | R16: 17.10.1996 | S16: г. Алматы | U16: 59 | V16: 17
A17: 128 | B17: 0 | C17: БӨРІБАЙ Ақырыс | D17: 2012-06-19 | E17: Актюбинск. обл. | F17: Актюбинск. обл. | I17: 1 | J17: 0 | K17: 0 | O17: 10 | P17: 56 | Q17: САПАРОВА Алсу | R17: 06.06.2002 | S17: ЗКО | U17: 56 | V17: 17
A18: 127 | B18: 0 | C18: ЕСБОЛАЕВА Нұрдана | D18: 2010-05-22 | E18: Актюбинск. обл. | F18: Актюбинск. обл. | I18: 1 | J18: 0 | K18: 0 | O18: 11 | P18: 55 | Q18: УСПАНОВА Валентина | R18: 12.04.1977 | S18: г. Алматы | U18: 57 | V18: 9
A19: 131 | B19: 0 | C19: ЖОЛАМАН Диана | D19: 2011-08-10 | E19: Актюбинск. обл. | F19: Актюбинск. обл. | I19: 1 | J19: 0 | K19: 0 | O19: 12 | P19: 55 | Q19: ТОРШАЕВА Гузель | R19: 03.12.2004 | S19: г. Алматы | U19: 55 | V19: 21
A20: 129 | B20: 0 | C20: ТИМУРҚЫЗЫ Томирис | D20: 2014-07-25 | E20: Актюбинск. обл. | F20: Актюбинск. обл. | I20: 1 | J20: 0 | K20: 0 | O20: 13 | P20: 53 | Q20: СМИРНОВА Александра | R20: 11.06.2004 | S20: Карагандинская обл. | U20: 55 | V20: 9
A21: 87 | B21: 21 | C21: ДОШИМОВА Малика | D21: 02.10.2008 | E21: Актюбинская обл. | F21: Актюбинская обл. | I21: 1 | J21: 21 | K21: 25 | O21: 14 | P21: 50 | Q21: БЕЛЯКОВА Асемгуль | R21: 27.02.1993 | S21: Павлодарская обл. | U21: 52 | V21: 8
A22: 73 | B22: 25 | C22: КУАТОВА Жанар | D22: 03.02.2006 | E22: Актюбинская обл. | F22: Актюбинская обл. | I22: 1 | J22: 25 | K22: 13 | O22: 15 | P22: 50 | Q22: ДУБРОВСКАЯ Алина | R22: 27.03.2002 | S22: Костанайская обл | U22: 50 | V22: 17
A23: 133 | B23: 0 | C23: ЕВДАКОВА Юлия | D23: 2011-12-28 | E23: Алматинск. обл. | F23: Алматинск. обл. | I23: 1 | J23: 0 | K23: 0 | O23: 16 | P23: 49 | Q23: ЖАКСЫЛЫКОВА Альбина | R23: 11.05.2007 | S23: Карагандинская обл. | U23: 49 | V23: 24
A24: 135 | B24: 0 | C24: ӘДІЛҚЫЗЫ Әдемі | D24: 2010-06-07 | E24: Алматинск. обл. | F24: Алматинск. обл. | I24: 1 | J24: 0 | K24: 0 | O24: 17 | P24: 49 | Q24: САНДЫБАЕВА Малика | R24: 15.11.2005 | S24: г. Астана | U24: 49 | V24: 17
A25: 132 | B25: 0 | C25: КАКОТКИНА Ангелина | D25: 2009-12-25 | E25: Алматинск. обл. | F25: Алматинск. обл. | I25: 1 | J25: 0 | K25: 0 | O25: 18 | P25: 49 | Q25: КАМИЛЖАНОВА Гулназа | R25: 08.04.1994 | S25: г. Шымкент | U25: 49 | V25: 16
A26: 134 | B26: 0 | C26: ҚАДІРЖАН Кәусар | D26: 2010-09-19 | E26: Алматинск. обл. | F26: Алматинск. обл. | I26: 1 | J26: 0 | K26: 0 | O26: 19 | P26: 48 | Q26: АСЫКБЕК Айгерим | R26: 13.12.2002 | S26: Жамбылская обл. | U26: 51 | V26: 6
A27: 136 | B27: 0 | C27: НУРАХМЕТ Дильнур | D27: 2010-06-03 | E27: Алматинск. обл. | F27: Алматинск. обл. | I27: 1 | J27: 0 | K27: 0 | O27: 20 | P27: 48 | Q27: РАСУЛМЕТОВА Малика | R27: 21.07.1999 | S27: г. Шымкент | U27: 50 | V27: 8
A28: 46 | B28: 36 | C28: КУЗЬМИНА Ирина | D28: 19.10.1977 | E28: Алматинская обл. | F28: Алматинская обл. | I28: 1 | J28: 38 | K28: 8 | O28: 21 | P28: 47 | Q28: АЛМАГАМБЕТОВА Гаухар | R28: 26.05.1998 | S28: ЗКО | U28: 49 | V28: 10
A29: 139 | B29: 0 | C29: АЛТАЙ Бибі | D29: 2010-02-06 | E29: Атырауск. обл. | F29: Атырауск. обл. | I29: 1 | J29: 0 | K29: 0 | O29: 22 | P29: 46 | Q29: ФУ Дарья | R29: 31.01.2009 | S29: Карагандинская обл. | U29: 46 | V29: 26
A30: 237 | B30: 0 | C30: ЕГІЗБАЙ Ұлту | D30: 2007-03-05 | E30: Атырауск. обл. | F30: Атырауск. обл. | I30: 1 | J30: 0 | K30: 0 | O30: 23 | P30: 46 | Q30: ЦВИГУН Алиса | R30: 24.10.2007 | S30: г. Астана | U30: 46 | V30: 26
A31: 138 | B31: 0 | C31: ЕРМЕКҚАЛЫ Амира | D31: 2010-04-14 | E31: Атырауск. обл. | F31: Атырауск. обл. | I31: 1 | J31: 0 | K31: 0 | O31: 24 | P31: 45 | Q31: ОХМАК Екатерина | R31: 06.11.2006 | S31: Карагандинская обл. | U31: 45 | V31: 17
A32: 141 | B32: 0 | C32: ЖЫЛҚЫБАЙ Ақжайна | D32: 2010-05-04 | E32: Атырауск. обл. | F32: Атырауск. обл. | I32: 1 | J32: 0 | K32: 0 | O32: 25 | P32: 44 | Q32: МОЧАЛКИНА Виктория | R32: 06.12.2008 | S32: Карагандинская обл. | U32: 44 | V32: 25
A33: 140 | B33: 0 | C33: МАҚСОТ Тоғжан | D33: 2012-02-21 | E33: Атырауск. обл. | F33: Атырауск. обл. | I33: 1 | J33: 0 | K33: 0 | O33: 26 | P33: 44 | Q33: АХМАДАЛИЕВА Шахзода | R33: 22.05.2006 | S33: Туркестанская обл. | U33: 44 | V33: 23
A34: 137 | B34: 0 | C34: САТЖАН Венера | D34: 2011-03-23 | E34: Атырауск. обл. | F34: Атырауск. обл. | I34: 1 | J34: 0 | K34: 0 | O34: 27 | P34: 43 | Q34: НИКИФОРОВА Любовь | R34: 15.01.1980 | S34: г. Алматы | U34: 46 | V34: 5
A35: 142 | B35: 0 | C35: ТУҚПАТОВА Мадина | D35: 2010-05-10 | E35: Атырауск. обл. | F35: Атырауск. обл. | I35: 1 | J35: 0 | K35: 0 | O35: 28 | P35: 43 | Q35: СЕРИКБАЙ Назым | R35: 06.01.2007 | S35: Туркестанская обл. | U35: 43 | V35: 32
A36: 102 | B36: 13 | C36: СУЛТАНБЕК Инжу | D36: 21.04.2010 | E36: Атырауская обл. | F36: Атырауская обл. | I36: 1 | J36: 19 | K36: 1 | O36: 29 | P36: 43 | Q36: ЛАВРОВА Елизавета | R36: 02.04.2007 | S36: г. Астана | U36: 43 | V36: 26
A37: 144 | B37: 0 | C37: АМАНГЕЛДІҚЫЗЫ Жүлдызай | D37: 2009-02-10 | E37: ВКО | F37: ВКО | I37: 1 | J37: 0 | K37: 0 | O37: 30 | P37: 43 | Q37: БЕЙСЕНОВА Елена | R37: 07.07.1989 | S37: г. Алматы | U37: 43 | V37: 17
A38: 59 | B38: 32 | C38: АСЕТ Айша | D38: 22.11.2007 | E38: ВКО | F38: ВКО | I38: 1 | J38: 32 | K38: 17 | O38: 31 | P38: 41 | Q38: САИДМУРАТХАНОВА Сарвиноз | R38: 11.09.2004 | S38: г. Шымкент | U38: 43 | V38: 7
A39: 89 | B39: 21 | C39: БАЙТИКЕНОВА Еркежан | D39: 13.01.2010 | E39: ВКО | F39: ВКО | I39: 1 | J39: 21 | K39: 14 | O39: 32 | P39: 41 | Q39: КАПАНОВА Динара | R39: 12.10.1995 | S39: г. Астана | U39: 41 | V39: 18
A40: 37 | B40: 40 | C40: БЕГУНОВА Дарья | D40: 05.04.1994 | E40: ВКО | F40: ВКО | I40: 1 | J40: 40 | K40: 19 | O40: 33 | P40: 40 | Q40: КАПАНОВА Гульсара | R40: 11.08.1998 | S40: Абайская обл. | U40: 42 | V40: 7
A41: 146 | B41: 0 | C41: ДАНИЛОВА Таисия | D41: 2012-05-15 | E41: ВКО | F41: ВКО | I41: 1 | J41: 0 | K41: 0 | O41: 34 | P41: 40 | Q41: НУРМАН Нурсая | R41: 14.06.2009 | S41: ВКО | U41: 40 | V41: 27
A42: 86 | B42: 21 | C42: МАЙЖАНОВА Алена | D42: 10.01.1988 | E42: ВКО | F42: ВКО | I42: 1 | J42: 31 | K42: 1 | O42: 35 | P42: 40 | Q42: ХАНИЯЗОВА Ноила | R42: 01.09.2009 | S42: Туркестанская обл. | U42: 40 | V42: 26
A43: 34 | B43: 40 | C43: НУРМАН Нурсая | D43: 14.06.2009 | E43: ВКО | F43: ВКО | I43: 1 | J43: 40 | K43: 27 | O43: 36 | P43: 40 | Q43: ПЮРКО Екатерина | R43: 21.05.2005 | S43: г. Алматы | U43: 40 | V43: 26
A44: 143 | B44: 0 | C44: СИДОРЕНКО Анастасия | D44: 2011-07-23 | E44: ВКО | F44: ВКО | I44: 1 | J44: 0 | K44: 0 | O44: 37 | P44: 40 | Q44: БЕГУНОВА Дарья | R44: 05.04.1994 | S44: ВКО | U44: 40 | V44: 19
A45: 78 | B45: 24 | C45: ЯСАКОВА Анна | D45: 06.07.2006 | E45: ВКО | F45: ВКО | I45: 1 | J45: 24 | K45: 22 | O45: 38 | P45: 38 | Q45: ШАПЕЙ Таншолпан | R45: 17.10.2001 | S45: г. Шымкент | U45: 41 | V45: 5
A46: 145 | B46: 0 | C46: ЯСАКОВА Ксения | D46: 2013-05-11 | E46: ВКО | F46: ВКО | I46: 1 | J46: 0 | K46: 0 | O46: 39 | P46: 38 | Q46: МАРКИНА Виктория | R46: 13.07.2004 | S46: г. Алматы | U46: 40 | V46: 7
A47: 159 | B47: 0 | C47: АДЕНГАЛИЕВА Аружан | D47: 2013-08-12 | E47: г. Алматы | F47: г. Алматы | I47: 1 | J47: 0 | K47: 0 | O47: 40 | P47: 38 | Q47: ЖАНПЕИСОВА Алия | R47: 07.05.1986 | S47: г. Астана | U47: 38 | V47: 17
A48: 147 | B48: 0 | C48: АДИЛЬГЕРЕЕВА Лилия | D48: 2013-08-15 | E48: г. Алматы | F48: г. Алматы | I48: 1 | J48: 0 | K48: 0 | O48: 41 | P48: 38 | Q48: ДАНИЯРОВА Юлия | R48: 02.04.1989 | S48: Костанайская обл | U48: 38 | V48: 16
A49: 158 | B49: 0 | C49: АКЫЛБЕК Айша | D49: 2011-07-25 | E49: г. Алматы | F49: г. Алматы | I49: 1 | J49: 0 | K49: 0 | O49: 42 | P49: 37 | Q49: ТАЖИМОВА Меруерт | R49: 22.04.2009 | S49: Павлодарская обл. | U49: 37 | V49: 27
A50: 9 | B50: 59 | C50: АЛИМБАЕВА Айя | D50: 17.10.1996 | E50: г. Алматы | F50: г. Алматы | I50: 1 | J50: 59 | K50: 17 | O50: 43 | P50: 37 | Q50: АДИЛЬГЕРЕЕВА Айназ | R50: 09.01.2010 | S50: г. Шымкент | U50: 37 | V50: 26
A51: 160 | B51: 0 | C51: БАЛТАБАЙ Айша | D51: 2013-07-20 | E51: г. Алматы | F51: г. Алматы | I51: 1 | J51: 0 | K51: 0 | O51: 44 | P51: 36 | Q51: АЗАТОВА Озода | R51: 08.05.2001 | S51: г. Шымкент | U51: 39 | V51: 5
A52: 5 | B52: 65 | C52: БАХЫТ Анель | D52: 12.02.2003 | E52: г. Алматы | F52: г. Алматы | I52: 1 | J52: 65 | K52: 21 | O52: 45 | P52: 36 | Q52: ЗУБКОВА Елена | R52: 06.08.2003 | S52: г. Астана | U52: 38 | V52: 8
A53: 30 | B53: 43 | C53: БЕЙСЕНОВА Елена | D53: 07.07.1989 | E53: г. Алматы | F53: г. Алматы | I53: 1 | J53: 43 | K53: 17 | O53: 46 | P53: 36 | Q53: КУЗЬМИНА Ирина | R53: 19.10.1977 | S53: Алматинская обл. | U53: 38 | V53: 8
A54: 149 | B54: 0 | C54: БРЫЗГАЛОВА София | D54: 2009-11-24 | E54: г. Алматы | F54: г. Алматы | I54: 1 | J54: 0 | K54: 0 | O54: 47 | P54: 36 | Q54: ЛУКЬЯНОВА Мария | R54: 22.10.2011 | S54: Карагандинская обл. | U54: 36 | V54: 31
A55: 156 | B55: 0 | C55: ДОЛГОВА Полина | D55: 2009-09-26 | E55: г. Алматы | F55: г. Алматы | I55: 1 | J55: 0 | K55: 0 | O55: 48 | P55: 36 | Q55: БОРСАКБАЕВА Карина | R55: 04.01.2003 | S55: Мангистауская обл. | U55: 36 | V55: 24
A56: 152 | B56: 0 | C56: ДУДКИНА Милана | D56: 2010-08-16 | E56: г. Алматы | F56: г. Алматы | I56: 1 | J56: 0 | K56: 0 | O56: 49 | P56: 36 | Q56: ИЛЬЯС Аружан | R56: 17.07.2006 | S56: ЗКО | U56: 36 | V56: 22
A57: 157 | B57: 0 | C57: ЕЛТАЙ Амина | D57: 2009-05-17 | E57: г. Алматы | F57: г. Алматы | I57: 1 | J57: 0 | K57: 0 | O57: 50 | P57: 35 | Q57: ТЕЛЕГЕНОВА Камилла | R57: 31.10.2007 | S57: Абайская обл. | U57: 35 | V57: 21
A58: 148 | B58: 0 | C58: ЖЕНИС Айша | D58: 2010-06-09 | E58: г. Алматы | F58: г. Алматы | I58: 1 | J58: 0 | K58: 0 | O58: 51 | P58: 35 | Q58: ЕРЖАНКЫЗЫ Алтынай | R58: 06.10.2004 | S58: г. Астана | U58: 35 | V58: 21
A59: 150 | B59: 0 | C59: ЖУСУБАЛИЕВА Аелин | D59: 2013-12-10 | E59: г. Алматы | F59: г. Алматы | I59: 1 | J59: 0 | K59: 0 | O59: 52 | P59: 34 | Q59: УСИПБАЕВА Аида | R59: 17.02.2006 | S59: г. Шымкент | U59: 34 | V59: 8
A60: 39 | B60: 38 | C60: МАРКИНА Виктория | D60: 13.07.2004 | E60: г. Алматы | F60: г. Алматы | I60: 1 | J60: 40 | K60: 7 | O60: 53 | P60: 33 | Q60: БЕКМУХАМБЕТОВА Жания | R60: 16.05.2013 | S60: Костанайская обл | U60: 33 | V60: 26
A61: 109 | B61: 9 | C61: МЕЗИНА Анна | D61: 17.08.2006 | E61: г. Алматы | F61: г. Алматы | I61: 1 | J61: 9 | K61: 4 | O61: 54 | P61: 33 | Q61: АМАНГЕЛДЫ Акниет | R61: 11.03.2009 | S61: г. Шымкент | U61: 33 | V61: 26
A62: 77 | B62: 24 | C62: МЕНДИГАЛИЕВА Айша | D62: 30.06.2009 | E62: г. Алматы | F62: г. Алматы | I62: 1 | J62: 24 | K62: 24 | O62: 55 | P62: 32 | Q62: НУРМУХАНБЕТОВА Асем | R62: 11.12.2003 | S62: ЗКО | U62: 35 | V62: 4
A63: 2 | B63: 73 | C63: МИРКАДИРОВА Сарвиноз | D63: 03.02.2005 | E63: г. Алматы | F63: г. Алматы | I63: 1 | J63: 75 | K63: 14 | O63: 56 | P63: 32 | Q63: ГАМОВА Дарья | R63: 23.04.2008 | S63: Карагандинская обл. | U63: 32 | V63: 26
A64: 27 | B64: 43 | C64: НИКИФОРОВА Любовь | D64: 15.01.1980 | E64: г. Алматы | F64: г. Алматы | I64: 1 | J64: 46 | K64: 5 | O64: 57 | P64: 32 | Q64: БЕКИШ Аружан | R64: 13.02.2006 | S64: ЗКО | U64: 32 | V64: 21
A65: 82 | B65: 22 | C65: ОСЬКИНА Анна | D65: 29.11.1988 | E65: г. Алматы | F65: г. Алматы | I65: 1 | J65: 33 | K65: 1 | O65: 58 | P65: 32 | Q65: ДАРХАНКЫЗЫ Алуа | R65: 20.10.2005 | S65: Абайская обл. | U65: 32 | V65: 20
A66: 36 | B66: 40 | C66: ПЮРКО Екатерина | D66: 21.05.2005 | E66: г. Алматы | F66: г. Алматы | I66: 1 | J66: 40 | K66: 26 | O66: 59 | P66: 32 | Q66: АСЕТ Айша | R66: 22.11.2007 | S66: ВКО | U66: 32 | V66: 17
A67: 153 | B67: 0 | C67: СЕРДАЛЫ Аяулым | D67: 2013-06-06 | E67: г. Алматы | F67: г. Алматы | I67: 1 | J67: 0 | K67: 0 | O67: 60 | P67: 32 | Q67: КАСЫМОВА Наргиз | R67: 31.08.2004 | S67: Павлодарская обл. | U67: 32 | V67: 8
A68: 12 | B68: 55 | C68: ТОРШАЕВА Гузель | D68: 03.12.2004 | E68: г. Алматы | F68: г. Алматы | I68: 1 | J68: 55 | K68: 21 | O68: 61 | P68: 31 | Q68: ТЕМИРХАНОВА Акку | R68: 23.01.2009 | S68: Мангистауская обл. | U68: 31 | V68: 27
A69: 118 | B69: 2 | C69: ТРАВКИНА Таисия | D69: 18.01.2011 | E69: г. Алматы | F69: г. Алматы | I69: 1 | J69: 2 | K69: 16 | O69: 62 | P69: 31 | Q69: ЗЕЙНУЛЛА Айзере | R69: 18.03.2005 | S69: Павлодарская обл. | U69: 31 | V69: 24
A70: 151 | B70: 0 | C70: УСОВА Анна | D70: 2013-03-17 | E70: г. Алматы | F70: г. Алматы | I70: 1 | J70: 0 | K70: 0 | O70: 63 | P70: 31 | Q70: КОШЕЛЕВА Алиса | R70: 10.09.2008 | S70: Карагандинская обл. | U70: 31 | V70: 22
A71: 11 | B71: 55 | C71: УСПАНОВА Валентина | D71: 12.04.1977 | E71: г. Алматы | F71: г. Алматы | I71: 1 | J71: 57 | K71: 9 | O71: 64 | P71: 29 | Q71: МУКАШ Шугыла | R71: 07.01.2007 | S71: Жамбылская обл. | U71: 29 | V71: 27
A72: 155 | B72: 0 | C72: ШАЯХМЕТ Айша | D72: 2012-07-25 | E72: г. Алматы | F72: г. Алматы | I72: 1 | J72: 0 | K72: 0 | O72: 65 | P72: 29 | Q72: ШАВКАТОВА Шахруза | R72: 11.02.2010 | S72: Туркестанская обл. | U72: 29 | V72: 23
A73: 154 | B73: 0 | C73: ШЕРАЛИ Инджу | D73: 2011-08-10 | E73: г. Алматы | F73: г. Алматы | I73: 1 | J73: 0 | K73: 0 | O73: 66 | P73: 29 | Q73: БУЛАНОВА Гульназ | R73: 01.11.2008 | S73: ЗКО | U73: 29 | V73: 20
A74: 161 | B74: 0 | C74: АГАЛАКОВА Елизавета | D74: 2011-03-14 | E74: г. Астана | F74: г. Астана | I74: 1 | J74: 0 | K74: 0 | O74: 67 | P74: 28 | Q74: АШУРМАТОВА Севинч | R74: 22.01.2005 | S74: г. Шымкент | U74: 31 | V74: 4
A75: 51 | B75: 35 | C75: ЕРЖАНКЫЗЫ Алтынай | D75: 06.10.2004 | E75: г. Астана | F75: г. Астана | I75: 1 | J75: 35 | K75: 21 | O75: 68 | P75: 27 | Q75: НУРЖАНКЫЗЫ Аружан | R75: 11.05.2004 | S75: Туркестанская обл. | U75: 27 | V75: 18
A76: 40 | B76: 38 | C76: ЖАНПЕИСОВА Алия | D76: 07.05.1986 | E76: г. Астана | F76: г. Астана | I76: 1 | J76: 38 | K76: 17 | O76: 69 | P76: 27 | Q76: ТЛЕГЕНОВА Еркежан | R76: 05.10.2009 | S76: Карагандинская обл. | U76: 27 | V76: 16
A77: 80 | B77: 23 | C77: ЖУМАШ Лаура | D77: 26.12.2007 | E77: г. Астана | F77: г. Астана | I77: 1 | J77: 23 | K77: 17 | O77: 70 | P77: 27 | Q77: ШАВКАТОВА Гулёра | R77: 15.07.2006 | S77: Туркестанская обл. | U77: 27 | V77: 16
A78: 45 | B78: 36 | C78: ЗУБКОВА Елена | D78: 06.08.2003 | E78: г. Астана | F78: г. Астана | I78: 1 | J78: 38 | K78: 8 | O78: 71 | P78: 26 | Q78: ШЫМКЕНТБАЙ Руана | R78: 26.08.2009 | S78: г. Шымкент | U78: 26 | V78: 26
A79: 32 | B79: 41 | C79: КАПАНОВА Динара | D79: 12.10.1995 | E79: г. Астана | F79: г. Астана | I79: 1 | J79: 41 | K79: 18 | O79: 72 | P79: 26 | Q79: ИБРАЕВА Юрана | R79: 14.01.2009 | S79: Карагандинская обл. | U79: 26 | V79: 24
A80: 165 | B80: 0 | C80: КЕЗИНА София | D80: 2011-02-07 | E80: г. Астана | F80: г. Астана | I80: 1 | J80: 0 | K80: 0 | O80: 73 | P80: 25 | Q80: КУАТОВА Жанар | R80: 03.02.2006 | S80: Актюбинская обл. | U80: 25 | V80: 13
A81: 3 | B81: 67 | C81: ЛАВРОВА Анастасия | D81: 26.07.1995 | E81: г. Астана | F81: г. Астана | I81: 1 | J81: 69 | K81: 15 | O81: 74 | P81: 24 | Q81: ШОКОБАЛИНОВА Дана | R81: 09.02.2006 | S81: Костанайская обл | U81: 26 | V81: 4
A82: 29 | B82: 43 | C82: ЛАВРОВА Елизавета | D82: 02.04.2007 | E82: г. Астана | F82: г. Астана | I82: 1 | J82: 43 | K82: 26 | O82: 75 | P82: 24 | Q82: КОСАР Томирис | R82: 27.05.2010 | S82: г. Шымкент | U82: 24 | V82: 24
A83: 164 | B83: 0 | C83: ЛАВРОВА Маргарита | D83: 2011-07-13 | E83: г. Астана | F83: г. Астана | I83: 1 | J83: 0 | K83: 0 | O83: 76 | P83: 24 | Q83: АБУЛХАИР Салима | R83: 04.10.2009 | S83: Мангистауская обл. | U83: 24 | V83: 24
A84: 166 | B84: 0 | C84: НУРМАНОВА Алина | D84: 2014-05-23 | E84: г. Астана | F84: г. Астана | I84: 1 | J84: 0 | K84: 0 | O84: 77 | P84: 24 | Q84: МЕНДИГАЛИЕВА Айша | R84: 30.06.2009 | S84: г. Алматы | U84: 24 | V84: 24
A85: 17 | B85: 49 | C85: САНДЫБАЕВА Малика | D85: 15.11.2005 | E85: г. Астана | F85: г. Астана | I85: 1 | J85: 49 | K85: 17 | O85: 78 | P85: 24 | Q85: ЯСАКОВА Анна | R85: 06.07.2006 | S85: ВКО | U85: 24 | V85: 22
A86: 163 | B86: 0 | C86: САПАБЕК Арайлым | D86: 2011-03-17 | E86: г. Астана | F86: г. Астана | I86: 1 | J86: 0 | K86: 0 | O86: 79 | P86: 24 | Q86: БОРСАКБАЕВА Зарина | R86: 04.01.2003 | S86: Мангистауская обл. | U86: 24 | V86: 15
A87: 113 | B87: 7 | C87: САПАБЕК Арайлым | D87: 17.03.2012 | E87: г. Астана | F87: г. Астана | I87: 1 | J87: 7 | K87: 3 | O87: 80 | P87: 23 | Q87: ЖУМАШ Лаура | R87: 26.12.2007 | S87: г. Астана | U87: 23 | V87: 17
A88: 162 | B88: 0 | C88: ТУРАРБЕК Айнара | D88: 2010-10-10 | E88: г. Астана | F88: г. Астана | I88: 1 | J88: 0 | K88: 0 | O88: 81 | P88: 23 | Q88: ДАРЮБАЕВА Айдана | R88: 01.08.2002 | S88: Жетисуская обл. | U88: 23 | V88: 7
A89: 23 | B89: 46 | C89: ЦВИГУН Алиса | D89: 24.10.2007 | E89: г. Астана | F89: г. Астана | I89: 1 | J89: 46 | K89: 26 | O89: 82 | P89: 22 | Q89: ОСЬКИНА Анна | R89: 29.11.1988 | S89: г. Алматы | U89: 33 | V89: 1
A90: 234 | B90: 0 | C90: ШАЙХИНА Алина | D90: 2007-10-30 | E90: г. Астана | F90: г. Астана | I90: 1 | J90: 0 | K90: 0 | O90: 83 | P90: 22 | Q90: АКМУРЗИНА Мариза | R90: 09.08.2006 | S90: ЗКО | U90: 26 | V90: 2
A91: 43 | B91: 37 | C91: АДИЛЬГЕРЕЕВА Айназ | D91: 09.01.2010 | E91: г. Шымкент | F91: г. Шымкент | I91: 1 | J91: 37 | K91: 26 | O91: 84 | P91: 22 | Q91: ЖАРМУХАМБЕТОВА Алуа | R91: 26.09.2008 | S91: Абайская обл. | U91: 22 | V91: 17
A92: 44 | B92: 36 | C92: АЗАТОВА Озода | D92: 08.05.2001 | E92: г. Шымкент | F92: г. Шымкент | I92: 1 | J92: 39 | K92: 5 | O92: 85 | P92: 22 | Q92: ТАЖИМОВА Арайжан | R92: 19.01.2007 | S92: Акмолинская обл. | U92: 22 | V92: 16
A93: 54 | B93: 33 | C93: АМАНГЕЛДЫ Акниет | D93: 11.03.2009 | E93: г. Шымкент | F93: г. Шымкент | I93: 1 | J93: 33 | K93: 26 | O93: 86 | P93: 21 | Q93: МАЙЖАНОВА Алена | R93: 10.01.1988 | S93: ВКО | U93: 31 | V93: 1
A94: 236 | B94: 0 | C94: АСҚАР Айзере | D94: 2008-11-01 | E94: г. Шымкент | F94: г. Шымкент | I94: 1 | J94: 0 | K94: 0 | O94: 87 | P94: 21 | Q94: ДОШИМОВА Малика | R94: 02.10.2008 | S94: Актюбинская обл. | U94: 21 | V94: 25
A95: 67 | B95: 28 | C95: АШУРМАТОВА Севинч | D95: 22.01.2005 | E95: г. Шымкент | F95: г. Шымкент | I95: 1 | J95: 31 | K95: 4 | O95: 88 | P95: 21 | Q95: СУРАГАНОВА Алина | R95: 08.11.2008 | S95: Костанайская обл | U95: 21 | V95: 21
A96: 169 | B96: 0 | C96: ЕРАЛХАН Салтанат | D96: 2010-07-26 | E96: г. Шымкент | F96: г. Шымкент | I96: 1 | J96: 0 | K96: 0 | O96: 89 | P96: 21 | Q96: БАЙТИКЕНОВА Еркежан | R96: 13.01.2010 | S96: ВКО | U96: 21 | V96: 14
A97: 18 | B97: 49 | C97: КАМИЛЖАНОВА Гулназа | D97: 08.04.1994 | E97: г. Шымкент | F97: г. Шымкент | I97: 1 | J97: 49 | K97: 16 | O97: 90 | P97: 21 | Q97: НУРЖАНКЫЗЫ Аида | R97: 01.07.2008 | S97: Туркестанская обл. | U97: 21 | V97: 13
A98: 168 | B98: 0 | C98: КАМИЛЖАНОВА Ойдин | D98: 2011-11-03 | E98: г. Шымкент | F98: г. Шымкент | I98: 1 | J98: 0 | K98: 0 | O98: 91 | P98: 20 | Q98: ХАНИЯЗОВА Мафтуна | R98: 04.03.2010 | S98: Туркестанская обл. | U98: 20 | V98: 17
A99: 167 | B99: 0 | C99: КАМИЛЖАНОВА Шодиена | D99: 2013-02-20 | E99: г. Шымкент | F99: г. Шымкент | I99: 1 | J99: 0 | K99: 0 | O99: 92 | P99: 19 | Q99: МЕДЕУОВА Анна | R99: 13.05.2005 | S99: Жамбылская обл. | U99: 19 | V99: 22
A100: 117 | B100: 3 | C100: КАНАТБЕК Карина | D100: 23.07.2008 | E100: г. Шымкент | F100: г. Шымкент | I100: 1 | J100: 3 | K100: 7 | O100: 93 | P100: 18 | Q100: МИРКОДИРОВА Шохина | R100: 08.05.2014 | S100: г. Шымкент | U100: 22 | V100: 2
A101: 101 | B101: 14 | C101: АМАНГЕЛДЫ Томирис | D101: 29.05.2004 | E101: Улытауская обл. | F101: Улытауская обл. | I101: 1 | J101: 14 | K101: 7 | O101: 94 | P101: 18 | Q101: УЛАНБЕКОВА Анна | R101: 15.10.2007 | S101: г. Бишкек | U101: 20 | V101: 4
A102: 75 | B102: 24 | C102: КОСАР Томирис | D102: 27.05.2010 | E102: г. Шымкент | F102: г. Шымкент | I102: 1 | J102: 24 | K102: 24
A103: 170 | B103: 0 | C103: ҚАСЫМБЕК Құралай | D103: 2012-11-23 | E103: г. Шымкент | F103: г. Шымкент | I103: 1 | J103: 0 | K103: 0
A104: 93 | B104: 18 | C104: МИРКОДИРОВА Шохина | D104: 08.05.2014 | E104: г. Шымкент | F104: г. Шымкент | I104: 1 | J104: 22 | K104: 2
A105: 20 | B105: 48 | C105: РАСУЛМЕТОВА Малика | D105: 21.07.1999 | E105: г. Шымкент | F105: г. Шымкент | I105: 1 | J105: 50 | K105: 8
A106: 31 | B106: 41 | C106: САИДМУРАТХАНОВА Сарвиноз | D106: 11.09.2004 | E106: г. Шымкент | F106: г. Шымкент | I106: 1 | J106: 43 | K106: 7
A107: 110 | B107: 9 | C107: ТУРСЫНБЕК Куралай | D107: 06.01.2008 | E107: г. Шымкент | F107: г. Шымкент | I107: 1 | J107: 9 | K107: 3
A108: 235 | B108: 0 | C108: ТҰРСЫНБЕК Құралай | D108: 2008-01-06 | E108: г. Шымкент | F108: г. Шымкент | I108: 1 | J108: 0 | K108: 0
A109: 52 | B109: 34 | C109: УСИПБАЕВА Аида | D109: 17.02.2006 | E109: г. Шымкент | F109: г. Шымкент | I109: 1 | J109: 34 | K109: 8
A110: 38 | B110: 38 | C110: ШАПЕЙ Таншолпан | D110: 17.10.2001 | E110: г. Шымкент | F110: г. Шымкент | I110: 1 | J110: 41 | K110: 5
A111: 71 | B111: 26 | C111: ШЫМКЕНТБАЙ Руана | D111: 26.08.2009 | E111: г. Шымкент | F111: г. Шымкент | I111: 1 | J111: 26 | K111: 26
A112: 174 | B112: 0 | C112: АМАНГЕЛДІ Інжу | D112: 2010-05-20 | E112: Жамбылск. обл. | F112: Жамбылск. обл. | I112: 1 | J112: 0 | K112: 0
A113: 175 | B113: 0 | C113: АСЫЛХАНОВА Асылай | D113: 2012-05-17 | E113: Жамбылск. обл. | F113: Жамбылск. обл. | I113: 1 | J113: 0 | K113: 0
A114: 176 | B114: 0 | C114: БЕЙСЕНАЛЫ Самал | D114: 2012-01-26 | E114: Жамбылск. обл. | F114: Жамбылск. обл. | I114: 1 | J114: 0 | K114: 0
A115: 171 | B115: 0 | C115: ДҰКЕНБАЙ Жұлдызай | D115: 2012-05-16 | E115: Жамбылск. обл. | F115: Жамбылск. обл. | I115: 1 | J115: 0 | K115: 0
A116: 172 | B116: 0 | C116: ЖЕТПИСБАЙ Ұлдана | D116: 2009-03-03 | E116: Жамбылск. обл. | F116: Жамбылск. обл. | I116: 1 | J116: 0 | K116: 0
A117: 231 | B117: 0 | C117: МҰҚАШ Мадина | D117: 2003-03-07 | E117: Жамбылск. обл. | F117: Жамбылск. обл. | I117: 1 | J117: 0 | K117: 0
A118: 173 | B118: 0 | C118: ТУТҚАБАЙ Інжу | D118: 2009-05-03 | E118: Жамбылск. обл. | F118: Жамбылск. обл. | I118: 1 | J118: 0 | K118: 0
A119: 19 | B119: 48 | C119: АСЫКБЕК Айгерим | D119: 13.12.2002 | E119: Жамбылская обл. | F119: Жамбылская обл. | I119: 1 | J119: 51 | K119: 6
A120: 92 | B120: 19 | C120: МЕДЕУОВА Анна | D120: 13.05.2005 | E120: Жамбылская обл. | F120: Жамбылская обл. | I120: 1 | J120: 19 | K120: 22 | O120: 95 | P120: 18 | Q120: БАЙБОЛАТ Улдана | R120: 20.01.2009 | S120: Туркестанская обл. | U120: 18 | V120: 20
A121: 64 | B121: 29 | C121: МУКАШ Шугыла | D121: 07.01.2007 | E121: Жамбылская обл. | F121: Жамбылская обл. | I121: 1 | J121: 29 | K121: 27 | O121: 96 | P121: 17 | Q121: АЛИМГЕРЕЙ Амира | R121: 03.08.2011 | S121: Мангистауская обл. | U121: 17 | V121: 24
A122: 177 | B122: 0 | C122: АБЕН Маржан | D122: 2009-05-08 | E122: Жетисуская обл. | F122: Жетисуская обл. | I122: 1 | J122: 0 | K122: 0 | O122: 97 | P122: 17 | Q122: ДАРХАНКЫЗЫ Балауса | R122: 28.02.2008 | S122: Абайская обл. | U122: 17 | V122: 15
A123: 81 | B123: 23 | C123: ДАРЮБАЕВА Айдана | D123: 01.08.2002 | E123: Жетисуская обл. | F123: Жетисуская обл. | I123: 1 | J123: 23 | K123: 7 | O123: 98 | P123: 15 | Q123: МАЛЫШЕВА Алена | R123: 22.10.1974 | S123: Жетисуская обл. | U123: 23 | V123: 1
A124: 179 | B124: 0 | C124: ЕРЛАНҚЫЗЫ Балнұр | D124: 2012-04-30 | E124: Жетисуская обл. | F124: Жетисуская обл. | I124: 1 | J124: 0 | K124: 0 | O124: 99 | P124: 15 | Q124: БОНДАРЬ Каролина | R124: 07.03.2012 | S124: Павлодарская обл. | U124: 15 | V124: 14
A125: 98 | B125: 15 | C125: МАЛЫШЕВА Алена | D125: 22.10.1974 | E125: Жетисуская обл. | F125: Жетисуская обл. | I125: 1 | J125: 23 | K125: 1 | O125: 100 | P125: 15 | Q125: СОВЕТ Медина | R125: 17.01.2009 | S125: Улытауская обл. | U125: 15 | V125: 6
A126: 178 | B126: 0 | C126: РЫЖОВА Ева | D126: 2013-07-21 | E126: Жетисуская обл. | F126: Жетисуская обл. | I126: 1 | J126: 0 | K126: 0 | O126: 101 | P126: 14 | Q126: АМАНГЕЛДЫ Томирис | R126: 29.05.2004 | S126: Улытауская обл. | U126: 14 | V126: 7
A127: 83 | B127: 22 | C127: АКМУРЗИНА Мариза | D127: 09.08.2006 | E127: ЗКО | F127: ЗКО | I127: 1 | J127: 26 | K127: 2 | O127: 102 | P127: 13 | Q127: СУЛТАНБЕК Инжу | R127: 21.04.2010 | S127: Атырауская обл. | U127: 19 | V127: 1
A128: 21 | B128: 47 | C128: АЛМАГАМБЕТОВА Гаухар | D128: 26.05.1998 | E128: ЗКО | F128: ЗКО | I128: 1 | J128: 49 | K128: 10 | O128: 103 | P128: 12 | Q128: АМИРЗА Айым | R128: 23.05.2011 | S128: Карагандинская обл. | U128: 12 | V128: 9
A129: 181 | B129: 0 | C129: БАТЫРОВА Айкоркем | D129: 2010-10-09 | E129: Павлодарская обл. | F129: Павлодарская обл. | I129: 1 | J129: 0 | K129: 0 | O129: 104 | P129: 12 | Q129: УАЛИ Айя | R129: 10.12.2011 | S129: Мангистауская обл. | U129: 12 | V129: 4
A130: 57 | B130: 32 | C130: БЕКИШ Аружан | D130: 13.02.2006 | E130: ЗКО | F130: ЗКО | I130: 1 | J130: 32 | K130: 21 | O130: 105 | P130: 10 | Q130: ПОРТНЯГИНА Анна | R130: 10.10.2008 | S130: ЗКО | U130: 12 | V130: 2
A131: 66 | B131: 29 | C131: БУЛАНОВА Гульназ | D131: 01.11.2008 | E131: Павлодарская обл. | F131: Павлодарская обл. | I131: 1 | J131: 29 | K131: 20 | O131: 106 | P131: 9 | Q131: ЖАКСЫБЕК Томирис | R131: 01.05.2007 | S131: Павлодарская обл. | U131: 14 | V131: 1
A132: 49 | B132: 36 | C132: ИЛЬЯС Аружан | D132: 17.07.2006 | E132: ЗКО | F132: ЗКО | I132: 1 | J132: 36 | K132: 22 | O132: 107 | P132: 9 | Q132: АКЖИГИТОВА Аруна | R132: 11.09.2010 | S132: Костанайская обл | U132: 13 | V132: 1
A133: 183 | B133: 0 | C133: КАМАШЕВА Сабина | D133: 2010-03-19 | E133: ЗКО | F133: ЗКО | I133: 1 | J133: 0 | K133: 0 | O133: 108 | P133: 9 | Q133: АЛИМЖАН Акназ | R133: 06.10.2003 | S133: Кызылординская обл. | U133: 13 | V133: 1
A134: 182 | B134: 0 | C134: ЛУКПАНОВА Найля | D134: 2011-07-06 | E134: ЗКО | F134: ЗКО | I134: 1 | J134: 0 | K134: 0 | O134: 109 | P134: 9 | Q134: МЕЗИНА Анна | R134: 17.08.2006 | S134: г. Алматы | U134: 9 | V134: 4
A135: 180 | B135: 0 | C135: МУХИТДЕНОВА Айнар | D135: 2011-07-16 | E135: ЗКО | F135: ЗКО | I135: 1 | J135: 0 | K135: 0 | O135: 110 | P135: 9 | Q135: ТУРСЫНБЕК Куралай | R135: 06.01.2008 | S135: г. Шымкент | U135: 9 | V135: 3
A136: 55 | B136: 32 | C136: НУРМУХАНБЕТОВА Асем | D136: 11.12.2003 | E136: ЗКО | F136: ЗКО | I136: 1 | J136: 35 | K136: 4 | O136: 111 | P136: 8 | Q136: ТЛЕГЕНОВА Аружан | R136: 05.10.2009 | S136: Карагандинская обл. | U136: 8 | V136: 6
A137: 105 | B137: 10 | C137: ПОРТНЯГИНА Анна | D137: 10.10.2008 | E137: ЗКО | F137: ЗКО | I137: 1 | J137: 12 | K137: 2 | O137: 112 | P137: 7 | Q137: БУТРИК Ульяна | R137: 12.09.2012 | S137: Павлодарская обл. | U137: 10 | V137: 1
A138: 10 | B138: 56 | C138: САПАРОВА Алсу | D138: 06.06.2002 | E138: ЗКО | F138: ЗКО | I138: 1 | J138: 56 | K138: 17 | O138: 113 | P138: 7 | Q138: САПАБЕК Арайлым | R138: 17.03.2012 | S138: г. Астана | U138: 7 | V138: 3
A139: 4 | B139: 65 | C139: ХУСЕЙНОВА Гулчехра | D139: 17.11.1992 | E139: ЗКО | F139: ЗКО | I139: 1 | J139: 68 | K139: 9 | O139: 114 | P139: 6 | Q139: ТУТУЕВА Диляра | R139: 07.02.2008 | S139: СКО | U139: 6 | V139: 2
A140: 184 | B140: 0 | C140: ГУСЬКОВА Дарья | D140: 2009-08-17 | E140: Карагандин. обл. | F140: Карагандин. обл. | I140: 1 | J140: 0 | K140: 0 | O140: 115 | P140: 5 | Q140: БЕГАЙДАР Каракат | R140: 08.03.2007 | S140: Туркестанская обл. | U140: 8 | V140: 1
A141: 233 | B141: 0 | C141: ОМАРОВА Айша | D141: 2011-03-19 | E141: Карагандин. обл. | F141: Карагандин. обл. | I141: 1 | J141: 0 | K141: 0 | O141: 116 | P141: 5 | Q141: ГУСЬКОВА Дарья | R141: 17.08.2009 | S141: Карагандинская обл. | U141: 5 | V141: 6
A142: 185 | B142: 0 | C142: СЕРИК Рада | D142: 2009-01-14 | E142: Карагандин. обл. | F142: Карагандин. обл. | I142: 1 | J142: 0 | K142: 0 | O142: 117 | P142: 3 | Q142: КАНАТБЕК Карина | R142: 23.07.2008 | S142: г. Шымкент | U142: 3 | V142: 7
A143: 186 | B143: 0 | C143: ТЛЕГЕНОВА Аружан | D143: 2009-10-05 | E143: Карагандин. обл. | F143: Карагандин. обл. | I143: 1 | J143: 0 | K143: 0 | O143: 118 | P143: 2 | Q143: ТРАВКИНА Таисия | R143: 18.01.2011 | S143: г. Алматы | U143: 2 | V143: 16
A144: 1 | B144: 75 | C144: АКАШЕВА Зауреш | D144: 02.12.2000 | E144: Карагандинская обл. | F144: Карагандинская обл. | I144: 1 | J144: 77 | K144: 12
A145: 103 | B145: 12 | C145: АМИРЗА Айым | D145: 23.05.2011 | E145: Карагандинская обл. | F145: Карагандинская обл. | I145: 1 | J145: 12 | K145: 9
A146: 7 | B146: 60 | C146: АШКЕЕВА Арай | D146: 08.07.2003 | E146: Карагандинская обл. | F146: Карагандинская обл. | I146: 1 | J146: 60 | K146: 24
A147: 56 | B147: 32 | C147: ГАМОВА Дарья | D147: 23.04.2008 | E147: Карагандинская обл. | F147: Карагандинская обл. | I147: 1 | J147: 32 | K147: 26
A148: 116 | B148: 5 | C148: ГУСЬКОВА Дарья | D148: 17.08.2009 | E148: Карагандинская обл. | F148: Карагандинская обл. | I148: 1 | J148: 5 | K148: 6
A149: 16 | B149: 49 | C149: ЖАКСЫЛЫКОВА Альбина | D149: 11.05.2007 | E149: Карагандинская обл. | F149: Карагандинская обл. | I149: 1 | J149: 49 | K149: 24
A150: 72 | B150: 26 | C150: ИБРАЕВА Юрана | D150: 14.01.2009 | E150: Карагандинская обл. | F150: Карагандинская обл. | I150: 1 | J150: 26 | K150: 24
A151: 63 | B151: 31 | C151: КОШЕЛЕВА Алиса | D151: 10.09.2008 | E151: Карагандинская обл. | F151: Карагандинская обл. | I151: 1 | J151: 31 | K151: 22
A152: 8 | B152: 59 | C152: КОШКУМБАЕВА Жанерке | D152: 16.09.2005 | E152: Карагандинская обл. | F152: Карагандинская обл. | I152: 1 | J152: 59 | K152: 25
A153: 47 | B153: 36 | C153: ЛУКЬЯНОВА Мария | D153: 22.10.2011 | E153: Карагандинская обл. | F153: Карагандинская обл. | I153: 1 | J153: 36 | K153: 31
A154: 25 | B154: 44 | C154: МОЧАЛКИНА Виктория | D154: 06.12.2008 | E154: Карагандинская обл. | F154: Карагандинская обл. | I154: 1 | J154: 44 | K154: 25
A155: 24 | B155: 45 | C155: ОХМАК Екатерина | D155: 06.11.2006 | E155: Карагандинская обл. | F155: Карагандинская обл. | I155: 1 | J155: 45 | K155: 17
A156: 13 | B156: 53 | C156: СМИРНОВА Александра | D156: 11.06.2004 | E156: Карагандинская обл. | F156: Карагандинская обл. | I156: 1 | J156: 55 | K156: 9
A157: 111 | B157: 8 | C157: ТЛЕГЕНОВА Аружан | D157: 05.10.2009 | E157: Карагандинская обл. | F157: Карагандинская обл. | I157: 1 | J157: 8 | K157: 6
A158: 69 | B158: 27 | C158: ТЛЕГЕНОВА Еркежан | D158: 05.10.2009 | E158: Карагандинская обл. | F158: Карагандинская обл. | I158: 1 | J158: 27 | K158: 16
A159: 22 | B159: 46 | C159: ФУ Дарья | D159: 31.01.2009 | E159: Карагандинская обл. | F159: Карагандинская обл. | I159: 1 | J159: 46 | K159: 26
A160: 232 | B160: 0 | C160: АКИМЖАНОВА Диана | D160: 2013-01-15 | E160: Костанай. обл | F160: Костанай. обл | I160: 1 | J160: 0 | K160: 0
A161: 190 | B161: 0 | C161: БОРИСЕНКО Василиса | D161: 2009-06-15 | E161: Костанай. обл | F161: Костанай. обл | I161: 1 | J161: 0 | K161: 0
A162: 188 | B162: 0 | C162: БУКЕНОВА Айлана | D162: 2009-02-11 | E162: Костанай. обл | F162: Костанай. обл | I162: 1 | J162: 0 | K162: 0
A163: 187 | B163: 0 | C163: НЕСТЕРОВА Ксения | D163: 2009-11-24 | E163: Костанай. обл | F163: Костанай. обл | I163: 1 | J163: 0 | K163: 0
A164: 189 | B164: 0 | C164: ПОВАЛЯЕВА Алина | D164: 2010-12-12 | E164: Костанай. обл | F164: Костанай. обл | I164: 1 | J164: 0 | K164: 0
A165: 107 | B165: 9 | C165: АКЖИГИТОВА Аруна | D165: 11.09.2010 | E165: Костанайская обл | F165: Костанайская обл | I165: 1 | J165: 13 | K165: 1
A166: 53 | B166: 33 | C166: БЕКМУХАМБЕТОВА Жания | D166: 16.05.2013 | E166: Костанайская обл | F166: Костанайская обл | I166: 1 | J166: 33 | K166: 26
A167: 41 | B167: 38 | C167: ДАНИЯРОВА Юлия | D167: 02.04.1989 | E167: Костанайская обл | F167: Костанайская обл | I167: 1 | J167: 38 | K167: 16
A168: 15 | B168: 50 | C168: ДУБРОВСКАЯ Алина | D168: 27.03.2002 | E168: Костанайская обл | F168: Костанайская обл | I168: 1 | J168: 50 | K168: 17
A169: 88 | B169: 21 | C169: СУРАГАНОВА Алина | D169: 08.11.2008 | E169: Костанайская обл | F169: Костанайская обл | I169: 1 | J169: 21 | K169: 21
A170: 74 | B170: 24 | C170: ШОКОБАЛИНОВА Дана | D170: 09.02.2006 | E170: Костанайская обл | F170: Костанайская обл | I170: 1 | J170: 26 | K170: 4
A171: 195 | B171: 0 | C171: ЕРМҰРАТОВА Айзере | D171: 2012-06-11 | E171: Кызылорд. обл. | F171: Кызылорд. обл. | I171: 1 | J171: 0 | K171: 0
A172: 191 | B172: 0 | C172: ӘЛЖАНОВА Адиля | D172: 2014-05-25 | E172: Кызылорд. обл. | F172: Кызылорд. обл. | I172: 1 | J172: 0 | K172: 0
A173: 194 | B173: 0 | C173: ӘЛЖАНОВА Әмина | D173: 2010-08-27 | E173: Кызылорд. обл. | F173: Кызылорд. обл. | I173: 1 | J173: 0 | K173: 0
A174: 192 | B174: 0 | C174: ӘЛЖАНОВА Хадиша | D174: 2012-03-07 | E174: Кызылорд. обл. | F174: Кызылорд. обл. | I174: 1 | J174: 0 | K174: 0
A175: 196 | B175: 0 | C175: ҚУДАЙБЕРГЕНОВА Нұрлы | D175: 2009-09-02 | E175: Кызылорд. обл. | F175: Кызылорд. обл. | I175: 1 | J175: 0 | K175: 0
A176: 197 | B176: 0 | C176: ШАКИЗАДАЕВА Бірғаным | D176: 2010-05-17 | E176: Кызылорд. обл. | F176: Кызылорд. обл. | I176: 1 | J176: 0 | K176: 0
A177: 193 | B177: 0 | C177: ШЫҢҒЫС Мерей | D177: 2011-10-16 | E177: Кызылорд. обл. | F177: Кызылорд. обл. | I177: 1 | J177: 0 | K177: 0
A178: 108 | B178: 9 | C178: АЛИМЖАН Акназ | D178: 06.10.2003 | E178: Кызылординская обл. | F178: Кызылординская обл. | I178: 1 | J178: 13 | K178: 1
A179: 202 | B179: 0 | C179: АБИЛХАН Айнура | D179: 2009-05-31 | E179: Мангистау. обл. | F179: Мангистау. обл. | I179: 1 | J179: 0 | K179: 0
A180: 198 | B180: 0 | C180: АМАНГЕЛДЫ Маржан | D180: 2011-12-16 | E180: Мангистау. обл. | F180: Мангистау. обл. | I180: 1 | J180: 0 | K180: 0
A181: 201 | B181: 0 | C181: БАҚБЕРГЕН Ақниет | D181: 2010-10-19 | E181: Мангистау. обл. | F181: Мангистау. обл. | I181: 1 | J181: 0 | K181: 0
A182: 200 | B182: 0 | C182: БАЛАБАЙ Арнелла | D182: 2010-11-19 | E182: Мангистау. обл. | F182: Мангистау. обл. | I182: 1 | J182: 0 | K182: 0
A183: 203 | B183: 0 | C183: ГАНИМАТ Адель | D183: 2010-01-10 | E183: Мангистау. обл. | F183: Мангистау. обл. | I183: 1 | J183: 0 | K183: 0
A184: 199 | B184: 0 | C184: УӘЛИ Айя | D184: 2011-12-10 | E184: Мангистау. обл. | F184: Мангистау. обл. | I184: 1 | J184: 0 | K184: 0
A185: 76 | B185: 24 | C185: АБУЛХАИР Салима | D185: 04.10.2009 | E185: Мангистауская обл. | F185: Мангистауская обл. | I185: 1 | J185: 24 | K185: 24
A186: 96 | B186: 17 | C186: АЛИМГЕРЕЙ Амира | D186: 03.08.2011 | E186: Мангистауская обл. | F186: Мангистауская обл. | I186: 1 | J186: 17 | K186: 24
A187: 79 | B187: 24 | C187: БОРСАКБАЕВА Зарина | D187: 04.01.2003 | E187: Мангистауская обл. | F187: Мангистауская обл. | I187: 1 | J187: 24 | K187: 15
A188: 48 | B188: 36 | C188: БОРСАКБАЕВА Карина | D188: 04.01.2003 | E188: Мангистауская обл. | F188: Мангистауская обл. | I188: 1 | J188: 36 | K188: 24
A189: 61 | B189: 31 | C189: ТЕМИРХАНОВА Акку | D189: 23.01.2009 | E189: Мангистауская обл. | F189: Мангистауская обл. | I189: 1 | J189: 31 | K189: 27
A190: 104 | B190: 12 | C190: УАЛИ Айя | D190: 10.12.2011 | E190: Мангистауская обл. | F190: Мангистауская обл. | I190: 1 | J190: 12 | K190: 4
A191: 205 | B191: 0 | C191: АБИЛЬТАЕВА Айсана | D191: 2014-05-15 | E191: Павлодар. обл. | F191: Павлодар. обл. | I191: 1 | J191: 0 | K191: 0
A192: 213 | B192: 0 | C192: БАЛТАБЕК Инабат | D192: 2010-03-09 | E192: Павлодар. обл. | F192: Павлодар. обл. | I192: 1 | J192: 0 | K192: 0
A193: 212 | B193: 0 | C193: БАЛТАБЕК Інкар | D193: 2010-03-09 | E193: Павлодар. обл. | F193: Павлодар. обл. | I193: 1 | J193: 0 | K193: 0
A194: 210 | B194: 0 | C194: БОНДАРЬ Каролина | D194: 2012-03-07 | E194: Павлодар. обл. | F194: Павлодар. обл. | I194: 1 | J194: 0 | K194: 0
A195: 208 | B195: 0 | C195: БУТРИК Ульяна | D195: 2012-09-12 | E195: Павлодар. обл. | F195: Павлодар. обл. | I195: 1 | J195: 0 | K195: 0
A196: 216 | B196: 0 | C196: ЖАНАБЕРДІ Махаббат | D196: 2009-03-27 | E196: Павлодар. обл. | F196: Павлодар. обл. | I196: 1 | J196: 0 | K196: 0
A197: 204 | B197: 0 | C197: ИМАНКУЛОВА Азалия | D197: 2016-06-18 | E197: Павлодар. обл. | F197: Павлодар. обл. | I197: 1 | J197: 0 | K197: 0
A198: 215 | B198: 0 | C198: ИСКАКОВА Аяна | D198: 2010-02-05 | E198: Павлодар. обл. | F198: Павлодар. обл. | I198: 1 | J198: 0 | K198: 0
A199: 206 | B199: 0 | C199: КУАНДЫК Айым | D199: 2013-02-03 | E199: Павлодар. обл. | F199: Павлодар. обл. | I199: 1 | J199: 0 | K199: 0
A200: 207 | B200: 0 | C200: МУРАТ Аяжан | D200: 2013-01-07 | E200: Павлодар. обл. | F200: Павлодар. обл. | I200: 1 | J200: 0 | K200: 0
... 3293 more rows

Sheet R-муж0 (hidden)
A1: Место | B1: Рейтинг | C1: Фамилия, имя | D1: Дата рождения | E1: Город | F1: 2023-01-01
A2: 2180 | B2: 58 | C2: Абазов Асланбек | D2: 23.04.2012 | E2: Нальчик | I2: 1
A3: 4002 | B3: 1 | C3: Абаканов Глеб | D3: 25.02.2013 | E3: С.-Петербург | I3: 1
A4: 3047 | B4: 16 | C4: Абакумов Павел | D4: 28.12.2013 | E4: Н.Новгород | I4: 1
A5: 3781 | B5: 3 | C5: Абашев Владимир | D5: 15.02.2012 | E5: Всеволожск Ленингр.обл. | I5: 1
A6: 537 | B6: 453 | C6: Абашкин Роман | D6: 20.11.1996 | E6: Брянск | I6: 1
A7: 605 | B7: 411 | C7: Аббасов Рустамхон | D7: 14.06.1974 | E7: Уфа | I7: 1
A8: 4124 | B8: 0 | C8: Абдулин Даниэль | D8: 04.03.2012 | E8: Тобольск | I8: 1
A9: 1884 | B9: 84 | C9: Абдуллаев Тимур | D9: 01.06.2009 | E9: Всеволожск Ленингр.обл. | I9: 1
A10: 4124 | B10: 0 | C10: Абдуллин Булат | D10: 26.10.2012 | E10: Казань | I10: 1
A11: 2676 | B11: 29 | C11: Абдулов Ринат | D11: 21.01.1992 | E11: Новосибирск | I11: 1
A12: 1222 | B12: 176 | C12: Абдурахманов Шамиль | D12: 22.06.1973 | E12: Шамилькала Даг. | I12: 1
A13: 921 | B13: 264 | C13: АБДУРАШИДОВ Рахматилло | D13: 28.10.2011 | E13: Ташкентская обл. Узб. | I13: 1
A14: 1278 | B14: 164 | C14: Абельмасов Игорь | D14: 09.04.1987 | E14: Москва | I14: 1
A15: 3293 | B15: 10 | C15: Абишев Антон | D15: 09.12.2009 | E15: Томск | I15: 1
A16: 3885 | B16: 2 | C16: Абоимов Владислав | D16: 06.12.2008 | E16: Уфа | I16: 1
A17: 4124 | B17: 0 | C17: Аболурин Оскар | D17: 10.06.2009 | E17: С.-Петербург | I17: 1
A18: 3419 | B18: 8 | C18: Абраменко Иван | D18: 28.07.2008 | E18: Славянск-на-Кубани | I18: 1
A19: 2070 | B19: 67 | C19: Абраменко Михаил | D19: 27.08.2010 | E19: Белореченск Кр.кр. | I19: 1
A20: 4002 | B20: 1 | C20: Абраменков Дамир | D20: 12.09.2009 | E20: Пенза | I20: 1
A21: 4002 | B21: 1 | C21: Абрамов Даниил | D21: 24.04.2013 | E21: Казань | I21: 1
A22: 1148 | B22: 194 | C22: Абрамов Илья | D22: 19.02.2011 | E22: Дзержинск | I22: 1
A23: 2517 | B23: 37 | C23: Абрамов Илья | D23: 21.10.2006 | E23: Москва | I23: 1
A24: 3781 | B24: 3 | C24: Абрамов Илья | D24: 02.08.2011 | E24: Москва | I24: 1
A25: 240 | B25: 901 | C25: Абрамов Кирилл | D25: 16.06.1997 | E25: Липецк | I25: 1
A26: 4124 | B26: 0 | C26: Абрамов Тимофей | D26: 12.12.2014 | E26: Рыбинск | I26: 1
A27: 4124 | B27: 0 | C27: Абронов Матвей | D27: 16.10.2011 | E27: Дзержинск | I27: 1
A28: 1636 | B28: 107 | C28: Абросимов Владислав | D28: 03.03.2009 | E28: Калач Воронеж.обл. | I28: 1
A29: 896 | B29: 273 | C29: Абулаев Салават | D29: 03.01.2004 | E29: Красноусольск Баш. | I29: 1
A30: 1588 | B30: 113 | C30: Абумов Дамир | D30: 30.08.2004 | E30: Абакан | I30: 1
A31: 1145 | B31: 195 | C31: Абумов Карим | D31: 23.12.2009 | E31: Абакан | I31: 1
A32: 956 | B32: 250 | C32: Абушаев Ринат | D32: 12.03.2010 | E32: Казань | I32: 1
A33: 4124 | B33: 0 | C33: Авагян Данил | D33: 14.12.2011 | E33: Славянск-на-Кубани | I33: 1
A34: 3692 | B34: 4 | C34: Авакумов Дмитрий | D34: 12.08.2010 | E34: С.-Петербург | I34: 1
A35: 3605 | B35: 5 | C35: Авакян Вартан | D35: 12.05.2011 | E35: Лабинск Краснод.кр. | I35: 1
A36: 1911 | B36: 81 | C36: Аввакумов Денис | D36: 24.03.2008 | E36: Иркутск | I36: 1
A37: 1799 | B37: 93 | C37: Авдеев Александр | D37: 02.04.2005 | E37: Подольск | I37: 1
A38: 3244 | B38: 11 | C38: Авдеев Артем | D38: 23.09.2011 | E38: Коломна | I38: 1
A39: 732 | B39: 343 | C39: Авдеев Владимир | D39: 05.01.2004 | E39: Барнаул | I39: 1
A40: 2157 | B40: 60 | C40: Авдеев Максим | D40: 17.01.2011 | E40: Оренбург | I40: 1
A41: 4002 | B41: 1 | C41: Авдеев Михаил | D41: 11.10.2013 | E41: Подольск | I41: 1
A42: 4124 | B42: 0 | C42: Авдеев Михаил | D42: 29.04.2011 | E42: С.-Петербург | I42: 1
A43: 4002 | B43: 1 | C43: Аверин Алексей | D43: 20.09.2011 | E43: Москва | I43: 1
A44: 4124 | B44: 0 | C44: Авраменко Кирилл | D44: 16.01.2013 | E44: Кувандык Оренб.обл. | I44: 1
A45: 729 | B45: 344 | C45: Авраменко Павел | D45: 25.01.2004 | E45: Надым ЯНАО | I45: 1
A46: 4124 | B46: 0 | C46: Агалаков Даниил | D46: 18.12.2013 | E46: Подпорожье Лен.о. | I46: 1
A47: 3114 | B47: 14 | C47: Агальцов Максим | D47: 16.10.2007 | E47: Тверь | I47: 1
A48: 2809 | B48: 24 | C48: Аганин Андрей | D48: 02.02.2010 | E48: Орск | I48: 1
A49: 3072 | B49: 15 | C49: Аганин Петр | D49: 02.02.2010 | E49: Орск | I49: 1
A50: 913 | B50: 266 | C50: Агафонов Артем | D50: 19.05.2008 | E50: Н.Новгород | I50: 1
A51: 4124 | B51: 0 | C51: Агеев Данила | D51: 13.10.2013 | E51: Чита | I51: 1
A52: 4124 | B52: 0 | C52: Аглямов Ислам | D52: 28.08.2011 | E52: Тюлячи Тат. | I52: 1
A53: 336 | B53: 719 | C53: Адигезалов Руслан | D53: 07.07.2009 | E53: Армавир | I53: 1
A54: 524 | B54: 463 | C54: Адигезалов Теймур | D54: 06.11.1985 | E54: Армавир | I54: 1
A55: 760 | B55: 325 | C55: Адинду Криспин Иван | D55: 17.07.2009 | E55: Новосибирск | I55: 1
A56: 4124 | B56: 0 | C56: Адисанов Иван | D56: 25.05.2010 | E56: Тюмень | I56: 1
A57: 1090 | B57: 211 | C57: Азаров Алексей | D57: 14.10.1987 | E57: Кореновск Красн.кр. | I57: 1
A58: 4124 | B58: 0 | C58: Азаров Андрей | D58: 27.10.2011 | E58: Людиново Калуж.обл. | I58: 1
A59: 562 | B59: 441 | C59: Азаров Григорий | D59: 20.03.2008 | E59: С.-Петербург | I59: 1
A60: 1368 | B60: 145 | C60: Айвазян Георгий | D60: 15.01.2005 | E60: Майкоп Адыгея | I60: 1
A61: 567 | B61: 437 | C61: Акбаев Артем | D61: 07.09.2005 | E61: Куеда Перм.кр. | I61: 1
A62: 3527 | B62: 6 | C62: Акбаев Владислав | D62: 17.03.2013 | E62: Куеда Перм.кр. | I62: 1
A63: 174 | B63: 1037 | C63: АКИМАЛИ Бакдаулет | D63: 20.04.2001 | E63: Шымкент Казахстан | I63: 1
A64: 2613 | B64: 32 | C64: Акименко Александр | D64: 05.03.2008 | E64: Ессентуки Ст.кр. | I64: 1
A65: 3197 | B65: 12 | C65: Акимов Дмитрий | D65: 29.01.2011 | E65: Богородский Мос.обл. | I65: 1
A66: 2135 | B66: 61 | C66: Акимов Матвей | D66: 11.03.2010 | E66: Ессентуки Ст.кр. | I66: 1
A67: 2122 | B67: 62 | C67: Акопян Карен | D67: 15.10.2007 | E67: Уссурийск | I67: 1
A68: 578 | B68: 430 | C68: Аксельрод Денис | D68: 09.06.2003 | E68: С.-Петербург | I68: 1
A69: 2495 | B69: 38 | C69: Аксенов Александр | D69: 19.03.2013 | E69: Н.Новгород | I69: 1
A70: 2633 | B70: 31 | C70: Аксенов Никита | D70: 03.07.2008 | E70: Благовещенка Алт.кр. | I70: 1
A71: 3605 | B71: 5 | C71: Аксенов Фадей | D71: 30.12.2013 | E71: Абакан | I71: 1
A72: 2016 | B72: 72 | C72: Аксенчик Арсений | D72: 27.10.2007 | E72: Коломна | I72: 1
A73: 3020 | B73: 17 | C73: Аксенчик Артем | D73: 27.10.2007 | E73: Коломна | I73: 1
A74: 4124 | B74: 0 | C74: Аксютенков Артем | D74: 13.09.2012 | E74: Братск | I74: 1
A75: 4124 | B75: 0 | C75: Аладышкин Матвей | D75: 29.04.2012 | E75: С.-Петербург | I75: 1
A76: 618 | B76: 404 | C76: Алаев Иван | D76: 17.04.1988 | E76: Москва | I76: 1
A77: 379 | B77: 629 | C77: Алатырцев Константин | D77: 25.04.1993 | E77: Хабаровск | I77: 1
A78: 2712 | B78: 28 | C78: Алашеев Никита | D78: 06.04.2009 | E78: Железногорск Крас. кр. | I78: 1
A79: 4002 | B79: 1 | C79: Алдосов Эльдар | D79: 16.06.2013 | E79: Подольск | I79: 1
A80: 4124 | B80: 0 | C80: Алдосов Эльмар | D80: 16.06.2013 | E80: Подольск | I80: 1
A81: 4124 | B81: 0 | C81: Александрин Георгий | D81: 08.10.2012 | E81: Подольск | I81: 1
A82: 2038 | B82: 70 | C82: Александрин Максим | D82: 23.09.2009 | E82: Краснодар | I82: 1
A83: 1368 | B83: 145 | C83: Александров Иван | D83: 25.05.2006 | E83: Архангельск | I83: 1
A84: 1011 | B84: 233 | C84: Александров Леонид | D84: 13.01.1997 | E84: С.-Петербург | I84: 1
A85: 1495 | B85: 126 | C85: Александров Матвей | D85: 17.03.2011 | E85: Москва | I85: 1
A86: 3527 | B86: 6 | C86: Александров Савва | D86: 13.12.2012 | E86: Н.Новгород | I86: 1
A87: 1167 | B87: 187 | C87: Алексеев Андрей | D87: 18.07.2009 | E87: Москва | I87: 1
A88: 2633 | B88: 31 | C88: Алексеев Антон | D88: 07.01.2007 | E88: Саки Крым | I88: 1
A89: 1853 | B89: 88 | C89: Алексеев Артемий | D89: 16.06.2009 | E89: Р.Пычас Удм. | I89: 1
A90: 794 | B90: 311 | C90: Алексеев Валерий | D90: 05.07.1984 | E90: Н.Тагил | I90: 1
A91: 1788 | B91: 94 | C91: Алексеев Георгий | D91: 21.08.2007 | E91: Москва | I91: 1
A92: 4124 | B92: 0 | C92: Алексеев Даниил | D92: 05.05.2011 | E92: Казань | I92: 1
A93: 1403 | B93: 141 | C93: Алексеев Евгений | D93: 27.08.2010 | E93: С.-Петербург | I93: 1
A94: 1232 | B94: 173 | C94: Алексеев Игорь | D94: 12.01.2005 | E94: Саки Крым | I94: 1
A95: 2867 | B95: 22 | C95: Алексеев Семен | D95: 25.04.2007 | E95: Линево Новосиб.о. | I95: 1
A96: 3885 | B96: 2 | C96: Алексеенко Ростислав | D96: 03.06.2011 | E96: Пестово Новг.обл. | I96: 1
A97: 951 | B97: 251 | C97: Алехин Алексей | D97: 21.05.1985 | E97: Оренбург | I97: 1
A98: 4124 | B98: 0 | C98: Алехин Роман | D98: 31.07.2008 | E98: Тобольск | I98: 1
A99: 4124 | B99: 0 | C99: Алехин Юрий | D99: 21.11.1973 | E99: Оренбург | I99: 1
A100: 2440 | B100: 41 | C100: Алиев Александр | D100: 30.12.2010 | E100: Красноярск | I100: 1
A101: 2867 | B101: 22 | C101: Алиев Давид | D101: 20.02.2012 | E101: Учебное КБР | I101: 1
A102: 1515 | B102: 123 | C102: Алиев Мухаммадрасул | D102: 09.04.2006 | E102: Каспийск Даг. | I102: 1
A103: 3781 | B103: 3 | C103: Алиев Самир | D103: 21.01.2009 | E103: с.Учебное КБР | I103: 1
A104: 2474 | B104: 39 | C104: Алиев Эмиль | D104: 19.03.2007 | E104: Тюмень | I104: 1
A105: 4124 | B105: 0 | C105: Алимпиев Артем | D105: 13.07.2013 | E105: Тюмень | I105: 1
A106: 3605 | B106: 5 | C106: Алленов Елисей | D106: 20.08.2011 | E106: Тамбов | I106: 1
A107: 2742 | B107: 27 | C107: Алленов Тимур | D107: 16.08.2009 | E107: Тамбов | I107: 1
A108: 4124 | B108: 0 | C108: Алопин Вадим | D108: 10.04.2009 | E108: Уфа | I108: 1
A109: 70 | B109: 1437 | C109: Алчимбаев Руслан | D109: 24.04.1999 | E109: Оренбург | I109: 1
A110: 737 | B110: 338 | C110: Аль-Еззи Малек | D110: 02.05.1992 | E110: Ростов-на-Дону | I110: 1
A111: 2517 | B111: 37 | C111: Алькин Максим | D111: 22.12.2011 | E111: Петрозаводск | I111: 1
A112: 4124 | B112: 0 | C112: Альмухаметов Ангиз | D112: 04.02.2011 | E112: Сарманово Тат | I112: 1
A113: 4124 | B113: 0 | C113: Альтапов Анвар | D113: 17.11.2010 | E113: Кукмор Тат | I113: 1
A114: 2016 | B114: 72 | C114: Алюлин Николай | D114: 09.11.2006 | E114: Благовещенск | I114: 1
A115: 1711 | B115: 101 | C115: Аманжулов Аюр-Цырен | D115: 17.05.2010 | E115: Москва | I115: 1
A116: 827 | B116: 296 | C116: АМБАРЦУМЯН Ваге | D116: 04.09.2007 | E116: Ереван Армения | I116: 1
A117: 1377 | B117: 144 | C117: Амелин Леонид | D117: 28.07.2007 | E117: Тобольск | I117: 1
A118: 2343 | B118: 47 | C118: Амраев Марат | D118: 08.06.2011 | E118: Н.Новгород | I118: 1
A119: 736 | B119: 339 | C119: Ананьев Егор | D119: 30.07.2005 | E119: С.-Петербург | I119: 1
A120: 4124 | B120: 0 | C120: Ананьев Кирилл | D120: 27.08.2013 | E120: Самара | I120: 1
A121: 1228 | B121: 174 | C121: Ананьев Павел | D121: 06.09.2009 | E121: Сорочинск | I121: 1
A122: 786 | B122: 313 | C122: Андреев Артем | D122: 25.02.2007 | E122: Казань | I122: 1
A123: 4124 | B123: 0 | C123: Андреев Артем | D123: 04.11.2014 | E123: Якутск | I123: 1
A124: 1092 | B124: 209 | C124: Андреев Буянто | D124: 17.09.2005 | E124: Улан-Удэ | I124: 1
A125: 1821 | B125: 91 | C125: Андреев Владислав | D125: 09.05.2006 | E125: Майкоп Адыгея | I125: 1
A126: 4124 | B126: 0 | C126: Андреев Денис | D126: 19.03.2009 | E126: Бологое Тв.о. | I126: 1
A127: 3527 | B127: 6 | C127: Андреев Дмитрий | D127: 28.12.2010 | E127: Сясьстрой Лен.о. | I127: 1
A128: 4124 | B128: 0 | C128: Андреев Елисей | D128: 10.08.2013 | E128: Н.Новгород | I128: 1
A129: 1504 | B129: 125 | C129: Андреев Максим | D129: 03.11.2009 | E129: Серпухов | I129: 1
A130: 3419 | B130: 8 | C130: Андреев Матвей | D130: 09.07.2008 | E130: Барнаул | I130: 1
A131: 3692 | B131: 4 | C131: Андреев Мирон | D131: 04.03.2009 | E131: Тверь | I131: 1
A132: 3150 | B132: 13 | C132: Андреев Павел | D132: 20.12.2011 | E132: Екатеринбург | I132: 1
A133: 253 | B133: 873 | C133: Андреев Револь | D133: 05.09.1994 | E133: Варгаши Кург.обл. | I133: 1
A134: 956 | B134: 250 | C134: Андриади Георгий | D134: 02.07.1973 | E134: Ростов-на-Дону | I134: 1
A135: 4124 | B135: 0 | C135: Андрианов Дмитрий | D135: 14.03.2013 | E135: Абакан | I135: 1
A136: 1992 | B136: 73 | C136: Андриянов Вячеслав | D136: 06.04.2009 | E136: С.-Петербург | I136: 1
A137: 2712 | B137: 28 | C137: Андриянов Денис | D137: 02.02.2012 | E137: С.-Петербург | I137: 1
A138: 2440 | B138: 41 | C138: Андроняк Арсений | D138: 24.04.2007 | E138: Армавир | I138: 1
A139: 1266 | B139: 166 | C139: Андрющенко Александр | D139: 15.02.2005 | E139: Уфа | I139: 1
A140: 3885 | B140: 2 | C140: Анетько Алексей | D140: 04.11.2009 | E140: Сертолово Лен.обл. | I140: 1
A141: 3293 | B141: 10 | C141: Аникин Илья | D141: 18.03.2007 | E141: Москва | I141: 1
A142: 2555 | B142: 35 | C142: Аникин Семен | D142: 18.06.2010 | E142: Москва | I142: 1
A143: 241 | B143: 900 | C143: Анисимов Антон | D143: 29.08.1988 | E143: Красноярск | I143: 1
A144: 1652 | B144: 106 | C144: Анисимов Богдан | D144: 14.05.2006 | E144: Петрозаводск | I144: 1
A145: 589 | B145: 426 | C145: Анисимов Тимофей | D145: 01.06.2008 | E145: Тверь | I145: 1
A146: 4124 | B146: 0 | C146: Анисимов Филипп | D146: 18.06.2013 | E146: Синявино Лен.о. | I146: 1
A147: 67 | B147: 1469 | C147: Анохин Илья | D147: 17.05.2003 | E147: Москва | I147: 1
A148: 812 | B148: 301 | C148: Анохин Ярослав | D148: 30.09.2008 | E148: С.-Петербург | I148: 1
A149: 2316 | B149: 49 | C149: Антипенко Богдан | D149: 08.09.2011 | E149: Красноярск | I149: 1
A150: 2406 | B150: 43 | C150: Антипенко Глеб | D150: 08.09.2011 | E150: Красноярск | I150: 1
A151: 1992 | B151: 73 | C151: Антипов Матвей | D151: 22.11.2010 | E151: Челябинск | I151: 1
A152: 611 | B152: 405 | C152: Антифеев Олег | D152: 23.11.1969 | E152: Тихорецк Кр.кр. | I152: 1
A153: 909 | B153: 267 | C153: Антонов Александр | D153: 25.12.1997 | E153: Красноярск | I153: 1
A154: 2896 | B154: 21 | C154: Антонов Владислав | D154: 27.10.2009 | E154: Коломна | I154: 1
A155: 2440 | B155: 41 | C155: Антонов Дмитрий | D155: 25.08.2008 | E155: Лабинск Краснод.кр. | I155: 1
A156: 847 | B156: 289 | C156: Антонов Максим | D156: 22.09.2009 | E156: Улан-Удэ | I156: 1
A157: 1458 | B157: 132 | C157: Антонов Павел | D157: 26.03.1972 | E157: Оренбург | I157: 1
A158: 1582 | B158: 114 | C158: Антонов Ярослав | D158: 03.10.2010 | E158: Якутск | I158: 1
A159: 2921 | B159: 20 | C159: Антонычев Алексей | D159: 16.04.2010 | E159: Рыбинск | I159: 1
A160: 881 | B160: 279 | C160: Антюфеев Даниил | D160: 22.02.2006 | E160: Тула | I160: 1
A161: 1319 | B161: 154 | C161: Ануреев Михаил | D161: 13.01.2008 | E161: Новосибирск | I161: 1
A162: 170 | B162: 1046 | C162: Ануфриев Владимир | D162: 18.09.2000 | E162: Москва | I162: 1
A163: 4124 | B163: 0 | C163: Ануфриев Дмитрий | D163: 10.05.2011 | E163: Искитим Новос.о. | I163: 1
A164: 1672 | B164: 104 | C164: Анучин Артем | D164: 06.06.2011 | E164: С.-Петербург | I164: 1
A165: 1884 | B165: 84 | C165: Анфалов Максим | D165: 20.12.2007 | E165: Челябинск | I165: 1
A166: 3885 | B166: 2 | C166: Анфиногенов Евгений | D166: 20.12.2010 | E166: Кохма Иван.обл. | I166: 1
A167: 101 | B167: 1245 | C167: Апагуни Эдуард | D167: 08.08.1988 | E167: Барнаул | I167: 1
A168: 3347 | B168: 9 | C168: Апостол Макар | D168: 10.11.2012 | E168: Н.Тагил | I168: 1
A169: 2495 | B169: 38 | C169: Апостолов Тимофей | D169: 29.08.2010 | E169: Ноябрьск | I169: 1
A170: 1565 | B170: 116 | C170: Апполон Алексей | D170: 02.04.1998 | E170: Петропавловск-Камчатский | I170: 1
A171: 2989 | B171: 18 | C171: Апулов Арсений | D171: 05.03.2011 | E171: Нефтекамск Башк. | I171: 1
A172: 1853 | B172: 88 | C172: Апшев Тимур | D172: 17.10.2005 | E172: Нальчик | I172: 1
A173: 2135 | B173: 61 | C173: Аракчеев Федор | D173: 05.01.2009 | E173: Сасово Ряз.обл. | I173: 1
A174: 1839 | B174: 89 | C174: Арбузов Павел | D174: 24.06.2008 | E174: Екатеринбург | I174: 1
A175: 2495 | B175: 38 | C175: Арестов Егор | D175: 25.12.2009 | E175: Северск Томск.о. | I175: 1
A176: 757 | B176: 327 | C176: Аржаков Арсен | D176: 06.04.2007 | E176: Хатылы Якут. | I176: 1
A177: 1923 | B177: 80 | C177: Аринин Федор | D177: 08.08.2011 | E177: Ульяновск | I177: 1
A178: 3072 | B178: 15 | C178: Аристархов Дмитрий | D178: 02.03.2007 | E178: Ульяновск | I178: 1
A179: 307 | B179: 760 | C179: Аристов Александр | D179: 16.03.2006 | E179: Москва | I179: 1
A180: 3692 | B180: 4 | C180: Аристов Савелий | D180: 11.11.2013 | E180: С.-Петербург | I180: 1
A181: 2633 | B181: 31 | C181: Аришин Вадим | D181: 07.05.2009 | E181: Ростов-на-Дону | I181: 1
A182: 3781 | B182: 3 | C182: Аркасов Джамал | D182: 17.05.2010 | E182: Дейское КБР | I182: 1
A183: 1251 | B183: 169 | C183: Арндт Марк | D183: 01.03.2010 | E183: Ростов-на-Дону | I183: 1
A184: 4124 | B184: 0 | C184: Арсланов Ильнур | D184: 18.12.2012 | E184: Казань | I184: 1
A185: 4124 | B185: 0 | C185: Арсланов Искандер | D185: 31.03.2013 | E185: Астрахань | I185: 1
A186: 3781 | B186: 3 | C186: Арсланов Тимур | D186: 19.10.2011 | E186: Заинск Тат. | I186: 1
A187: 4124 | B187: 0 | C187: Артамонов Евгений | D187: 24.02.2013 | E187: Калуга | I187: 1
A188: 2029 | B188: 71 | C188: Артамонов Егор | D188: 11.01.2014 | E188: Орехово-Зуево | I188: 1
A189: 20 | B189: 1788 | C189: Артеменко Никита | D189: 13.04.1999 | E189: С.-Петербург | I189: 1
A190: 2517 | B190: 37 | C190: Артемов Дмитрий | D190: 16.03.2011 | E190: Новосибирск | I190: 1
A191: 1456 | B191: 133 | C191: Артемьев Егор | D191: 02.09.2008 | E191: Ильинский | I191: 1
A192: 664 | B192: 381 | C192: Артемьев Максим | D192: 29.11.2006 | E192: Челябинск | I192: 1
A193: 2373 | B193: 45 | C193: Артемьев Степан | D193: 08.12.2010 | E193: Богородский Мос.обл. | I193: 1
A194: 87 | B194: 1315 | C194: АРТУКМЕТОВ Ирисбек | D194: 18.08.2002 | E194: Шымкент Казахстан | I194: 1
A195: 4124 | B195: 0 | C195: Арутюнов Денис | D195: 02.09.2012 | E195: С.-Петербург | I195: 1
A196: 2867 | B196: 22 | C196: Арутюнян Эдмонд | D196: 28.12.2011 | E196: Краснодар | I196: 1
A197: 1521 | B197: 122 | C197: Архипов Никита | D197: 03.09.2004 | E197: Н.Новгород | I197: 1
A198: 2517 | B198: 37 | C198: Архипцев Артем | D198: 08.09.2011 | E198: Нальчик | I198: 1
A199: 4124 | B199: 0 | C199: Арысланов Амир | D199: 14.06.2011 | E199: Актаныш Тат. | I199: 1
A200: 1262 | B200: 167 | C200: Асадчиев Герман | D200: 20.08.1994 | E200: Краснодар | I200: 1
... 4869 more rows

Sheet R-жен0 (hidden)
A1: Место | B1: Рейтинг | C1: Фамилия, имя | D1: Дата рождения | E1: Город | F1: 2023-01-01
A2: 16 | B2: 1854 | C2: Абаимова Елена | D2: 11.07.1976 | E2: Казань | I2: 1
A3: 686 | B3: 218 | C3: Абалмасова Варвара | D3: 12.12.2010 | E3: Зеленогорск Кр.кр. | I3: 1
A4: 804 | B4: 183 | C4: Абдрафикова Азиза | D4: 30.05.2008 | E4: Казань | I4: 1
A5: 1169 | B5: 113 | C5: Абдуллина Айзиля | D5: 28.11.2009 | E5: Казань | I5: 1
A6: 118 | B6: 987 | C6: Абдуллина Арина | D6: 12.07.2009 | E6: Оренбург | I6: 1
A7: 1621 | B7: 62 | C7: Абдуллина Эмилия | D7: 26.07.2011 | E7: Казань | I7: 1
A8: 1102 | B8: 124 | C8: Абдурахманова Сабина | D8: 29.01.2010 | E8: Кизляр Даг. | I8: 1
A9: 778 | B9: 188 | C9: Абдурахманова Сафина | D9: 18.05.2010 | E9: Семибратово | I9: 1
A10: 2598 | B10: 9 | C10: Абдюшева Милана | D10: 28.11.2014 | E10: Оренбург | I10: 1
A11: 2057 | B11: 30 | C11: Абешева Милана | D11: 26.01.2011 | E11: Элиста | I11: 1
A12: 432 | B12: 371 | C12: Абитова Катрин | D12: 06.08.2005 | E12: Челябинск | I12: 1
A13: 3006 | B13: 2 | C13: Абошенкова Юлия | D13: 13.03.2013 | E13: Людиново Калуж.обл. | I13: 1
A14: 2486 | B14: 12 | C14: Абраамян Лилия | D14: 20.12.2013 | E14: Н.Новгород | I14: 1
A15: 2 | B15: 2049 | C15: Абраамян Элизабет | D15: 29.04.2003 | E15: Н.Новгород | I15: 1
A16: 2328 | B16: 18 | C16: Абраменко Анастасия | D16: 07.10.2013 | E16: Белореченск Кр.кр. | I16: 1
A17: 400 | B17: 401 | C17: Абрамова Анастасия | D17: 10.08.2010 | E17: Семенов Ниж.обл. | I17: 1
A18: 2457 | B18: 13 | C18: Абрамова Дарья | D18: 30.10.2011 | E18: Иркутск | I18: 1
A19: 645 | B19: 234 | C19: Абрамова Евгения | D19: 29.08.2006 | E19: С.-Петербург | I19: 1
A20: 173 | B20: 767 | C20: Абрамова Екатерина | D20: 28.06.2003 | E20: Казань | I20: 1
A21: 984 | B21: 142 | C21: Абрамова Ирина | D21: 30.07.1996 | E21: Калуга | I21: 1
A22: 2039 | B22: 31 | C22: Абрамова Нелли | D22: 04.09.2010 | E22: Ростов-на-Дону | I22: 1
A23: 2524 | B23: 11 | C23: Абукаева Юлия | D23: 21.04.2011 | E23: Нефтекамск Башк. | I23: 1
A24: 743 | B24: 197 | C24: Аввакумова Эмилия | D24: 17.12.2008 | E24: В. Вилюйск Саха | I24: 1
A25: 3176 | B25: 0 | C25: Авгеева Александра | D25: 13.02.2013 | E25: Губкинский Я.Н.а.о. | I25: 1
A26: 3176 | B26: 0 | C26: Авдеева Анастасия | D26: 22.06.2013 | E26: Бобров Воронеж.обл. | I26: 1
A27: 2598 | B27: 9 | C27: Аверина Кира | D27: 22.12.2012 | E27: Москва | I27: 1
A28: 1684 | B28: 56 | C28: Аверьянова Вероника | D28: 30.07.2011 | E28: Калининград | I28: 1
A29: 429 | B29: 373 | C29: Аверьянова Мария | D29: 23.01.2004 | E29: Ярославль | I29: 1
A30: 2095 | B30: 28 | C30: Аветисова Алиса | D30: 29.05.2014 | E30: Солдатское Белг.обл. | I30: 1
A31: 1646 | B31: 59 | C31: Авилова Анна | D31: 16.08.2010 | E31: Ростов-на-Дону | I31: 1
A32: 820 | B32: 180 | C32: Авилова Арина | D32: 14.01.2008 | E32: Ростов-на-Дону | I32: 1
A33: 3176 | B33: 0 | C33: Авилова Полина | D33: 07.02.2011 | E33: Целина Рост.о. | I33: 1
A34: 1202 | B34: 108 | C34: Авраменко Анна | D34: 11.11.2009 | E34: Москва | I34: 1
A35: 2301 | B35: 19 | C35: Агабабян Жанна | D35: 20.04.2011 | E35: Ессентуки Ст.кр. | I35: 1
A36: 1433 | B36: 79 | C36: Агарева Полина | D36: 13.01.2009 | E36: Балаково | I36: 1
A37: 3176 | B37: 0 | C37: Агафонова Дарина | D37: 17.06.2010 | E37: Новоалтайск | I37: 1
A38: 2276 | B38: 20 | C38: Агафонова Дарья | D38: 23.08.2011 | E38: Н.Новгород | I38: 1
A39: 1112 | B39: 123 | C39: Агафонова Кристина | D39: 22.06.1995 | E39: Барнаул | I39: 1
A40: 3176 | B40: 0 | C40: Агафонова Милана | D40: 02.10.2014 | E40: Подпорожье Лен.о. | I40: 1
A41: 2673 | B41: 7 | C41: Агеева Анастасия | D41: 20.04.2008 | E41: Печоры Пск.о. | I41: 1
A42: 2858 | B42: 4 | C42: Агишева Дарья | D42: 22.03.2011 | E42: Саракташ Ор.обл. | I42: 1
A43: 1144 | B43: 118 | C43: Аглямова Ясмина | D43: 12.02.2012 | E43: Казань | I43: 1
A44: 1361 | B44: 87 | C44: Агуреева Ксения | D44: 08.08.2008 | E44: Москва | I44: 1
A45: 1184 | B45: 111 | C45: Адамсон Дарья | D45: 03.06.2009 | E45: Луга Лен.о. | I45: 1
A46: 791 | B46: 185 | C46: Адеянова Виктория | D46: 09.11.2007 | E46: Сорочинск | I46: 1
A47: 3176 | B47: 0 | C47: Адигезалова Айсель | D47: 13.07.2016 | E47: Армавир | I47: 1
A48: 672 | B48: 226 | C48: Адиханян Амалия | D48: 11.11.2006 | E48: Нальчик | I48: 1
A49: 3176 | B49: 0 | C49: Азаренкова Анна | D49: 21.12.2010 | E49: Солдатское Белг.обл. | I49: 1
A50: 101 | B50: 1058 | C50: Азаренкова Дарья | D50: 10.01.2000 | E50: Москва | I50: 1
A51: 1433 | B51: 79 | C51: Азарова Екатерина | D51: 18.06.2013 | E51: С.-Петербург | I51: 1
A52: 3176 | B52: 0 | C52: Азарян Ева | D52: 14.04.2012 | E52: Армавир | I52: 1
A53: 1916 | B53: 39 | C53: Азева Екатерина | D53: 28.06.2010 | E53: Цементный Св.обл. | I53: 1
A54: 1102 | B54: 124 | C54: Айрапетова Эмма | D54: 31.10.2007 | E54: Пятигорск | I54: 1
A55: 612 | B55: 249 | C55: Айснер Василиса | D55: 18.03.2009 | E55: Большая Мурта Краснояр.кр. | I55: 1
A56: 2740 | B56: 6 | C56: Акатова Алина | D56: 21.01.2007 | E56: Тверь | I56: 1
A57: 80 | B57: 1174 | C57: АКАШЕВА Зауреш | D57: 02.12.2000 | E57: Астана Каз. | I57: 1
A58: 772 | B58: 189 | C58: Акдоган Луиза | D58: 15.12.2009 | E58: Славянск-на-Кубани | I58: 1
A59: 2923 | B59: 3 | C59: Акентьева Любовь | D59: 14.12.2012 | E59: Кингисепп Лен.о. | I59: 1
A60: 3176 | B60: 0 | C60: Акимова Варвара | D60: 09.12.2012 | E60: Коломна | I60: 1
A61: 2077 | B61: 29 | C61: Акимова Елена | D61: 22.04.2010 | E61: Новосысоевка Прим.кр. | I61: 1
A62: 1694 | B62: 55 | C62: Акимова Олеся | D62: 07.09.2004 | E62: С.-Петербург | I62: 1
A63: 1609 | B63: 63 | C63: Акперова Эмилия | D63: 29.09.2009 | E63: Чита | I63: 1
A64: 1874 | B64: 42 | C64: Аксенова Анна | D64: 09.04.2012 | E64: Воронеж | I64: 1
A65: 2673 | B65: 7 | C65: Аксенова Анна | D65: 18.02.2013 | E65: Москва | I65: 1
A66: 2557 | B66: 10 | C66: Аксенова Виктория | D66: 08.09.2010 | E66: Барнаул | I66: 1
A67: 864 | B67: 168 | C67: Аксенова Полина | D67: 27.02.2010 | E67: Воронеж | I67: 1
A68: 3176 | B68: 0 | C68: Акужина Ева | D68: 09.08.2011 | E68: Кохма Иван.обл. | I68: 1
A69: 1294 | B69: 96 | C69: Акулич Снежана | D69: 15.05.2007 | E69: Ярославский Прим.кр. | I69: 1
A70: 900 | B70: 160 | C70: Акулова Валерия | D70: 28.05.2013 | E70: Подпорожье Лен.о. | I70: 1
A71: 2923 | B71: 3 | C71: Акчурина Наталия | D71: 04.12.2012 | E71: Усолье-Сибирское | I71: 1
A72: 1266 | B72: 99 | C72: Алай Таисия | D72: 05.10.2006 | E72: Подольск | I72: 1
A73: 2213 | B73: 23 | C73: Алекперова Алина | D73: 13.02.2013 | E73: Апшеронск Краснод.кр. | I73: 1
A74: 2858 | B74: 4 | C74: Алекперова Кристина | D74: 26.03.2011 | E74: Апшеронск Краснод.кр. | I74: 1
A75: 2923 | B75: 3 | C75: Александрова Валерия | D75: 29.10.2012 | E75: Луга Лен.о. | I75: 1
A76: 3176 | B76: 0 | C76: Александрова Ксения | D76: 31.05.2014 | E76: С.-Петербург | I76: 1
A77: 2923 | B77: 3 | C77: Александрова Надежда | D77: 10.08.2007 | E77: Магнитогорск | I77: 1
A78: 1943 | B78: 37 | C78: Алексеева Алина | D78: 21.10.2009 | E78: Калуга | I78: 1
A79: 2858 | B79: 4 | C79: Алексеева Варвара | D79: 11.03.2013 | E79: Серпухов | I79: 1
A80: 2923 | B80: 3 | C80: Алексеева Дарья | D80: 02.04.2013 | E80: Ростов-на-Дону | I80: 1
A81: 3176 | B81: 0 | C81: Алексеева Дарья | D81: 15.03.2007 | E81: Майкоп Адыгея | I81: 1
A82: 783 | B82: 187 | C82: Алексеева Яна | D82: 05.10.2011 | E82: Ярославль | I82: 1
A83: 2253 | B83: 21 | C83: Алексеенко Вероника | D83: 06.11.2012 | E83: Зеленогорск Кр.кр. | I83: 1
A84: 3176 | B84: 0 | C84: Аленова Александра | D84: 06.05.2013 | E84: Кувандык Оренб.обл. | I84: 1
A85: 111 | B85: 1009 | C85: Алентьева Ольга | D85: 18.09.1993 | E85: Самара | I85: 1
A86: 3176 | B86: 0 | C86: Алешина Алла | D86: 14.09.2011 | E86: Москва | I86: 1
A87: 2028 | B87: 32 | C87: Алешина Анастасия | D87: 18.01.2010 | E87: Ростов-на-Дону | I87: 1
A88: 3006 | B88: 2 | C88: Алещенко Василиса | D88: 06.01.2012 | E88: Усолье-Сибирское | I88: 1
A89: 443 | B89: 358 | C89: Алиева Маляк | D89: 08.03.1995 | E89: Саратов | I89: 1
A90: 2740 | B90: 6 | C90: Алиева Шоира | D90: 04.02.2012 | E90: Ангарск Ирк.о. | I90: 1
A91: 3176 | B91: 0 | C91: Алиханова Софья | D91: 27.08.2008 | E91: Ханты-Мансийск | I91: 1
A92: 2301 | B92: 19 | C92: Аманатова Валентина | D92: 17.06.2011 | E92: Крымск Кр.кр. | I92: 1
A93: 2858 | B93: 4 | C93: Аманжулова Арина | D93: 20.12.2012 | E93: Москва | I93: 1
A94: 267 | B94: 547 | C94: Аманкулова Дарина | D94: 25.09.2004 | E94: С.-Петербург | I94: 1
A95: 2923 | B95: 3 | C95: Амелина Арина | D95: 09.02.2010 | E95: Калуга | I95: 1
A96: 2673 | B96: 7 | C96: Амелина Юлья | D96: 09.02.2010 | E96: Калуга | I96: 1
A97: 2039 | B97: 31 | C97: Аминова Карина | D97: 29.09.2011 | E97: Ижевск | I97: 1
A98: 3094 | B98: 1 | C98: Амирян Манэ | D98: 19.03.2011 | E98: Грязи Лип.обл. | I98: 1
A99: 3176 | B99: 0 | C99: Амирян Нонна | D99: 25.10.2013 | E99: Славянск-на-Кубани | I99: 1
A100: 379 | B100: 422 | C100: Аммосова Надежда | D100: 10.08.1991 | E100: с. Боргонцы Саха | I100: 1
A101: 3176 | B101: 0 | C101: Амосова Виолетта | D101: 19.04.2011 | E101: Шелехов Ирк.о. | I101: 1
A102: 3176 | B102: 0 | C102: Амосова Дарья | D102: 10.03.2013 | E102: Тамбов | I102: 1
A103: 2923 | B103: 3 | C103: Ананская Владислава | D103: 24.04.2012 | E103: Губкинский Я.Н.а.о. | I103: 1
A104: 1900 | B104: 40 | C104: Анашкина Диана | D104: 23.10.2007 | E104: Челябинск | I104: 1
A105: 2457 | B105: 13 | C105: Андиева Милана | D105: 13.06.2011 | E105: Владикавказ | I105: 1
A106: 2155 | B106: 25 | C106: Андреева Ангелина | D106: 03.01.2011 | E106: Серов Свердл.обл. | I106: 1
A107: 3176 | B107: 0 | C107: Андреева Анна | D107: 13.07.2012 | E107: Богородский Мос.обл. | I107: 1
A108: 2134 | B108: 26 | C108: Андреева Екатерина | D108: 17.11.2011 | E108: Серпухов | I108: 1
A109: 902 | B109: 159 | C109: Андреева Марина | D109: 16.05.2007 | E109: Чита | I109: 1
A110: 1943 | B110: 37 | C110: Андреева Наталья | D110: 18.04.2012 | E110: Сорочинск | I110: 1
A111: 2253 | B111: 21 | C111: Андреева Яна | D111: 07.03.2011 | E111: Коломна | I111: 1
A112: 480 | B112: 331 | C112: Андриевская Вероника | D112: 25.10.2008 | E112: Таганрог | I112: 1
A113: 1747 | B113: 51 | C113: Андриишин Елизавета | D113: 30.01.2012 | E113: Москва | I113: 1
A114: 1559 | B114: 67 | C114: Андриянова Надежда | D114: 14.01.2011 | E114: С.-Петербург | I114: 1
A115: 3176 | B115: 0 | C115: Андросова Полина | D115: 08.03.2014 | E115: Медногорск Орен.о. | I115: 1
A116: 2057 | B116: 30 | C116: Андрюшова Александра | D116: 28.11.2009 | E116: Заречный Пенз.обл. | I116: 1
A117: 2427 | B117: 14 | C117: Анипирова Полина | D117: 10.06.2010 | E117: Чита | I117: 1
A118: 2673 | B118: 7 | C118: Анисеня Виктория | D118: 20.11.2010 | E118: С.-Петербург | I118: 1
A119: 557 | B119: 276 | C119: Анисимова Дарья | D119: 25.12.2004 | E119: Ростов-на-Дону | I119: 1
A120: 3176 | B120: 0 | C120: Анисимова Ксения | D120: 29.05.2011 | E120: С.-Петербург | I120: 1
A121: 458 | B121: 349 | C121: Анишева Ксения | D121: 09.04.2002 | E121: Чебоксары | I121: 1
A122: 436 | B122: 364 | C122: Анненкова Агата | D122: 09.05.2010 | E122: Оренбург | I122: 1
A123: 2673 | B123: 7 | C123: Антипина Полина | D123: 14.07.2011 | E123: Красногорск М.о. | I123: 1
A124: 467 | B124: 344 | C124: Антипова Виктория | D124: 07.08.2010 | E124: С.-Петербург | I124: 1
A125: 3176 | B125: 0 | C125: Антонова Алена | D125: 17.05.2013 | E125: Улан-Удэ | I125: 1
A126: 1433 | B126: 79 | C126: Антонова Ксения | D126: 12.08.2011 | E126: Сасово Ряз.обл. | I126: 1
A127: 1978 | B127: 35 | C127: Ануфриева Анастасия | D127: 04.01.2008 | E127: Богатые Сабы | I127: 1
A128: 3176 | B128: 0 | C128: Анфилова Вероника | D128: 23.09.2013 | E128: Н.Тагил | I128: 1
A129: 2557 | B129: 10 | C129: Анцукова Анастасия | D129: 01.03.2011 | E129: Сосновый Бор | I129: 1
A130: 3176 | B130: 0 | C130: Апарина Екатерина | D130: 06.04.2014 | E130: Ильский Кр.кр. | I130: 1
A131: 2632 | B131: 8 | C131: Апишева Дана | D131: 09.09.2010 | E131: Кошехабльская Адыгея | I131: 1
A132: 2740 | B132: 6 | C132: Аполлонова Полина | D132: 16.01.2010 | E132: Тверь | I132: 1
A133: 3176 | B133: 0 | C133: Апостолова Владислава | D133: 09.09.2011 | E133: Подпорожье Лен.о. | I133: 1
A134: 3094 | B134: 1 | C134: Апресян Эмилия | D134: 12.12.2012 | E134: Хадыженск Кр.кр. | I134: 1
A135: 169 | B135: 781 | C135: Апсатарова Дарина | D135: 10.10.2007 | E135: Химки | I135: 1
A136: 1102 | B136: 124 | C136: Аптрахманова Ирина | D136: 23.09.2000 | E136: Новокузнецк | I136: 1
A137: 624 | B137: 242 | C137: Апшева Жанна | D137: 18.08.2000 | E137: Нальчик | I137: 1
A138: 3176 | B138: 0 | C138: Арамисова Снежана | D138: 15.01.2014 | E138: Нальчик | I138: 1
A139: 3176 | B139: 0 | C139: Араштаева Екатерина | D139: 28.05.2013 | E139: Абакан | I139: 1
A140: 1747 | B140: 51 | C140: Аристова Алена | D140: 30.08.2010 | E140: Воронеж | I140: 1
A141: 587 | B141: 261 | C141: Арнаутова София | D141: 21.12.2010 | E141: Екатеринбург | I141: 1
A142: 3176 | B142: 0 | C142: Арсеева Маргарита | D142: 08.10.2013 | E142: С.-Петербург | I142: 1
A143: 3176 | B143: 0 | C143: Арсеева Полина | D143: 13.09.2011 | E143: С.-Петербург | I143: 1
A144: 2039 | B144: 31 | C144: Арсентьева София | D144: 01.01.2012 | E144: Ижевск | I144: 1
A145: 607 | B145: 252 | C145: Артюх София | D145: 25.07.2008 | E145: Таганрог | I145: 1
A146: 3176 | B146: 0 | C146: Артюхина Ангелина | D146: 30.01.2011 | E146: Москва | I146: 1
A147: 2486 | B147: 12 | C147: Арушанова Виктория | D147: 09.07.2007 | E147: Нижний Ломов Пен.обл. | I147: 1
A148: 740 | B148: 198 | C148: Архипова Мария | D148: 27.05.2011 | E148: Зеленоградск Калинингр.обл. | I148: 1
A149: 1157 | B149: 116 | C149: Арчубасова Валентина | D149: 20.06.2009 | E149: Ребриха Алт.кр. | I149: 1
A150: 1720 | B150: 53 | C150: Асанова Ксения | D150: 23.02.2011 | E150: Казань | I150: 1
A151: 1117 | B151: 122 | C151: Аслаева Азалия | D151: 30.11.2007 | E151: Новый Уренгой ЯНАО | I151: 1
A152: 2673 | B152: 7 | C152: Асланова Фатима | D152: 26.07.2011 | E152: Подольск | I152: 1
A153: 440 | B153: 360 | C153: Ассапова Арина | D153: 01.03.2009 | E153: Екатеринбург | I153: 1
A154: 3176 | B154: 0 | C154: Астафьева Полина | D154: 07.04.2011 | E154: Косиха Алт.кр. | I154: 1
A155: 3176 | B155: 0 | C155: Астахова Наталья | D155: 23.09.2011 | E155: Воронеж | I155: 1
A156: 1646 | B156: 59 | C156: Асташева Доминика | D156: 18.03.2009 | E156: Сочи | I156: 1
A157: 2177 | B157: 24 | C157: Асташова Валерия | D157: 26.03.2012 | E157: С.-Петербург | I157: 1
A158: 2524 | B158: 11 | C158: Атагян Марина | D158: 05.05.2010 | E158: Туапсе | I158: 1
A159: 1389 | B159: 84 | C159: Атрошкина Анастасия | D159: 28.01.2012 | E159: Петрозаводск | I159: 1
A160: 762 | B160: 193 | C160: Афанасьева Алиса | D160: 16.06.2011 | E160: Тамбов | I160: 1
A161: 1195 | B161: 109 | C161: Афанасьева Виктория | D161: 18.06.2008 | E161: Тамбов | I161: 1
A162: 573 | B162: 268 | C162: Афанасьева Елизавета | D162: 02.07.2007 | E162: С.-Петербург | I162: 1
A163: 1747 | B163: 51 | C163: Афанасьева Елизавета | D163: 19.08.2011 | E163: Владимир | I163: 1
A164: 3176 | B164: 0 | C164: Афанасьева Елизавета | D164: 05.01.2011 | E164: Москва | I164: 1
A165: 2015 | B165: 33 | C165: Афанасьева Катерина | D165: 24.03.2010 | E165: Саракташ Ор.обл. | I165: 1
A166: 3176 | B166: 0 | C166: Афанасьева Мирра | D166: 18.05.2012 | E166: Казань | I166: 1
A167: 661 | B167: 231 | C167: Афанасьева София | D167: 07.06.2010 | E167: Семибратово | I167: 1
A168: 3176 | B168: 0 | C168: Афанасьева Ульяна | D168: 21.07.2011 | E168: Рыбинск | I168: 1
A169: 650 | B169: 233 | C169: Афимченко Юлия | D169: 09.11.2006 | E169: Шипуново Алт. кр. | I169: 1
A170: 2923 | B170: 3 | C170: Афлаханова Полина | D170: 23.09.2009 | E170: Екатеринбург | I170: 1
A171: 669 | B171: 227 | C171: Ахаева Ксения | D171: 06.02.2011 | E171: Богородский Мос.обл. | I171: 1
A172: 1361 | B172: 87 | C172: Ахкамова Алина | D172: 01.06.2008 | E172: Кировград Св.обл. | I172: 1
A173: 1637 | B173: 60 | C173: Ахмадеева Аида | D173: 25.05.2008 | E173: Нефтекамск Башк. | I173: 1
A174: 1930 | B174: 38 | C174: Ахмадеева Виктория | D174: 28.09.2010 | E174: Кемерово | I174: 1
A175: 2457 | B175: 13 | C175: Ахматнурова Амиля | D175: 15.04.2013 | E175: Балезино Удм. | I175: 1
A176: 2301 | B176: 19 | C176: Ахмедвалиева Камила | D176: 28.09.2011 | E176: Оренбург | I176: 1
A177: 2806 | B177: 5 | C177: Ахмеджонова Ралина | D177: 07.10.2010 | E177: Казань | I177: 1
A178: 2632 | B178: 8 | C178: Ахметзянова Зульфия | D178: 08.02.2013 | E178: Казань | I178: 1
A179: 1381 | B179: 85 | C179: Ахметзянова Марина | D179: 05.08.2011 | E179: Оренбург | I179: 1
A180: 3176 | B180: 0 | C180: Ахметова Камиля | D180: 14.10.2013 | E180: Богатые Сабы | I180: 1
A181: 3176 | B181: 0 | C181: Ахметшина Амина | D181: 10.09.2014 | E181: Казань | I181: 1
A182: 740 | B182: 198 | C182: Ахновская Ангелина | D182: 17.01.2003 | E182: Ставрополь | I182: 1
A183: 1732 | B183: 52 | C183: Ахпашева Валерия | D183: 31.08.2009 | E183: Абакан | I183: 1
A184: 956 | B184: 147 | C184: Ахтямова Камилла | D184: 08.10.2012 | E184: Нефтекамск Башк. | I184: 1
A185: 2858 | B185: 4 | C185: Ахтямова Мария | D185: 11.01.2012 | E185: Елабуга Тат. | I185: 1
A186: 914 | B186: 156 | C186: Ацканова Ариана | D186: 22.10.2007 | E186: Нальчик | I186: 1
A187: 2740 | B187: 6 | C187: Ачитуева Белигма | D187: 03.10.2005 | E187: Гусиноозерск респ.Бурятия | I187: 1
A188: 3176 | B188: 0 | C188: Ашихина Лидия | D188: 14.11.2009 | E188: Тюмень | I188: 1
A189: 223 | B189: 625 | C189: АШКЕЕВА Арай | D189: 05.07.2003 | E189: Караганда Казахстан | I189: 1
A190: 2557 | B190: 10 | C190: Ашкина Елизавета | D190: 18.05.2005 | E190: Любим | I190: 1
A191: 1381 | B191: 85 | C191: Бабенко Анастасия | D191: 23.07.2010 | E191: Целина Рост.о. | I191: 1
A192: 451 | B192: 355 | C192: Бабигорец Мария | D192: 17.05.2004 | E192: Крыловская Красн.кр. | I192: 1
A193: 3176 | B193: 0 | C193: Бабич Маргарита | D193: 29.12.2010 | E193: Тегульдет Томск.обл. | I193: 1
A194: 3176 | B194: 0 | C194: Бабушкина Ксения | D194: 04.05.2009 | E194: Славянск-на-Кубани | I194: 1
A195: 3176 | B195: 0 | C195: Багдалян Милана | D195: 25.03.2012 | E195: Вербилки Мос.обл. | I195: 1
A196: 3176 | B196: 0 | C196: Багдалян Мирослава | D196: 25.03.2012 | E196: Вербилки Мос.обл. | I196: 1
A197: 1747 | B197: 51 | C197: Багдасарян Амалия | D197: 12.12.2013 | E197: Казань | I197: 1
A198: 1169 | B198: 113 | C198: Багишева Виктория | D198: 19.05.2009 | E198: Ижевск | I198: 1
A199: 746 | B199: 196 | C199: Багрец Софья | D199: 14.10.2008 | E199: Абакан | I199: 1
A200: 650 | B200: 233 | C200: Бадашкеева Ирина | D200: 12.05.2010 | E200: Улан-Удэ | I200: 1
... 3693 more rows

Sheet Список команд (hidden)
B1: =Список!A1 -> КУБОК РЕСПУБЛИКИ КАЗАХСТАН
B2: =Список!A2 -> ПО НАСТОЛЬНОМУ ТЕННИСУ
B3: =Список!A3 -> г. Алматы 15-18 августа 2024г.
B4: КОМАНДНЫЕ СОРЕВНОВАНИЯ. МУЖЧИНЫ
B5: СПИСОК УЧАСТНИКОВ
A6: 1 | B6: =IF(A6="","",VLOOKUP(A6,Команды!B:AB,7,FALSE)) -> город Астана | I6: =SUM(LARGE(G9:G13,{1,2,3})) -> 140
B7: № | D7: Фамилия Имя | E7: Дата | F7: Разряд | G7: Рейтинг | H7: Город | I7: Личный тренер
E8: рождения
B9: 1 | C9: =A6*5-4 -> 1 | D9: =IF($C9="","",VLOOKUP($C9,Список!$A:$W,3,FALSE)) -> ГЕРАСИМЕНКО Тимофей | E9: =IF($C9="","",VLOOKUP($C9,Список!$A:$W,4,FALSE)) -> 04.05.2004 | F9: =IF($C9="","",VLOOKUP($C9,Список!$A:$W,5,FALSE)) -> МС | G9: =IF($C9="","",VLOOKUP($C9,Список!$A:$W,6,FALSE)) -> 50 | H9: =IF($C9="","",VLOOKUP($C9,Список!$A:$W,7,FALSE)) -> г. Астана | I9: =IF($C9="","",VLOOKUP($C9,Список!$A:$W,8,FALSE)) -> Герасименко Г.А.,Герасименко Т.В.
B10: 2 | C10: =1+C9 -> 2 | D10: =IF($C10="","",VLOOKUP($C10,Список!$A:$W,3,FALSE)) -> АБИЛ Тамерлан | E10: =IF($C10="","",VLOOKUP($C10,Список!$A:$W,4,FALSE)) -> 12.03.2006 | F10: =IF($C10="","",VLOOKUP($C10,Список!$A:$W,5,FALSE)) -> КМС | G10: =IF($C10="","",VLOOKUP($C10,Список!$A:$W,6,FALSE)) -> 32 | H10: =IF($C10="","",VLOOKUP($C10,Список!$A:$W,7,FALSE)) -> г. Астана | I10: =IF($C10="","",VLOOKUP($C10,Список!$A:$W,8,FALSE)) -> Герасименко Г.А.,Герасименко Т.В.
B11: 3 | C11: =1+C10 -> 3 | D11: =IF($C11="","",VLOOKUP($C11,Список!$A:$W,3,FALSE)) -> ГЕРАСИМЕНКО Александр | E11: =IF($C11="","",VLOOKUP($C11,Список!$A:$W,4,FALSE)) -> 13.02.1992 | F11: =IF($C11="","",VLOOKUP($C11,Список!$A:$W,5,FALSE)) -> МС | G11: =IF($C11="","",VLOOKUP($C11,Список!$A:$W,6,FALSE)) -> 49 | H11: =IF($C11="","",VLOOKUP($C11,Список!$A:$W,7,FALSE)) -> г. Астана | I11: =IF($C11="","",VLOOKUP($C11,Список!$A:$W,8,FALSE)) -> Герасименко Г.А.,Герасименко Т.В.
B12: 4 | C12: =1+C11 -> 4 | D12: =IF($C12="","",VLOOKUP($C12,Список!$A:$W,3,FALSE)) -> ДУЙСЕНБАЙ Есенали | E12: =IF($C12="","",VLOOKUP($C12,Список!$A:$W,4,FALSE)) -> 15.10.1997 | F12: =IF($C12="","",VLOOKUP($C12,Список!$A:$W,5,FALSE)) -> КМС | G12: =IF($C12="","",VLOOKUP($C12,Список!$A:$W,6,FALSE)) -> 41 | H12: =IF($C12="","",VLOOKUP($C12,Список!$A:$W,7,FALSE)) -> г. Астана | I12: =IF($C12="","",VLOOKUP($C12,Список!$A:$W,8,FALSE)) -> Герасименко Г.А.,Герасименко Т.В.
B13: 5 | C13: =1+C12 -> 5 | D13: =IF($C13="","",VLOOKUP($C13,Список!$A:$W,3,FALSE)) -> 0 | E13: =IF($C13="","",VLOOKUP($C13,Список!$A:$W,4,FALSE)) ->  | F13: =IF($C13="","",VLOOKUP($C13,Список!$A:$W,5,FALSE)) -> 0 | G13: =IF($C13="","",VLOOKUP($C13,Список!$A:$W,6,FALSE)) ->  | H13: =IF($C13="","",VLOOKUP($C13,Список!$A:$W,7,FALSE)) ->  | I13: =IF($C13="","",VLOOKUP($C13,Список!$A:$W,8,FALSE)) -> 0
F14: Тренер-представитель: | G14: =IF(C9="","",VLOOKUP(C9,Список!A:W,11,FALSE)) -> Герасименко Г.А., Герасименко Т.А
A16: =A6+1 -> 2 | B16: =IF(A16="","",VLOOKUP(A16,Команды!B:AB,7,FALSE)) -> город Алматы | I16: =SUM(LARGE(G19:G23,{1,2,3})) -> 182
B17: № | D17: Фамилия Имя | E17: Дата | F17: Разряд | G17: Рейтинг | H17: Город | I17: Личный тренер
E18: рождения
B19: 1 | C19: =A16*5-4 -> 6 | D19: =IF($C19="","",VLOOKUP($C19,Список!$A:$W,3,FALSE)) -> КЕНЖИГУЛОВ Айдос | E19: =IF($C19="","",VLOOKUP($C19,Список!$A:$W,4,FALSE)) -> 07.06.2000 | F19: =IF($C19="","",VLOOKUP($C19,Список!$A:$W,5,FALSE)) -> МСМК | G19: =IF($C19="","",VLOOKUP($C19,Список!$A:$W,6,FALSE)) -> 65 | H19: =IF($C19="","",VLOOKUP($C19,Список!$A:$W,7,FALSE)) -> г. Алматы | I19: =IF($C19="","",VLOOKUP($C19,Список!$A:$W,8,FALSE)) -> Тимченко Е.А.
B20: 2 | C20: =1+C19 -> 7 | D20: =IF($C20="","",VLOOKUP($C20,Список!$A:$W,3,FALSE)) -> КЕНЖИГУЛОВ Дастан | E20: =IF($C20="","",VLOOKUP($C20,Список!$A:$W,4,FALSE)) -> 14.01.1998 | F20: =IF($C20="","",VLOOKUP($C20,Список!$A:$W,5,FALSE)) -> МС | G20: =IF($C20="","",VLOOKUP($C20,Список!$A:$W,6,FALSE)) -> 57 | H20: =IF($C20="","",VLOOKUP($C20,Список!$A:$W,7,FALSE)) -> г. Алматы | I20: =IF($C20="","",VLOOKUP($C20,Список!$A:$W,8,FALSE)) -> Тимченко Е.А.
B21: 3 | C21: =1+C20 -> 8 | D21: =IF($C21="","",VLOOKUP($C21,Список!$A:$W,3,FALSE)) -> ЖУБАНОВ Санжар | E21: =IF($C21="","",VLOOKUP($C21,Список!$A:$W,4,FALSE)) -> 16.04.2003 | F21: =IF($C21="","",VLOOKUP($C21,Список!$A:$W,5,FALSE)) -> МС | G21: =IF($C21="","",VLOOKUP($C21,Список!$A:$W,6,FALSE)) -> 60 | H21: =IF($C21="","",VLOOKUP($C21,Список!$A:$W,7,FALSE)) -> г. Алматы | I21: =IF($C21="","",VLOOKUP($C21,Список!$A:$W,8,FALSE)) -> Бейсенов С.А.
B22: 4 | C22: =1+C21 -> 9 | D22: =IF($C22="","",VLOOKUP($C22,Список!$A:$W,3,FALSE)) -> МАМАЙ Абдулла | E22: =IF($C22="","",VLOOKUP($C22,Список!$A:$W,4,FALSE)) -> 19.01.2006 | F22: =IF($C22="","",VLOOKUP($C22,Список!$A:$W,5,FALSE)) -> КМС | G22: =IF($C22="","",VLOOKUP($C22,Список!$A:$W,6,FALSE)) -> 51 | H22: =IF($C22="","",VLOOKUP($C22,Список!$A:$W,7,FALSE)) -> г. Алматы | I22: =IF($C22="","",VLOOKUP($C22,Список!$A:$W,8,FALSE)) -> Тимченко Е.А.
B23: 5 | C23: =1+C22 -> 10 | D23: =IF($C23="","",VLOOKUP($C23,Список!$A:$W,3,FALSE)) -> ШИ Данян | E23: =IF($C23="","",VLOOKUP($C23,Список!$A:$W,4,FALSE)) -> 28.10.2006 | F23: =IF($C23="","",VLOOKUP($C23,Список!$A:$W,5,FALSE)) -> КМС | G23: =IF($C23="","",VLOOKUP($C23,Список!$A:$W,6,FALSE)) -> 52 | H23: =IF($C23="","",VLOOKUP($C23,Список!$A:$W,7,FALSE)) -> г. Алматы | I23: =IF($C23="","",VLOOKUP($C23,Список!$A:$W,8,FALSE)) -> Бейсенов С.А.
F24: Тренер-представитель: | G24: =IF(C19="","",VLOOKUP(C19,Список!A:W,11,FALSE)) -> Бейсенов С.А., Тимченко А.А.
A26: =A16+1 -> 3 | B26: =IF(A26="","",VLOOKUP(A26,Команды!B:AB,7,FALSE)) -> Акмолинская область | I26: =SUM(LARGE(G29:G33,{1,2,3})) -> 
B27: № | D27: Фамилия Имя | E27: Дата | F27: Разряд | G27: Рейтинг | H27: Город | I27: Личный тренер
E28: рождения
B29: 1 | C29: =A26*5-4 -> 11 | D29: =IF($C29="","",VLOOKUP($C29,Список!$A:$W,3,FALSE)) -> 0 | E29: =IF($C29="","",VLOOKUP($C29,Список!$A:$W,4,FALSE)) ->  | F29: =IF($C29="","",VLOOKUP($C29,Список!$A:$W,5,FALSE)) -> 0 | G29: =IF($C29="","",VLOOKUP($C29,Список!$A:$W,6,FALSE)) ->  | H29: =IF($C29="","",VLOOKUP($C29,Список!$A:$W,7,FALSE)) ->  | I29: =IF($C29="","",VLOOKUP($C29,Список!$A:$W,8,FALSE)) -> 0
B30: 2 | C30: =1+C29 -> 12 | D30: =IF($C30="","",VLOOKUP($C30,Список!$A:$W,3,FALSE)) -> 0 | E30: =IF($C30="","",VLOOKUP($C30,Список!$A:$W,4,FALSE)) ->  | F30: =IF($C30="","",VLOOKUP($C30,Список!$A:$W,5,FALSE)) -> 0 | G30: =IF($C30="","",VLOOKUP($C30,Список!$A:$W,6,FALSE)) ->  | H30: =IF($C30="","",VLOOKUP($C30,Список!$A:$W,7,FALSE)) ->  | I30: =IF($C30="","",VLOOKUP($C30,Список!$A:$W,8,FALSE)) -> 0
B31: 3 | C31: =1+C30 -> 13 | D31: =IF($C31="","",VLOOKUP($C31,Список!$A:$W,3,FALSE)) -> 0 | E31: =IF($C31="","",VLOOKUP($C31,Список!$A:$W,4,FALSE)) ->  | F31: =IF($C31="","",VLOOKUP($C31,Список!$A:$W,5,FALSE)) -> 0 | G31: =IF($C31="","",VLOOKUP($C31,Список!$A:$W,6,FALSE)) ->  | H31: =IF($C31="","",VLOOKUP($C31,Список!$A:$W,7,FALSE)) ->  | I31: =IF($C31="","",VLOOKUP($C31,Список!$A:$W,8,FALSE)) -> 0
B32: 4 | C32: =1+C31 -> 14 | D32: =IF($C32="","",VLOOKUP($C32,Список!$A:$W,3,FALSE)) -> 0 | E32: =IF($C32="","",VLOOKUP($C32,Список!$A:$W,4,FALSE)) ->  | F32: =IF($C32="","",VLOOKUP($C32,Список!$A:$W,5,FALSE)) -> 0 | G32: =IF($C32="","",VLOOKUP($C32,Список!$A:$W,6,FALSE)) ->  | H32: =IF($C32="","",VLOOKUP($C32,Список!$A:$W,7,FALSE)) ->  | I32: =IF($C32="","",VLOOKUP($C32,Список!$A:$W,8,FALSE)) -> 0
B33: 5 | C33: =1+C32 -> 15 | D33: =IF($C33="","",VLOOKUP($C33,Список!$A:$W,3,FALSE)) -> 0 | E33: =IF($C33="","",VLOOKUP($C33,Список!$A:$W,4,FALSE)) ->  | F33: =IF($C33="","",VLOOKUP($C33,Список!$A:$W,5,FALSE)) -> 0 | G33: =IF($C33="","",VLOOKUP($C33,Список!$A:$W,6,FALSE)) ->  | H33: =IF($C33="","",VLOOKUP($C33,Список!$A:$W,7,FALSE)) ->  | I33: =IF($C33="","",VLOOKUP($C33,Список!$A:$W,8,FALSE)) -> 0
F34: Тренер-представитель: | G34: =IF(C29="","",VLOOKUP(C29,Список!A:W,11,FALSE)) -> Саламатов К.Т.
A36: =A26+1 -> 4 | B36: =IF(A36="","",VLOOKUP(A36,Команды!B:AB,7,FALSE)) -> Актюбинская область | I36: =SUM(LARGE(G39:G43,{1,2,3})) -> 87
B37: № | D37: Фамилия Имя | E37: Дата | F37: Разряд | G37: Рейтинг | H37: Город | I37: Личный тренер
E38: рождения
B39: 1 | C39: =A36*5-4 -> 16 | D39: =IF($C39="","",VLOOKUP($C39,Список!$A:$W,3,FALSE)) -> ГАЙНЕДЕНОВ Ерасыл | E39: =IF($C39="","",VLOOKUP($C39,Список!$A:$W,4,FALSE)) -> 01.08.2004 | F39: =IF($C39="","",VLOOKUP($C39,Список!$A:$W,5,FALSE)) -> КМС | G39: =IF($C39="","",VLOOKUP($C39,Список!$A:$W,6,FALSE)) -> 28 | H39: =IF($C39="","",VLOOKUP($C39,Список!$A:$W,7,FALSE)) -> Актюбинская обл. | I39: =IF($C39="","",VLOOKUP($C39,Список!$A:$W,8,FALSE)) -> Дерушко Е.А.
B40: 2 | C40: =1+C39 -> 17 | D40: =IF($C40="","",VLOOKUP($C40,Список!$A:$W,3,FALSE)) -> ЖАНАЙ Есенгелды | E40: =IF($C40="","",VLOOKUP($C40,Список!$A:$W,4,FALSE)) -> 23.06.1999 | F40: =IF($C40="","",VLOOKUP($C40,Список!$A:$W,5,FALSE)) -> 0 | G40: =IF($C40="","",VLOOKUP($C40,Список!$A:$W,6,FALSE)) -> 46 | H40: =IF($C40="","",VLOOKUP($C40,Список!$A:$W,7,FALSE)) -> Актюбинская обл. | I40: =IF($C40="","",VLOOKUP($C40,Список!$A:$W,8,FALSE)) -> Дерушко Е.А.
B41: 3 | C41: =1+C40 -> 18 | D41: =IF($C41="","",VLOOKUP($C41,Список!$A:$W,3,FALSE)) -> АМАНКУС Куаныш | E41: =IF($C41="","",VLOOKUP($C41,Список!$A:$W,4,FALSE)) -> 07.04.2011 | F41: =IF($C41="","",VLOOKUP($C41,Список!$A:$W,5,FALSE)) -> 0 | G41: =IF($C41="","",VLOOKUP($C41,Список!$A:$W,6,FALSE)) -> 13 | H41: =IF($C41="","",VLOOKUP($C41,Список!$A:$W,7,FALSE)) -> Актюбинская обл. | I41: =IF($C41="","",VLOOKUP($C41,Список!$A:$W,8,FALSE)) -> Дерушко Е.А.
B42: 4 | C42: =1+C41 -> 19 | D42: =IF($C42="","",VLOOKUP($C42,Список!$A:$W,3,FALSE)) -> ЖАНСЕРІК Әлішер | E42: =IF($C42="","",VLOOKUP($C42,Список!$A:$W,4,FALSE)) -> 00:00:00 | F42: =IF($C42="","",VLOOKUP($C42,Список!$A:$W,5,FALSE)) -> 0 | G42: =IF($C42="","",VLOOKUP($C42,Список!$A:$W,6,FALSE)) -> 0 | H42: =IF($C42="","",VLOOKUP($C42,Список!$A:$W,7,FALSE)) -> Актюбинская обл. | I42: =IF($C42="","",VLOOKUP($C42,Список!$A:$W,8,FALSE)) -> Дерушко Е.А.
B43: 5 | C43: =1+C42 -> 20 | D43: =IF($C43="","",VLOOKUP($C43,Список!$A:$W,3,FALSE)) -> 0 | E43: =IF($C43="","",VLOOKUP($C43,Список!$A:$W,4,FALSE)) ->  | F43: =IF($C43="","",VLOOKUP($C43,Список!$A:$W,5,FALSE)) -> 0 | G43: =IF($C43="","",VLOOKUP($C43,Список!$A:$W,6,FALSE)) ->  | H43: =IF($C43="","",VLOOKUP($C43,Список!$A:$W,7,FALSE)) ->  | I43: =IF($C43="","",VLOOKUP($C43,Список!$A:$W,8,FALSE)) -> 0
F44: Тренер-представитель: | G44: =IF(C39="","",VLOOKUP(C39,Список!A:W,11,FALSE)) -> Жанай Е.
A46: =A36+1 -> 5 | B46: =IF(A46="","",VLOOKUP(A46,Команды!B:AB,7,FALSE)) -> Алматинская область | I46: =SUM(LARGE(G49:G53,{1,2,3})) -> 
B47: № | D47: Фамилия Имя | E47: Дата | F47: Разряд | G47: Рейтинг | H47: Город | I47: Личный тренер
E48: рождения
B49: 1 | C49: =A46*5-4 -> 21 | D49: =IF($C49="","",VLOOKUP($C49,Список!$A:$W,3,FALSE)) -> 0 | E49: =IF($C49="","",VLOOKUP($C49,Список!$A:$W,4,FALSE)) ->  | F49: =IF($C49="","",VLOOKUP($C49,Список!$A:$W,5,FALSE)) -> 0 | G49: =IF($C49="","",VLOOKUP($C49,Список!$A:$W,6,FALSE)) ->  | H49: =IF($C49="","",VLOOKUP($C49,Список!$A:$W,7,FALSE)) ->  | I49: =IF($C49="","",VLOOKUP($C49,Список!$A:$W,8,FALSE)) -> 0
B50: 2 | C50: =1+C49 -> 22 | D50: =IF($C50="","",VLOOKUP($C50,Список!$A:$W,3,FALSE)) -> 0 | E50: =IF($C50="","",VLOOKUP($C50,Список!$A:$W,4,FALSE)) ->  | F50: =IF($C50="","",VLOOKUP($C50,Список!$A:$W,5,FALSE)) -> 0 | G50: =IF($C50="","",VLOOKUP($C50,Список!$A:$W,6,FALSE)) ->  | H50: =IF($C50="","",VLOOKUP($C50,Список!$A:$W,7,FALSE)) ->  | I50: =IF($C50="","",VLOOKUP($C50,Список!$A:$W,8,FALSE)) -> 0
B51: 3 | C51: =1+C50 -> 23 | D51: =IF($C51="","",VLOOKUP($C51,Список!$A:$W,3,FALSE)) -> 0 | E51: =IF($C51="","",VLOOKUP($C51,Список!$A:$W,4,FALSE)) ->  | F51: =IF($C51="","",VLOOKUP($C51,Список!$A:$W,5,FALSE)) -> 0 | G51: =IF($C51="","",VLOOKUP($C51,Список!$A:$W,6,FALSE)) ->  | H51: =IF($C51="","",VLOOKUP($C51,Список!$A:$W,7,FALSE)) ->  | I51: =IF($C51="","",VLOOKUP($C51,Список!$A:$W,8,FALSE)) -> 0
B52: 4 | C52: =1+C51 -> 24 | D52: =IF($C52="","",VLOOKUP($C52,Список!$A:$W,3,FALSE)) -> 0 | E52: =IF($C52="","",VLOOKUP($C52,Список!$A:$W,4,FALSE)) ->  | F52: =IF($C52="","",VLOOKUP($C52,Список!$A:$W,5,FALSE)) -> 0 | G52: =IF($C52="","",VLOOKUP($C52,Список!$A:$W,6,FALSE)) ->  | H52: =IF($C52="","",VLOOKUP($C52,Список!$A:$W,7,FALSE)) ->  | I52: =IF($C52="","",VLOOKUP($C52,Список!$A:$W,8,FALSE)) -> 0
B53: 5 | C53: =1+C52 -> 25 | D53: =IF($C53="","",VLOOKUP($C53,Список!$A:$W,3,FALSE)) -> 0 | E53: =IF($C53="","",VLOOKUP($C53,Список!$A:$W,4,FALSE)) ->  | F53: =IF($C53="","",VLOOKUP($C53,Список!$A:$W,5,FALSE)) -> 0 | G53: =IF($C53="","",VLOOKUP($C53,Список!$A:$W,6,FALSE)) ->  | H53: =IF($C53="","",VLOOKUP($C53,Список!$A:$W,7,FALSE)) ->  | I53: =IF($C53="","",VLOOKUP($C53,Список!$A:$W,8,FALSE)) -> 0
F54: Тренер-представитель: | G54: =IF(C49="","",VLOOKUP(C49,Список!A:W,11,FALSE)) -> Кузьмина И.А.
A56: =A46+1 -> 6 | B56: =IF(A56="","",VLOOKUP(A56,Команды!B:AB,7,FALSE)) -> Атырауская область | I56: =SUM(LARGE(G59:G63,{1,2,3})) -> 35
B57: № | D57: Фамилия Имя | E57: Дата | F57: Разряд | G57: Рейтинг | H57: Город | I57: Личный тренер
E58: рождения
B59: 1 | C59: =A56*5-4 -> 26 | D59: =IF($C59="","",VLOOKUP($C59,Список!$A:$W,3,FALSE)) -> ОРЫНБАСАР Ернар | E59: =IF($C59="","",VLOOKUP($C59,Список!$A:$W,4,FALSE)) -> 26.03.2006 | F59: =IF($C59="","",VLOOKUP($C59,Список!$A:$W,5,FALSE)) -> б.р. | G59: =IF($C59="","",VLOOKUP($C59,Список!$A:$W,6,FALSE)) -> 10 | H59: =IF($C59="","",VLOOKUP($C59,Список!$A:$W,7,FALSE)) -> Атырауская обл. | I59: =IF($C59="","",VLOOKUP($C59,Список!$A:$W,8,FALSE)) -> Мирзахметов А.
B60: 2 | C60: =1+C59 -> 27 | D60: =IF($C60="","",VLOOKUP($C60,Список!$A:$W,3,FALSE)) -> АБЕЛЬДИНОВ Дамир | E60: =IF($C60="","",VLOOKUP($C60,Список!$A:$W,4,FALSE)) -> 20.12.1986 | F60: =IF($C60="","",VLOOKUP($C60,Список!$A:$W,5,FALSE)) -> 0 | G60: =IF($C60="","",VLOOKUP($C60,Список!$A:$W,6,FALSE)) -> 21 | H60: =IF($C60="","",VLOOKUP($C60,Список!$A:$W,7,FALSE)) -> Атырауская обл. | I60: =IF($C60="","",VLOOKUP($C60,Список!$A:$W,8,FALSE)) -> Мамутов Р.И.
B61: 3 | C61: =1+C60 -> 28 | D61: =IF($C61="","",VLOOKUP($C61,Список!$A:$W,3,FALSE)) -> НҰРБЕКҰЛЫ Ақылбек | E61: =IF($C61="","",VLOOKUP($C61,Список!$A:$W,4,FALSE)) -> 01.09.2005 | F61: =IF($C61="","",VLOOKUP($C61,Список!$A:$W,5,FALSE)) -> 0 | G61: =IF($C61="","",VLOOKUP($C61,Список!$A:$W,6,FALSE)) -> 4 | H61: =IF($C61="","",VLOOKUP($C61,Список!$A:$W,7,FALSE)) -> Атырауская обл. | I61: =IF($C61="","",VLOOKUP($C61,Список!$A:$W,8,FALSE)) -> Мирзахметов А.
B62: 4 | C62: =1+C61 -> 29 | D62: =IF($C62="","",VLOOKUP($C62,Список!$A:$W,3,FALSE)) -> ТЕН Владислав | E62: =IF($C62="","",VLOOKUP($C62,Список!$A:$W,4,FALSE)) -> 1987-08-30 | F62: =IF($C62="","",VLOOKUP($C62,Список!$A:$W,5,FALSE)) -> 0 | G62: =IF($C62="","",VLOOKUP($C62,Список!$A:$W,6,FALSE)) -> 0 | H62: =IF($C62="","",VLOOKUP($C62,Список!$A:$W,7,FALSE)) -> Атырауск. обл. | I62: =IF($C62="","",VLOOKUP($C62,Список!$A:$W,8,FALSE)) -> Мамутов Р.И.
B63: 5 | C63: =1+C62 -> 30 | D63: =IF($C63="","",VLOOKUP($C63,Список!$A:$W,3,FALSE)) -> КАЛМУРЗИЕВ Илияс | E63: =IF($C63="","",VLOOKUP($C63,Список!$A:$W,4,FALSE)) -> 1956-07-31 | F63: =IF($C63="","",VLOOKUP($C63,Список!$A:$W,5,FALSE)) -> 0 | G63: =IF($C63="","",VLOOKUP($C63,Список!$A:$W,6,FALSE)) -> 0 | H63: =IF($C63="","",VLOOKUP($C63,Список!$A:$W,7,FALSE)) -> Атырауск. обл. | I63: =IF($C63="","",VLOOKUP($C63,Список!$A:$W,8,FALSE)) -> Мамутов Р.И.
F64: Тренер-представитель: | G64: =IF(C59="","",VLOOKUP(C59,Список!A:W,11,FALSE)) -> Мирзахметов А.
A66: =A56+1 -> 7 | B66: =IF(A66="","",VLOOKUP(A66,Команды!B:AB,7,FALSE)) -> Западно-Казахстанская область | I66: =SUM(LARGE(G69:G73,{1,2,3})) -> 117
B67: № | D67: Фамилия Имя | E67: Дата | F67: Разряд | G67: Рейтинг | H67: Город | I67: Личный тренер
E68: рождения
B69: 1 | C69: =A66*5-4 -> 31 | D69: =IF($C69="","",VLOOKUP($C69,Список!$A:$W,3,FALSE)) -> НИЕТКАЛИЕВ Болат | E69: =IF($C69="","",VLOOKUP($C69,Список!$A:$W,4,FALSE)) -> 26.05.2005 | F69: =IF($C69="","",VLOOKUP($C69,Список!$A:$W,5,FALSE)) -> 0 | G69: =IF($C69="","",VLOOKUP($C69,Список!$A:$W,6,FALSE)) -> 42 | H69: =IF($C69="","",VLOOKUP($C69,Список!$A:$W,7,FALSE)) -> ЗКО | I69: =IF($C69="","",VLOOKUP($C69,Список!$A:$W,8,FALSE)) -> Кузьмин В.Г.
B70: 2 | C70: =1+C69 -> 32 | D70: =IF($C70="","",VLOOKUP($C70,Список!$A:$W,3,FALSE)) -> ИБАТ Әбілсеіт | E70: =IF($C70="","",VLOOKUP($C70,Список!$A:$W,4,FALSE)) -> 12.11.2000 | F70: =IF($C70="","",VLOOKUP($C70,Список!$A:$W,5,FALSE)) -> 0 | G70: =IF($C70="","",VLOOKUP($C70,Список!$A:$W,6,FALSE)) -> 41 | H70: =IF($C70="","",VLOOKUP($C70,Список!$A:$W,7,FALSE)) -> ЗКО | I70: =IF($C70="","",VLOOKUP($C70,Список!$A:$W,8,FALSE)) -> Кузьмин В.Г.
B71: 3 | C71: =1+C70 -> 33 | D71: =IF($C71="","",VLOOKUP($C71,Список!$A:$W,3,FALSE)) -> МЭЛСОВ Дамир | E71: =IF($C71="","",VLOOKUP($C71,Список!$A:$W,4,FALSE)) -> 25.05.2006 | F71: =IF($C71="","",VLOOKUP($C71,Список!$A:$W,5,FALSE)) -> 0 | G71: =IF($C71="","",VLOOKUP($C71,Список!$A:$W,6,FALSE)) -> 34 | H71: =IF($C71="","",VLOOKUP($C71,Список!$A:$W,7,FALSE)) -> ЗКО | I71: =IF($C71="","",VLOOKUP($C71,Список!$A:$W,8,FALSE)) -> Назарова С.Р.
B72: 4 | C72: =1+C71 -> 34 | D72: =IF($C72="","",VLOOKUP($C72,Список!$A:$W,3,FALSE)) -> АСКАР Арсен | E72: =IF($C72="","",VLOOKUP($C72,Список!$A:$W,4,FALSE)) -> 16.08.2012 | F72: =IF($C72="","",VLOOKUP($C72,Список!$A:$W,5,FALSE)) -> 0 | G72: =IF($C72="","",VLOOKUP($C72,Список!$A:$W,6,FALSE)) -> 3 | H72: =IF($C72="","",VLOOKUP($C72,Список!$A:$W,7,FALSE)) -> ЗКО | I72: =IF($C72="","",VLOOKUP($C72,Список!$A:$W,8,FALSE)) -> Назарова С.Р.
B73: 5 | C73: =1+C72 -> 35 | D73: =IF($C73="","",VLOOKUP($C73,Список!$A:$W,3,FALSE)) -> 0 | E73: =IF($C73="","",VLOOKUP($C73,Список!$A:$W,4,FALSE)) ->  | F73: =IF($C73="","",VLOOKUP($C73,Список!$A:$W,5,FALSE)) -> 0 | G73: =IF($C73="","",VLOOKUP($C73,Список!$A:$W,6,FALSE)) ->  | H73: =IF($C73="","",VLOOKUP($C73,Список!$A:$W,7,FALSE)) ->  | I73: =IF($C73="","",VLOOKUP($C73,Список!$A:$W,8,FALSE)) -> 0
F74: Тренер-представитель: | G74: =IF(C69="","",VLOOKUP(C69,Список!A:W,11,FALSE)) -> Назарова С.Р., Ибат А.К.
A76: =A66+1 -> 8 | B76: =IF(A76="","",VLOOKUP(A76,Команды!B:AB,7,FALSE)) -> Жамбылская область | I76: =SUM(LARGE(G79:G83,{1,2,3})) -> 133
B77: № | D77: Фамилия Имя | E77: Дата | F77: Разряд | G77: Рейтинг | H77: Город | I77: Личный тренер
E78: рождения
B79: 1 | C79: =A76*5-4 -> 36 | D79: =IF($C79="","",VLOOKUP($C79,Список!$A:$W,3,FALSE)) -> ХАРКИ Искандер | E79: =IF($C79="","",VLOOKUP($C79,Список!$A:$W,4,FALSE)) -> 17.05.2003 | F79: =IF($C79="","",VLOOKUP($C79,Список!$A:$W,5,FALSE)) -> МС | G79: =IF($C79="","",VLOOKUP($C79,Список!$A:$W,6,FALSE)) -> 61 | H79: =IF($C79="","",VLOOKUP($C79,Список!$A:$W,7,FALSE)) -> Жамбылская обл. | I79: =IF($C79="","",VLOOKUP($C79,Список!$A:$W,8,FALSE)) -> Харки А.
B80: 2 | C80: =1+C79 -> 37 | D80: =IF($C80="","",VLOOKUP($C80,Список!$A:$W,3,FALSE)) -> ХАРКИ Абдул-Маджид | E80: =IF($C80="","",VLOOKUP($C80,Список!$A:$W,4,FALSE)) -> 07.01.2004 | F80: =IF($C80="","",VLOOKUP($C80,Список!$A:$W,5,FALSE)) -> КМС | G80: =IF($C80="","",VLOOKUP($C80,Список!$A:$W,6,FALSE)) -> 40 | H80: =IF($C80="","",VLOOKUP($C80,Список!$A:$W,7,FALSE)) -> Жамбылская обл. | I80: =IF($C80="","",VLOOKUP($C80,Список!$A:$W,8,FALSE)) -> Харки А.
B81: 3 | C81: =1+C80 -> 38 | D81: =IF($C81="","",VLOOKUP($C81,Список!$A:$W,3,FALSE)) -> ХАРКИ Муслим | E81: =IF($C81="","",VLOOKUP($C81,Список!$A:$W,4,FALSE)) -> 15.10.2001 | F81: =IF($C81="","",VLOOKUP($C81,Список!$A:$W,5,FALSE)) -> КМС | G81: =IF($C81="","",VLOOKUP($C81,Список!$A:$W,6,FALSE)) -> 32 | H81: =IF($C81="","",VLOOKUP($C81,Список!$A:$W,7,FALSE)) -> Жамбылская обл. | I81: =IF($C81="","",VLOOKUP($C81,Список!$A:$W,8,FALSE)) -> Харки А.
B82: 4 | C82: =1+C81 -> 39 | D82: =IF($C82="","",VLOOKUP($C82,Список!$A:$W,3,FALSE)) -> ХАРКИ Хамза | E82: =IF($C82="","",VLOOKUP($C82,Список!$A:$W,4,FALSE)) -> 00:00:00 | F82: =IF($C82="","",VLOOKUP($C82,Список!$A:$W,5,FALSE)) -> КМС | G82: =IF($C82="","",VLOOKUP($C82,Список!$A:$W,6,FALSE)) -> 0 | H82: =IF($C82="","",VLOOKUP($C82,Список!$A:$W,7,FALSE)) -> Жамбылск. обл. | I82: =IF($C82="","",VLOOKUP($C82,Список!$A:$W,8,FALSE)) -> Харки А.
B83: 5 | C83: =1+C82 -> 40 | D83: =IF($C83="","",VLOOKUP($C83,Список!$A:$W,3,FALSE)) -> ЕСИРКЕПБАЙ Бекнур | E83: =IF($C83="","",VLOOKUP($C83,Список!$A:$W,4,FALSE)) -> 21.01.2005 | F83: =IF($C83="","",VLOOKUP($C83,Список!$A:$W,5,FALSE)) -> КМС | G83: =IF($C83="","",VLOOKUP($C83,Список!$A:$W,6,FALSE)) -> 1 | H83: =IF($C83="","",VLOOKUP($C83,Список!$A:$W,7,FALSE)) -> Жамбылская обл. | I83: =IF($C83="","",VLOOKUP($C83,Список!$A:$W,8,FALSE)) -> Харки А.
F84: Тренер-представитель: | G84: =IF(C79="","",VLOOKUP(C79,Список!A:W,11,FALSE)) -> Харки А., Груздов Е.О.
B85: КОМАНДНЫЕ СОРЕВНОВАНИЯ. МУЖЧИНЫ
B86: СПИСОК УЧАСТНИКОВ
A87: =1+A76 -> 9 | B87: =IF(A87="","",VLOOKUP(A87,Команды!B:AB,7,FALSE)) -> Карагандинская область | I87: =SUM(LARGE(G90:G94,{1,2,3})) -> 150
B88: № | D88: Фамилия Имя | E88: Дата | F88: Разряд | G88: Рейтинг | H88: Город | I88: Личный тренер
E89: рождения
B90: 1 | C90: =A87*5-4 -> 41 | D90: =IF($C90="","",VLOOKUP($C90,Список!$A:$W,3,FALSE)) -> ЗАХАРОВ Владислав | E90: =IF($C90="","",VLOOKUP($C90,Список!$A:$W,4,FALSE)) -> 31.10.1997 | F90: =IF($C90="","",VLOOKUP($C90,Список!$A:$W,5,FALSE)) -> МС | G90: =IF($C90="","",VLOOKUP($C90,Список!$A:$W,6,FALSE)) -> 62 | H90: =IF($C90="","",VLOOKUP($C90,Список!$A:$W,7,FALSE)) -> Карагандинская обл. | I90: =IF($C90="","",VLOOKUP($C90,Список!$A:$W,8,FALSE)) -> Алиева Э.К.
B91: 2 | C91: =1+C90 -> 42 | D91: =IF($C91="","",VLOOKUP($C91,Список!$A:$W,3,FALSE)) -> ТОРГАЙБЕКОВ Амир | E91: =IF($C91="","",VLOOKUP($C91,Список!$A:$W,4,FALSE)) -> 14.02.2006 | F91: =IF($C91="","",VLOOKUP($C91,Список!$A:$W,5,FALSE)) -> МС | G91: =IF($C91="","",VLOOKUP($C91,Список!$A:$W,6,FALSE)) -> 48 | H91: =IF($C91="","",VLOOKUP($C91,Список!$A:$W,7,FALSE)) -> Карагандинская обл. | I91: =IF($C91="","",VLOOKUP($C91,Список!$A:$W,8,FALSE)) -> Алиева Э.К.
B92: 3 | C92: =1+C91 -> 43 | D92: =IF($C92="","",VLOOKUP($C92,Список!$A:$W,3,FALSE)) -> НУРМАТОВ Зиёджан | E92: =IF($C92="","",VLOOKUP($C92,Список!$A:$W,4,FALSE)) -> 14.06.2004 | F92: =IF($C92="","",VLOOKUP($C92,Список!$A:$W,5,FALSE)) -> КМС | G92: =IF($C92="","",VLOOKUP($C92,Список!$A:$W,6,FALSE)) -> 40 | H92: =IF($C92="","",VLOOKUP($C92,Список!$A:$W,7,FALSE)) -> Карагандинская обл. | I92: =IF($C92="","",VLOOKUP($C92,Список!$A:$W,8,FALSE)) -> Алиева Э.К.
B93: 4 | C93: =1+C92 -> 44 | D93: =IF($C93="","",VLOOKUP($C93,Список!$A:$W,3,FALSE)) -> МАГЗУМБЕКОВ Асылхан | E93: =IF($C93="","",VLOOKUP($C93,Список!$A:$W,4,FALSE)) -> 21.07.2010 | F93: =IF($C93="","",VLOOKUP($C93,Список!$A:$W,5,FALSE)) -> КМС | G93: =IF($C93="","",VLOOKUP($C93,Список!$A:$W,6,FALSE)) -> 29 | H93: =IF($C93="","",VLOOKUP($C93,Список!$A:$W,7,FALSE)) -> Карагандинская обл. | I93: =IF($C93="","",VLOOKUP($C93,Список!$A:$W,8,FALSE)) -> Алиева Э.К.
B94: 5 | C94: =1+C93 -> 45 | D94: =IF($C94="","",VLOOKUP($C94,Список!$A:$W,3,FALSE)) -> КЕЛЬБУГАНОВ Раймбек | E94: =IF($C94="","",VLOOKUP($C94,Список!$A:$W,4,FALSE)) -> 28.12.2008 | F94: =IF($C94="","",VLOOKUP($C94,Список!$A:$W,5,FALSE)) -> КМС | G94: =IF($C94="","",VLOOKUP($C94,Список!$A:$W,6,FALSE)) -> 19 | H94: =IF($C94="","",VLOOKUP($C94,Список!$A:$W,7,FALSE)) -> Карагандинская обл. | I94: =IF($C94="","",VLOOKUP($C94,Список!$A:$W,8,FALSE)) -> Алиева Э.К.
F95: Тренер-представитель: | G95: =IF(C90="","",VLOOKUP(C90,Список!A:W,11,FALSE)) -> Алиева Э.К., Рубцов И.А.
A97: =1+A87 -> 10 | B97: =IF(A97="","",VLOOKUP(A97,Команды!B:AB,7,FALSE)) -> Костанайская область | I97: =SUM(LARGE(G100:G104,{1,2,3})) -> 
B98: № | D98: Фамилия Имя | E98: Дата | F98: Разряд | G98: Рейтинг | H98: Город | I98: Личный тренер
E99: рождения
B100: 1 | C100: =A97*5-4 -> 46 | D100: =IF($C100="","",VLOOKUP($C100,Список!$A:$W,3,FALSE)) -> 0 | E100: =IF($C100="","",VLOOKUP($C100,Список!$A:$W,4,FALSE)) ->  | F100: =IF($C100="","",VLOOKUP($C100,Список!$A:$W,5,FALSE)) -> 0 | G100: =IF($C100="","",VLOOKUP($C100,Список!$A:$W,6,FALSE)) ->  | H100: =IF($C100="","",VLOOKUP($C100,Список!$A:$W,7,FALSE)) ->  | I100: =IF($C100="","",VLOOKUP($C100,Список!$A:$W,8,FALSE)) -> 0
B101: 2 | C101: =1+C100 -> 47 | D101: =IF($C101="","",VLOOKUP($C101,Список!$A:$W,3,FALSE)) -> 0 | E101: =IF($C101="","",VLOOKUP($C101,Список!$A:$W,4,FALSE)) ->  | F101: =IF($C101="","",VLOOKUP($C101,Список!$A:$W,5,FALSE)) -> 0 | G101: =IF($C101="","",VLOOKUP($C101,Список!$A:$W,6,FALSE)) ->  | H101: =IF($C101="","",VLOOKUP($C101,Список!$A:$W,7,FALSE)) ->  | I101: =IF($C101="","",VLOOKUP($C101,Список!$A:$W,8,FALSE)) -> 0
B102: 3 | C102: =1+C101 -> 48 | D102: =IF($C102="","",VLOOKUP($C102,Список!$A:$W,3,FALSE)) -> 0 | E102: =IF($C102="","",VLOOKUP($C102,Список!$A:$W,4,FALSE)) ->  | F102: =IF($C102="","",VLOOKUP($C102,Список!$A:$W,5,FALSE)) -> 0 | G102: =IF($C102="","",VLOOKUP($C102,Список!$A:$W,6,FALSE)) ->  | H102: =IF($C102="","",VLOOKUP($C102,Список!$A:$W,7,FALSE)) ->  | I102: =IF($C102="","",VLOOKUP($C102,Список!$A:$W,8,FALSE)) -> 0
B103: 4 | C103: =1+C102 -> 49 | D103: =IF($C103="","",VLOOKUP($C103,Список!$A:$W,3,FALSE)) -> 0 | E103: =IF($C103="","",VLOOKUP($C103,Список!$A:$W,4,FALSE)) ->  | F103: =IF($C103="","",VLOOKUP($C103,Список!$A:$W,5,FALSE)) -> 0 | G103: =IF($C103="","",VLOOKUP($C103,Список!$A:$W,6,FALSE)) ->  | H103: =IF($C103="","",VLOOKUP($C103,Список!$A:$W,7,FALSE)) ->  | I103: =IF($C103="","",VLOOKUP($C103,Список!$A:$W,8,FALSE)) -> 0
B104: 5 | C104: =1+C103 -> 50 | D104: =IF($C104="","",VLOOKUP($C104,Список!$A:$W,3,FALSE)) -> 0 | E104: =IF($C104="","",VLOOKUP($C104,Список!$A:$W,4,FALSE)) ->  | F104: =IF($C104="","",VLOOKUP($C104,Список!$A:$W,5,FALSE)) -> 0 | G104: =IF($C104="","",VLOOKUP($C104,Список!$A:$W,6,FALSE)) ->  | H104: =IF($C104="","",VLOOKUP($C104,Список!$A:$W,7,FALSE)) ->  | I104: =IF($C104="","",VLOOKUP($C104,Список!$A:$W,8,FALSE)) -> 0
F105: Тренер-представитель: | G105: =IF(C100="","",VLOOKUP(C100,Список!A:W,11,FALSE)) -> Данияров Г.С., Дубровская А.А.
A107: =1+A97 -> 11 | B107: =IF(A107="","",VLOOKUP(A107,Команды!B:AB,7,FALSE)) -> Кызылординская область | I107: =SUM(LARGE(G110:G114,{1,2,3})) -> 
B108: № | D108: Фамилия Имя | E108: Дата | F108: Разряд | G108: Рейтинг | H108: Город | I108: Личный тренер
E109: рождения
B110: 1 | C110: =A107*5-4 -> 51 | D110: =IF($C110="","",VLOOKUP($C110,Список!$A:$W,3,FALSE)) -> 0 | E110: =IF($C110="","",VLOOKUP($C110,Список!$A:$W,4,FALSE)) ->  | F110: =IF($C110="","",VLOOKUP($C110,Список!$A:$W,5,FALSE)) -> 0 | G110: =IF($C110="","",VLOOKUP($C110,Список!$A:$W,6,FALSE)) ->  | H110: =IF($C110="","",VLOOKUP($C110,Список!$A:$W,7,FALSE)) ->  | I110: =IF($C110="","",VLOOKUP($C110,Список!$A:$W,8,FALSE)) -> 0
B111: 2 | C111: =1+C110 -> 52 | D111: =IF($C111="","",VLOOKUP($C111,Список!$A:$W,3,FALSE)) -> 0 | E111: =IF($C111="","",VLOOKUP($C111,Список!$A:$W,4,FALSE)) ->  | F111: =IF($C111="","",VLOOKUP($C111,Список!$A:$W,5,FALSE)) -> 0 | G111: =IF($C111="","",VLOOKUP($C111,Список!$A:$W,6,FALSE)) ->  | H111: =IF($C111="","",VLOOKUP($C111,Список!$A:$W,7,FALSE)) ->  | I111: =IF($C111="","",VLOOKUP($C111,Список!$A:$W,8,FALSE)) -> 0
B112: 3 | C112: =1+C111 -> 53 | D112: =IF($C112="","",VLOOKUP($C112,Список!$A:$W,3,FALSE)) -> 0 | E112: =IF($C112="","",VLOOKUP($C112,Список!$A:$W,4,FALSE)) ->  | F112: =IF($C112="","",VLOOKUP($C112,Список!$A:$W,5,FALSE)) -> 0 | G112: =IF($C112="","",VLOOKUP($C112,Список!$A:$W,6,FALSE)) ->  | H112: =IF($C112="","",VLOOKUP($C112,Список!$A:$W,7,FALSE)) ->  | I112: =IF($C112="","",VLOOKUP($C112,Список!$A:$W,8,FALSE)) -> 0
B113: 4 | C113: =1+C112 -> 54 | D113: =IF($C113="","",VLOOKUP($C113,Список!$A:$W,3,FALSE)) -> 0 | E113: =IF($C113="","",VLOOKUP($C113,Список!$A:$W,4,FALSE)) ->  | F113: =IF($C113="","",VLOOKUP($C113,Список!$A:$W,5,FALSE)) -> 0 | G113: =IF($C113="","",VLOOKUP($C113,Список!$A:$W,6,FALSE)) ->  | H113: =IF($C113="","",VLOOKUP($C113,Список!$A:$W,7,FALSE)) ->  | I113: =IF($C113="","",VLOOKUP($C113,Список!$A:$W,8,FALSE)) -> 0
B114: 5 | C114: =1+C113 -> 55 | D114: =IF($C114="","",VLOOKUP($C114,Список!$A:$W,3,FALSE)) -> 0 | E114: =IF($C114="","",VLOOKUP($C114,Список!$A:$W,4,FALSE)) ->  | F114: =IF($C114="","",VLOOKUP($C114,Список!$A:$W,5,FALSE)) -> 0 | G114: =IF($C114="","",VLOOKUP($C114,Список!$A:$W,6,FALSE)) ->  | H114: =IF($C114="","",VLOOKUP($C114,Список!$A:$W,7,FALSE)) ->  | I114: =IF($C114="","",VLOOKUP($C114,Список!$A:$W,8,FALSE)) -> 0
F115: Тренер-представитель: | G115: =IF(C110="","",VLOOKUP(C110,Список!A:W,11,FALSE)) -> Ибрай Е.Қ., Искакова Г.Г.,Орынбасарова Д.
A117: =1+A107 -> 12 | B117: =IF(A117="","",VLOOKUP(A117,Команды!B:AB,7,FALSE)) -> Мангистауская область | I117: =SUM(LARGE(G120:G124,{1,2,3})) -> 
B118: № | D118: Фамилия Имя | E118: Дата | F118: Разряд | G118: Рейтинг | H118: Город | I118: Личный тренер
E119: рождения
B120: 1 | C120: =A117*5-4 -> 56 | D120: =IF($C120="","",VLOOKUP($C120,Список!$A:$W,3,FALSE)) -> 0 | E120: =IF($C120="","",VLOOKUP($C120,Список!$A:$W,4,FALSE)) ->  | F120: =IF($C120="","",VLOOKUP($C120,Список!$A:$W,5,FALSE)) -> 0 | G120: =IF($C120="","",VLOOKUP($C120,Список!$A:$W,6,FALSE)) ->  | H120: =IF($C120="","",VLOOKUP($C120,Список!$A:$W,7,FALSE)) ->  | I120: =IF($C120="","",VLOOKUP($C120,Список!$A:$W,8,FALSE)) -> 0
B121: 2 | C121: =1+C120 -> 57 | D121: =IF($C121="","",VLOOKUP($C121,Список!$A:$W,3,FALSE)) -> 0 | E121: =IF($C121="","",VLOOKUP($C121,Список!$A:$W,4,FALSE)) ->  | F121: =IF($C121="","",VLOOKUP($C121,Список!$A:$W,5,FALSE)) -> 0 | G121: =IF($C121="","",VLOOKUP($C121,Список!$A:$W,6,FALSE)) ->  | H121: =IF($C121="","",VLOOKUP($C121,Список!$A:$W,7,FALSE)) ->  | I121: =IF($C121="","",VLOOKUP($C121,Список!$A:$W,8,FALSE)) -> 0
B122: 3 | C122: =1+C121 -> 58 | D122: =IF($C122="","",VLOOKUP($C122,Список!$A:$W,3,FALSE)) -> 0 | E122: =IF($C122="","",VLOOKUP($C122,Список!$A:$W,4,FALSE)) ->  | F122: =IF($C122="","",VLOOKUP($C122,Список!$A:$W,5,FALSE)) -> 0 | G122: =IF($C122="","",VLOOKUP($C122,Список!$A:$W,6,FALSE)) ->  | H122: =IF($C122="","",VLOOKUP($C122,Список!$A:$W,7,FALSE)) ->  | I122: =IF($C122="","",VLOOKUP($C122,Список!$A:$W,8,FALSE)) -> 0
B123: 4 | C123: =1+C122 -> 59 | D123: =IF($C123="","",VLOOKUP($C123,Список!$A:$W,3,FALSE)) -> 0 | E123: =IF($C123="","",VLOOKUP($C123,Список!$A:$W,4,FALSE)) ->  | F123: =IF($C123="","",VLOOKUP($C123,Список!$A:$W,5,FALSE)) -> 0 | G123: =IF($C123="","",VLOOKUP($C123,Список!$A:$W,6,FALSE)) ->  | H123: =IF($C123="","",VLOOKUP($C123,Список!$A:$W,7,FALSE)) ->  | I123: =IF($C123="","",VLOOKUP($C123,Список!$A:$W,8,FALSE)) -> 0
B124: 5 | C124: =1+C123 -> 60 | D124: =IF($C124="","",VLOOKUP($C124,Список!$A:$W,3,FALSE)) -> 0 | E124: =IF($C124="","",VLOOKUP($C124,Список!$A:$W,4,FALSE)) ->  | F124: =IF($C124="","",VLOOKUP($C124,Список!$A:$W,5,FALSE)) -> 0 | G124: =IF($C124="","",VLOOKUP($C124,Список!$A:$W,6,FALSE)) ->  | H124: =IF($C124="","",VLOOKUP($C124,Список!$A:$W,7,FALSE)) ->  | I124: =IF($C124="","",VLOOKUP($C124,Список!$A:$W,8,FALSE)) -> 0
F125: Тренер-представитель: | G125: =IF(C120="","",VLOOKUP(C120,Список!A:W,11,FALSE)) -> Ильяс Н.
A127: =1+A117 -> 13 | B127: =IF(A127="","",VLOOKUP(A127,Команды!B:AB,7,FALSE)) -> Туркестанская область | I127: =SUM(LARGE(G130:G134,{1,2,3})) -> 102
B128: № | D128: Фамилия Имя | E128: Дата | F128: Разряд | G128: Рейтинг | H128: Город | I128: Личный тренер
E129: рождения
B130: 1 | C130: =A127*5-4 -> 61 | D130: =IF($C130="","",VLOOKUP($C130,Список!$A:$W,3,FALSE)) -> НАЗИР Рамазан | E130: =IF($C130="","",VLOOKUP($C130,Список!$A:$W,4,FALSE)) -> 05.09.2008 | F130: =IF($C130="","",VLOOKUP($C130,Список!$A:$W,5,FALSE)) -> КМС | G130: =IF($C130="","",VLOOKUP($C130,Список!$A:$W,6,FALSE)) -> 39 | H130: =IF($C130="","",VLOOKUP($C130,Список!$A:$W,7,FALSE)) -> Туркестанская обл. | I130: =IF($C130="","",VLOOKUP($C130,Список!$A:$W,8,FALSE)) -> Есімханов Е.
B131: 2 | C131: =1+C130 -> 62 | D131: =IF($C131="","",VLOOKUP($C131,Список!$A:$W,3,FALSE)) -> ЖОЛДЫБАЙ Нұржігіт | E131: =IF($C131="","",VLOOKUP($C131,Список!$A:$W,4,FALSE)) -> 26.06.2008 | F131: =IF($C131="","",VLOOKUP($C131,Список!$A:$W,5,FALSE)) -> КМС | G131: =IF($C131="","",VLOOKUP($C131,Список!$A:$W,6,FALSE)) -> 31 | H131: =IF($C131="","",VLOOKUP($C131,Список!$A:$W,7,FALSE)) -> Туркестанская обл. | I131: =IF($C131="","",VLOOKUP($C131,Список!$A:$W,8,FALSE)) -> Сыдыков Б.
B132: 3 | C132: =1+C131 -> 63 | D132: =IF($C132="","",VLOOKUP($C132,Список!$A:$W,3,FALSE)) -> ҚОНЫСБАЙ Айболат | E132: =IF($C132="","",VLOOKUP($C132,Список!$A:$W,4,FALSE)) -> 12.04.1999 | F132: =IF($C132="","",VLOOKUP($C132,Список!$A:$W,5,FALSE)) -> КМС | G132: =IF($C132="","",VLOOKUP($C132,Список!$A:$W,6,FALSE)) -> 32 | H132: =IF($C132="","",VLOOKUP($C132,Список!$A:$W,7,FALSE)) -> Туркестанская обл. | I132: =IF($C132="","",VLOOKUP($C132,Список!$A:$W,8,FALSE)) -> Есімханов Е.
B133: 4 | C133: =1+C132 -> 64 | D133: =IF($C133="","",VLOOKUP($C133,Список!$A:$W,3,FALSE)) -> ИБАХАН Санжар | E133: =IF($C133="","",VLOOKUP($C133,Список!$A:$W,4,FALSE)) -> 27.10.2009 | F133: =IF($C133="","",VLOOKUP($C133,Список!$A:$W,5,FALSE)) -> КМС | G133: =IF($C133="","",VLOOKUP($C133,Список!$A:$W,6,FALSE)) -> 29 | H133: =IF($C133="","",VLOOKUP($C133,Список!$A:$W,7,FALSE)) -> Туркестанская обл. | I133: =IF($C133="","",VLOOKUP($C133,Список!$A:$W,8,FALSE)) -> Полатханов Р.
B134: 5 | C134: =1+C133 -> 65 | D134: =IF($C134="","",VLOOKUP($C134,Список!$A:$W,3,FALSE)) -> ЕСІМХАН Орынбасар | E134: =IF($C134="","",VLOOKUP($C134,Список!$A:$W,4,FALSE)) -> 13.07.2011 | F134: =IF($C134="","",VLOOKUP($C134,Список!$A:$W,5,FALSE)) -> КМС | G134: =IF($C134="","",VLOOKUP($C134,Список!$A:$W,6,FALSE)) -> 19 | H134: =IF($C134="","",VLOOKUP($C134,Список!$A:$W,7,FALSE)) -> Туркестанская обл. | I134: =IF($C134="","",VLOOKUP($C134,Список!$A:$W,8,FALSE)) -> Есімханов Е.
F135: Тренер-представитель: | G135: =IF(C130="","",VLOOKUP(C130,Список!A:W,11,FALSE)) -> Абдазимов Ш.М., Қонысбай А.
A137: =1+A127 -> 14 | B137: =IF(A137="","",VLOOKUP(A137,Команды!B:AB,7,FALSE)) -> Павлодарская область | I137: =SUM(LARGE(G140:G144,{1,2,3})) -> 103
B138: № | D138: Фамилия Имя | E138: Дата | F138: Разряд | G138: Рейтинг | H138: Город | I138: Личный тренер
E139: рождения
B140: 1 | C140: =A137*5-4 -> 66 | D140: =IF($C140="","",VLOOKUP($C140,Список!$A:$W,3,FALSE)) -> ХАЗКЕН Адиль | E140: =IF($C140="","",VLOOKUP($C140,Список!$A:$W,4,FALSE)) -> 02.06.2004 | F140: =IF($C140="","",VLOOKUP($C140,Список!$A:$W,5,FALSE)) -> КМС | G140: =IF($C140="","",VLOOKUP($C140,Список!$A:$W,6,FALSE)) -> 38 | H140: =IF($C140="","",VLOOKUP($C140,Список!$A:$W,7,FALSE)) -> Павлодарская обл. | I140: =IF($C140="","",VLOOKUP($C140,Список!$A:$W,8,FALSE)) -> Хорьков А.Ю.
B141: 2 | C141: =1+C140 -> 67 | D141: =IF($C141="","",VLOOKUP($C141,Список!$A:$W,3,FALSE)) -> ИНЫРБАЕВ Алишер | E141: =IF($C141="","",VLOOKUP($C141,Список!$A:$W,4,FALSE)) -> 27.07.2004 | F141: =IF($C141="","",VLOOKUP($C141,Список!$A:$W,5,FALSE)) -> КМС | G141: =IF($C141="","",VLOOKUP($C141,Список!$A:$W,6,FALSE)) -> 36 | H141: =IF($C141="","",VLOOKUP($C141,Список!$A:$W,7,FALSE)) -> Павлодарская обл. | I141: =IF($C141="","",VLOOKUP($C141,Список!$A:$W,8,FALSE)) -> Хорьков А.Ю.
B142: 3 | C142: =1+C141 -> 68 | D142: =IF($C142="","",VLOOKUP($C142,Список!$A:$W,3,FALSE)) -> АБИШЕВ Алимжан | E142: =IF($C142="","",VLOOKUP($C142,Список!$A:$W,4,FALSE)) -> 16.04.2008 | F142: =IF($C142="","",VLOOKUP($C142,Список!$A:$W,5,FALSE)) -> КМС | G142: =IF($C142="","",VLOOKUP($C142,Список!$A:$W,6,FALSE)) -> 29 | H142: =IF($C142="","",VLOOKUP($C142,Список!$A:$W,7,FALSE)) -> Павлодарская обл. | I142: =IF($C142="","",VLOOKUP($C142,Список!$A:$W,8,FALSE)) -> Хорьков А.Ю.
B143: 4 | C143: =1+C142 -> 69 | D143: =IF($C143="","",VLOOKUP($C143,Список!$A:$W,3,FALSE)) -> МУРАТОВ Алдияр | E143: =IF($C143="","",VLOOKUP($C143,Список!$A:$W,4,FALSE)) -> 18.03.2008 | F143: =IF($C143="","",VLOOKUP($C143,Список!$A:$W,5,FALSE)) -> КМС | G143: =IF($C143="","",VLOOKUP($C143,Список!$A:$W,6,FALSE)) -> 22 | H143: =IF($C143="","",VLOOKUP($C143,Список!$A:$W,7,FALSE)) -> Павлодарская обл. | I143: =IF($C143="","",VLOOKUP($C143,Список!$A:$W,8,FALSE)) -> Ахтанов О.Р
B144: 5 | C144: =1+C143 -> 70 | D144: =IF($C144="","",VLOOKUP($C144,Список!$A:$W,3,FALSE)) -> 0 | E144: =IF($C144="","",VLOOKUP($C144,Список!$A:$W,4,FALSE)) ->  | F144: =IF($C144="","",VLOOKUP($C144,Список!$A:$W,5,FALSE)) -> 0 | G144: =IF($C144="","",VLOOKUP($C144,Список!$A:$W,6,FALSE)) ->  | H144: =IF($C144="","",VLOOKUP($C144,Список!$A:$W,7,FALSE)) ->  | I144: =IF($C144="","",VLOOKUP($C144,Список!$A:$W,8,FALSE)) -> 0
F145: Тренер-представитель: | G145: =IF(C140="","",VLOOKUP(C140,Список!A:W,11,FALSE)) -> Хазкен А.С.
A147: =1+A137 -> 15 | B147: =IF(A147="","",VLOOKUP(A147,Команды!B:AB,7,FALSE)) -> Северо-Казахстанская область | I147: =SUM(LARGE(G150:G154,{1,2,3})) -> 
B148: № | D148: Фамилия Имя | E148: Дата | F148: Разряд | G148: Рейтинг | H148: Город | I148: Личный тренер
E149: рождения
B150: 1 | C150: =A147*5-4 -> 71 | D150: =IF($C150="","",VLOOKUP($C150,Список!$A:$W,3,FALSE)) -> 0 | E150: =IF($C150="","",VLOOKUP($C150,Список!$A:$W,4,FALSE)) ->  | F150: =IF($C150="","",VLOOKUP($C150,Список!$A:$W,5,FALSE)) -> 0 | G150: =IF($C150="","",VLOOKUP($C150,Список!$A:$W,6,FALSE)) ->  | H150: =IF($C150="","",VLOOKUP($C150,Список!$A:$W,7,FALSE)) ->  | I150: =IF($C150="","",VLOOKUP($C150,Список!$A:$W,8,FALSE)) -> 0
B151: 2 | C151: =1+C150 -> 72 | D151: =IF($C151="","",VLOOKUP($C151,Список!$A:$W,3,FALSE)) -> 0 | E151: =IF($C151="","",VLOOKUP($C151,Список!$A:$W,4,FALSE)) ->  | F151: =IF($C151="","",VLOOKUP($C151,Список!$A:$W,5,FALSE)) -> 0 | G151: =IF($C151="","",VLOOKUP($C151,Список!$A:$W,6,FALSE)) ->  | H151: =IF($C151="","",VLOOKUP($C151,Список!$A:$W,7,FALSE)) ->  | I151: =IF($C151="","",VLOOKUP($C151,Список!$A:$W,8,FALSE)) -> 0
B152: 3 | C152: =1+C151 -> 73 | D152: =IF($C152="","",VLOOKUP($C152,Список!$A:$W,3,FALSE)) -> 0 | E152: =IF($C152="","",VLOOKUP($C152,Список!$A:$W,4,FALSE)) ->  | F152: =IF($C152="","",VLOOKUP($C152,Список!$A:$W,5,FALSE)) -> 0 | G152: =IF($C152="","",VLOOKUP($C152,Список!$A:$W,6,FALSE)) ->  | H152: =IF($C152="","",VLOOKUP($C152,Список!$A:$W,7,FALSE)) ->  | I152: =IF($C152="","",VLOOKUP($C152,Список!$A:$W,8,FALSE)) -> 0
B153: 4 | C153: =1+C152 -> 74 | D153: =IF($C153="","",VLOOKUP($C153,Список!$A:$W,3,FALSE)) -> 0 | E153: =IF($C153="","",VLOOKUP($C153,Список!$A:$W,4,FALSE)) ->  | F153: =IF($C153="","",VLOOKUP($C153,Список!$A:$W,5,FALSE)) -> 0 | G153: =IF($C153="","",VLOOKUP($C153,Список!$A:$W,6,FALSE)) ->  | H153: =IF($C153="","",VLOOKUP($C153,Список!$A:$W,7,FALSE)) ->  | I153: =IF($C153="","",VLOOKUP($C153,Список!$A:$W,8,FALSE)) -> 0
B154: 5 | C154: =1+C153 -> 75 | D154: =IF($C154="","",VLOOKUP($C154,Список!$A:$W,3,FALSE)) -> 0 | E154: =IF($C154="","",VLOOKUP($C154,Список!$A:$W,4,FALSE)) ->  | F154: =IF($C154="","",VLOOKUP($C154,Список!$A:$W,5,FALSE)) -> 0 | G154: =IF($C154="","",VLOOKUP($C154,Список!$A:$W,6,FALSE)) ->  | H154: =IF($C154="","",VLOOKUP($C154,Список!$A:$W,7,FALSE)) ->  | I154: =IF($C154="","",VLOOKUP($C154,Список!$A:$W,8,FALSE)) -> 0
F155: Тренер-представитель: | G155: =IF(C150="","",VLOOKUP(C150,Список!A:W,11,FALSE)) -> Сайран Е.С., Подкорытов И.В.
A157: =1+A147 -> 16 | B157: =IF(A157="","",VLOOKUP(A157,Команды!B:AB,7,FALSE)) -> Восточно-Казахстанская область | I157: =SUM(LARGE(G160:G164,{1,2,3})) -> 168
B158: № | D158: Фамилия Имя | E158: Дата | F158: Разряд | G158: Рейтинг | H158: Город | I158: Личный тренер
E159: рождения
B160: 1 | C160: =A157*5-4 -> 76 | D160: =IF($C160="","",VLOOKUP($C160,Список!$A:$W,3,FALSE)) -> КУРМАМБАЕВ Сагантай | E160: =IF($C160="","",VLOOKUP($C160,Список!$A:$W,4,FALSE)) -> 02.06.2003 | F160: =IF($C160="","",VLOOKUP($C160,Список!$A:$W,5,FALSE)) -> МС | G160: =IF($C160="","",VLOOKUP($C160,Список!$A:$W,6,FALSE)) -> 62 | H160: =IF($C160="","",VLOOKUP($C160,Список!$A:$W,7,FALSE)) -> ВКО | I160: =IF($C160="","",VLOOKUP($C160,Список!$A:$W,8,FALSE)) -> Жолудев Д.С.
B161: 2 | C161: =1+C160 -> 77 | D161: =IF($C161="","",VLOOKUP($C161,Список!$A:$W,3,FALSE)) -> ДЖИЕНБАЕВ Темирлан | E161: =IF($C161="","",VLOOKUP($C161,Список!$A:$W,4,FALSE)) -> 02.11.2006 | F161: =IF($C161="","",VLOOKUP($C161,Список!$A:$W,5,FALSE)) -> КМС | G161: =IF($C161="","",VLOOKUP($C161,Список!$A:$W,6,FALSE)) -> 42 | H161: =IF($C161="","",VLOOKUP($C161,Список!$A:$W,7,FALSE)) -> ВКО | I161: =IF($C161="","",VLOOKUP($C161,Список!$A:$W,8,FALSE)) -> Коновалов С.Г.
B162: 3 | C162: =1+C161 -> 78 | D162: =IF($C162="","",VLOOKUP($C162,Список!$A:$W,3,FALSE)) -> ОРАЛХАНОВ Арнур | E162: =IF($C162="","",VLOOKUP($C162,Список!$A:$W,4,FALSE)) -> 28.09.2007 | F162: =IF($C162="","",VLOOKUP($C162,Список!$A:$W,5,FALSE)) -> КМС | G162: =IF($C162="","",VLOOKUP($C162,Список!$A:$W,6,FALSE)) -> 44 | H162: =IF($C162="","",VLOOKUP($C162,Список!$A:$W,7,FALSE)) -> ВКО | I162: =IF($C162="","",VLOOKUP($C162,Список!$A:$W,8,FALSE)) -> Сотник К.О.
B163: 4 | C163: =1+C162 -> 79 | D163: =IF($C163="","",VLOOKUP($C163,Список!$A:$W,3,FALSE)) -> ЖОЛУДЕВ Денис | E163: =IF($C163="","",VLOOKUP($C163,Список!$A:$W,4,FALSE)) -> 28.07.1993 | F163: =IF($C163="","",VLOOKUP($C163,Список!$A:$W,5,FALSE)) -> МС | G163: =IF($C163="","",VLOOKUP($C163,Список!$A:$W,6,FALSE)) -> 62 | H163: =IF($C163="","",VLOOKUP($C163,Список!$A:$W,7,FALSE)) -> ВКО | I163: =IF($C163="","",VLOOKUP($C163,Список!$A:$W,8,FALSE)) -> 0
B164: 5 | C164: =1+C163 -> 80 | D164: =IF($C164="","",VLOOKUP($C164,Список!$A:$W,3,FALSE)) -> 0 | E164: =IF($C164="","",VLOOKUP($C164,Список!$A:$W,4,FALSE)) ->  | F164: =IF($C164="","",VLOOKUP($C164,Список!$A:$W,5,FALSE)) -> 0 | G164: =IF($C164="","",VLOOKUP($C164,Список!$A:$W,6,FALSE)) ->  | H164: =IF($C164="","",VLOOKUP($C164,Список!$A:$W,7,FALSE)) ->  | I164: =IF($C164="","",VLOOKUP($C164,Список!$A:$W,8,FALSE)) -> 0
F165: Тренер-представитель: | G165: =IF(C160="","",VLOOKUP(C160,Список!A:W,11,FALSE)) -> Жолудев Д.
B166: КОМАНДНЫЕ СОРЕВНОВАНИЯ. ЖЕНЩИНЫ
B167: СПИСОК УЧАСТНИКОВ
A168: 17 | B168: =IF(A168="","",VLOOKUP(A168,Команды!B:AB,7,FALSE)) -> город Шымкент | I168: =SUM(LARGE(G171:G175,{1,2,3})) -> 171
B169: № | D169: Фамилия Имя | E169: Дата | F169: Разряд | G169: Рейтинг | H169: Город | I169: Личный тренер
E170: рождения
B171: 1 | C171: =A168*5-4 -> 81 | D171: =IF($C171="","",VLOOKUP($C171,Список!$A:$W,3,FALSE)) -> АРТУКМЕТОВ Ирисбек | E171: =IF($C171="","",VLOOKUP($C171,Список!$A:$W,4,FALSE)) -> 18.08.2002 | F171: =IF($C171="","",VLOOKUP($C171,Список!$A:$W,5,FALSE)) -> МСМК | G171: =IF($C171="","",VLOOKUP($C171,Список!$A:$W,6,FALSE)) -> 62 | H171: =IF($C171="","",VLOOKUP($C171,Список!$A:$W,7,FALSE)) -> г. Шымкент | I171: =IF($C171="","",VLOOKUP($C171,Список!$A:$W,8,FALSE)) -> Мирасланов Р.М.
B172: 2 | C172: =1+C171 -> 82 | D172: =IF($C172="","",VLOOKUP($C172,Список!$A:$W,3,FALSE)) -> ЖАМАЛ Бекүлан | E172: =IF($C172="","",VLOOKUP($C172,Список!$A:$W,4,FALSE)) -> 12.01.1996 | F172: =IF($C172="","",VLOOKUP($C172,Список!$A:$W,5,FALSE)) -> МС | G172: =IF($C172="","",VLOOKUP($C172,Список!$A:$W,6,FALSE)) -> 57 | H172: =IF($C172="","",VLOOKUP($C172,Список!$A:$W,7,FALSE)) -> г. Шымкент | I172: =IF($C172="","",VLOOKUP($C172,Список!$A:$W,8,FALSE)) -> Жамал Б.Б.
B173: 3 | C173: =1+C172 -> 83 | D173: =IF($C173="","",VLOOKUP($C173,Список!$A:$W,3,FALSE)) -> ӘКІМӘЛІ Бақдаулет | E173: =IF($C173="","",VLOOKUP($C173,Список!$A:$W,4,FALSE)) -> 20.04.2001 | F173: =IF($C173="","",VLOOKUP($C173,Список!$A:$W,5,FALSE)) -> МС | G173: =IF($C173="","",VLOOKUP($C173,Список!$A:$W,6,FALSE)) -> 52 | H173: =IF($C173="","",VLOOKUP($C173,Список!$A:$W,7,FALSE)) -> г. Шымкент | I173: =IF($C173="","",VLOOKUP($C173,Список!$A:$W,8,FALSE)) -> Жамал Б.Б.
B174: 4 | C174: =1+C173 -> 84 | D174: =IF($C174="","",VLOOKUP($C174,Список!$A:$W,3,FALSE)) -> ЖҰМАҒҰЛ Марлен | E174: =IF($C174="","",VLOOKUP($C174,Список!$A:$W,4,FALSE)) -> 25.10.2011 | F174: =IF($C174="","",VLOOKUP($C174,Список!$A:$W,5,FALSE)) -> КМС | G174: =IF($C174="","",VLOOKUP($C174,Список!$A:$W,6,FALSE)) -> 25 | H174: =IF($C174="","",VLOOKUP($C174,Список!$A:$W,7,FALSE)) -> г. Шымкент | I174: =IF($C174="","",VLOOKUP($C174,Список!$A:$W,8,FALSE)) -> Жамал Б.Б.
B175: 5 | C175: =1+C174 -> 85 | D175: =IF($C175="","",VLOOKUP($C175,Список!$A:$W,3,FALSE)) -> ЖҰМАҒҰЛ Абай | E175: =IF($C175="","",VLOOKUP($C175,Список!$A:$W,4,FALSE)) -> 05.05.2013 | F175: =IF($C175="","",VLOOKUP($C175,Список!$A:$W,5,FALSE)) -> КМС | G175: =IF($C175="","",VLOOKUP($C175,Список!$A:$W,6,FALSE)) -> 17 | H175: =IF($C175="","",VLOOKUP($C175,Список!$A:$W,7,FALSE)) -> г. Шымкент | I175: =IF($C175="","",VLOOKUP($C175,Список!$A:$W,8,FALSE)) -> Жамал Б.Б.
F176: Тренер-представитель: | G176: =IF(C171="","",VLOOKUP(C171,Список!A:W,11,FALSE)) -> Жамал Б.Б.
A178: =1+A168 -> 18 | B178: =IF(A178="","",VLOOKUP(A178,Команды!B:AB,7,FALSE)) -> Абайская область | I178: =SUM(LARGE(G181:G185,{1,2,3})) -> 73
B179: № | D179: Фамилия Имя | E179: Дата | F179: Разряд | G179: Рейтинг | H179: Город | I179: Личный тренер
E180: рождения
B181: 1 | C181: =A178*5-4 -> 86 | D181: =IF($C181="","",VLOOKUP($C181,Список!$A:$W,3,FALSE)) -> МУРАТКАЛИЕВ Нурсултан | E181: =IF($C181="","",VLOOKUP($C181,Список!$A:$W,4,FALSE)) -> 12.03.1994 | F181: =IF($C181="","",VLOOKUP($C181,Список!$A:$W,5,FALSE)) -> КМС | G181: =IF($C181="","",VLOOKUP($C181,Список!$A:$W,6,FALSE)) -> 38 | H181: =IF($C181="","",VLOOKUP($C181,Список!$A:$W,7,FALSE)) -> Абайская обл. | I181: =IF($C181="","",VLOOKUP($C181,Список!$A:$W,8,FALSE)) -> 0
B182: 2 | C182: =1+C181 -> 87 | D182: =IF($C182="","",VLOOKUP($C182,Список!$A:$W,3,FALSE)) -> ТОҚТАРХАН Тілек | E182: =IF($C182="","",VLOOKUP($C182,Список!$A:$W,4,FALSE)) -> 06.12.2006 | F182: =IF($C182="","",VLOOKUP($C182,Список!$A:$W,5,FALSE)) -> КМС | G182: =IF($C182="","",VLOOKUP($C182,Список!$A:$W,6,FALSE)) -> 35 | H182: =IF($C182="","",VLOOKUP($C182,Список!$A:$W,7,FALSE)) -> Абайская обл. | I182: =IF($C182="","",VLOOKUP($C182,Список!$A:$W,8,FALSE)) -> Шайхин Б.А.
B183: 3 | C183: =1+C182 -> 88 | D183: =IF($C183="","",VLOOKUP($C183,Список!$A:$W,3,FALSE)) -> МАМЫРБЕК Нұртай | E183: =IF($C183="","",VLOOKUP($C183,Список!$A:$W,4,FALSE)) -> 1994-08-17 | F183: =IF($C183="","",VLOOKUP($C183,Список!$A:$W,5,FALSE)) -> КМС | G183: =IF($C183="","",VLOOKUP($C183,Список!$A:$W,6,FALSE)) -> 0 | H183: =IF($C183="","",VLOOKUP($C183,Список!$A:$W,7,FALSE)) -> Абайская обл. | I183: =IF($C183="","",VLOOKUP($C183,Список!$A:$W,8,FALSE)) -> 0
B184: 4 | C184: =1+C183 -> 89 | D184: =IF($C184="","",VLOOKUP($C184,Список!$A:$W,3,FALSE)) -> 0 | E184: =IF($C184="","",VLOOKUP($C184,Список!$A:$W,4,FALSE)) ->  | F184: =IF($C184="","",VLOOKUP($C184,Список!$A:$W,5,FALSE)) -> 0 | G184: =IF($C184="","",VLOOKUP($C184,Список!$A:$W,6,FALSE)) ->  | H184: =IF($C184="","",VLOOKUP($C184,Список!$A:$W,7,FALSE)) ->  | I184: =IF($C184="","",VLOOKUP($C184,Список!$A:$W,8,FALSE)) -> 0
B185: 5 | C185: =1+C184 -> 90 | D185: =IF($C185="","",VLOOKUP($C185,Список!$A:$W,3,FALSE)) -> 0 | E185: =IF($C185="","",VLOOKUP($C185,Список!$A:$W,4,FALSE)) ->  | F185: =IF($C185="","",VLOOKUP($C185,Список!$A:$W,5,FALSE)) -> 0 | G185: =IF($C185="","",VLOOKUP($C185,Список!$A:$W,6,FALSE)) ->  | H185: =IF($C185="","",VLOOKUP($C185,Список!$A:$W,7,FALSE)) ->  | I185: =IF($C185="","",VLOOKUP($C185,Список!$A:$W,8,FALSE)) -> 0
F186: Тренер-представитель: | G186: =IF(C181="","",VLOOKUP(C181,Список!A:W,11,FALSE)) -> Мураткалиев Н.
A188: =1+A178 -> 19 | B188: =IF(A188="","",VLOOKUP(A188,Команды!B:AB,7,FALSE)) -> Жетысуская область | I188: =SUM(LARGE(G191:G195,{1,2,3})) -> 
B189: № | D189: Фамилия Имя | E189: Дата | F189: Разряд | G189: Рейтинг | H189: Город | I189: Личный тренер
E190: рождения
B191: 1 | C191: =A188*5-4 -> 91 | D191: =IF($C191="","",VLOOKUP($C191,Список!$A:$W,3,FALSE)) -> 0 | E191: =IF($C191="","",VLOOKUP($C191,Список!$A:$W,4,FALSE)) ->  | F191: =IF($C191="","",VLOOKUP($C191,Список!$A:$W,5,FALSE)) -> 0 | G191: =IF($C191="","",VLOOKUP($C191,Список!$A:$W,6,FALSE)) ->  | H191: =IF($C191="","",VLOOKUP($C191,Список!$A:$W,7,FALSE)) ->  | I191: =IF($C191="","",VLOOKUP($C191,Список!$A:$W,8,FALSE)) -> 0
B192: 2 | C192: =1+C191 -> 92 | D192: =IF($C192="","",VLOOKUP($C192,Список!$A:$W,3,FALSE)) -> 0 | E192: =IF($C192="","",VLOOKUP($C192,Список!$A:$W,4,FALSE)) ->  | F192: =IF($C192="","",VLOOKUP($C192,Список!$A:$W,5,FALSE)) -> 0 | G192: =IF($C192="","",VLOOKUP($C192,Список!$A:$W,6,FALSE)) ->  | H192: =IF($C192="","",VLOOKUP($C192,Список!$A:$W,7,FALSE)) ->  | I192: =IF($C192="","",VLOOKUP($C192,Список!$A:$W,8,FALSE)) -> 0
B193: 3 | C193: =1+C192 -> 93 | D193: =IF($C193="","",VLOOKUP($C193,Список!$A:$W,3,FALSE)) -> 0 | E193: =IF($C193="","",VLOOKUP($C193,Список!$A:$W,4,FALSE)) ->  | F193: =IF($C193="","",VLOOKUP($C193,Список!$A:$W,5,FALSE)) -> 0 | G193: =IF($C193="","",VLOOKUP($C193,Список!$A:$W,6,FALSE)) ->  | H193: =IF($C193="","",VLOOKUP($C193,Список!$A:$W,7,FALSE)) ->  | I193: =IF($C193="","",VLOOKUP($C193,Список!$A:$W,8,FALSE)) -> 0
B194: 4 | C194: =1+C193 -> 94 | D194: =IF($C194="","",VLOOKUP($C194,Список!$A:$W,3,FALSE)) -> 0 | E194: =IF($C194="","",VLOOKUP($C194,Список!$A:$W,4,FALSE)) ->  | F194: =IF($C194="","",VLOOKUP($C194,Список!$A:$W,5,FALSE)) -> 0 | G194: =IF($C194="","",VLOOKUP($C194,Список!$A:$W,6,FALSE)) ->  | H194: =IF($C194="","",VLOOKUP($C194,Список!$A:$W,7,FALSE)) ->  | I194: =IF($C194="","",VLOOKUP($C194,Список!$A:$W,8,FALSE)) -> 0
B195: 5 | C195: =1+C194 -> 95 | D195: =IF($C195="","",VLOOKUP($C195,Список!$A:$W,3,FALSE)) -> 0 | E195: =IF($C195="","",VLOOKUP($C195,Список!$A:$W,4,FALSE)) ->  | F195: =IF($C195="","",VLOOKUP($C195,Список!$A:$W,5,FALSE)) -> 0 | G195: =IF($C195="","",VLOOKUP($C195,Список!$A:$W,6,FALSE)) ->  | H195: =IF($C195="","",VLOOKUP($C195,Список!$A:$W,7,FALSE)) ->  | I195: =IF($C195="","",VLOOKUP($C195,Список!$A:$W,8,FALSE)) -> 0
F196: Тренер-представитель: | G196: =IF(C191="","",VLOOKUP(C191,Список!A:W,11,FALSE)) -> Дюсембинов Н.
A198: =1+A188 -> 20 | B198: =IF(A198="","",VLOOKUP(A198,Команды!B:AB,7,FALSE)) -> Улытауская область | I198: =SUM(LARGE(G201:G205,{1,2,3})) -> 
B199: № | D199: Фамилия Имя | E199: Дата | F199: Разряд | G199: Рейтинг | H199: Город | I199: Личный тренер
E200: рождения
B201: 1 | C201: =A198*5-4 -> 96 | D201: =IF($C201="","",VLOOKUP($C201,Список!$A:$W,3,FALSE)) -> 0 | E201: =IF($C201="","",VLOOKUP($C201,Список!$A:$W,4,FALSE)) ->  | F201: =IF($C201="","",VLOOKUP($C201,Список!$A:$W,5,FALSE)) -> 0 | G201: =IF($C201="","",VLOOKUP($C201,Список!$A:$W,6,FALSE)) ->  | H201: =IF($C201="","",VLOOKUP($C201,Список!$A:$W,7,FALSE)) ->  | I201: =IF($C201="","",VLOOKUP($C201,Список!$A:$W,8,FALSE)) -> 0
B202: 2 | C202: =1+C201 -> 97 | D202: =IF($C202="","",VLOOKUP($C202,Список!$A:$W,3,FALSE)) -> 0 | E202: =IF($C202="","",VLOOKUP($C202,Список!$A:$W,4,FALSE)) ->  | F202: =IF($C202="","",VLOOKUP($C202,Список!$A:$W,5,FALSE)) -> 0 | G202: =IF($C202="","",VLOOKUP($C202,Список!$A:$W,6,FALSE)) ->  | H202: =IF($C202="","",VLOOKUP($C202,Список!$A:$W,7,FALSE)) ->  | I202: =IF($C202="","",VLOOKUP($C202,Список!$A:$W,8,FALSE)) -> 0
